Workbook

Sheet Setting
D2: ::: GOLD BREAD INVENTORY SYSTEM Ver.01_2018 | G2: Powered By IT-TEAM
C4: ::: ENTER BUSINESS INFORMATION :::
D7: ข้อมูลพื้นฐานประจำสาขา | G7: MENU
D9: รหัสสาขา
D10: 00-FRK | G10: PRODUCTS
D11: ชื่อสาขา | G11: TRANSACTION
D12: =INDEX(dBranches[Thai_Name],MATCH(BranchCode,dBranches[Code],0)) -> โรงงานร่มเกล้า | G12: ORDER
D13: ที่อยู่ | G13: REPORT
D14: =INDEX(dBranches[Address],MATCH(BranchCode,dBranches[Code],0)) -> 205/5 ถ.ร่มเกล้า แขวงคลองสามประเวศ เขตลาดกระบัง กรุงเทพมหานคร 10520 | G14: =UPPER("Deliver List") -> DELIVER LIST
D16: Phone
D17: =INDEX(dBranches[Tel],MATCH(BranchCode,dBranches[Code],0)) -> 084-132-1000

Sheet Branches
G2: SETTING | H2: STOCK | I2: PRODUCTS | J2: TRANSACTION
C3: :: Branches :: (Update : 24-07-2018) | M3: Van_Route
C5: Code | D5: Thai_Name | E5: Address | F5: Manager | G5: Regional Manager | H5: Tel | I5: Latitude | J5: Longtitude | K5: Route | M5: Route_Code
C6: 00-FRY | D6: โรงงานระยอง | E6: 115/1 ม.8 ต.ชากบก อ.บ้านค่าย จ.ระยอง 21120 | F6: นรรฆวุฒิ จันทฤทธิ์ | H6: 089-201-7562 | I6: 12.774569 | J6: 101.326649 | M6: FRY
C7: 00-FRK | D7: โรงงานร่มเกล้า | E7: 205/5 ถ.ร่มเกล้า แขวงคลองสามประเวศ เขตลาดกระบัง กรุงเทพมหานคร 10520 | F7: นุกูล ปัญญานาค | H7: 084-132-1000 | I7: 13.7406423 | J7: 100.7469429 | M7: FRK
C8: 03-KB | D8: กบินทร์บุรี | E8: 262-263 ต.เมืองเก่า อ.กบินทร์บุรี จ.ปราจีนบุรี 25240 | F8: นาย วุฒิพงศ์ ชาตรี | G8: นาย พีร์นิธิ มณีชูเกต | H8: 063-204-8029 | I8: 14.014677 | J8: 101.773387 | K8: 8 | M8: =RIGHT(BranchCode,LEN(BranchCode)-FIND("-",BranchCode))&TEXT(ROW(A1),"00") -> FRK01
C9: 04-KR | D9: โคราช | E9: 1216 ถ.มหาวิทยาลัย1 ต.หนองจะบก อ.เมือง จ.นครราชสีมา 30000 | F9: นาย ประสาร รู้กานนา | G9: นาย พีร์นิธิ มณีชูเกต | H9: 063-2048033 | I9: 14.902849 | J9: 102.056995 | K9: 12 | M9: FRK02
C10: 05-NP | D10: นครปฐม | E10: 156/3 ม.6 ต.คลองใหม่ อ.สามพราน จ.นครปฐม 7311 | F10: นาย ภูริวัจน์ จันทร์กลับ | G10: นาย สุทิน ปรางอ่อน | H10: 082-8177821 | I10: 13.74494 | J10: 100.208743 | K10: 10 | M10: FRK03
C11: 06-KK | D11: ขอนแก่น | E11: 4/7 ม.5 ถ.เลี่ยงเมือง ต.เมืองเก่า อ.เมือง จ.ขอนแก่น 40000 | F11: นาย อรรคพล มุ่งรวยกลาง | G11: นาย วาทิตย์ รวมดอน | H11: 062-1916679 | I11: 16.402358 | J11: 102.831718 | K11: 7 | M11: FRK04
C12: 07-AY | D12: อยุธยา | E12: 27/16-17 ม.2 ต.ธนู อ.อุทัย จ.พระนครศรีอยุธยา 13000 | F12: นาย ศุภกิจ กุลพานิช | G12: นาย สุทิน ปรางอ่อน | H12: 063-2048026 | I12: 14.348776 | J12: 100.611989 | K12: 7 | M12: FRK05
C13: 08-BK | D13: กรุงเทพฯ | E13: 2/11-12 ถ.รามคำแหง แขวงมีนบุรี เขตมีนบุรี กรุงเทพฯ 10510 | F13: นาย เกียรติศักดิ์ เมืองทรัพย์ | G13: นาย สุทิน ปรางอ่อน | H13: 063-2048020 | I13: 13.795611 | J13: 100.708239 | K13: 12 | M13: FRK06
C14: 09-RY | D14: ระยอง | E14: 115/1 ม.8 ต.ชากบก อ.บ้านค่าย จ.ระยอง 21120 | F14: นาย วุฒิพงศ์ ชาตรี | G14: นาย สุทิน ปรางอ่อน | H14: 063-2048029 | I14: 12.774405 | J14: 101.326728 | K14: 10 | M14: FRK07
C15: 10-SK | D15: สมุทรปราการ | E15: 155/6 ม.1 ต.บางพลีน้อย อ.บางบ่อ จ.สมุทรปราการ 10560 | F15: นาย ภูริวัจน์ จันทร์กลับ | G15: นาย สุทิน ปรางอ่อน | H15: 087-0511217 | I15: 13.574224 | J15: 100.899699 | K15: 9 | M15: FRK08
C16: 12-PY | D16: พัทยา | E16: 118/1 ม.8 ต.บางละมุง อ.บางละมุง จ.ชลบุรี 20150 | F16: นาย อ๊อด วงศ์พันธ์ | G16: นาย สุทิน ปรางอ่อน | H16: 082-8177821 | I16: 12.967962 | J16: 100.930473 | K16: 8 | M16: FRK09
C17: 13-SR | D17: สุรินทร์ | E17: 606 ม.19 ต.นอกเมือง อ.เมือง จ.สุรินทร์ 32000 | F17: นาย บรรจบ ตระกาญจันทร์ | G17: นาย วาทิตย์ รวมดอน | H17: 091-6709560 | I17: 14.860422 | J17: 103.522018 | K17: 6 | M17: FRK10
C18: 14-CB | D18: จันทบุรี | E18: 90/92-93 ม.2 ต.ท่าช้าง อ.เมือง จ.จันทบุรี 22000 | F18: นาย วุฒิพงศ์ ชาตรี | G18: นาย สุทิน ปรางอ่อน | H18: 063-2048029 | I18: 12.665111 | J18: 102.091187 | K18: 7 | M18: FRK11
C19: 15-UB | D19: อุบลราชธานี | E19: 144 ม.8 ต.แสนสุข อ.วารินชำราบ จ.อุบลฯ 34190 | F19: นาย สุพรรณ ทวีสาร | G19: นาย พีร์นิธิ มณีชูเกต | H19: 094-357-1844 | I19: 15.160237 | J19: 104.853526 | K19: 8 | M19: FRK12
C20: 16-KL | D20: คลองหลวง | E20: 220 ซอย รังสิต-นครนายก 37 ต.ประชาธิปัตย์ อ.ธัญบุรี จ.ปทุมธานี 12130 | F20: นาย ศุภกิจ กุลพานิช | G20: นาย สุทิน ปรางอ่อน | H20: 063-2025778 | I20: 13.995289 | J20: 100.647051 | K20: 6 | M20: FRK13
C21: 17-LA | D21: ร้อยเอ็ด | E21: 141/6-7 ถ.ปัทมานนท์ ต.ในเมือง อ.เมือง จ.ร้อยเอ็ด 45000 | F21: นายสุริยา กุลมอญ | G21: นาย พีร์นิธิ มณีชูเกต | H21: 084-6397193 | I21: 16.040889 | J21: 103.646284 | K21: 8 | M21: FRK14
C22: 18-SN | D22: สกลนคร | E22: 191/1-2 หมู่ 12 ต.สกลนคร-นาแก อ.เมือง จ.สกลนคร 47000 | F22: นายสุริยา กุลมอญ | G22: นาย พีร์นิธิ มณีชูเกต | H22: 084-6397193 | I22: 17.119754 | J22: 104.141884 | K22: 7 | M22: FRK15
C23: 19-UD | D23: อุดรธานี | E23: 9/8 ถ.รอบเมือง ต.หมากแข้ง อ.เมือง จ.อุดรธานี 41000 | F23: นาย เกียรติยศ หมื่นศรีพรม | G23: นาย พีร์นิธิ มณีชูเกต | H23: 080-011-2484 | I23: 17.433212 | J23: 102.799618 | K23: 13 | M23: FRK16
C24: 20-PC | D24: ปากช่อง | E24: 34,36 ถ.ธนะรัชต์ ต.ปากช่อง อ.ปากช่อง จ.นครราชสีมา 30130 | F24: นาย ประสาร รู้กานนา | G24: นาย พีร์นิธิ มณีชูเกต | H24: 063-2048033 | I24: 14.667007 | J24: 101.399057 | K24: 5 | M24: FRK17
C25: 21-BR | D25: บุรีรัมย์ | E25: 302/53-54 ต.เสม็ด อ.เมืองบุรีรัมย์ จ.บุรีรัมย์ 31000 | F25: นาย บรรจบ ตระกาญจันทร์ | G25: นาย วาทิตย์ รวมดอน | H25: 062-1916679 | I25: 14.93111 | J25: 103.084997 | K25: 6 | M25: FRK18
C26: 22-LB | D26: ลพบุรี | E26: 144/4 หมู่ 4 ต.ท่าวุ้ง อ.ท่าวุ้ง จ.ลพบุรี 15150 | F26: นาย คำรณ สนธิ | G26: นาย สุทิน ปรางอ่อน | H26: 063-2048035 | I26: 14.818951 | J26: 100.504352 | K26: 6 | M26: FRK19
C27: 23-NS | D27: นครสวรรค์ | E27: 117 ถ.พรหมนิมิต ตำบลวัดไทร อำเภอเมืองนครสวรรค์ จ.นครสวรรค์ 60000 | F27: นาย เทพพร จบดี | G27: นาย พีร์นิธิ มณีชูเกต | H27: 063-2048030 | K27: 7 | M27: FRK20
C28: 24-CY | D28: ชัยภูมิ | E28: 144/15-16 ถนนชัยภูมิ-สีคิ้ว หนองนาแซง อำเภอเมือง จ.ชัยภูมิ | F28: นาย สันทัด ประสิทธิ์นอก | G28: นาย พีร์นิธิ มณีชูเกต | H28: - | I28: 15.755963 | J28: 102.0217383 | K28: 5
C29: 25-RB | D29: ราษฎร์บูรณะ | E29: 6 ซอยราษฎร์บูรณะ 4 แขวงบางปะกอก เขตราษฎร์บูรณะ กรุงเทพมหานคร 10140 | F29: นาย วรชาติ จันทร์ช่วง | G29: นาย สุทิน ปรางอ่อน | H29: 063-2048031 | I29: 13.6981232 | J29: 100.5277025 | K29: 5
C30: 26-LE | D30: เลย | E30: 340 ม.10 ต.วังสะพุง อ.วังสะพุง จ.เลย 42130 | F30: นาย เกียรติยศ หมื่นศรีพรม | G30: นาย พีร์นิธิ มณีชูเกต | H30: 080-011-2484 | K30: 7
C31: 27-PL | D31: พิษณุโลก | E31: 8888/93-94 ตำบลสมอแข อำเภอเมือง จ.พิษณุโลก | F31: นาย เทพพร จบดี | G31: นาย พีร์นิธิ มณีชูเกต | H31: 087-0511217 | K31: 8
C32: 28-PN | D32: เพชรบูรณ์ | E32: 164 หมู่ 10 ต.ชอนไพร อ.เมือง จ.เพชรบูรณ์ 67000 | F32: นาย สันทัด ประสิทธิ์นอก | G32: นาย พีร์นิธิ มณีชูเกต | H32: 062-1722908 | K32: 5
C33: 29-SG | D33: ศรีสะเกษ | E33: 383 ม.2 ต.หนองครก อ.เมือง จ.ศรีสะเกษ 33000 | F33: นาย สุพรรณ ทวีสาร | G33: นาย พีร์นิธิ มณีชูเกต | H33: 094-357-1844 | K33: 6
C34: 00-MT | D34: Moguzto | E34: 205/5 ถ.ร่มเกล้า แขวงคลองสามประเวศ เขตลาดกระบัง กรุงเทพมหานคร 10520 | F34: นาย นุกูล ปัญญานาค | G34: 061-6810789 | H34: 061-6810789 | I34: 13.7406423 | J34: 100.7469429
C35: 90-HO | D35: สำนักงานใหญ่ | E35: 2/11-12 ถ.รามคำแหง แขวงมีนบุรี เขตมีนบุรี กรุงเทพฯ 10510 | G35: 02-917-4028-9 | H35: 02-917-4028-9 | I35: 13.795522 | J35: 100.708145
C36: 00-DM | D36: วัดพระธรรมกาย | E36: 23/2 ม.7 ต.คลองสาม อ.คลองหลวง จ.ปทุมธานี 12120
C37: 84-TYT | D37: Toyota
C38: 01-MK | D38: การตลาด
C39: 82-BBK | D39: BDC-กรุงเทพฯ
C40: 83-BRY | D40: BDC-ระยอง
C41: 63-RDC | D41: เซเวน

Sheet Products
G2: SETTING | H2: PRODUCTS | I2: TRANSACTION | J2: ORDER | K2: REPORT | L2: =UPPER("Deliver List") -> DELIVER LIST
B3: ::: Product ::: | N3: หน่วยนับสินค้า | P3: หมวดหมู่ | R3: ประเภท
B5: PD_Code | C5: BarCode | D5: NameTH | E5: NameEng | F5: Catagory | G5: Unit | H5: Pcs/Unit | I5: PriceCase | J5: %Discount | K5: Factory | L5: Status | N5: Unit | P5: Catagories | R5: Type | T5: All_Product_List | U5: FRY_Product_List | V5: FRK_Product_List | X5: Product_Selected | Z5: Month_List | AC5: Calendar_List | AE5: TRDate_List | AG5: TRRoute_List
B6: 9913 | C6: 8852269400365 | D6: 01-ขนมปังหมูหยองน้ำสลัด | E6: Shredded Pork Salad Cream Filled Bun 70g. | F6: ของสด | G6: ชิ้น | H6: 40 | I6: 15 | J6: 0.45 | K6: 00-FRY | L6: ปกติ | N6: ชิ้น | P6: ของสด | R6: รับ | T6: =IF(ROW()-ROW($V$5)>COUNTIF(dProduct[Status],"ปกติ"),"",INDEX(dProduct[NameTH],SMALL(IF(dProduct[Status]="ปกติ",ROW(dProduct[NameTH])-ROW(dProduct[[#Headers],[NameTH]]),""),ROW()-ROW($T$5)))) -> 01-ขนมปังหมูหยองน้ำสลัด | U6: =IF(ROW()-ROW($U$5)>COUNTIFS(dProduct[Status],"ปกติ",dProduct[Factory],"<>"&"00-FRK"),"",INDEX(dProduct[NameTH],SMALL(IF((dProduct[Status]="ปกติ")*(dProduct[Factory]<>"00-FRK")=1,ROW(dProduct[NameTH])-ROW(dProduct[[#Headers],[NameTH]]),""),ROW()-ROW($U$5)))) -> 01-ขนมปังหมูหยองน้ำสลัด | V6: =IF(ROW()-ROW($U$5)>COUNTIFS(dProduct[Status],"ปกติ",dProduct[Factory],"<>"&"00-FRY"),"",INDEX(dProduct[NameTH],SMALL(IF((dProduct[Status]="ปกติ")*(dProduct[Factory]<>"00-FRY")=1,ROW(dProduct[NameTH])-ROW(dProduct[[#Headers],[NameTH]]),""),ROW()-ROW($U$5)))) -> 23-ครัวซองต์เนยสด | X6: =IFERROR(INDEX(dProduct[NameTH],_xlfn.AGGREGATE(15,6,(ROW(dProduct[NameTH])-ROW(dProduct[[#Headers],[NameTH]]))/(COUNTIF(Transaction[Products],dProduct[NameTH])>0),ROWS($X$6:$X6))),"") ->  | Z6: มกราคม | AA6: ม.ค. | AC6: =DATE(YEAR(TODAY()),MONTH(TODAY()),ROWS($6:6)+DAY(TODAY())-8) -> 2022-07-07 | AE6: 2018-06-27 | AG6: PC01
B7: 99141 | C7: 8852269590103 | D7: 02-ขนมปังหมูหยองน้ำพริกเผา | E7: Shredded Pork Roasted Chili Paste Filled Bun 70g. | F7: ของสด | G7: ชิ้น | H7: 40 | I7: 15 | J7: 0.45 | K7: 00-FRY | L7: ปกติ | N7: ถาด | P7: ของแห้ง | R7: เบิก | T7: =IF(ROW()-ROW($V$5)>COUNTIF(dProduct[Status],"ปกติ"),"",INDEX(dProduct[NameTH],SMALL(IF(dProduct[Status]="ปกติ",ROW(dProduct[NameTH])-ROW(dProduct[[#Headers],[NameTH]]),""),ROW()-ROW($T$5)))) -> 02-ขนมปังหมูหยองน้ำพริกเผา | U7: =IF(ROW()-ROW($U$5)>COUNTIFS(dProduct[Status],"ปกติ",dProduct[Factory],"<>"&"00-FRK"),"",INDEX(dProduct[NameTH],SMALL(IF((dProduct[Status]="ปกติ")*(dProduct[Factory]<>"00-FRK")=1,ROW(dProduct[NameTH])-ROW(dProduct[[#Headers],[NameTH]]),""),ROW()-ROW($U$5)))) -> 02-ขนมปังหมูหยองน้ำพริกเผา | V7: =IF(ROW()-ROW($U$5)>COUNTIFS(dProduct[Status],"ปกติ",dProduct[Factory],"<>"&"00-FRY"),"",INDEX(dProduct[NameTH],SMALL(IF((dProduct[Status]="ปกติ")*(dProduct[Factory]<>"00-FRY")=1,ROW(dProduct[NameTH])-ROW(dProduct[[#Headers],[NameTH]]),""),ROW()-ROW($U$5)))) -> 25-ขนมปังกรอบเนยน้ำตาล | X7: =IFERROR(INDEX(dProduct[NameTH],_xlfn.AGGREGATE(15,6,(ROW(dProduct[NameTH])-ROW(dProduct[[#Headers],[NameTH]]))/(COUNTIF(Transaction[Products],dProduct[NameTH])>0),ROWS($X$6:$X7))),"") ->  | Z7: กุมภาพันธ์ | AA7: ก.พ. | AC7: =DATE(YEAR(TODAY()),MONTH(TODAY()),ROWS($6:7)+DAY(TODAY())-8) -> 2022-07-08 | AE7: 2018-06-28 | AG7: PC02
B8: 99126 | C8: 8852269570013 | D8: 03-ขนมปังไก่หยองน้ำสลัด | E8: Shredded Chicken Salad Cream Filled Bun 70g. | F8: ของสด | G8: ชิ้น | H8: 40 | I8: 15 | J8: 0.45 | K8: 00-FRY | L8: ปกติ | N8: กล่อง | R8: ยกมา | T8: =IF(ROW()-ROW($V$5)>COUNTIF(dProduct[Status],"ปกติ"),"",INDEX(dProduct[NameTH],SMALL(IF(dProduct[Status]="ปกติ",ROW(dProduct[NameTH])-ROW(dProduct[[#Headers],[NameTH]]),""),ROW()-ROW($T$5)))) -> 03-ขนมปังไก่หยองน้ำสลัด | U8: =IF(ROW()-ROW($U$5)>COUNTIFS(dProduct[Status],"ปกติ",dProduct[Factory],"<>"&"00-FRK"),"",INDEX(dProduct[NameTH],SMALL(IF((dProduct[Status]="ปกติ")*(dProduct[Factory]<>"00-FRK")=1,ROW(dProduct[NameTH])-ROW(dProduct[[#Headers],[NameTH]]),""),ROW()-ROW($U$5)))) -> 03-ขนมปังไก่หยองน้ำสลัด | V8: =IF(ROW()-ROW($U$5)>COUNTIFS(dProduct[Status],"ปกติ",dProduct[Factory],"<>"&"00-FRY"),"",INDEX(dProduct[NameTH],SMALL(IF((dProduct[Status]="ปกติ")*(dProduct[Factory]<>"00-FRY")=1,ROW(dProduct[NameTH])-ROW(dProduct[[#Headers],[NameTH]]),""),ROW()-ROW($U$5)))) -> 26-พายสับปะรด | X8: =IFERROR(INDEX(dProduct[NameTH],_xlfn.AGGREGATE(15,6,(ROW(dProduct[NameTH])-ROW(dProduct[[#Headers],[NameTH]]))/(COUNTIF(Transaction[Products],dProduct[NameTH])>0),ROWS($X$6:$X8))),"") ->  | Z8: มีนาคม | AA8: มี.ค. | AC8: =DATE(YEAR(TODAY()),MONTH(TODAY()),ROWS($6:8)+DAY(TODAY())-8) -> 2022-07-09 | AE8: 2018-06-30 | AG8: PC04
B9: 99124 | C9: 8852269401164 | D9: 04-ขนมปังไส้ครีมสลัด | E9: Salad Cream Filled Bun 70g. | F9: ของสด | G9: ชิ้น | H9: 50 | I9: 12 | J9: 0.45 | K9: 00-FRY | L9: ปกติ | N9: โหล | R9: เสีย | T9: =IF(ROW()-ROW($V$5)>COUNTIF(dProduct[Status],"ปกติ"),"",INDEX(dProduct[NameTH],SMALL(IF(dProduct[Status]="ปกติ",ROW(dProduct[NameTH])-ROW(dProduct[[#Headers],[NameTH]]),""),ROW()-ROW($T$5)))) -> 04-ขนมปังไส้ครีมสลัด | U9: =IF(ROW()-ROW($U$5)>COUNTIFS(dProduct[Status],"ปกติ",dProduct[Factory],"<>"&"00-FRK"),"",INDEX(dProduct[NameTH],SMALL(IF((dProduct[Status]="ปกติ")*(dProduct[Factory]<>"00-FRK")=1,ROW(dProduct[NameTH])-ROW(dProduct[[#Headers],[NameTH]]),""),ROW()-ROW($U$5)))) -> 04-ขนมปังไส้ครีมสลัด | V9: =IF(ROW()-ROW($U$5)>COUNTIFS(dProduct[Status],"ปกติ",dProduct[Factory],"<>"&"00-FRY"),"",INDEX(dProduct[NameTH],SMALL(IF((dProduct[Status]="ปกติ")*(dProduct[Factory]<>"00-FRY")=1,ROW(dProduct[NameTH])-ROW(dProduct[[#Headers],[NameTH]]),""),ROW()-ROW($U$5)))) ->  | X9: =IFERROR(INDEX(dProduct[NameTH],_xlfn.AGGREGATE(15,6,(ROW(dProduct[NameTH])-ROW(dProduct[[#Headers],[NameTH]]))/(COUNTIF(Transaction[Products],dProduct[NameTH])>0),ROWS($X$6:$X9))),"") ->  | Z9: เมษายน | AA9: เม.ย. | AC9: =DATE(YEAR(TODAY()),MONTH(TODAY()),ROWS($6:9)+DAY(TODAY())-8) -> 2022-07-10 | AE9: 2018-07-30 | AG9: PC06
B10: 99142 | C10: 8852269590110 | D10: 05-ขนมปังเนยสด | E10: Butter Cream Filled Bun 60g. | F10: ของสด | G10: ชิ้น | H10: 40 | I10: 12 | J10: 0.45 | K10: 00-FRY | L10: ปกติ | N10: แพ็ค | T10: =IF(ROW()-ROW($V$5)>COUNTIF(dProduct[Status],"ปกติ"),"",INDEX(dProduct[NameTH],SMALL(IF(dProduct[Status]="ปกติ",ROW(dProduct[NameTH])-ROW(dProduct[[#Headers],[NameTH]]),""),ROW()-ROW($T$5)))) -> 05-ขนมปังเนยสด | U10: =IF(ROW()-ROW($U$5)>COUNTIFS(dProduct[Status],"ปกติ",dProduct[Factory],"<>"&"00-FRK"),"",INDEX(dProduct[NameTH],SMALL(IF((dProduct[Status]="ปกติ")*(dProduct[Factory]<>"00-FRK")=1,ROW(dProduct[NameTH])-ROW(dProduct[[#Headers],[NameTH]]),""),ROW()-ROW($U$5)))) -> 05-ขนมปังเนยสด | V10: =IF(ROW()-ROW($U$5)>COUNTIFS(dProduct[Status],"ปกติ",dProduct[Factory],"<>"&"00-FRY"),"",INDEX(dProduct[NameTH],SMALL(IF((dProduct[Status]="ปกติ")*(dProduct[Factory]<>"00-FRY")=1,ROW(dProduct[NameTH])-ROW(dProduct[[#Headers],[NameTH]]),""),ROW()-ROW($U$5)))) ->  | X10: =IFERROR(INDEX(dProduct[NameTH],_xlfn.AGGREGATE(15,6,(ROW(dProduct[NameTH])-ROW(dProduct[[#Headers],[NameTH]]))/(COUNTIF(Transaction[Products],dProduct[NameTH])>0),ROWS($X$6:$X10))),"") ->  | Z10: พฤษภาคม | AA10: พ.ค. | AC10: =DATE(YEAR(TODAY()),MONTH(TODAY()),ROWS($6:10)+DAY(TODAY())-8) -> 2022-07-11 | AE10: 2018-08-01 | AG10: PC08
B11: 9903 | C11: 8852269400198 | D11: 06-ขนมปังไส้สังขยาเล็ก | E11: Pandan Custard Filled Bun 75g. | F11: ของสด | G11: ชิ้น | H11: 50 | I11: 10 | J11: 0.45 | K11: 00-FRY | L11: ปกติ | T11: =IF(ROW()-ROW($V$5)>COUNTIF(dProduct[Status],"ปกติ"),"",INDEX(dProduct[NameTH],SMALL(IF(dProduct[Status]="ปกติ",ROW(dProduct[NameTH])-ROW(dProduct[[#Headers],[NameTH]]),""),ROW()-ROW($T$5)))) -> 06-ขนมปังไส้สังขยาเล็ก | U11: =IF(ROW()-ROW($U$5)>COUNTIFS(dProduct[Status],"ปกติ",dProduct[Factory],"<>"&"00-FRK"),"",INDEX(dProduct[NameTH],SMALL(IF((dProduct[Status]="ปกติ")*(dProduct[Factory]<>"00-FRK")=1,ROW(dProduct[NameTH])-ROW(dProduct[[#Headers],[NameTH]]),""),ROW()-ROW($U$5)))) -> 06-ขนมปังไส้สังขยาเล็ก | V11: =IF(ROW()-ROW($U$5)>COUNTIFS(dProduct[Status],"ปกติ",dProduct[Factory],"<>"&"00-FRY"),"",INDEX(dProduct[NameTH],SMALL(IF((dProduct[Status]="ปกติ")*(dProduct[Factory]<>"00-FRY")=1,ROW(dProduct[NameTH])-ROW(dProduct[[#Headers],[NameTH]]),""),ROW()-ROW($U$5)))) ->  | X11: =IFERROR(INDEX(dProduct[NameTH],_xlfn.AGGREGATE(15,6,(ROW(dProduct[NameTH])-ROW(dProduct[[#Headers],[NameTH]]))/(COUNTIF(Transaction[Products],dProduct[NameTH])>0),ROWS($X$6:$X11))),"") ->  | Z11: มิถุนายน | AA11: มิ.ย. | AC11: =DATE(YEAR(TODAY()),MONTH(TODAY()),ROWS($6:11)+DAY(TODAY())-8) -> 2022-07-12
B12: 9902 | C12: 8852269400020 | D12: 07-ขนมปังไส้เผือก | E12: Taro Filled Bun 75g. | F12: ของสด | G12: ชิ้น | H12: 50 | I12: 10 | J12: 0.45 | K12: 00-FRY | L12: ปกติ | T12: =IF(ROW()-ROW($V$5)>COUNTIF(dProduct[Status],"ปกติ"),"",INDEX(dProduct[NameTH],SMALL(IF(dProduct[Status]="ปกติ",ROW(dProduct[NameTH])-ROW(dProduct[[#Headers],[NameTH]]),""),ROW()-ROW($T$5)))) -> 07-ขนมปังไส้เผือก | U12: =IF(ROW()-ROW($U$5)>COUNTIFS(dProduct[Status],"ปกติ",dProduct[Factory],"<>"&"00-FRK"),"",INDEX(dProduct[NameTH],SMALL(IF((dProduct[Status]="ปกติ")*(dProduct[Factory]<>"00-FRK")=1,ROW(dProduct[NameTH])-ROW(dProduct[[#Headers],[NameTH]]),""),ROW()-ROW($U$5)))) -> 07-ขนมปังไส้เผือก | V12: =IF(ROW()-ROW($U$5)>COUNTIFS(dProduct[Status],"ปกติ",dProduct[Factory],"<>"&"00-FRY"),"",INDEX(dProduct[NameTH],SMALL(IF((dProduct[Status]="ปกติ")*(dProduct[Factory]<>"00-FRY")=1,ROW(dProduct[NameTH])-ROW(dProduct[[#Headers],[NameTH]]),""),ROW()-ROW($U$5)))) ->  | X12: =IFERROR(INDEX(dProduct[NameTH],_xlfn.AGGREGATE(15,6,(ROW(dProduct[NameTH])-ROW(dProduct[[#Headers],[NameTH]]))/(COUNTIF(Transaction[Products],dProduct[NameTH])>0),ROWS($X$6:$X12))),"") ->  | Z12: กรกฎาคม | AA12: ก.ค. | AC12: =DATE(YEAR(TODAY()),MONTH(TODAY()),ROWS($6:12)+DAY(TODAY())-8) -> 2022-07-13
B13: 9906 | C13: 8852269400037 | D13: 08-ขนมปังไส้ถั่วแดง | E13: Red Beans Filled Bun 75g. | F13: ของสด | G13: ชิ้น | H13: 50 | I13: 10 | J13: 0.45 | K13: 00-FRY | L13: ปกติ | T13: =IF(ROW()-ROW($V$5)>COUNTIF(dProduct[Status],"ปกติ"),"",INDEX(dProduct[NameTH],SMALL(IF(dProduct[Status]="ปกติ",ROW(dProduct[NameTH])-ROW(dProduct[[#Headers],[NameTH]]),""),ROW()-ROW($T$5)))) -> 08-ขนมปังไส้ถั่วแดง | U13: =IF(ROW()-ROW($U$5)>COUNTIFS(dProduct[Status],"ปกติ",dProduct[Factory],"<>"&"00-FRK"),"",INDEX(dProduct[NameTH],SMALL(IF((dProduct[Status]="ปกติ")*(dProduct[Factory]<>"00-FRK")=1,ROW(dProduct[NameTH])-ROW(dProduct[[#Headers],[NameTH]]),""),ROW()-ROW($U$5)))) -> 08-ขนมปังไส้ถั่วแดง | V13: =IF(ROW()-ROW($U$5)>COUNTIFS(dProduct[Status],"ปกติ",dProduct[Factory],"<>"&"00-FRY"),"",INDEX(dProduct[NameTH],SMALL(IF((dProduct[Status]="ปกติ")*(dProduct[Factory]<>"00-FRY")=1,ROW(dProduct[NameTH])-ROW(dProduct[[#Headers],[NameTH]]),""),ROW()-ROW($U$5)))) ->  | X13: =IFERROR(INDEX(dProduct[NameTH],_xlfn.AGGREGATE(15,6,(ROW(dProduct[NameTH])-ROW(dProduct[[#Headers],[NameTH]]))/(COUNTIF(Transaction[Products],dProduct[NameTH])>0),ROWS($X$6:$X13))),"") ->  | Z13: สิงหาคม | AA13: ส.ค. | AC13: =DATE(YEAR(TODAY()),MONTH(TODAY()),ROWS($6:13)+DAY(TODAY())-8) -> 2022-07-14
B14: 99171 | C14: 8852269620046 | D14: 09-ขนมปังไส้ถั่วดำ | E14: Black Bean Filled Bun 75g. | F14: ของสด | G14: ชิ้น | H14: 50 | I14: 10 | J14: 0.45 | K14: 00-FRY | L14: ปกติ | T14: =IF(ROW()-ROW($V$5)>COUNTIF(dProduct[Status],"ปกติ"),"",INDEX(dProduct[NameTH],SMALL(IF(dProduct[Status]="ปกติ",ROW(dProduct[NameTH])-ROW(dProduct[[#Headers],[NameTH]]),""),ROW()-ROW($T$5)))) -> 09-ขนมปังไส้ถั่วดำ | U14: =IF(ROW()-ROW($U$5)>COUNTIFS(dProduct[Status],"ปกติ",dProduct[Factory],"<>"&"00-FRK"),"",INDEX(dProduct[NameTH],SMALL(IF((dProduct[Status]="ปกติ")*(dProduct[Factory]<>"00-FRK")=1,ROW(dProduct[NameTH])-ROW(dProduct[[#Headers],[NameTH]]),""),ROW()-ROW($U$5)))) -> 09-ขนมปังไส้ถั่วดำ | V14: =IF(ROW()-ROW($U$5)>COUNTIFS(dProduct[Status],"ปกติ",dProduct[Factory],"<>"&"00-FRY"),"",INDEX(dProduct[NameTH],SMALL(IF((dProduct[Status]="ปกติ")*(dProduct[Factory]<>"00-FRY")=1,ROW(dProduct[NameTH])-ROW(dProduct[[#Headers],[NameTH]]),""),ROW()-ROW($U$5)))) ->  | X14: =IFERROR(INDEX(dProduct[NameTH],_xlfn.AGGREGATE(15,6,(ROW(dProduct[NameTH])-ROW(dProduct[[#Headers],[NameTH]]))/(COUNTIF(Transaction[Products],dProduct[NameTH])>0),ROWS($X$6:$X14))),"") ->  | Z14: กันยายน | AA14: ก.ย. | AC14: =DATE(YEAR(TODAY()),MONTH(TODAY()),ROWS($6:14)+DAY(TODAY())-8) -> 2022-07-15
B15: 99161 | C15: 8852269610047 | D15: 10-ขนมปังไส้มันม่วง | E15: Purple Sweet Potato Filled Bun 75g. | F15: ของสด | G15: ชิ้น | H15: 50 | I15: 10 | J15: 0.45 | K15: 00-FRY | L15: ปกติ | T15: =IF(ROW()-ROW($V$5)>COUNTIF(dProduct[Status],"ปกติ"),"",INDEX(dProduct[NameTH],SMALL(IF(dProduct[Status]="ปกติ",ROW(dProduct[NameTH])-ROW(dProduct[[#Headers],[NameTH]]),""),ROW()-ROW($T$5)))) -> 10-ขนมปังไส้มันม่วง | U15: =IF(ROW()-ROW($U$5)>COUNTIFS(dProduct[Status],"ปกติ",dProduct[Factory],"<>"&"00-FRK"),"",INDEX(dProduct[NameTH],SMALL(IF((dProduct[Status]="ปกติ")*(dProduct[Factory]<>"00-FRK")=1,ROW(dProduct[NameTH])-ROW(dProduct[[#Headers],[NameTH]]),""),ROW()-ROW($U$5)))) -> 10-ขนมปังไส้มันม่วง | V15: =IF(ROW()-ROW($U$5)>COUNTIFS(dProduct[Status],"ปกติ",dProduct[Factory],"<>"&"00-FRY"),"",INDEX(dProduct[NameTH],SMALL(IF((dProduct[Status]="ปกติ")*(dProduct[Factory]<>"00-FRY")=1,ROW(dProduct[NameTH])-ROW(dProduct[[#Headers],[NameTH]]),""),ROW()-ROW($U$5)))) ->  | X15: =IFERROR(INDEX(dProduct[NameTH],_xlfn.AGGREGATE(15,6,(ROW(dProduct[NameTH])-ROW(dProduct[[#Headers],[NameTH]]))/(COUNTIF(Transaction[Products],dProduct[NameTH])>0),ROWS($X$6:$X15))),"") ->  | Z15: ตุลาคม | AA15: ต.ค. | AC15: =DATE(YEAR(TODAY()),MONTH(TODAY()),ROWS($6:15)+DAY(TODAY())-8) -> 2022-07-16
B16: 9908 | C16: 8852269400136 | D16: 11-เค้กกล้วยหอม | E16: Banana Cake 70g. | F16: ของสด | G16: ชิ้น | H16: 50 | I16: 12 | J16: 0.45 | K16: 00-FRY | L16: ปกติ | T16: =IF(ROW()-ROW($V$5)>COUNTIF(dProduct[Status],"ปกติ"),"",INDEX(dProduct[NameTH],SMALL(IF(dProduct[Status]="ปกติ",ROW(dProduct[NameTH])-ROW(dProduct[[#Headers],[NameTH]]),""),ROW()-ROW($T$5)))) -> 11-เค้กกล้วยหอม | U16: =IF(ROW()-ROW($U$5)>COUNTIFS(dProduct[Status],"ปกติ",dProduct[Factory],"<>"&"00-FRK"),"",INDEX(dProduct[NameTH],SMALL(IF((dProduct[Status]="ปกติ")*(dProduct[Factory]<>"00-FRK")=1,ROW(dProduct[NameTH])-ROW(dProduct[[#Headers],[NameTH]]),""),ROW()-ROW($U$5)))) -> 11-เค้กกล้วยหอม | V16: =IF(ROW()-ROW($U$5)>COUNTIFS(dProduct[Status],"ปกติ",dProduct[Factory],"<>"&"00-FRY"),"",INDEX(dProduct[NameTH],SMALL(IF((dProduct[Status]="ปกติ")*(dProduct[Factory]<>"00-FRY")=1,ROW(dProduct[NameTH])-ROW(dProduct[[#Headers],[NameTH]]),""),ROW()-ROW($U$5)))) ->  | X16: =IFERROR(INDEX(dProduct[NameTH],_xlfn.AGGREGATE(15,6,(ROW(dProduct[NameTH])-ROW(dProduct[[#Headers],[NameTH]]))/(COUNTIF(Transaction[Products],dProduct[NameTH])>0),ROWS($X$6:$X16))),"") ->  | Z16: พฤศจิกายน | AA16: พ.ย. | AC16: =DATE(YEAR(TODAY()),MONTH(TODAY()),ROWS($6:16)+DAY(TODAY())-8) -> 2022-07-17
B17: 9911 | C17: 8852269400075 | D17: 12-เค้กบัตเตอร์ | E17: Butter Cake 60g. | F17: ของสด | G17: ชิ้น | H17: 50 | I17: 12 | J17: 0.45 | K17: 00-FRY | L17: ปกติ | T17: =IF(ROW()-ROW($V$5)>COUNTIF(dProduct[Status],"ปกติ"),"",INDEX(dProduct[NameTH],SMALL(IF(dProduct[Status]="ปกติ",ROW(dProduct[NameTH])-ROW(dProduct[[#Headers],[NameTH]]),""),ROW()-ROW($T$5)))) -> 12-เค้กบัตเตอร์ | U17: =IF(ROW()-ROW($U$5)>COUNTIFS(dProduct[Status],"ปกติ",dProduct[Factory],"<>"&"00-FRK"),"",INDEX(dProduct[NameTH],SMALL(IF((dProduct[Status]="ปกติ")*(dProduct[Factory]<>"00-FRK")=1,ROW(dProduct[NameTH])-ROW(dProduct[[#Headers],[NameTH]]),""),ROW()-ROW($U$5)))) -> 12-เค้กบัตเตอร์ | V17: =IF(ROW()-ROW($U$5)>COUNTIFS(dProduct[Status],"ปกติ",dProduct[Factory],"<>"&"00-FRY"),"",INDEX(dProduct[NameTH],SMALL(IF((dProduct[Status]="ปกติ")*(dProduct[Factory]<>"00-FRY")=1,ROW(dProduct[NameTH])-ROW(dProduct[[#Headers],[NameTH]]),""),ROW()-ROW($U$5)))) ->  | X17: =IFERROR(INDEX(dProduct[NameTH],_xlfn.AGGREGATE(15,6,(ROW(dProduct[NameTH])-ROW(dProduct[[#Headers],[NameTH]]))/(COUNTIF(Transaction[Products],dProduct[NameTH])>0),ROWS($X$6:$X17))),"") ->  | Z17: ธันวาคม | AA17: ธ.ค. | AC17: =DATE(YEAR(TODAY()),MONTH(TODAY()),ROWS($6:17)+DAY(TODAY())-8) -> 2022-07-18
B18: 9922 | C18: 8852269400259 | D18: 13-ขนมปังโรลถั่วแดง | E18: Red Beans Roll Bread 80g. | F18: ของสด | G18: ชิ้น | H18: 40 | I18: 12 | J18: 0.45 | K18: 00-FRY | L18: ปกติ | T18: =IF(ROW()-ROW($V$5)>COUNTIF(dProduct[Status],"ปกติ"),"",INDEX(dProduct[NameTH],SMALL(IF(dProduct[Status]="ปกติ",ROW(dProduct[NameTH])-ROW(dProduct[[#Headers],[NameTH]]),""),ROW()-ROW($T$5)))) -> 13-ขนมปังโรลถั่วแดง | U18: =IF(ROW()-ROW($U$5)>COUNTIFS(dProduct[Status],"ปกติ",dProduct[Factory],"<>"&"00-FRK"),"",INDEX(dProduct[NameTH],SMALL(IF((dProduct[Status]="ปกติ")*(dProduct[Factory]<>"00-FRK")=1,ROW(dProduct[NameTH])-ROW(dProduct[[#Headers],[NameTH]]),""),ROW()-ROW($U$5)))) -> 13-ขนมปังโรลถั่วแดง | V18: =IF(ROW()-ROW($U$5)>COUNTIFS(dProduct[Status],"ปกติ",dProduct[Factory],"<>"&"00-FRY"),"",INDEX(dProduct[NameTH],SMALL(IF((dProduct[Status]="ปกติ")*(dProduct[Factory]<>"00-FRY")=1,ROW(dProduct[NameTH])-ROW(dProduct[[#Headers],[NameTH]]),""),ROW()-ROW($U$5)))) ->  | X18: =IFERROR(INDEX(dProduct[NameTH],_xlfn.AGGREGATE(15,6,(ROW(dProduct[NameTH])-ROW(dProduct[[#Headers],[NameTH]]))/(COUNTIF(Transaction[Products],dProduct[NameTH])>0),ROWS($X$6:$X18))),"") ->  | AC18: =DATE(YEAR(TODAY()),MONTH(TODAY()),ROWS($6:18)+DAY(TODAY())-8) -> 2022-07-19
B19: 9901 | C19: 8852269400013 | D19: 14-ขนมปังไส้สังขยาใหญ่ | E19: Thai Custard Filled Bun 80g. | F19: ของสด | G19: ชิ้น | H19: 50 | I19: 12 | J19: 0.45 | K19: 00-FRY | L19: ปกติ | T19: =IF(ROW()-ROW($V$5)>COUNTIF(dProduct[Status],"ปกติ"),"",INDEX(dProduct[NameTH],SMALL(IF(dProduct[Status]="ปกติ",ROW(dProduct[NameTH])-ROW(dProduct[[#Headers],[NameTH]]),""),ROW()-ROW($T$5)))) -> 14-ขนมปังไส้สังขยาใหญ่ | U19: =IF(ROW()-ROW($U$5)>COUNTIFS(dProduct[Status],"ปกติ",dProduct[Factory],"<>"&"00-FRK"),"",INDEX(dProduct[NameTH],SMALL(IF((dProduct[Status]="ปกติ")*(dProduct[Factory]<>"00-FRK")=1,ROW(dProduct[NameTH])-ROW(dProduct[[#Headers],[NameTH]]),""),ROW()-ROW($U$5)))) -> 14-ขนมปังไส้สังขยาใหญ่ | V19: =IF(ROW()-ROW($U$5)>COUNTIFS(dProduct[Status],"ปกติ",dProduct[Factory],"<>"&"00-FRY"),"",INDEX(dProduct[NameTH],SMALL(IF((dProduct[Status]="ปกติ")*(dProduct[Factory]<>"00-FRY")=1,ROW(dProduct[NameTH])-ROW(dProduct[[#Headers],[NameTH]]),""),ROW()-ROW($U$5)))) ->  | X19: =IFERROR(INDEX(dProduct[NameTH],_xlfn.AGGREGATE(15,6,(ROW(dProduct[NameTH])-ROW(dProduct[[#Headers],[NameTH]]))/(COUNTIF(Transaction[Products],dProduct[NameTH])>0),ROWS($X$6:$X19))),"") ->  | AC19: =DATE(YEAR(TODAY()),MONTH(TODAY()),ROWS($6:19)+DAY(TODAY())-8) -> 2022-07-20
B20: 99148 | C20: 8852269400419 | D20: 15-ขนมปังชนิดแผ่น(480กรัม) | E20: Sliced Bread (L) 480g. | F20: ของแห้ง | G20: ชิ้น | H20: 10 | I20: 40 | J20: 0.45 | K20: 00-FRY | L20: ปกติ | T20: =IF(ROW()-ROW($V$5)>COUNTIF(dProduct[Status],"ปกติ"),"",INDEX(dProduct[NameTH],SMALL(IF(dProduct[Status]="ปกติ",ROW(dProduct[NameTH])-ROW(dProduct[[#Headers],[NameTH]]),""),ROW()-ROW($T$5)))) -> 15-ขนมปังชนิดแผ่น(480กรัม) | U20: =IF(ROW()-ROW($U$5)>COUNTIFS(dProduct[Status],"ปกติ",dProduct[Factory],"<>"&"00-FRK"),"",INDEX(dProduct[NameTH],SMALL(IF((dProduct[Status]="ปกติ")*(dProduct[Factory]<>"00-FRK")=1,ROW(dProduct[NameTH])-ROW(dProduct[[#Headers],[NameTH]]),""),ROW()-ROW($U$5)))) -> 15-ขนมปังชนิดแผ่น(480กรัม) | V20: =IF(ROW()-ROW($U$5)>COUNTIFS(dProduct[Status],"ปกติ",dProduct[Factory],"<>"&"00-FRY"),"",INDEX(dProduct[NameTH],SMALL(IF((dProduct[Status]="ปกติ")*(dProduct[Factory]<>"00-FRY")=1,ROW(dProduct[NameTH])-ROW(dProduct[[#Headers],[NameTH]]),""),ROW()-ROW($U$5)))) ->  | X20: =IFERROR(INDEX(dProduct[NameTH],_xlfn.AGGREGATE(15,6,(ROW(dProduct[NameTH])-ROW(dProduct[[#Headers],[NameTH]]))/(COUNTIF(Transaction[Products],dProduct[NameTH])>0),ROWS($X$6:$X20))),"") ->  | Z20: Year_List | AC20: =DATE(YEAR(TODAY()),MONTH(TODAY()),ROWS($6:20)+DAY(TODAY())-8) -> 2022-07-21
B21: 9957 | C21: 8852269400709 | D21: 16-โมจิไส้ถั่ว | E21: Twin Moji Bean 50g. | F21: ของสด | G21: ชิ้น | H21: 50 | I21: 10 | J21: 0.45 | K21: 00-FRY | L21: ปกติ | T21: =IF(ROW()-ROW($V$5)>COUNTIF(dProduct[Status],"ปกติ"),"",INDEX(dProduct[NameTH],SMALL(IF(dProduct[Status]="ปกติ",ROW(dProduct[NameTH])-ROW(dProduct[[#Headers],[NameTH]]),""),ROW()-ROW($T$5)))) -> 16-โมจิไส้ถั่ว | U21: =IF(ROW()-ROW($U$5)>COUNTIFS(dProduct[Status],"ปกติ",dProduct[Factory],"<>"&"00-FRK"),"",INDEX(dProduct[NameTH],SMALL(IF((dProduct[Status]="ปกติ")*(dProduct[Factory]<>"00-FRK")=1,ROW(dProduct[NameTH])-ROW(dProduct[[#Headers],[NameTH]]),""),ROW()-ROW($U$5)))) -> 16-โมจิไส้ถั่ว | V21: =IF(ROW()-ROW($U$5)>COUNTIFS(dProduct[Status],"ปกติ",dProduct[Factory],"<>"&"00-FRY"),"",INDEX(dProduct[NameTH],SMALL(IF((dProduct[Status]="ปกติ")*(dProduct[Factory]<>"00-FRY")=1,ROW(dProduct[NameTH])-ROW(dProduct[[#Headers],[NameTH]]),""),ROW()-ROW($U$5)))) ->  | X21: =IFERROR(INDEX(dProduct[NameTH],_xlfn.AGGREGATE(15,6,(ROW(dProduct[NameTH])-ROW(dProduct[[#Headers],[NameTH]]))/(COUNTIF(Transaction[Products],dProduct[NameTH])>0),ROWS($X$6:$X21))),"") ->  | Z21: =TODAY() -> 2022-07-14 | AC21: =DATE(YEAR(TODAY()),MONTH(TODAY()),ROWS($6:21)+DAY(TODAY())-8) -> 2022-07-22
B22: 99167 | C22: 8852269620039 | D22: 17-โมจิไส้เผือก | E22: Moji Taro 55g. | F22: ของสด | G22: ชิ้น | H22: 50 | I22: 10 | J22: 0.45 | K22: 00-FRY | L22: ปกติ | T22: =IF(ROW()-ROW($V$5)>COUNTIF(dProduct[Status],"ปกติ"),"",INDEX(dProduct[NameTH],SMALL(IF(dProduct[Status]="ปกติ",ROW(dProduct[NameTH])-ROW(dProduct[[#Headers],[NameTH]]),""),ROW()-ROW($T$5)))) -> 17-โมจิไส้เผือก | U22: =IF(ROW()-ROW($U$5)>COUNTIFS(dProduct[Status],"ปกติ",dProduct[Factory],"<>"&"00-FRK"),"",INDEX(dProduct[NameTH],SMALL(IF((dProduct[Status]="ปกติ")*(dProduct[Factory]<>"00-FRK")=1,ROW(dProduct[NameTH])-ROW(dProduct[[#Headers],[NameTH]]),""),ROW()-ROW($U$5)))) -> 17-โมจิไส้เผือก | V22: =IF(ROW()-ROW($U$5)>COUNTIFS(dProduct[Status],"ปกติ",dProduct[Factory],"<>"&"00-FRY"),"",INDEX(dProduct[NameTH],SMALL(IF((dProduct[Status]="ปกติ")*(dProduct[Factory]<>"00-FRY")=1,ROW(dProduct[NameTH])-ROW(dProduct[[#Headers],[NameTH]]),""),ROW()-ROW($U$5)))) ->  | X22: =IFERROR(INDEX(dProduct[NameTH],_xlfn.AGGREGATE(15,6,(ROW(dProduct[NameTH])-ROW(dProduct[[#Headers],[NameTH]]))/(COUNTIF(Transaction[Products],dProduct[NameTH])>0),ROWS($X$6:$X22))),"") ->  | Z22: =IF(YEAR(TODAY()+30)=YEAR(TODAY()),"",TODAY()+30) ->  | AC22: =DATE(YEAR(TODAY()),MONTH(TODAY()),ROWS($6:22)+DAY(TODAY())-8) -> 2022-07-23
B23: 99166 | C23: 8852269610108 | D23: 18-โมจิไส้ถั่วไข่เค็ม | E23: Moji with Bean Paste and Salted Egg Yolk 75g. | F23: ของสด | G23: ชิ้น | H23: 50 | I23: 15 | J23: 0.45 | K23: 00-FRY | L23: ปกติ | T23: =IF(ROW()-ROW($V$5)>COUNTIF(dProduct[Status],"ปกติ"),"",INDEX(dProduct[NameTH],SMALL(IF(dProduct[Status]="ปกติ",ROW(dProduct[NameTH])-ROW(dProduct[[#Headers],[NameTH]]),""),ROW()-ROW($T$5)))) -> 18-โมจิไส้ถั่วไข่เค็ม | U23: =IF(ROW()-ROW($U$5)>COUNTIFS(dProduct[Status],"ปกติ",dProduct[Factory],"<>"&"00-FRK"),"",INDEX(dProduct[NameTH],SMALL(IF((dProduct[Status]="ปกติ")*(dProduct[Factory]<>"00-FRK")=1,ROW(dProduct[NameTH])-ROW(dProduct[[#Headers],[NameTH]]),""),ROW()-ROW($U$5)))) -> 18-โมจิไส้ถั่วไข่เค็ม | V23: =IF(ROW()-ROW($U$5)>COUNTIFS(dProduct[Status],"ปกติ",dProduct[Factory],"<>"&"00-FRY"),"",INDEX(dProduct[NameTH],SMALL(IF((dProduct[Status]="ปกติ")*(dProduct[Factory]<>"00-FRY")=1,ROW(dProduct[NameTH])-ROW(dProduct[[#Headers],[NameTH]]),""),ROW()-ROW($U$5)))) ->  | X23: =IFERROR(INDEX(dProduct[NameTH],_xlfn.AGGREGATE(15,6,(ROW(dProduct[NameTH])-ROW(dProduct[[#Headers],[NameTH]]))/(COUNTIF(Transaction[Products],dProduct[NameTH])>0),ROWS($X$6:$X23))),"") ->  | AC23: =DATE(YEAR(TODAY()),MONTH(TODAY()),ROWS($6:23)+DAY(TODAY())-8) -> 2022-07-24
B24: 9912 | C24: 8852269400181 | D24: 19-ขนมปังพิซซ่า | E24: Sausage Pizza 60g. | F24: ของแห้ง | G24: ชิ้น | H24: 50 | I24: 15 | J24: 0.45 | K24: 00-FRY | L24: ปกติ | T24: =IF(ROW()-ROW($V$5)>COUNTIF(dProduct[Status],"ปกติ"),"",INDEX(dProduct[NameTH],SMALL(IF(dProduct[Status]="ปกติ",ROW(dProduct[NameTH])-ROW(dProduct[[#Headers],[NameTH]]),""),ROW()-ROW($T$5)))) -> 19-ขนมปังพิซซ่า | U24: =IF(ROW()-ROW($U$5)>COUNTIFS(dProduct[Status],"ปกติ",dProduct[Factory],"<>"&"00-FRK"),"",INDEX(dProduct[NameTH],SMALL(IF((dProduct[Status]="ปกติ")*(dProduct[Factory]<>"00-FRK")=1,ROW(dProduct[NameTH])-ROW(dProduct[[#Headers],[NameTH]]),""),ROW()-ROW($U$5)))) -> 19-ขนมปังพิซซ่า | V24: =IF(ROW()-ROW($U$5)>COUNTIFS(dProduct[Status],"ปกติ",dProduct[Factory],"<>"&"00-FRY"),"",INDEX(dProduct[NameTH],SMALL(IF((dProduct[Status]="ปกติ")*(dProduct[Factory]<>"00-FRY")=1,ROW(dProduct[NameTH])-ROW(dProduct[[#Headers],[NameTH]]),""),ROW()-ROW($U$5)))) ->  | X24: =IFERROR(INDEX(dProduct[NameTH],_xlfn.AGGREGATE(15,6,(ROW(dProduct[NameTH])-ROW(dProduct[[#Headers],[NameTH]]))/(COUNTIF(Transaction[Products],dProduct[NameTH])>0),ROWS($X$6:$X24))),"") -> 
B25: 99158 | C25: 8852269600093 | D25: 20-ขนมปังพิซซ่าปูอัดแฮม | E25: Crab Stick With Ham Pizza 60g. | F25: ของแห้ง | G25: ชิ้น | H25: 50 | I25: 15 | J25: 0.45 | K25: 00-FRY | L25: ปกติ | T25: =IF(ROW()-ROW($V$5)>COUNTIF(dProduct[Status],"ปกติ"),"",INDEX(dProduct[NameTH],SMALL(IF(dProduct[Status]="ปกติ",ROW(dProduct[NameTH])-ROW(dProduct[[#Headers],[NameTH]]),""),ROW()-ROW($T$5)))) -> 20-ขนมปังพิซซ่าปูอัดแฮม | U25: =IF(ROW()-ROW($U$5)>COUNTIFS(dProduct[Status],"ปกติ",dProduct[Factory],"<>"&"00-FRK"),"",INDEX(dProduct[NameTH],SMALL(IF((dProduct[Status]="ปกติ")*(dProduct[Factory]<>"00-FRK")=1,ROW(dProduct[NameTH])-ROW(dProduct[[#Headers],[NameTH]]),""),ROW()-ROW($U$5)))) -> 20-ขนมปังพิซซ่าปูอัดแฮม | V25: =IF(ROW()-ROW($U$5)>COUNTIFS(dProduct[Status],"ปกติ",dProduct[Factory],"<>"&"00-FRY"),"",INDEX(dProduct[NameTH],SMALL(IF((dProduct[Status]="ปกติ")*(dProduct[Factory]<>"00-FRY")=1,ROW(dProduct[NameTH])-ROW(dProduct[[#Headers],[NameTH]]),""),ROW()-ROW($U$5)))) ->  | X25: =IFERROR(INDEX(dProduct[NameTH],_xlfn.AGGREGATE(15,6,(ROW(dProduct[NameTH])-ROW(dProduct[[#Headers],[NameTH]]))/(COUNTIF(Transaction[Products],dProduct[NameTH])>0),ROWS($X$6:$X25))),"") -> 
B26: 9953 | C26: 8852269400068 | D26: 21-ขนมปังไส้กรอก | E26: Sausage Filled Bun 70g. | F26: ของแห้ง | G26: ชิ้น | H26: 50 | I26: 15 | J26: 0.45 | K26: 00-FRY | L26: ปกติ | T26: =IF(ROW()-ROW($V$5)>COUNTIF(dProduct[Status],"ปกติ"),"",INDEX(dProduct[NameTH],SMALL(IF(dProduct[Status]="ปกติ",ROW(dProduct[NameTH])-ROW(dProduct[[#Headers],[NameTH]]),""),ROW()-ROW($T$5)))) -> 21-ขนมปังไส้กรอก | U26: =IF(ROW()-ROW($U$5)>COUNTIFS(dProduct[Status],"ปกติ",dProduct[Factory],"<>"&"00-FRK"),"",INDEX(dProduct[NameTH],SMALL(IF((dProduct[Status]="ปกติ")*(dProduct[Factory]<>"00-FRK")=1,ROW(dProduct[NameTH])-ROW(dProduct[[#Headers],[NameTH]]),""),ROW()-ROW($U$5)))) -> 21-ขนมปังไส้กรอก | V26: =IF(ROW()-ROW($U$5)>COUNTIFS(dProduct[Status],"ปกติ",dProduct[Factory],"<>"&"00-FRY"),"",INDEX(dProduct[NameTH],SMALL(IF((dProduct[Status]="ปกติ")*(dProduct[Factory]<>"00-FRY")=1,ROW(dProduct[NameTH])-ROW(dProduct[[#Headers],[NameTH]]),""),ROW()-ROW($U$5)))) ->  | X26: =IFERROR(INDEX(dProduct[NameTH],_xlfn.AGGREGATE(15,6,(ROW(dProduct[NameTH])-ROW(dProduct[[#Headers],[NameTH]]))/(COUNTIF(Transaction[Products],dProduct[NameTH])>0),ROWS($X$6:$X26))),"") -> 
B27: 99173 | C27: 8852269640013 | D27: 22-ขนมปังไส้ครีมรสกาแฟ | E27: Coffee Cream Filled Bun 70g. | F27: ของแห้ง | G27: ชิ้น | H27: 40 | I27: 12 | J27: 0.45 | K27: 00-FRY | L27: ปกติ | T27: =IF(ROW()-ROW($V$5)>COUNTIF(dProduct[Status],"ปกติ"),"",INDEX(dProduct[NameTH],SMALL(IF(dProduct[Status]="ปกติ",ROW(dProduct[NameTH])-ROW(dProduct[[#Headers],[NameTH]]),""),ROW()-ROW($T$5)))) -> 22-ขนมปังไส้ครีมรสกาแฟ | U27: =IF(ROW()-ROW($U$5)>COUNTIFS(dProduct[Status],"ปกติ",dProduct[Factory],"<>"&"00-FRK"),"",INDEX(dProduct[NameTH],SMALL(IF((dProduct[Status]="ปกติ")*(dProduct[Factory]<>"00-FRK")=1,ROW(dProduct[NameTH])-ROW(dProduct[[#Headers],[NameTH]]),""),ROW()-ROW($U$5)))) -> 22-ขนมปังไส้ครีมรสกาแฟ | V27: =IF(ROW()-ROW($U$5)>COUNTIFS(dProduct[Status],"ปกติ",dProduct[Factory],"<>"&"00-FRY"),"",INDEX(dProduct[NameTH],SMALL(IF((dProduct[Status]="ปกติ")*(dProduct[Factory]<>"00-FRY")=1,ROW(dProduct[NameTH])-ROW(dProduct[[#Headers],[NameTH]]),""),ROW()-ROW($U$5)))) ->  | X27: =IFERROR(INDEX(dProduct[NameTH],_xlfn.AGGREGATE(15,6,(ROW(dProduct[NameTH])-ROW(dProduct[[#Headers],[NameTH]]))/(COUNTIF(Transaction[Products],dProduct[NameTH])>0),ROWS($X$6:$X27))),"") -> 
B28: 99175 | C28: 8852269640068 | D28: 23-ครัวซองต์เนยสด | E28: Butter Croissant 35g. | F28: ของสด | G28: ชิ้น | H28: 40 | I28: 20 | J28: 0.45 | K28: 00-FRK | L28: ปกติ | T28: =IF(ROW()-ROW($V$5)>COUNTIF(dProduct[Status],"ปกติ"),"",INDEX(dProduct[NameTH],SMALL(IF(dProduct[Status]="ปกติ",ROW(dProduct[NameTH])-ROW(dProduct[[#Headers],[NameTH]]),""),ROW()-ROW($T$5)))) -> 23-ครัวซองต์เนยสด | U28: =IF(ROW()-ROW($U$5)>COUNTIFS(dProduct[Status],"ปกติ",dProduct[Factory],"<>"&"00-FRK"),"",INDEX(dProduct[NameTH],SMALL(IF((dProduct[Status]="ปกติ")*(dProduct[Factory]<>"00-FRK")=1,ROW(dProduct[NameTH])-ROW(dProduct[[#Headers],[NameTH]]),""),ROW()-ROW($U$5)))) -> 24-ขนมก้านบัว | V28: =IF(ROW()-ROW($U$5)>COUNTIFS(dProduct[Status],"ปกติ",dProduct[Factory],"<>"&"00-FRY"),"",INDEX(dProduct[NameTH],SMALL(IF((dProduct[Status]="ปกติ")*(dProduct[Factory]<>"00-FRY")=1,ROW(dProduct[NameTH])-ROW(dProduct[[#Headers],[NameTH]]),""),ROW()-ROW($U$5)))) ->  | X28: =IFERROR(INDEX(dProduct[NameTH],_xlfn.AGGREGATE(15,6,(ROW(dProduct[NameTH])-ROW(dProduct[[#Headers],[NameTH]]))/(COUNTIF(Transaction[Products],dProduct[NameTH])>0),ROWS($X$6:$X28))),"") -> 
B29: 9909 | C29: 8852269400105 | D29: 24-ขนมก้านบัว | E29: Thai Sweet Fried Dough 80g. | F29: ของสด | G29: ชิ้น | H29: 40 | I29: 15 | J29: 0.45 | K29: 00-FRY | L29: ปกติ | T29: =IF(ROW()-ROW($V$5)>COUNTIF(dProduct[Status],"ปกติ"),"",INDEX(dProduct[NameTH],SMALL(IF(dProduct[Status]="ปกติ",ROW(dProduct[NameTH])-ROW(dProduct[[#Headers],[NameTH]]),""),ROW()-ROW($T$5)))) -> 24-ขนมก้านบัว | U29: =IF(ROW()-ROW($U$5)>COUNTIFS(dProduct[Status],"ปกติ",dProduct[Factory],"<>"&"00-FRK"),"",INDEX(dProduct[NameTH],SMALL(IF((dProduct[Status]="ปกติ")*(dProduct[Factory]<>"00-FRK")=1,ROW(dProduct[NameTH])-ROW(dProduct[[#Headers],[NameTH]]),""),ROW()-ROW($U$5)))) -> 27-ปังกรอบเนยสด | V29: =IF(ROW()-ROW($U$5)>COUNTIFS(dProduct[Status],"ปกติ",dProduct[Factory],"<>"&"00-FRY"),"",INDEX(dProduct[NameTH],SMALL(IF((dProduct[Status]="ปกติ")*(dProduct[Factory]<>"00-FRY")=1,ROW(dProduct[NameTH])-ROW(dProduct[[#Headers],[NameTH]]),""),ROW()-ROW($U$5)))) ->  | X29: =IFERROR(INDEX(dProduct[NameTH],_xlfn.AGGREGATE(15,6,(ROW(dProduct[NameTH])-ROW(dProduct[[#Headers],[NameTH]]))/(COUNTIF(Transaction[Products],dProduct[NameTH])>0),ROWS($X$6:$X29))),"") -> 
B30: 99176 | C30: 8852269650012 | D30: 25-ขนมปังกรอบเนยน้ำตาล | E30: Crispy sugar Buttered toast 60g. | F30: ของแห้ง | G30: ชิ้น | H30: 50 | I30: 20 | J30: 0.45 | K30: 00-FRK | L30: ปกติ | T30: =IF(ROW()-ROW($V$5)>COUNTIF(dProduct[Status],"ปกติ"),"",INDEX(dProduct[NameTH],SMALL(IF(dProduct[Status]="ปกติ",ROW(dProduct[NameTH])-ROW(dProduct[[#Headers],[NameTH]]),""),ROW()-ROW($T$5)))) -> 25-ขนมปังกรอบเนยน้ำตาล | U30: =IF(ROW()-ROW($U$5)>COUNTIFS(dProduct[Status],"ปกติ",dProduct[Factory],"<>"&"00-FRK"),"",INDEX(dProduct[NameTH],SMALL(IF((dProduct[Status]="ปกติ")*(dProduct[Factory]<>"00-FRK")=1,ROW(dProduct[NameTH])-ROW(dProduct[[#Headers],[NameTH]]),""),ROW()-ROW($U$5)))) -> 28-ปังกรอบกระเทียม | V30: =IF(ROW()-ROW($U$5)>COUNTIFS(dProduct[Status],"ปกติ",dProduct[Factory],"<>"&"00-FRY"),"",INDEX(dProduct[NameTH],SMALL(IF((dProduct[Status]="ปกติ")*(dProduct[Factory]<>"00-FRY")=1,ROW(dProduct[NameTH])-ROW(dProduct[[#Headers],[NameTH]]),""),ROW()-ROW($U$5)))) ->  | X30: =IFERROR(INDEX(dProduct[NameTH],_xlfn.AGGREGATE(15,6,(ROW(dProduct[NameTH])-ROW(dProduct[[#Headers],[NameTH]]))/(COUNTIF(Transaction[Products],dProduct[NameTH])>0),ROWS($X$6:$X30))),"") -> 
B31: 99177 | C31: 8852269640044 | D31: 26-พายสับปะรด | E31: Pineapple Filled Pie 60g. | F31: ของสด | G31: ชิ้น | H31: 50 | I31: 20 | J31: 0.45 | K31: 00-FRK | L31: ปกติ | T31: =IF(ROW()-ROW($V$5)>COUNTIF(dProduct[Status],"ปกติ"),"",INDEX(dProduct[NameTH],SMALL(IF(dProduct[Status]="ปกติ",ROW(dProduct[NameTH])-ROW(dProduct[[#Headers],[NameTH]]),""),ROW()-ROW($T$5)))) -> 26-พายสับปะรด | U31: =IF(ROW()-ROW($U$5)>COUNTIFS(dProduct[Status],"ปกติ",dProduct[Factory],"<>"&"00-FRK"),"",INDEX(dProduct[NameTH],SMALL(IF((dProduct[Status]="ปกติ")*(dProduct[Factory]<>"00-FRK")=1,ROW(dProduct[NameTH])-ROW(dProduct[[#Headers],[NameTH]]),""),ROW()-ROW($U$5)))) -> 29-ขนมปังโรลมันเทศ | V31: =IF(ROW()-ROW($U$5)>COUNTIFS(dProduct[Status],"ปกติ",dProduct[Factory],"<>"&"00-FRY"),"",INDEX(dProduct[NameTH],SMALL(IF((dProduct[Status]="ปกติ")*(dProduct[Factory]<>"00-FRY")=1,ROW(dProduct[NameTH])-ROW(dProduct[[#Headers],[NameTH]]),""),ROW()-ROW($U$5)))) ->  | X31: =IFERROR(INDEX(dProduct[NameTH],_xlfn.AGGREGATE(15,6,(ROW(dProduct[NameTH])-ROW(dProduct[[#Headers],[NameTH]]))/(COUNTIF(Transaction[Products],dProduct[NameTH])>0),ROWS($X$6:$X31))),"") -> 
B32: 99134 | C32: 8852269580067 | D32: 27-ปังกรอบเนยสด | E32: Crispy Butter Bread 60g. | F32: ของสด | G32: ชิ้น | H32: 40 | I32: 15 | J32: 0.45 | K32: 00-FRY | L32: ปกติ | T32: =IF(ROW()-ROW($V$5)>COUNTIF(dProduct[Status],"ปกติ"),"",INDEX(dProduct[NameTH],SMALL(IF(dProduct[Status]="ปกติ",ROW(dProduct[NameTH])-ROW(dProduct[[#Headers],[NameTH]]),""),ROW()-ROW($T$5)))) -> 27-ปังกรอบเนยสด | U32: =IF(ROW()-ROW($U$5)>COUNTIFS(dProduct[Status],"ปกติ",dProduct[Factory],"<>"&"00-FRK"),"",INDEX(dProduct[NameTH],SMALL(IF((dProduct[Status]="ปกติ")*(dProduct[Factory]<>"00-FRK")=1,ROW(dProduct[NameTH])-ROW(dProduct[[#Headers],[NameTH]]),""),ROW()-ROW($U$5)))) -> 30-บันเตยหอมไส้มันเทศ | V32: =IF(ROW()-ROW($U$5)>COUNTIFS(dProduct[Status],"ปกติ",dProduct[Factory],"<>"&"00-FRY"),"",INDEX(dProduct[NameTH],SMALL(IF((dProduct[Status]="ปกติ")*(dProduct[Factory]<>"00-FRY")=1,ROW(dProduct[NameTH])-ROW(dProduct[[#Headers],[NameTH]]),""),ROW()-ROW($U$5)))) ->  | X32: =IFERROR(INDEX(dProduct[NameTH],_xlfn.AGGREGATE(15,6,(ROW(dProduct[NameTH])-ROW(dProduct[[#Headers],[NameTH]]))/(COUNTIF(Transaction[Products],dProduct[NameTH])>0),ROWS($X$6:$X32))),"") -> 
B33: 99135 | C33: 8852269580074 | D33: 28-ปังกรอบกระเทียม | E33: Crispy Garlic Bread 60g. | F33: ของสด | G33: ชิ้น | H33: 40 | I33: 15 | J33: 0.45 | K33: 00-FRY | L33: ปกติ | T33: =IF(ROW()-ROW($V$5)>COUNTIF(dProduct[Status],"ปกติ"),"",INDEX(dProduct[NameTH],SMALL(IF(dProduct[Status]="ปกติ",ROW(dProduct[NameTH])-ROW(dProduct[[#Headers],[NameTH]]),""),ROW()-ROW($T$5)))) -> 28-ปังกรอบกระเทียม | U33: =IF(ROW()-ROW($U$5)>COUNTIFS(dProduct[Status],"ปกติ",dProduct[Factory],"<>"&"00-FRK"),"",INDEX(dProduct[NameTH],SMALL(IF((dProduct[Status]="ปกติ")*(dProduct[Factory]<>"00-FRK")=1,ROW(dProduct[NameTH])-ROW(dProduct[[#Headers],[NameTH]]),""),ROW()-ROW($U$5)))) -> 31-โมจิชาเขียวมัทฉะไส้ถั่วแดง | V33: =IF(ROW()-ROW($U$5)>COUNTIFS(dProduct[Status],"ปกติ",dProduct[Factory],"<>"&"00-FRY"),"",INDEX(dProduct[NameTH],SMALL(IF((dProduct[Status]="ปกติ")*(dProduct[Factory]<>"00-FRY")=1,ROW(dProduct[NameTH])-ROW(dProduct[[#Headers],[NameTH]]),""),ROW()-ROW($U$5)))) ->  | X33: =IFERROR(INDEX(dProduct[NameTH],_xlfn.AGGREGATE(15,6,(ROW(dProduct[NameTH])-ROW(dProduct[[#Headers],[NameTH]]))/(COUNTIF(Transaction[Products],dProduct[NameTH])>0),ROWS($X$6:$X33))),"") -> 
B34: 9921 | C34: 8852269400242 | D34: 29-ขนมปังโรลมันเทศ | E34: Sweet Potato Roll Bun 80g. | F34: ของสด | G34: ชิ้น | H34: 40 | I34: 12 | J34: 0.45 | K34: 00-FRY | L34: ปกติ | T34: =IF(ROW()-ROW($V$5)>COUNTIF(dProduct[Status],"ปกติ"),"",INDEX(dProduct[NameTH],SMALL(IF(dProduct[Status]="ปกติ",ROW(dProduct[NameTH])-ROW(dProduct[[#Headers],[NameTH]]),""),ROW()-ROW($T$5)))) -> 29-ขนมปังโรลมันเทศ | U34: =IF(ROW()-ROW($U$5)>COUNTIFS(dProduct[Status],"ปกติ",dProduct[Factory],"<>"&"00-FRK"),"",INDEX(dProduct[NameTH],SMALL(IF((dProduct[Status]="ปกติ")*(dProduct[Factory]<>"00-FRK")=1,ROW(dProduct[NameTH])-ROW(dProduct[[#Headers],[NameTH]]),""),ROW()-ROW($U$5)))) ->  | V34: =IF(ROW()-ROW($U$5)>COUNTIFS(dProduct[Status],"ปกติ",dProduct[Factory],"<>"&"00-FRY"),"",INDEX(dProduct[NameTH],SMALL(IF((dProduct[Status]="ปกติ")*(dProduct[Factory]<>"00-FRY")=1,ROW(dProduct[NameTH])-ROW(dProduct[[#Headers],[NameTH]]),""),ROW()-ROW($U$5)))) ->  | X34: =IFERROR(INDEX(dProduct[NameTH],_xlfn.AGGREGATE(15,6,(ROW(dProduct[NameTH])-ROW(dProduct[[#Headers],[NameTH]]))/(COUNTIF(Transaction[Products],dProduct[NameTH])>0),ROWS($X$6:$X34))),"") -> 
B35: 99164 | C35: 8852269620015 | D35: 30-บันเตยหอมไส้มันเทศ | E35: Pandan Sweet Potato Filled Bun 65g. | F35: ของสด | G35: ชิ้น | H35: 50 | I35: 10 | J35: 0.45 | K35: 00-FRY | L35: ปกติ | T35: =IF(ROW()-ROW($V$5)>COUNTIF(dProduct[Status],"ปกติ"),"",INDEX(dProduct[NameTH],SMALL(IF(dProduct[Status]="ปกติ",ROW(dProduct[NameTH])-ROW(dProduct[[#Headers],[NameTH]]),""),ROW()-ROW($T$5)))) -> 30-บันเตยหอมไส้มันเทศ | U35: =IF(ROW()-ROW($U$5)>COUNTIFS(dProduct[Status],"ปกติ",dProduct[Factory],"<>"&"00-FRK"),"",INDEX(dProduct[NameTH],SMALL(IF((dProduct[Status]="ปกติ")*(dProduct[Factory]<>"00-FRK")=1,ROW(dProduct[NameTH])-ROW(dProduct[[#Headers],[NameTH]]),""),ROW()-ROW($U$5)))) ->  | V35: =IF(ROW()-ROW($U$5)>COUNTIFS(dProduct[Status],"ปกติ",dProduct[Factory],"<>"&"00-FRY"),"",INDEX(dProduct[NameTH],SMALL(IF((dProduct[Status]="ปกติ")*(dProduct[Factory]<>"00-FRY")=1,ROW(dProduct[NameTH])-ROW(dProduct[[#Headers],[NameTH]]),""),ROW()-ROW($U$5)))) ->  | X35: =IFERROR(INDEX(dProduct[NameTH],_xlfn.AGGREGATE(15,6,(ROW(dProduct[NameTH])-ROW(dProduct[[#Headers],[NameTH]]))/(COUNTIF(Transaction[Products],dProduct[NameTH])>0),ROWS($X$6:$X35))),"") -> 
B36: 99168 | C36: 8852269620084 | D36: 31-โมจิชาเขียวมัทฉะไส้ถั่วแดง | E36: Matcha Moji with Japanese red bean 50g. | F36: ของแห้ง | G36: ชิ้น | H36: 50 | I36: 10 | J36: 0.45 | K36: 00-FRY | L36: ปกติ | T36: =IF(ROW()-ROW($V$5)>COUNTIF(dProduct[Status],"ปกติ"),"",INDEX(dProduct[NameTH],SMALL(IF(dProduct[Status]="ปกติ",ROW(dProduct[NameTH])-ROW(dProduct[[#Headers],[NameTH]]),""),ROW()-ROW($T$5)))) -> 31-โมจิชาเขียวมัทฉะไส้ถั่วแดง | U36: =IF(ROW()-ROW($U$5)>COUNTIFS(dProduct[Status],"ปกติ",dProduct[Factory],"<>"&"00-FRK"),"",INDEX(dProduct[NameTH],SMALL(IF((dProduct[Status]="ปกติ")*(dProduct[Factory]<>"00-FRK")=1,ROW(dProduct[NameTH])-ROW(dProduct[[#Headers],[NameTH]]),""),ROW()-ROW($U$5)))) ->  | V36: =IF(ROW()-ROW($U$5)>COUNTIFS(dProduct[Status],"ปกติ",dProduct[Factory],"<>"&"00-FRY"),"",INDEX(dProduct[NameTH],SMALL(IF((dProduct[Status]="ปกติ")*(dProduct[Factory]<>"00-FRY")=1,ROW(dProduct[NameTH])-ROW(dProduct[[#Headers],[NameTH]]),""),ROW()-ROW($U$5)))) ->  | X36: =IFERROR(INDEX(dProduct[NameTH],_xlfn.AGGREGATE(15,6,(ROW(dProduct[NameTH])-ROW(dProduct[[#Headers],[NameTH]]))/(COUNTIF(Transaction[Products],dProduct[NameTH])>0),ROWS($X$6:$X36))),"") -> 
T37: =IF(ROW()-ROW($V$5)>COUNTIF(dProduct[Status],"ปกติ"),"",INDEX(dProduct[NameTH],SMALL(IF(dProduct[Status]="ปกติ",ROW(dProduct[NameTH])-ROW(dProduct[[#Headers],[NameTH]]),""),ROW()-ROW($T$5)))) ->  | U37: =IF(ROW()-ROW($U$5)>COUNTIFS(dProduct[Status],"ปกติ",dProduct[Factory],"<>"&"00-FRK"),"",INDEX(dProduct[NameTH],SMALL(IF((dProduct[Status]="ปกติ")*(dProduct[Factory]<>"00-FRK")=1,ROW(dProduct[NameTH])-ROW(dProduct[[#Headers],[NameTH]]),""),ROW()-ROW($U$5)))) ->  | V37: =IF(ROW()-ROW($U$5)>COUNTIFS(dProduct[Status],"ปกติ",dProduct[Factory],"<>"&"00-FRY"),"",INDEX(dProduct[NameTH],SMALL(IF((dProduct[Status]="ปกติ")*(dProduct[Factory]<>"00-FRY")=1,ROW(dProduct[NameTH])-ROW(dProduct[[#Headers],[NameTH]]),""),ROW()-ROW($U$5)))) ->  | X37: =IFERROR(INDEX(dProduct[NameTH],_xlfn.AGGREGATE(15,6,(ROW(dProduct[NameTH])-ROW(dProduct[[#Headers],[NameTH]]))/(COUNTIF(Transaction[Products],dProduct[NameTH])>0),ROWS($X$6:$X37))),"") -> 
T38: =IF(ROW()-ROW($V$5)>COUNTIF(dProduct[Status],"ปกติ"),"",INDEX(dProduct[NameTH],SMALL(IF(dProduct[Status]="ปกติ",ROW(dProduct[NameTH])-ROW(dProduct[[#Headers],[NameTH]]),""),ROW()-ROW($T$5)))) ->  | U38: =IF(ROW()-ROW($U$5)>COUNTIFS(dProduct[Status],"ปกติ",dProduct[Factory],"<>"&"00-FRK"),"",INDEX(dProduct[NameTH],SMALL(IF((dProduct[Status]="ปกติ")*(dProduct[Factory]<>"00-FRK")=1,ROW(dProduct[NameTH])-ROW(dProduct[[#Headers],[NameTH]]),""),ROW()-ROW($U$5)))) ->  | V38: =IF(ROW()-ROW($U$5)>COUNTIFS(dProduct[Status],"ปกติ",dProduct[Factory],"<>"&"00-FRY"),"",INDEX(dProduct[NameTH],SMALL(IF((dProduct[Status]="ปกติ")*(dProduct[Factory]<>"00-FRY")=1,ROW(dProduct[NameTH])-ROW(dProduct[[#Headers],[NameTH]]),""),ROW()-ROW($U$5)))) ->  | X38: =IFERROR(INDEX(dProduct[NameTH],_xlfn.AGGREGATE(15,6,(ROW(dProduct[NameTH])-ROW(dProduct[[#Headers],[NameTH]]))/(COUNTIF(Transaction[Products],dProduct[NameTH])>0),ROWS($X$6:$X38))),"") -> 
T39: =IF(ROW()-ROW($V$5)>COUNTIF(dProduct[Status],"ปกติ"),"",INDEX(dProduct[NameTH],SMALL(IF(dProduct[Status]="ปกติ",ROW(dProduct[NameTH])-ROW(dProduct[[#Headers],[NameTH]]),""),ROW()-ROW($T$5)))) ->  | U39: =IF(ROW()-ROW($U$5)>COUNTIFS(dProduct[Status],"ปกติ",dProduct[Factory],"<>"&"00-FRK"),"",INDEX(dProduct[NameTH],SMALL(IF((dProduct[Status]="ปกติ")*(dProduct[Factory]<>"00-FRK")=1,ROW(dProduct[NameTH])-ROW(dProduct[[#Headers],[NameTH]]),""),ROW()-ROW($U$5)))) ->  | V39: =IF(ROW()-ROW($U$5)>COUNTIFS(dProduct[Status],"ปกติ",dProduct[Factory],"<>"&"00-FRY"),"",INDEX(dProduct[NameTH],SMALL(IF((dProduct[Status]="ปกติ")*(dProduct[Factory]<>"00-FRY")=1,ROW(dProduct[NameTH])-ROW(dProduct[[#Headers],[NameTH]]),""),ROW()-ROW($U$5)))) ->  | X39: =IFERROR(INDEX(dProduct[NameTH],_xlfn.AGGREGATE(15,6,(ROW(dProduct[NameTH])-ROW(dProduct[[#Headers],[NameTH]]))/(COUNTIF(Transaction[Products],dProduct[NameTH])>0),ROWS($X$6:$X39))),"") -> 
T40: =IF(ROW()-ROW($V$5)>COUNTIF(dProduct[Status],"ปกติ"),"",INDEX(dProduct[NameTH],SMALL(IF(dProduct[Status]="ปกติ",ROW(dProduct[NameTH])-ROW(dProduct[[#Headers],[NameTH]]),""),ROW()-ROW($T$5)))) ->  | U40: =IF(ROW()-ROW($U$5)>COUNTIFS(dProduct[Status],"ปกติ",dProduct[Factory],"<>"&"00-FRK"),"",INDEX(dProduct[NameTH],SMALL(IF((dProduct[Status]="ปกติ")*(dProduct[Factory]<>"00-FRK")=1,ROW(dProduct[NameTH])-ROW(dProduct[[#Headers],[NameTH]]),""),ROW()-ROW($U$5)))) ->  | V40: =IF(ROW()-ROW($U$5)>COUNTIFS(dProduct[Status],"ปกติ",dProduct[Factory],"<>"&"00-FRY"),"",INDEX(dProduct[NameTH],SMALL(IF((dProduct[Status]="ปกติ")*(dProduct[Factory]<>"00-FRY")=1,ROW(dProduct[NameTH])-ROW(dProduct[[#Headers],[NameTH]]),""),ROW()-ROW($U$5)))) ->  | X40: =IFERROR(INDEX(dProduct[NameTH],_xlfn.AGGREGATE(15,6,(ROW(dProduct[NameTH])-ROW(dProduct[[#Headers],[NameTH]]))/(COUNTIF(Transaction[Products],dProduct[NameTH])>0),ROWS($X$6:$X40))),"") -> 
T41: =IF(ROW()-ROW($V$5)>COUNTIF(dProduct[Status],"ปกติ"),"",INDEX(dProduct[NameTH],SMALL(IF(dProduct[Status]="ปกติ",ROW(dProduct[NameTH])-ROW(dProduct[[#Headers],[NameTH]]),""),ROW()-ROW($T$5)))) ->  | U41: =IF(ROW()-ROW($U$5)>COUNTIFS(dProduct[Status],"ปกติ",dProduct[Factory],"<>"&"00-FRK"),"",INDEX(dProduct[NameTH],SMALL(IF((dProduct[Status]="ปกติ")*(dProduct[Factory]<>"00-FRK")=1,ROW(dProduct[NameTH])-ROW(dProduct[[#Headers],[NameTH]]),""),ROW()-ROW($U$5)))) ->  | V41: =IF(ROW()-ROW($U$5)>COUNTIFS(dProduct[Status],"ปกติ",dProduct[Factory],"<>"&"00-FRY"),"",INDEX(dProduct[NameTH],SMALL(IF((dProduct[Status]="ปกติ")*(dProduct[Factory]<>"00-FRY")=1,ROW(dProduct[NameTH])-ROW(dProduct[[#Headers],[NameTH]]),""),ROW()-ROW($U$5)))) ->  | X41: =IFERROR(INDEX(dProduct[NameTH],_xlfn.AGGREGATE(15,6,(ROW(dProduct[NameTH])-ROW(dProduct[[#Headers],[NameTH]]))/(COUNTIF(Transaction[Products],dProduct[NameTH])>0),ROWS($X$6:$X41))),"") -> 
T42: =IF(ROW()-ROW($V$5)>COUNTIF(dProduct[Status],"ปกติ"),"",INDEX(dProduct[NameTH],SMALL(IF(dProduct[Status]="ปกติ",ROW(dProduct[NameTH])-ROW(dProduct[[#Headers],[NameTH]]),""),ROW()-ROW($T$5)))) ->  | U42: =IF(ROW()-ROW($U$5)>COUNTIFS(dProduct[Status],"ปกติ",dProduct[Factory],"<>"&"00-FRK"),"",INDEX(dProduct[NameTH],SMALL(IF((dProduct[Status]="ปกติ")*(dProduct[Factory]<>"00-FRK")=1,ROW(dProduct[NameTH])-ROW(dProduct[[#Headers],[NameTH]]),""),ROW()-ROW($U$5)))) ->  | V42: =IF(ROW()-ROW($U$5)>COUNTIFS(dProduct[Status],"ปกติ",dProduct[Factory],"<>"&"00-FRY"),"",INDEX(dProduct[NameTH],SMALL(IF((dProduct[Status]="ปกติ")*(dProduct[Factory]<>"00-FRY")=1,ROW(dProduct[NameTH])-ROW(dProduct[[#Headers],[NameTH]]),""),ROW()-ROW($U$5)))) ->  | X42: =IFERROR(INDEX(dProduct[NameTH],_xlfn.AGGREGATE(15,6,(ROW(dProduct[NameTH])-ROW(dProduct[[#Headers],[NameTH]]))/(COUNTIF(Transaction[Products],dProduct[NameTH])>0),ROWS($X$6:$X42))),"") -> 
T43: =IF(ROW()-ROW($V$5)>COUNTIF(dProduct[Status],"ปกติ"),"",INDEX(dProduct[NameTH],SMALL(IF(dProduct[Status]="ปกติ",ROW(dProduct[NameTH])-ROW(dProduct[[#Headers],[NameTH]]),""),ROW()-ROW($T$5)))) ->  | U43: =IF(ROW()-ROW($U$5)>COUNTIFS(dProduct[Status],"ปกติ",dProduct[Factory],"<>"&"00-FRK"),"",INDEX(dProduct[NameTH],SMALL(IF((dProduct[Status]="ปกติ")*(dProduct[Factory]<>"00-FRK")=1,ROW(dProduct[NameTH])-ROW(dProduct[[#Headers],[NameTH]]),""),ROW()-ROW($U$5)))) ->  | V43: =IF(ROW()-ROW($U$5)>COUNTIFS(dProduct[Status],"ปกติ",dProduct[Factory],"<>"&"00-FRY"),"",INDEX(dProduct[NameTH],SMALL(IF((dProduct[Status]="ปกติ")*(dProduct[Factory]<>"00-FRY")=1,ROW(dProduct[NameTH])-ROW(dProduct[[#Headers],[NameTH]]),""),ROW()-ROW($U$5)))) ->  | X43: =IFERROR(INDEX(dProduct[NameTH],_xlfn.AGGREGATE(15,6,(ROW(dProduct[NameTH])-ROW(dProduct[[#Headers],[NameTH]]))/(COUNTIF(Transaction[Products],dProduct[NameTH])>0),ROWS($X$6:$X43))),"") -> 
T44: =IF(ROW()-ROW($V$5)>COUNTIF(dProduct[Status],"ปกติ"),"",INDEX(dProduct[NameTH],SMALL(IF(dProduct[Status]="ปกติ",ROW(dProduct[NameTH])-ROW(dProduct[[#Headers],[NameTH]]),""),ROW()-ROW($T$5)))) ->  | U44: =IF(ROW()-ROW($U$5)>COUNTIFS(dProduct[Status],"ปกติ",dProduct[Factory],"<>"&"00-FRK"),"",INDEX(dProduct[NameTH],SMALL(IF((dProduct[Status]="ปกติ")*(dProduct[Factory]<>"00-FRK")=1,ROW(dProduct[NameTH])-ROW(dProduct[[#Headers],[NameTH]]),""),ROW()-ROW($U$5)))) ->  | V44: =IF(ROW()-ROW($U$5)>COUNTIFS(dProduct[Status],"ปกติ",dProduct[Factory],"<>"&"00-FRY"),"",INDEX(dProduct[NameTH],SMALL(IF((dProduct[Status]="ปกติ")*(dProduct[Factory]<>"00-FRY")=1,ROW(dProduct[NameTH])-ROW(dProduct[[#Headers],[NameTH]]),""),ROW()-ROW($U$5)))) ->  | X44: =IFERROR(INDEX(dProduct[NameTH],_xlfn.AGGREGATE(15,6,(ROW(dProduct[NameTH])-ROW(dProduct[[#Headers],[NameTH]]))/(COUNTIF(Transaction[Products],dProduct[NameTH])>0),ROWS($X$6:$X44))),"") -> 
T45: =IF(ROW()-ROW($V$5)>COUNTIF(dProduct[Status],"ปกติ"),"",INDEX(dProduct[NameTH],SMALL(IF(dProduct[Status]="ปกติ",ROW(dProduct[NameTH])-ROW(dProduct[[#Headers],[NameTH]]),""),ROW()-ROW($T$5)))) ->  | U45: =IF(ROW()-ROW($U$5)>COUNTIFS(dProduct[Status],"ปกติ",dProduct[Factory],"<>"&"00-FRK"),"",INDEX(dProduct[NameTH],SMALL(IF((dProduct[Status]="ปกติ")*(dProduct[Factory]<>"00-FRK")=1,ROW(dProduct[NameTH])-ROW(dProduct[[#Headers],[NameTH]]),""),ROW()-ROW($U$5)))) ->  | V45: =IF(ROW()-ROW($U$5)>COUNTIFS(dProduct[Status],"ปกติ",dProduct[Factory],"<>"&"00-FRY"),"",INDEX(dProduct[NameTH],SMALL(IF((dProduct[Status]="ปกติ")*(dProduct[Factory]<>"00-FRY")=1,ROW(dProduct[NameTH])-ROW(dProduct[[#Headers],[NameTH]]),""),ROW()-ROW($U$5)))) ->  | X45: =IFERROR(INDEX(dProduct[NameTH],_xlfn.AGGREGATE(15,6,(ROW(dProduct[NameTH])-ROW(dProduct[[#Headers],[NameTH]]))/(COUNTIF(Transaction[Products],dProduct[NameTH])>0),ROWS($X$6:$X45))),"") -> 
T46: =IF(ROW()-ROW($V$5)>COUNTIF(dProduct[Status],"ปกติ"),"",INDEX(dProduct[NameTH],SMALL(IF(dProduct[Status]="ปกติ",ROW(dProduct[NameTH])-ROW(dProduct[[#Headers],[NameTH]]),""),ROW()-ROW($T$5)))) ->  | U46: =IF(ROW()-ROW($U$5)>COUNTIFS(dProduct[Status],"ปกติ",dProduct[Factory],"<>"&"00-FRK"),"",INDEX(dProduct[NameTH],SMALL(IF((dProduct[Status]="ปกติ")*(dProduct[Factory]<>"00-FRK")=1,ROW(dProduct[NameTH])-ROW(dProduct[[#Headers],[NameTH]]),""),ROW()-ROW($U$5)))) ->  | V46: =IF(ROW()-ROW($U$5)>COUNTIFS(dProduct[Status],"ปกติ",dProduct[Factory],"<>"&"00-FRY"),"",INDEX(dProduct[NameTH],SMALL(IF((dProduct[Status]="ปกติ")*(dProduct[Factory]<>"00-FRY")=1,ROW(dProduct[NameTH])-ROW(dProduct[[#Headers],[NameTH]]),""),ROW()-ROW($U$5)))) ->  | X46: =IFERROR(INDEX(dProduct[NameTH],_xlfn.AGGREGATE(15,6,(ROW(dProduct[NameTH])-ROW(dProduct[[#Headers],[NameTH]]))/(COUNTIF(Transaction[Products],dProduct[NameTH])>0),ROWS($X$6:$X46))),"") -> 
T47: =IF(ROW()-ROW($V$5)>COUNTIF(dProduct[Status],"ปกติ"),"",INDEX(dProduct[NameTH],SMALL(IF(dProduct[Status]="ปกติ",ROW(dProduct[NameTH])-ROW(dProduct[[#Headers],[NameTH]]),""),ROW()-ROW($T$5)))) ->  | U47: =IF(ROW()-ROW($U$5)>COUNTIFS(dProduct[Status],"ปกติ",dProduct[Factory],"<>"&"00-FRK"),"",INDEX(dProduct[NameTH],SMALL(IF((dProduct[Status]="ปกติ")*(dProduct[Factory]<>"00-FRK")=1,ROW(dProduct[NameTH])-ROW(dProduct[[#Headers],[NameTH]]),""),ROW()-ROW($U$5)))) ->  | V47: =IF(ROW()-ROW($U$5)>COUNTIFS(dProduct[Status],"ปกติ",dProduct[Factory],"<>"&"00-FRY"),"",INDEX(dProduct[NameTH],SMALL(IF((dProduct[Status]="ปกติ")*(dProduct[Factory]<>"00-FRY")=1,ROW(dProduct[NameTH])-ROW(dProduct[[#Headers],[NameTH]]),""),ROW()-ROW($U$5)))) -> 
T48: =IF(ROW()-ROW($V$5)>COUNTIF(dProduct[Status],"ปกติ"),"",INDEX(dProduct[NameTH],SMALL(IF(dProduct[Status]="ปกติ",ROW(dProduct[NameTH])-ROW(dProduct[[#Headers],[NameTH]]),""),ROW()-ROW($T$5)))) ->  | U48: =IF(ROW()-ROW($U$5)>COUNTIFS(dProduct[Status],"ปกติ",dProduct[Factory],"<>"&"00-FRK"),"",INDEX(dProduct[NameTH],SMALL(IF((dProduct[Status]="ปกติ")*(dProduct[Factory]<>"00-FRK")=1,ROW(dProduct[NameTH])-ROW(dProduct[[#Headers],[NameTH]]),""),ROW()-ROW($U$5)))) ->  | V48: =IF(ROW()-ROW($U$5)>COUNTIFS(dProduct[Status],"ปกติ",dProduct[Factory],"<>"&"00-FRY"),"",INDEX(dProduct[NameTH],SMALL(IF((dProduct[Status]="ปกติ")*(dProduct[Factory]<>"00-FRY")=1,ROW(dProduct[NameTH])-ROW(dProduct[[#Headers],[NameTH]]),""),ROW()-ROW($U$5)))) -> 
T49: =IF(ROW()-ROW($V$5)>COUNTIF(dProduct[Status],"ปกติ"),"",INDEX(dProduct[NameTH],SMALL(IF(dProduct[Status]="ปกติ",ROW(dProduct[NameTH])-ROW(dProduct[[#Headers],[NameTH]]),""),ROW()-ROW($T$5)))) ->  | U49: =IF(ROW()-ROW($U$5)>COUNTIFS(dProduct[Status],"ปกติ",dProduct[Factory],"<>"&"00-FRK"),"",INDEX(dProduct[NameTH],SMALL(IF((dProduct[Status]="ปกติ")*(dProduct[Factory]<>"00-FRK")=1,ROW(dProduct[NameTH])-ROW(dProduct[[#Headers],[NameTH]]),""),ROW()-ROW($U$5)))) ->  | V49: =IF(ROW()-ROW($U$5)>COUNTIFS(dProduct[Status],"ปกติ",dProduct[Factory],"<>"&"00-FRY"),"",INDEX(dProduct[NameTH],SMALL(IF((dProduct[Status]="ปกติ")*(dProduct[Factory]<>"00-FRY")=1,ROW(dProduct[NameTH])-ROW(dProduct[[#Headers],[NameTH]]),""),ROW()-ROW($U$5)))) -> 
T50: =IF(ROW()-ROW($V$5)>COUNTIF(dProduct[Status],"ปกติ"),"",INDEX(dProduct[NameTH],SMALL(IF(dProduct[Status]="ปกติ",ROW(dProduct[NameTH])-ROW(dProduct[[#Headers],[NameTH]]),""),ROW()-ROW($T$5)))) ->  | U50: =IF(ROW()-ROW($U$5)>COUNTIFS(dProduct[Status],"ปกติ",dProduct[Factory],"<>"&"00-FRK"),"",INDEX(dProduct[NameTH],SMALL(IF((dProduct[Status]="ปกติ")*(dProduct[Factory]<>"00-FRK")=1,ROW(dProduct[NameTH])-ROW(dProduct[[#Headers],[NameTH]]),""),ROW()-ROW($U$5)))) ->  | V50: =IF(ROW()-ROW($U$5)>COUNTIFS(dProduct[Status],"ปกติ",dProduct[Factory],"<>"&"00-FRY"),"",INDEX(dProduct[NameTH],SMALL(IF((dProduct[Status]="ปกติ")*(dProduct[Factory]<>"00-FRY")=1,ROW(dProduct[NameTH])-ROW(dProduct[[#Headers],[NameTH]]),""),ROW()-ROW($U$5)))) -> 
T51: =IF(ROW()-ROW($V$5)>COUNTIF(dProduct[Status],"ปกติ"),"",INDEX(dProduct[NameTH],SMALL(IF(dProduct[Status]="ปกติ",ROW(dProduct[NameTH])-ROW(dProduct[[#Headers],[NameTH]]),""),ROW()-ROW($T$5)))) ->  | U51: =IF(ROW()-ROW($U$5)>COUNTIFS(dProduct[Status],"ปกติ",dProduct[Factory],"<>"&"00-FRK"),"",INDEX(dProduct[NameTH],SMALL(IF((dProduct[Status]="ปกติ")*(dProduct[Factory]<>"00-FRK")=1,ROW(dProduct[NameTH])-ROW(dProduct[[#Headers],[NameTH]]),""),ROW()-ROW($U$5)))) ->  | V51: =IF(ROW()-ROW($U$5)>COUNTIFS(dProduct[Status],"ปกติ",dProduct[Factory],"<>"&"00-FRY"),"",INDEX(dProduct[NameTH],SMALL(IF((dProduct[Status]="ปกติ")*(dProduct[Factory]<>"00-FRY")=1,ROW(dProduct[NameTH])-ROW(dProduct[[#Headers],[NameTH]]),""),ROW()-ROW($U$5)))) -> 
T52: =IF(ROW()-ROW($V$5)>COUNTIF(dProduct[Status],"ปกติ"),"",INDEX(dProduct[NameTH],SMALL(IF(dProduct[Status]="ปกติ",ROW(dProduct[NameTH])-ROW(dProduct[[#Headers],[NameTH]]),""),ROW()-ROW($T$5)))) ->  | U52: =IF(ROW()-ROW($U$5)>COUNTIFS(dProduct[Status],"ปกติ",dProduct[Factory],"<>"&"00-FRK"),"",INDEX(dProduct[NameTH],SMALL(IF((dProduct[Status]="ปกติ")*(dProduct[Factory]<>"00-FRK")=1,ROW(dProduct[NameTH])-ROW(dProduct[[#Headers],[NameTH]]),""),ROW()-ROW($U$5)))) ->  | V52: =IF(ROW()-ROW($U$5)>COUNTIFS(dProduct[Status],"ปกติ",dProduct[Factory],"<>"&"00-FRY"),"",INDEX(dProduct[NameTH],SMALL(IF((dProduct[Status]="ปกติ")*(dProduct[Factory]<>"00-FRY")=1,ROW(dProduct[NameTH])-ROW(dProduct[[#Headers],[NameTH]]),""),ROW()-ROW($U$5)))) -> 
T53: =IF(ROW()-ROW($V$5)>COUNTIF(dProduct[Status],"ปกติ"),"",INDEX(dProduct[NameTH],SMALL(IF(dProduct[Status]="ปกติ",ROW(dProduct[NameTH])-ROW(dProduct[[#Headers],[NameTH]]),""),ROW()-ROW($T$5)))) ->  | U53: =IF(ROW()-ROW($U$5)>COUNTIFS(dProduct[Status],"ปกติ",dProduct[Factory],"<>"&"00-FRK"),"",INDEX(dProduct[NameTH],SMALL(IF((dProduct[Status]="ปกติ")*(dProduct[Factory]<>"00-FRK")=1,ROW(dProduct[NameTH])-ROW(dProduct[[#Headers],[NameTH]]),""),ROW()-ROW($U$5)))) ->  | V53: =IF(ROW()-ROW($U$5)>COUNTIFS(dProduct[Status],"ปกติ",dProduct[Factory],"<>"&"00-FRY"),"",INDEX(dProduct[NameTH],SMALL(IF((dProduct[Status]="ปกติ")*(dProduct[Factory]<>"00-FRY")=1,ROW(dProduct[NameTH])-ROW(dProduct[[#Headers],[NameTH]]),""),ROW()-ROW($U$5)))) -> 
T54: =IF(ROW()-ROW($V$5)>COUNTIF(dProduct[Status],"ปกติ"),"",INDEX(dProduct[NameTH],SMALL(IF(dProduct[Status]="ปกติ",ROW(dProduct[NameTH])-ROW(dProduct[[#Headers],[NameTH]]),""),ROW()-ROW($T$5)))) ->  | U54: =IF(ROW()-ROW($U$5)>COUNTIFS(dProduct[Status],"ปกติ",dProduct[Factory],"<>"&"00-FRK"),"",INDEX(dProduct[NameTH],SMALL(IF((dProduct[Status]="ปกติ")*(dProduct[Factory]<>"00-FRK")=1,ROW(dProduct[NameTH])-ROW(dProduct[[#Headers],[NameTH]]),""),ROW()-ROW($U$5)))) ->  | V54: =IF(ROW()-ROW($U$5)>COUNTIFS(dProduct[Status],"ปกติ",dProduct[Factory],"<>"&"00-FRY"),"",INDEX(dProduct[NameTH],SMALL(IF((dProduct[Status]="ปกติ")*(dProduct[Factory]<>"00-FRY")=1,ROW(dProduct[NameTH])-ROW(dProduct[[#Headers],[NameTH]]),""),ROW()-ROW($U$5)))) -> 
T55: =IF(ROW()-ROW($V$5)>COUNTIF(dProduct[Status],"ปกติ"),"",INDEX(dProduct[NameTH],SMALL(IF(dProduct[Status]="ปกติ",ROW(dProduct[NameTH])-ROW(dProduct[[#Headers],[NameTH]]),""),ROW()-ROW($T$5)))) ->  | U55: =IF(ROW()-ROW($U$5)>COUNTIFS(dProduct[Status],"ปกติ",dProduct[Factory],"<>"&"00-FRK"),"",INDEX(dProduct[NameTH],SMALL(IF((dProduct[Status]="ปกติ")*(dProduct[Factory]<>"00-FRK")=1,ROW(dProduct[NameTH])-ROW(dProduct[[#Headers],[NameTH]]),""),ROW()-ROW($U$5)))) ->  | V55: =IF(ROW()-ROW($U$5)>COUNTIFS(dProduct[Status],"ปกติ",dProduct[Factory],"<>"&"00-FRY"),"",INDEX(dProduct[NameTH],SMALL(IF((dProduct[Status]="ปกติ")*(dProduct[Factory]<>"00-FRY")=1,ROW(dProduct[NameTH])-ROW(dProduct[[#Headers],[NameTH]]),""),ROW()-ROW($U$5)))) -> 
T56: =IF(ROW()-ROW($V$5)>COUNTIF(dProduct[Status],"ปกติ"),"",INDEX(dProduct[NameTH],SMALL(IF(dProduct[Status]="ปกติ",ROW(dProduct[NameTH])-ROW(dProduct[[#Headers],[NameTH]]),""),ROW()-ROW($T$5)))) ->  | U56: =IF(ROW()-ROW($U$5)>COUNTIFS(dProduct[Status],"ปกติ",dProduct[Factory],"<>"&"00-FRK"),"",INDEX(dProduct[NameTH],SMALL(IF((dProduct[Status]="ปกติ")*(dProduct[Factory]<>"00-FRK")=1,ROW(dProduct[NameTH])-ROW(dProduct[[#Headers],[NameTH]]),""),ROW()-ROW($U$5)))) ->  | V56: =IF(ROW()-ROW($U$5)>COUNTIFS(dProduct[Status],"ปกติ",dProduct[Factory],"<>"&"00-FRY"),"",INDEX(dProduct[NameTH],SMALL(IF((dProduct[Status]="ปกติ")*(dProduct[Factory]<>"00-FRY")=1,ROW(dProduct[NameTH])-ROW(dProduct[[#Headers],[NameTH]]),""),ROW()-ROW($U$5)))) -> 
T57: =IF(ROW()-ROW($V$5)>COUNTIF(dProduct[Status],"ปกติ"),"",INDEX(dProduct[NameTH],SMALL(IF(dProduct[Status]="ปกติ",ROW(dProduct[NameTH])-ROW(dProduct[[#Headers],[NameTH]]),""),ROW()-ROW($T$5)))) ->  | U57: =IF(ROW()-ROW($U$5)>COUNTIFS(dProduct[Status],"ปกติ",dProduct[Factory],"<>"&"00-FRK"),"",INDEX(dProduct[NameTH],SMALL(IF((dProduct[Status]="ปกติ")*(dProduct[Factory]<>"00-FRK")=1,ROW(dProduct[NameTH])-ROW(dProduct[[#Headers],[NameTH]]),""),ROW()-ROW($U$5)))) ->  | V57: =IF(ROW()-ROW($U$5)>COUNTIFS(dProduct[Status],"ปกติ",dProduct[Factory],"<>"&"00-FRY"),"",INDEX(dProduct[NameTH],SMALL(IF((dProduct[Status]="ปกติ")*(dProduct[Factory]<>"00-FRY")=1,ROW(dProduct[NameTH])-ROW(dProduct[[#Headers],[NameTH]]),""),ROW()-ROW($U$5)))) -> 
T58: =IF(ROW()-ROW($V$5)>COUNTIF(dProduct[Status],"ปกติ"),"",INDEX(dProduct[NameTH],SMALL(IF(dProduct[Status]="ปกติ",ROW(dProduct[NameTH])-ROW(dProduct[[#Headers],[NameTH]]),""),ROW()-ROW($T$5)))) ->  | U58: =IF(ROW()-ROW($U$5)>COUNTIFS(dProduct[Status],"ปกติ",dProduct[Factory],"<>"&"00-FRK"),"",INDEX(dProduct[NameTH],SMALL(IF((dProduct[Status]="ปกติ")*(dProduct[Factory]<>"00-FRK")=1,ROW(dProduct[NameTH])-ROW(dProduct[[#Headers],[NameTH]]),""),ROW()-ROW($U$5)))) ->  | V58: =IF(ROW()-ROW($U$5)>COUNTIFS(dProduct[Status],"ปกติ",dProduct[Factory],"<>"&"00-FRY"),"",INDEX(dProduct[NameTH],SMALL(IF((dProduct[Status]="ปกติ")*(dProduct[Factory]<>"00-FRY")=1,ROW(dProduct[NameTH])-ROW(dProduct[[#Headers],[NameTH]]),""),ROW()-ROW($U$5)))) -> 
T59: =IF(ROW()-ROW($V$5)>COUNTIF(dProduct[Status],"ปกติ"),"",INDEX(dProduct[NameTH],SMALL(IF(dProduct[Status]="ปกติ",ROW(dProduct[NameTH])-ROW(dProduct[[#Headers],[NameTH]]),""),ROW()-ROW($T$5)))) ->  | U59: =IF(ROW()-ROW($U$5)>COUNTIFS(dProduct[Status],"ปกติ",dProduct[Factory],"<>"&"00-FRK"),"",INDEX(dProduct[NameTH],SMALL(IF((dProduct[Status]="ปกติ")*(dProduct[Factory]<>"00-FRK")=1,ROW(dProduct[NameTH])-ROW(dProduct[[#Headers],[NameTH]]),""),ROW()-ROW($U$5)))) ->  | V59: =IF(ROW()-ROW($U$5)>COUNTIFS(dProduct[Status],"ปกติ",dProduct[Factory],"<>"&"00-FRY"),"",INDEX(dProduct[NameTH],SMALL(IF((dProduct[Status]="ปกติ")*(dProduct[Factory]<>"00-FRY")=1,ROW(dProduct[NameTH])-ROW(dProduct[[#Headers],[NameTH]]),""),ROW()-ROW($U$5)))) -> 
T60: =IF(ROW()-ROW($V$5)>COUNTIF(dProduct[Status],"ปกติ"),"",INDEX(dProduct[NameTH],SMALL(IF(dProduct[Status]="ปกติ",ROW(dProduct[NameTH])-ROW(dProduct[[#Headers],[NameTH]]),""),ROW()-ROW($T$5)))) ->  | U60: =IF(ROW()-ROW($U$5)>COUNTIFS(dProduct[Status],"ปกติ",dProduct[Factory],"<>"&"00-FRK"),"",INDEX(dProduct[NameTH],SMALL(IF((dProduct[Status]="ปกติ")*(dProduct[Factory]<>"00-FRK")=1,ROW(dProduct[NameTH])-ROW(dProduct[[#Headers],[NameTH]]),""),ROW()-ROW($U$5)))) ->  | V60: =IF(ROW()-ROW($U$5)>COUNTIFS(dProduct[Status],"ปกติ",dProduct[Factory],"<>"&"00-FRY"),"",INDEX(dProduct[NameTH],SMALL(IF((dProduct[Status]="ปกติ")*(dProduct[Factory]<>"00-FRY")=1,ROW(dProduct[NameTH])-ROW(dProduct[[#Headers],[NameTH]]),""),ROW()-ROW($U$5)))) -> 
T61: =IF(ROW()-ROW($V$5)>COUNTIF(dProduct[Status],"ปกติ"),"",INDEX(dProduct[NameTH],SMALL(IF(dProduct[Status]="ปกติ",ROW(dProduct[NameTH])-ROW(dProduct[[#Headers],[NameTH]]),""),ROW()-ROW($T$5)))) ->  | U61: =IF(ROW()-ROW($U$5)>COUNTIFS(dProduct[Status],"ปกติ",dProduct[Factory],"<>"&"00-FRK"),"",INDEX(dProduct[NameTH],SMALL(IF((dProduct[Status]="ปกติ")*(dProduct[Factory]<>"00-FRK")=1,ROW(dProduct[NameTH])-ROW(dProduct[[#Headers],[NameTH]]),""),ROW()-ROW($U$5)))) ->  | V61: =IF(ROW()-ROW($U$5)>COUNTIFS(dProduct[Status],"ปกติ",dProduct[Factory],"<>"&"00-FRY"),"",INDEX(dProduct[NameTH],SMALL(IF((dProduct[Status]="ปกติ")*(dProduct[Factory]<>"00-FRY")=1,ROW(dProduct[NameTH])-ROW(dProduct[[#Headers],[NameTH]]),""),ROW()-ROW($U$5)))) -> 
T62: =IF(ROW()-ROW($V$5)>COUNTIF(dProduct[Status],"ปกติ"),"",INDEX(dProduct[NameTH],SMALL(IF(dProduct[Status]="ปกติ",ROW(dProduct[NameTH])-ROW(dProduct[[#Headers],[NameTH]]),""),ROW()-ROW($T$5)))) ->  | U62: =IF(ROW()-ROW($U$5)>COUNTIFS(dProduct[Status],"ปกติ",dProduct[Factory],"<>"&"00-FRK"),"",INDEX(dProduct[NameTH],SMALL(IF((dProduct[Status]="ปกติ")*(dProduct[Factory]<>"00-FRK")=1,ROW(dProduct[NameTH])-ROW(dProduct[[#Headers],[NameTH]]),""),ROW()-ROW($U$5)))) ->  | V62: =IF(ROW()-ROW($U$5)>COUNTIFS(dProduct[Status],"ปกติ",dProduct[Factory],"<>"&"00-FRY"),"",INDEX(dProduct[NameTH],SMALL(IF((dProduct[Status]="ปกติ")*(dProduct[Factory]<>"00-FRY")=1,ROW(dProduct[NameTH])-ROW(dProduct[[#Headers],[NameTH]]),""),ROW()-ROW($U$5)))) -> 
T63: =IF(ROW()-ROW($V$5)>COUNTIF(dProduct[Status],"ปกติ"),"",INDEX(dProduct[NameTH],SMALL(IF(dProduct[Status]="ปกติ",ROW(dProduct[NameTH])-ROW(dProduct[[#Headers],[NameTH]]),""),ROW()-ROW($T$5)))) ->  | U63: =IF(ROW()-ROW($U$5)>COUNTIFS(dProduct[Status],"ปกติ",dProduct[Factory],"<>"&"00-FRK"),"",INDEX(dProduct[NameTH],SMALL(IF((dProduct[Status]="ปกติ")*(dProduct[Factory]<>"00-FRK")=1,ROW(dProduct[NameTH])-ROW(dProduct[[#Headers],[NameTH]]),""),ROW()-ROW($U$5)))) ->  | V63: =IF(ROW()-ROW($U$5)>COUNTIFS(dProduct[Status],"ปกติ",dProduct[Factory],"<>"&"00-FRY"),"",INDEX(dProduct[NameTH],SMALL(IF((dProduct[Status]="ปกติ")*(dProduct[Factory]<>"00-FRY")=1,ROW(dProduct[NameTH])-ROW(dProduct[[#Headers],[NameTH]]),""),ROW()-ROW($U$5)))) -> 
T64: =IF(ROW()-ROW($V$5)>COUNTIF(dProduct[Status],"ปกติ"),"",INDEX(dProduct[NameTH],SMALL(IF(dProduct[Status]="ปกติ",ROW(dProduct[NameTH])-ROW(dProduct[[#Headers],[NameTH]]),""),ROW()-ROW($T$5)))) ->  | U64: =IF(ROW()-ROW($U$5)>COUNTIFS(dProduct[Status],"ปกติ",dProduct[Factory],"<>"&"00-FRK"),"",INDEX(dProduct[NameTH],SMALL(IF((dProduct[Status]="ปกติ")*(dProduct[Factory]<>"00-FRK")=1,ROW(dProduct[NameTH])-ROW(dProduct[[#Headers],[NameTH]]),""),ROW()-ROW($U$5)))) ->  | V64: =IF(ROW()-ROW($U$5)>COUNTIFS(dProduct[Status],"ปกติ",dProduct[Factory],"<>"&"00-FRY"),"",INDEX(dProduct[NameTH],SMALL(IF((dProduct[Status]="ปกติ")*(dProduct[Factory]<>"00-FRY")=1,ROW(dProduct[NameTH])-ROW(dProduct[[#Headers],[NameTH]]),""),ROW()-ROW($U$5)))) -> 
T65: =IF(ROW()-ROW($V$5)>COUNTIF(dProduct[Status],"ปกติ"),"",INDEX(dProduct[NameTH],SMALL(IF(dProduct[Status]="ปกติ",ROW(dProduct[NameTH])-ROW(dProduct[[#Headers],[NameTH]]),""),ROW()-ROW($T$5)))) ->  | U65: =IF(ROW()-ROW($U$5)>COUNTIFS(dProduct[Status],"ปกติ",dProduct[Factory],"<>"&"00-FRK"),"",INDEX(dProduct[NameTH],SMALL(IF((dProduct[Status]="ปกติ")*(dProduct[Factory]<>"00-FRK")=1,ROW(dProduct[NameTH])-ROW(dProduct[[#Headers],[NameTH]]),""),ROW()-ROW($U$5)))) ->  | V65: =IF(ROW()-ROW($U$5)>COUNTIFS(dProduct[Status],"ปกติ",dProduct[Factory],"<>"&"00-FRY"),"",INDEX(dProduct[NameTH],SMALL(IF((dProduct[Status]="ปกติ")*(dProduct[Factory]<>"00-FRY")=1,ROW(dProduct[NameTH])-ROW(dProduct[[#Headers],[NameTH]]),""),ROW()-ROW($U$5)))) -> 
T66: =IF(ROW()-ROW($V$5)>COUNTIF(dProduct[Status],"ปกติ"),"",INDEX(dProduct[NameTH],SMALL(IF(dProduct[Status]="ปกติ",ROW(dProduct[NameTH])-ROW(dProduct[[#Headers],[NameTH]]),""),ROW()-ROW($T$5)))) ->  | U66: =IF(ROW()-ROW($U$5)>COUNTIFS(dProduct[Status],"ปกติ",dProduct[Factory],"<>"&"00-FRK"),"",INDEX(dProduct[NameTH],SMALL(IF((dProduct[Status]="ปกติ")*(dProduct[Factory]<>"00-FRK")=1,ROW(dProduct[NameTH])-ROW(dProduct[[#Headers],[NameTH]]),""),ROW()-ROW($U$5)))) ->  | V66: =IF(ROW()-ROW($U$5)>COUNTIFS(dProduct[Status],"ปกติ",dProduct[Factory],"<>"&"00-FRY"),"",INDEX(dProduct[NameTH],SMALL(IF((dProduct[Status]="ปกติ")*(dProduct[Factory]<>"00-FRY")=1,ROW(dProduct[NameTH])-ROW(dProduct[[#Headers],[NameTH]]),""),ROW()-ROW($U$5)))) -> 
T67: =IF(ROW()-ROW($V$5)>COUNTIF(dProduct[Status],"ปกติ"),"",INDEX(dProduct[NameTH],SMALL(IF(dProduct[Status]="ปกติ",ROW(dProduct[NameTH])-ROW(dProduct[[#Headers],[NameTH]]),""),ROW()-ROW($T$5)))) ->  | U67: =IF(ROW()-ROW($U$5)>COUNTIFS(dProduct[Status],"ปกติ",dProduct[Factory],"<>"&"00-FRK"),"",INDEX(dProduct[NameTH],SMALL(IF((dProduct[Status]="ปกติ")*(dProduct[Factory]<>"00-FRK")=1,ROW(dProduct[NameTH])-ROW(dProduct[[#Headers],[NameTH]]),""),ROW()-ROW($U$5)))) ->  | V67: =IF(ROW()-ROW($U$5)>COUNTIFS(dProduct[Status],"ปกติ",dProduct[Factory],"<>"&"00-FRY"),"",INDEX(dProduct[NameTH],SMALL(IF((dProduct[Status]="ปกติ")*(dProduct[Factory]<>"00-FRY")=1,ROW(dProduct[NameTH])-ROW(dProduct[[#Headers],[NameTH]]),""),ROW()-ROW($U$5)))) -> 
T68: =IF(ROW()-ROW($V$5)>COUNTIF(dProduct[Status],"ปกติ"),"",INDEX(dProduct[NameTH],SMALL(IF(dProduct[Status]="ปกติ",ROW(dProduct[NameTH])-ROW(dProduct[[#Headers],[NameTH]]),""),ROW()-ROW($T$5)))) ->  | U68: =IF(ROW()-ROW($U$5)>COUNTIFS(dProduct[Status],"ปกติ",dProduct[Factory],"<>"&"00-FRK"),"",INDEX(dProduct[NameTH],SMALL(IF((dProduct[Status]="ปกติ")*(dProduct[Factory]<>"00-FRK")=1,ROW(dProduct[NameTH])-ROW(dProduct[[#Headers],[NameTH]]),""),ROW()-ROW($U$5)))) ->  | V68: =IF(ROW()-ROW($U$5)>COUNTIFS(dProduct[Status],"ปกติ",dProduct[Factory],"<>"&"00-FRY"),"",INDEX(dProduct[NameTH],SMALL(IF((dProduct[Status]="ปกติ")*(dProduct[Factory]<>"00-FRY")=1,ROW(dProduct[NameTH])-ROW(dProduct[[#Headers],[NameTH]]),""),ROW()-ROW($U$5)))) -> 
T69: =IF(ROW()-ROW($V$5)>COUNTIF(dProduct[Status],"ปกติ"),"",INDEX(dProduct[NameTH],SMALL(IF(dProduct[Status]="ปกติ",ROW(dProduct[NameTH])-ROW(dProduct[[#Headers],[NameTH]]),""),ROW()-ROW($T$5)))) ->  | U69: =IF(ROW()-ROW($U$5)>COUNTIFS(dProduct[Status],"ปกติ",dProduct[Factory],"<>"&"00-FRK"),"",INDEX(dProduct[NameTH],SMALL(IF((dProduct[Status]="ปกติ")*(dProduct[Factory]<>"00-FRK")=1,ROW(dProduct[NameTH])-ROW(dProduct[[#Headers],[NameTH]]),""),ROW()-ROW($U$5)))) ->  | V69: =IF(ROW()-ROW($U$5)>COUNTIFS(dProduct[Status],"ปกติ",dProduct[Factory],"<>"&"00-FRY"),"",INDEX(dProduct[NameTH],SMALL(IF((dProduct[Status]="ปกติ")*(dProduct[Factory]<>"00-FRY")=1,ROW(dProduct[NameTH])-ROW(dProduct[[#Headers],[NameTH]]),""),ROW()-ROW($U$5)))) -> 
T70: =IF(ROW()-ROW($V$5)>COUNTIF(dProduct[Status],"ปกติ"),"",INDEX(dProduct[NameTH],SMALL(IF(dProduct[Status]="ปกติ",ROW(dProduct[NameTH])-ROW(dProduct[[#Headers],[NameTH]]),""),ROW()-ROW($T$5)))) ->  | U70: =IF(ROW()-ROW($U$5)>COUNTIFS(dProduct[Status],"ปกติ",dProduct[Factory],"<>"&"00-FRK"),"",INDEX(dProduct[NameTH],SMALL(IF((dProduct[Status]="ปกติ")*(dProduct[Factory]<>"00-FRK")=1,ROW(dProduct[NameTH])-ROW(dProduct[[#Headers],[NameTH]]),""),ROW()-ROW($U$5)))) ->  | V70: =IF(ROW()-ROW($U$5)>COUNTIFS(dProduct[Status],"ปกติ",dProduct[Factory],"<>"&"00-FRY"),"",INDEX(dProduct[NameTH],SMALL(IF((dProduct[Status]="ปกติ")*(dProduct[Factory]<>"00-FRY")=1,ROW(dProduct[NameTH])-ROW(dProduct[[#Headers],[NameTH]]),""),ROW()-ROW($U$5)))) -> 
T71: =IF(ROW()-ROW($V$5)>COUNTIF(dProduct[Status],"ปกติ"),"",INDEX(dProduct[NameTH],SMALL(IF(dProduct[Status]="ปกติ",ROW(dProduct[NameTH])-ROW(dProduct[[#Headers],[NameTH]]),""),ROW()-ROW($T$5)))) ->  | U71: =IF(ROW()-ROW($U$5)>COUNTIFS(dProduct[Status],"ปกติ",dProduct[Factory],"<>"&"00-FRK"),"",INDEX(dProduct[NameTH],SMALL(IF((dProduct[Status]="ปกติ")*(dProduct[Factory]<>"00-FRK")=1,ROW(dProduct[NameTH])-ROW(dProduct[[#Headers],[NameTH]]),""),ROW()-ROW($U$5)))) ->  | V71: =IF(ROW()-ROW($U$5)>COUNTIFS(dProduct[Status],"ปกติ",dProduct[Factory],"<>"&"00-FRY"),"",INDEX(dProduct[NameTH],SMALL(IF((dProduct[Status]="ปกติ")*(dProduct[Factory]<>"00-FRY")=1,ROW(dProduct[NameTH])-ROW(dProduct[[#Headers],[NameTH]]),""),ROW()-ROW($U$5)))) -> 
T72: =IF(ROW()-ROW($V$5)>COUNTIF(dProduct[Status],"ปกติ"),"",INDEX(dProduct[NameTH],SMALL(IF(dProduct[Status]="ปกติ",ROW(dProduct[NameTH])-ROW(dProduct[[#Headers],[NameTH]]),""),ROW()-ROW($T$5)))) ->  | U72: =IF(ROW()-ROW($U$5)>COUNTIFS(dProduct[Status],"ปกติ",dProduct[Factory],"<>"&"00-FRK"),"",INDEX(dProduct[NameTH],SMALL(IF((dProduct[Status]="ปกติ")*(dProduct[Factory]<>"00-FRK")=1,ROW(dProduct[NameTH])-ROW(dProduct[[#Headers],[NameTH]]),""),ROW()-ROW($U$5)))) ->  | V72: =IF(ROW()-ROW($U$5)>COUNTIFS(dProduct[Status],"ปกติ",dProduct[Factory],"<>"&"00-FRY"),"",INDEX(dProduct[NameTH],SMALL(IF((dProduct[Status]="ปกติ")*(dProduct[Factory]<>"00-FRY")=1,ROW(dProduct[NameTH])-ROW(dProduct[[#Headers],[NameTH]]),""),ROW()-ROW($U$5)))) -> 
T73: =IF(ROW()-ROW($V$5)>COUNTIF(dProduct[Status],"ปกติ"),"",INDEX(dProduct[NameTH],SMALL(IF(dProduct[Status]="ปกติ",ROW(dProduct[NameTH])-ROW(dProduct[[#Headers],[NameTH]]),""),ROW()-ROW($T$5)))) ->  | U73: =IF(ROW()-ROW($U$5)>COUNTIFS(dProduct[Status],"ปกติ",dProduct[Factory],"<>"&"00-FRK"),"",INDEX(dProduct[NameTH],SMALL(IF((dProduct[Status]="ปกติ")*(dProduct[Factory]<>"00-FRK")=1,ROW(dProduct[NameTH])-ROW(dProduct[[#Headers],[NameTH]]),""),ROW()-ROW($U$5)))) ->  | V73: =IF(ROW()-ROW($U$5)>COUNTIFS(dProduct[Status],"ปกติ",dProduct[Factory],"<>"&"00-FRY"),"",INDEX(dProduct[NameTH],SMALL(IF((dProduct[Status]="ปกติ")*(dProduct[Factory]<>"00-FRY")=1,ROW(dProduct[NameTH])-ROW(dProduct[[#Headers],[NameTH]]),""),ROW()-ROW($U$5)))) -> 
T74: =IF(ROW()-ROW($V$5)>COUNTIF(dProduct[Status],"ปกติ"),"",INDEX(dProduct[NameTH],SMALL(IF(dProduct[Status]="ปกติ",ROW(dProduct[NameTH])-ROW(dProduct[[#Headers],[NameTH]]),""),ROW()-ROW($T$5)))) ->  | U74: =IF(ROW()-ROW($U$5)>COUNTIFS(dProduct[Status],"ปกติ",dProduct[Factory],"<>"&"00-FRK"),"",INDEX(dProduct[NameTH],SMALL(IF((dProduct[Status]="ปกติ")*(dProduct[Factory]<>"00-FRK")=1,ROW(dProduct[NameTH])-ROW(dProduct[[#Headers],[NameTH]]),""),ROW()-ROW($U$5)))) ->  | V74: =IF(ROW()-ROW($U$5)>COUNTIFS(dProduct[Status],"ปกติ",dProduct[Factory],"<>"&"00-FRY"),"",INDEX(dProduct[NameTH],SMALL(IF((dProduct[Status]="ปกติ")*(dProduct[Factory]<>"00-FRY")=1,ROW(dProduct[NameTH])-ROW(dProduct[[#Headers],[NameTH]]),""),ROW()-ROW($U$5)))) -> 
T75: =IF(ROW()-ROW($V$5)>COUNTIF(dProduct[Status],"ปกติ"),"",INDEX(dProduct[NameTH],SMALL(IF(dProduct[Status]="ปกติ",ROW(dProduct[NameTH])-ROW(dProduct[[#Headers],[NameTH]]),""),ROW()-ROW($T$5)))) ->  | U75: =IF(ROW()-ROW($U$5)>COUNTIFS(dProduct[Status],"ปกติ",dProduct[Factory],"<>"&"00-FRK"),"",INDEX(dProduct[NameTH],SMALL(IF((dProduct[Status]="ปกติ")*(dProduct[Factory]<>"00-FRK")=1,ROW(dProduct[NameTH])-ROW(dProduct[[#Headers],[NameTH]]),""),ROW()-ROW($U$5)))) ->  | V75: =IF(ROW()-ROW($U$5)>COUNTIFS(dProduct[Status],"ปกติ",dProduct[Factory],"<>"&"00-FRY"),"",INDEX(dProduct[NameTH],SMALL(IF((dProduct[Status]="ปกติ")*(dProduct[Factory]<>"00-FRY")=1,ROW(dProduct[NameTH])-ROW(dProduct[[#Headers],[NameTH]]),""),ROW()-ROW($U$5)))) -> 
T76: =IF(ROW()-ROW($V$5)>COUNTIF(dProduct[Status],"ปกติ"),"",INDEX(dProduct[NameTH],SMALL(IF(dProduct[Status]="ปกติ",ROW(dProduct[NameTH])-ROW(dProduct[[#Headers],[NameTH]]),""),ROW()-ROW($T$5)))) ->  | U76: =IF(ROW()-ROW($U$5)>COUNTIFS(dProduct[Status],"ปกติ",dProduct[Factory],"<>"&"00-FRK"),"",INDEX(dProduct[NameTH],SMALL(IF((dProduct[Status]="ปกติ")*(dProduct[Factory]<>"00-FRK")=1,ROW(dProduct[NameTH])-ROW(dProduct[[#Headers],[NameTH]]),""),ROW()-ROW($U$5)))) ->  | V76: =IF(ROW()-ROW($U$5)>COUNTIFS(dProduct[Status],"ปกติ",dProduct[Factory],"<>"&"00-FRY"),"",INDEX(dProduct[NameTH],SMALL(IF((dProduct[Status]="ปกติ")*(dProduct[Factory]<>"00-FRY")=1,ROW(dProduct[NameTH])-ROW(dProduct[[#Headers],[NameTH]]),""),ROW()-ROW($U$5)))) -> 
T77: =IF(ROW()-ROW($V$5)>COUNTIF(dProduct[Status],"ปกติ"),"",INDEX(dProduct[NameTH],SMALL(IF(dProduct[Status]="ปกติ",ROW(dProduct[NameTH])-ROW(dProduct[[#Headers],[NameTH]]),""),ROW()-ROW($T$5)))) ->  | U77: =IF(ROW()-ROW($U$5)>COUNTIFS(dProduct[Status],"ปกติ",dProduct[Factory],"<>"&"00-FRK"),"",INDEX(dProduct[NameTH],SMALL(IF((dProduct[Status]="ปกติ")*(dProduct[Factory]<>"00-FRK")=1,ROW(dProduct[NameTH])-ROW(dProduct[[#Headers],[NameTH]]),""),ROW()-ROW($U$5)))) ->  | V77: =IF(ROW()-ROW($U$5)>COUNTIFS(dProduct[Status],"ปกติ",dProduct[Factory],"<>"&"00-FRY"),"",INDEX(dProduct[NameTH],SMALL(IF((dProduct[Status]="ปกติ")*(dProduct[Factory]<>"00-FRY")=1,ROW(dProduct[NameTH])-ROW(dProduct[[#Headers],[NameTH]]),""),ROW()-ROW($U$5)))) -> 
T78: =IF(ROW()-ROW($V$5)>COUNTIF(dProduct[Status],"ปกติ"),"",INDEX(dProduct[NameTH],SMALL(IF(dProduct[Status]="ปกติ",ROW(dProduct[NameTH])-ROW(dProduct[[#Headers],[NameTH]]),""),ROW()-ROW($T$5)))) ->  | U78: =IF(ROW()-ROW($U$5)>COUNTIFS(dProduct[Status],"ปกติ",dProduct[Factory],"<>"&"00-FRK"),"",INDEX(dProduct[NameTH],SMALL(IF((dProduct[Status]="ปกติ")*(dProduct[Factory]<>"00-FRK")=1,ROW(dProduct[NameTH])-ROW(dProduct[[#Headers],[NameTH]]),""),ROW()-ROW($U$5)))) ->  | V78: =IF(ROW()-ROW($U$5)>COUNTIFS(dProduct[Status],"ปกติ",dProduct[Factory],"<>"&"00-FRY"),"",INDEX(dProduct[NameTH],SMALL(IF((dProduct[Status]="ปกติ")*(dProduct[Factory]<>"00-FRY")=1,ROW(dProduct[NameTH])-ROW(dProduct[[#Headers],[NameTH]]),""),ROW()-ROW($U$5)))) -> 
T79: =IF(ROW()-ROW($V$5)>COUNTIF(dProduct[Status],"ปกติ"),"",INDEX(dProduct[NameTH],SMALL(IF(dProduct[Status]="ปกติ",ROW(dProduct[NameTH])-ROW(dProduct[[#Headers],[NameTH]]),""),ROW()-ROW($T$5)))) ->  | U79: =IF(ROW()-ROW($U$5)>COUNTIFS(dProduct[Status],"ปกติ",dProduct[Factory],"<>"&"00-FRK"),"",INDEX(dProduct[NameTH],SMALL(IF((dProduct[Status]="ปกติ")*(dProduct[Factory]<>"00-FRK")=1,ROW(dProduct[NameTH])-ROW(dProduct[[#Headers],[NameTH]]),""),ROW()-ROW($U$5)))) ->  | V79: =IF(ROW()-ROW($U$5)>COUNTIFS(dProduct[Status],"ปกติ",dProduct[Factory],"<>"&"00-FRY"),"",INDEX(dProduct[NameTH],SMALL(IF((dProduct[Status]="ปกติ")*(dProduct[Factory]<>"00-FRY")=1,ROW(dProduct[NameTH])-ROW(dProduct[[#Headers],[NameTH]]),""),ROW()-ROW($U$5)))) -> 
T80: =IF(ROW()-ROW($V$5)>COUNTIF(dProduct[Status],"ปกติ"),"",INDEX(dProduct[NameTH],SMALL(IF(dProduct[Status]="ปกติ",ROW(dProduct[NameTH])-ROW(dProduct[[#Headers],[NameTH]]),""),ROW()-ROW($T$5)))) ->  | U80: =IF(ROW()-ROW($U$5)>COUNTIFS(dProduct[Status],"ปกติ",dProduct[Factory],"<>"&"00-FRK"),"",INDEX(dProduct[NameTH],SMALL(IF((dProduct[Status]="ปกติ")*(dProduct[Factory]<>"00-FRK")=1,ROW(dProduct[NameTH])-ROW(dProduct[[#Headers],[NameTH]]),""),ROW()-ROW($U$5)))) ->  | V80: =IF(ROW()-ROW($U$5)>COUNTIFS(dProduct[Status],"ปกติ",dProduct[Factory],"<>"&"00-FRY"),"",INDEX(dProduct[NameTH],SMALL(IF((dProduct[Status]="ปกติ")*(dProduct[Factory]<>"00-FRY")=1,ROW(dProduct[NameTH])-ROW(dProduct[[#Headers],[NameTH]]),""),ROW()-ROW($U$5)))) -> 
T81: =IF(ROW()-ROW($V$5)>COUNTIF(dProduct[Status],"ปกติ"),"",INDEX(dProduct[NameTH],SMALL(IF(dProduct[Status]="ปกติ",ROW(dProduct[NameTH])-ROW(dProduct[[#Headers],[NameTH]]),""),ROW()-ROW($T$5)))) ->  | U81: =IF(ROW()-ROW($U$5)>COUNTIFS(dProduct[Status],"ปกติ",dProduct[Factory],"<>"&"00-FRK"),"",INDEX(dProduct[NameTH],SMALL(IF((dProduct[Status]="ปกติ")*(dProduct[Factory]<>"00-FRK")=1,ROW(dProduct[NameTH])-ROW(dProduct[[#Headers],[NameTH]]),""),ROW()-ROW($U$5)))) ->  | V81: =IF(ROW()-ROW($U$5)>COUNTIFS(dProduct[Status],"ปกติ",dProduct[Factory],"<>"&"00-FRY"),"",INDEX(dProduct[NameTH],SMALL(IF((dProduct[Status]="ปกติ")*(dProduct[Factory]<>"00-FRY")=1,ROW(dProduct[NameTH])-ROW(dProduct[[#Headers],[NameTH]]),""),ROW()-ROW($U$5)))) -> 
T82: =IF(ROW()-ROW($V$5)>COUNTIF(dProduct[Status],"ปกติ"),"",INDEX(dProduct[NameTH],SMALL(IF(dProduct[Status]="ปกติ",ROW(dProduct[NameTH])-ROW(dProduct[[#Headers],[NameTH]]),""),ROW()-ROW($T$5)))) ->  | U82: =IF(ROW()-ROW($U$5)>COUNTIFS(dProduct[Status],"ปกติ",dProduct[Factory],"<>"&"00-FRK"),"",INDEX(dProduct[NameTH],SMALL(IF((dProduct[Status]="ปกติ")*(dProduct[Factory]<>"00-FRK")=1,ROW(dProduct[NameTH])-ROW(dProduct[[#Headers],[NameTH]]),""),ROW()-ROW($U$5)))) ->  | V82: =IF(ROW()-ROW($U$5)>COUNTIFS(dProduct[Status],"ปกติ",dProduct[Factory],"<>"&"00-FRY"),"",INDEX(dProduct[NameTH],SMALL(IF((dProduct[Status]="ปกติ")*(dProduct[Factory]<>"00-FRY")=1,ROW(dProduct[NameTH])-ROW(dProduct[[#Headers],[NameTH]]),""),ROW()-ROW($U$5)))) -> 
T83: =IF(ROW()-ROW($V$5)>COUNTIF(dProduct[Status],"ปกติ"),"",INDEX(dProduct[NameTH],SMALL(IF(dProduct[Status]="ปกติ",ROW(dProduct[NameTH])-ROW(dProduct[[#Headers],[NameTH]]),""),ROW()-ROW($T$5)))) ->  | U83: =IF(ROW()-ROW($U$5)>COUNTIFS(dProduct[Status],"ปกติ",dProduct[Factory],"<>"&"00-FRK"),"",INDEX(dProduct[NameTH],SMALL(IF((dProduct[Status]="ปกติ")*(dProduct[Factory]<>"00-FRK")=1,ROW(dProduct[NameTH])-ROW(dProduct[[#Headers],[NameTH]]),""),ROW()-ROW($U$5)))) ->  | V83: =IF(ROW()-ROW($U$5)>COUNTIFS(dProduct[Status],"ปกติ",dProduct[Factory],"<>"&"00-FRY"),"",INDEX(dProduct[NameTH],SMALL(IF((dProduct[Status]="ปกติ")*(dProduct[Factory]<>"00-FRY")=1,ROW(dProduct[NameTH])-ROW(dProduct[[#Headers],[NameTH]]),""),ROW()-ROW($U$5)))) -> 
T84: =IF(ROW()-ROW($V$5)>COUNTIF(dProduct[Status],"ปกติ"),"",INDEX(dProduct[NameTH],SMALL(IF(dProduct[Status]="ปกติ",ROW(dProduct[NameTH])-ROW(dProduct[[#Headers],[NameTH]]),""),ROW()-ROW($T$5)))) ->  | U84: =IF(ROW()-ROW($U$5)>COUNTIFS(dProduct[Status],"ปกติ",dProduct[Factory],"<>"&"00-FRK"),"",INDEX(dProduct[NameTH],SMALL(IF((dProduct[Status]="ปกติ")*(dProduct[Factory]<>"00-FRK")=1,ROW(dProduct[NameTH])-ROW(dProduct[[#Headers],[NameTH]]),""),ROW()-ROW($U$5)))) ->  | V84: =IF(ROW()-ROW($U$5)>COUNTIFS(dProduct[Status],"ปกติ",dProduct[Factory],"<>"&"00-FRY"),"",INDEX(dProduct[NameTH],SMALL(IF((dProduct[Status]="ปกติ")*(dProduct[Factory]<>"00-FRY")=1,ROW(dProduct[NameTH])-ROW(dProduct[[#Headers],[NameTH]]),""),ROW()-ROW($U$5)))) -> 
T85: =IF(ROW()-ROW($V$5)>COUNTIF(dProduct[Status],"ปกติ"),"",INDEX(dProduct[NameTH],SMALL(IF(dProduct[Status]="ปกติ",ROW(dProduct[NameTH])-ROW(dProduct[[#Headers],[NameTH]]),""),ROW()-ROW($T$5)))) ->  | U85: =IF(ROW()-ROW($U$5)>COUNTIFS(dProduct[Status],"ปกติ",dProduct[Factory],"<>"&"00-FRK"),"",INDEX(dProduct[NameTH],SMALL(IF((dProduct[Status]="ปกติ")*(dProduct[Factory]<>"00-FRK")=1,ROW(dProduct[NameTH])-ROW(dProduct[[#Headers],[NameTH]]),""),ROW()-ROW($U$5)))) ->  | V85: =IF(ROW()-ROW($U$5)>COUNTIFS(dProduct[Status],"ปกติ",dProduct[Factory],"<>"&"00-FRY"),"",INDEX(dProduct[NameTH],SMALL(IF((dProduct[Status]="ปกติ")*(dProduct[Factory]<>"00-FRY")=1,ROW(dProduct[NameTH])-ROW(dProduct[[#Headers],[NameTH]]),""),ROW()-ROW($U$5)))) -> 
T86: =IF(ROW()-ROW($V$5)>COUNTIF(dProduct[Status],"ปกติ"),"",INDEX(dProduct[NameTH],SMALL(IF(dProduct[Status]="ปกติ",ROW(dProduct[NameTH])-ROW(dProduct[[#Headers],[NameTH]]),""),ROW()-ROW($T$5)))) ->  | U86: =IF(ROW()-ROW($U$5)>COUNTIFS(dProduct[Status],"ปกติ",dProduct[Factory],"<>"&"00-FRK"),"",INDEX(dProduct[NameTH],SMALL(IF((dProduct[Status]="ปกติ")*(dProduct[Factory]<>"00-FRK")=1,ROW(dProduct[NameTH])-ROW(dProduct[[#Headers],[NameTH]]),""),ROW()-ROW($U$5)))) ->  | V86: =IF(ROW()-ROW($U$5)>COUNTIFS(dProduct[Status],"ปกติ",dProduct[Factory],"<>"&"00-FRY"),"",INDEX(dProduct[NameTH],SMALL(IF((dProduct[Status]="ปกติ")*(dProduct[Factory]<>"00-FRY")=1,ROW(dProduct[NameTH])-ROW(dProduct[[#Headers],[NameTH]]),""),ROW()-ROW($U$5)))) -> 
T87: =IF(ROW()-ROW($V$5)>COUNTIF(dProduct[Status],"ปกติ"),"",INDEX(dProduct[NameTH],SMALL(IF(dProduct[Status]="ปกติ",ROW(dProduct[NameTH])-ROW(dProduct[[#Headers],[NameTH]]),""),ROW()-ROW($T$5)))) ->  | U87: =IF(ROW()-ROW($U$5)>COUNTIFS(dProduct[Status],"ปกติ",dProduct[Factory],"<>"&"00-FRK"),"",INDEX(dProduct[NameTH],SMALL(IF((dProduct[Status]="ปกติ")*(dProduct[Factory]<>"00-FRK")=1,ROW(dProduct[NameTH])-ROW(dProduct[[#Headers],[NameTH]]),""),ROW()-ROW($U$5)))) ->  | V87: =IF(ROW()-ROW($U$5)>COUNTIFS(dProduct[Status],"ปกติ",dProduct[Factory],"<>"&"00-FRY"),"",INDEX(dProduct[NameTH],SMALL(IF((dProduct[Status]="ปกติ")*(dProduct[Factory]<>"00-FRY")=1,ROW(dProduct[NameTH])-ROW(dProduct[[#Headers],[NameTH]]),""),ROW()-ROW($U$5)))) -> 
T88: =IF(ROW()-ROW($V$5)>COUNTIF(dProduct[Status],"ปกติ"),"",INDEX(dProduct[NameTH],SMALL(IF(dProduct[Status]="ปกติ",ROW(dProduct[NameTH])-ROW(dProduct[[#Headers],[NameTH]]),""),ROW()-ROW($T$5)))) ->  | U88: =IF(ROW()-ROW($U$5)>COUNTIFS(dProduct[Status],"ปกติ",dProduct[Factory],"<>"&"00-FRK"),"",INDEX(dProduct[NameTH],SMALL(IF((dProduct[Status]="ปกติ")*(dProduct[Factory]<>"00-FRK")=1,ROW(dProduct[NameTH])-ROW(dProduct[[#Headers],[NameTH]]),""),ROW()-ROW($U$5)))) ->  | V88: =IF(ROW()-ROW($U$5)>COUNTIFS(dProduct[Status],"ปกติ",dProduct[Factory],"<>"&"00-FRY"),"",INDEX(dProduct[NameTH],SMALL(IF((dProduct[Status]="ปกติ")*(dProduct[Factory]<>"00-FRY")=1,ROW(dProduct[NameTH])-ROW(dProduct[[#Headers],[NameTH]]),""),ROW()-ROW($U$5)))) -> 
T89: =IF(ROW()-ROW($V$5)>COUNTIF(dProduct[Status],"ปกติ"),"",INDEX(dProduct[NameTH],SMALL(IF(dProduct[Status]="ปกติ",ROW(dProduct[NameTH])-ROW(dProduct[[#Headers],[NameTH]]),""),ROW()-ROW($T$5)))) ->  | U89: =IF(ROW()-ROW($U$5)>COUNTIFS(dProduct[Status],"ปกติ",dProduct[Factory],"<>"&"00-FRK"),"",INDEX(dProduct[NameTH],SMALL(IF((dProduct[Status]="ปกติ")*(dProduct[Factory]<>"00-FRK")=1,ROW(dProduct[NameTH])-ROW(dProduct[[#Headers],[NameTH]]),""),ROW()-ROW($U$5)))) ->  | V89: =IF(ROW()-ROW($U$5)>COUNTIFS(dProduct[Status],"ปกติ",dProduct[Factory],"<>"&"00-FRY"),"",INDEX(dProduct[NameTH],SMALL(IF((dProduct[Status]="ปกติ")*(dProduct[Factory]<>"00-FRY")=1,ROW(dProduct[NameTH])-ROW(dProduct[[#Headers],[NameTH]]),""),ROW()-ROW($U$5)))) -> 
T90: =IF(ROW()-ROW($V$5)>COUNTIF(dProduct[Status],"ปกติ"),"",INDEX(dProduct[NameTH],SMALL(IF(dProduct[Status]="ปกติ",ROW(dProduct[NameTH])-ROW(dProduct[[#Headers],[NameTH]]),""),ROW()-ROW($T$5)))) ->  | U90: =IF(ROW()-ROW($U$5)>COUNTIFS(dProduct[Status],"ปกติ",dProduct[Factory],"<>"&"00-FRK"),"",INDEX(dProduct[NameTH],SMALL(IF((dProduct[Status]="ปกติ")*(dProduct[Factory]<>"00-FRK")=1,ROW(dProduct[NameTH])-ROW(dProduct[[#Headers],[NameTH]]),""),ROW()-ROW($U$5)))) ->  | V90: =IF(ROW()-ROW($U$5)>COUNTIFS(dProduct[Status],"ปกติ",dProduct[Factory],"<>"&"00-FRY"),"",INDEX(dProduct[NameTH],SMALL(IF((dProduct[Status]="ปกติ")*(dProduct[Factory]<>"00-FRY")=1,ROW(dProduct[NameTH])-ROW(dProduct[[#Headers],[NameTH]]),""),ROW()-ROW($U$5)))) -> 
T91: =IF(ROW()-ROW($V$5)>COUNTIF(dProduct[Status],"ปกติ"),"",INDEX(dProduct[NameTH],SMALL(IF(dProduct[Status]="ปกติ",ROW(dProduct[NameTH])-ROW(dProduct[[#Headers],[NameTH]]),""),ROW()-ROW($T$5)))) ->  | U91: =IF(ROW()-ROW($U$5)>COUNTIFS(dProduct[Status],"ปกติ",dProduct[Factory],"<>"&"00-FRK"),"",INDEX(dProduct[NameTH],SMALL(IF((dProduct[Status]="ปกติ")*(dProduct[Factory]<>"00-FRK")=1,ROW(dProduct[NameTH])-ROW(dProduct[[#Headers],[NameTH]]),""),ROW()-ROW($U$5)))) ->  | V91: =IF(ROW()-ROW($U$5)>COUNTIFS(dProduct[Status],"ปกติ",dProduct[Factory],"<>"&"00-FRY"),"",INDEX(dProduct[NameTH],SMALL(IF((dProduct[Status]="ปกติ")*(dProduct[Factory]<>"00-FRY")=1,ROW(dProduct[NameTH])-ROW(dProduct[[#Headers],[NameTH]]),""),ROW()-ROW($U$5)))) -> 
T92: =IF(ROW()-ROW($V$5)>COUNTIF(dProduct[Status],"ปกติ"),"",INDEX(dProduct[NameTH],SMALL(IF(dProduct[Status]="ปกติ",ROW(dProduct[NameTH])-ROW(dProduct[[#Headers],[NameTH]]),""),ROW()-ROW($T$5)))) ->  | U92: =IF(ROW()-ROW($U$5)>COUNTIFS(dProduct[Status],"ปกติ",dProduct[Factory],"<>"&"00-FRK"),"",INDEX(dProduct[NameTH],SMALL(IF((dProduct[Status]="ปกติ")*(dProduct[Factory]<>"00-FRK")=1,ROW(dProduct[NameTH])-ROW(dProduct[[#Headers],[NameTH]]),""),ROW()-ROW($U$5)))) ->  | V92: =IF(ROW()-ROW($U$5)>COUNTIFS(dProduct[Status],"ปกติ",dProduct[Factory],"<>"&"00-FRY"),"",INDEX(dProduct[NameTH],SMALL(IF((dProduct[Status]="ปกติ")*(dProduct[Factory]<>"00-FRY")=1,ROW(dProduct[NameTH])-ROW(dProduct[[#Headers],[NameTH]]),""),ROW()-ROW($U$5)))) -> 
T93: =IF(ROW()-ROW($V$5)>COUNTIF(dProduct[Status],"ปกติ"),"",INDEX(dProduct[NameTH],SMALL(IF(dProduct[Status]="ปกติ",ROW(dProduct[NameTH])-ROW(dProduct[[#Headers],[NameTH]]),""),ROW()-ROW($T$5)))) ->  | U93: =IF(ROW()-ROW($U$5)>COUNTIFS(dProduct[Status],"ปกติ",dProduct[Factory],"<>"&"00-FRK"),"",INDEX(dProduct[NameTH],SMALL(IF((dProduct[Status]="ปกติ")*(dProduct[Factory]<>"00-FRK")=1,ROW(dProduct[NameTH])-ROW(dProduct[[#Headers],[NameTH]]),""),ROW()-ROW($U$5)))) ->  | V93: =IF(ROW()-ROW($U$5)>COUNTIFS(dProduct[Status],"ปกติ",dProduct[Factory],"<>"&"00-FRY"),"",INDEX(dProduct[NameTH],SMALL(IF((dProduct[Status]="ปกติ")*(dProduct[Factory]<>"00-FRY")=1,ROW(dProduct[NameTH])-ROW(dProduct[[#Headers],[NameTH]]),""),ROW()-ROW($U$5)))) -> 
T94: =IF(ROW()-ROW($V$5)>COUNTIF(dProduct[Status],"ปกติ"),"",INDEX(dProduct[NameTH],SMALL(IF(dProduct[Status]="ปกติ",ROW(dProduct[NameTH])-ROW(dProduct[[#Headers],[NameTH]]),""),ROW()-ROW($T$5)))) ->  | U94: =IF(ROW()-ROW($U$5)>COUNTIFS(dProduct[Status],"ปกติ",dProduct[Factory],"<>"&"00-FRK"),"",INDEX(dProduct[NameTH],SMALL(IF((dProduct[Status]="ปกติ")*(dProduct[Factory]<>"00-FRK")=1,ROW(dProduct[NameTH])-ROW(dProduct[[#Headers],[NameTH]]),""),ROW()-ROW($U$5)))) ->  | V94: =IF(ROW()-ROW($U$5)>COUNTIFS(dProduct[Status],"ปกติ",dProduct[Factory],"<>"&"00-FRY"),"",INDEX(dProduct[NameTH],SMALL(IF((dProduct[Status]="ปกติ")*(dProduct[Factory]<>"00-FRY")=1,ROW(dProduct[NameTH])-ROW(dProduct[[#Headers],[NameTH]]),""),ROW()-ROW($U$5)))) -> 
T95: =IF(ROW()-ROW($V$5)>COUNTIF(dProduct[Status],"ปกติ"),"",INDEX(dProduct[NameTH],SMALL(IF(dProduct[Status]="ปกติ",ROW(dProduct[NameTH])-ROW(dProduct[[#Headers],[NameTH]]),""),ROW()-ROW($T$5)))) ->  | U95: =IF(ROW()-ROW($U$5)>COUNTIFS(dProduct[Status],"ปกติ",dProduct[Factory],"<>"&"00-FRK"),"",INDEX(dProduct[NameTH],SMALL(IF((dProduct[Status]="ปกติ")*(dProduct[Factory]<>"00-FRK")=1,ROW(dProduct[NameTH])-ROW(dProduct[[#Headers],[NameTH]]),""),ROW()-ROW($U$5)))) ->  | V95: =IF(ROW()-ROW($U$5)>COUNTIFS(dProduct[Status],"ปกติ",dProduct[Factory],"<>"&"00-FRY"),"",INDEX(dProduct[NameTH],SMALL(IF((dProduct[Status]="ปกติ")*(dProduct[Factory]<>"00-FRY")=1,ROW(dProduct[NameTH])-ROW(dProduct[[#Headers],[NameTH]]),""),ROW()-ROW($U$5)))) -> 
T96: =IF(ROW()-ROW($V$5)>COUNTIF(dProduct[Status],"ปกติ"),"",INDEX(dProduct[NameTH],SMALL(IF(dProduct[Status]="ปกติ",ROW(dProduct[NameTH])-ROW(dProduct[[#Headers],[NameTH]]),""),ROW()-ROW($T$5)))) ->  | U96: =IF(ROW()-ROW($U$5)>COUNTIFS(dProduct[Status],"ปกติ",dProduct[Factory],"<>"&"00-FRK"),"",INDEX(dProduct[NameTH],SMALL(IF((dProduct[Status]="ปกติ")*(dProduct[Factory]<>"00-FRK")=1,ROW(dProduct[NameTH])-ROW(dProduct[[#Headers],[NameTH]]),""),ROW()-ROW($U$5)))) ->  | V96: =IF(ROW()-ROW($U$5)>COUNTIFS(dProduct[Status],"ปกติ",dProduct[Factory],"<>"&"00-FRY"),"",INDEX(dProduct[NameTH],SMALL(IF((dProduct[Status]="ปกติ")*(dProduct[Factory]<>"00-FRY")=1,ROW(dProduct[NameTH])-ROW(dProduct[[#Headers],[NameTH]]),""),ROW()-ROW($U$5)))) -> 
T97: =IF(ROW()-ROW($V$5)>COUNTIF(dProduct[Status],"ปกติ"),"",INDEX(dProduct[NameTH],SMALL(IF(dProduct[Status]="ปกติ",ROW(dProduct[NameTH])-ROW(dProduct[[#Headers],[NameTH]]),""),ROW()-ROW($T$5)))) ->  | U97: =IF(ROW()-ROW($U$5)>COUNTIFS(dProduct[Status],"ปกติ",dProduct[Factory],"<>"&"00-FRK"),"",INDEX(dProduct[NameTH],SMALL(IF((dProduct[Status]="ปกติ")*(dProduct[Factory]<>"00-FRK")=1,ROW(dProduct[NameTH])-ROW(dProduct[[#Headers],[NameTH]]),""),ROW()-ROW($U$5)))) ->  | V97: =IF(ROW()-ROW($U$5)>COUNTIFS(dProduct[Status],"ปกติ",dProduct[Factory],"<>"&"00-FRY"),"",INDEX(dProduct[NameTH],SMALL(IF((dProduct[Status]="ปกติ")*(dProduct[Factory]<>"00-FRY")=1,ROW(dProduct[NameTH])-ROW(dProduct[[#Headers],[NameTH]]),""),ROW()-ROW($U$5)))) -> 
T98: =IF(ROW()-ROW($V$5)>COUNTIF(dProduct[Status],"ปกติ"),"",INDEX(dProduct[NameTH],SMALL(IF(dProduct[Status]="ปกติ",ROW(dProduct[NameTH])-ROW(dProduct[[#Headers],[NameTH]]),""),ROW()-ROW($T$5)))) ->  | U98: =IF(ROW()-ROW($U$5)>COUNTIFS(dProduct[Status],"ปกติ",dProduct[Factory],"<>"&"00-FRK"),"",INDEX(dProduct[NameTH],SMALL(IF((dProduct[Status]="ปกติ")*(dProduct[Factory]<>"00-FRK")=1,ROW(dProduct[NameTH])-ROW(dProduct[[#Headers],[NameTH]]),""),ROW()-ROW($U$5)))) ->  | V98: =IF(ROW()-ROW($U$5)>COUNTIFS(dProduct[Status],"ปกติ",dProduct[Factory],"<>"&"00-FRY"),"",INDEX(dProduct[NameTH],SMALL(IF((dProduct[Status]="ปกติ")*(dProduct[Factory]<>"00-FRY")=1,ROW(dProduct[NameTH])-ROW(dProduct[[#Headers],[NameTH]]),""),ROW()-ROW($U$5)))) -> 
T99: =IF(ROW()-ROW($V$5)>COUNTIF(dProduct[Status],"ปกติ"),"",INDEX(dProduct[NameTH],SMALL(IF(dProduct[Status]="ปกติ",ROW(dProduct[NameTH])-ROW(dProduct[[#Headers],[NameTH]]),""),ROW()-ROW($T$5)))) ->  | U99: =IF(ROW()-ROW($U$5)>COUNTIFS(dProduct[Status],"ปกติ",dProduct[Factory],"<>"&"00-FRK"),"",INDEX(dProduct[NameTH],SMALL(IF((dProduct[Status]="ปกติ")*(dProduct[Factory]<>"00-FRK")=1,ROW(dProduct[NameTH])-ROW(dProduct[[#Headers],[NameTH]]),""),ROW()-ROW($U$5)))) ->  | V99: =IF(ROW()-ROW($U$5)>COUNTIFS(dProduct[Status],"ปกติ",dProduct[Factory],"<>"&"00-FRY"),"",INDEX(dProduct[NameTH],SMALL(IF((dProduct[Status]="ปกติ")*(dProduct[Factory]<>"00-FRY")=1,ROW(dProduct[NameTH])-ROW(dProduct[[#Headers],[NameTH]]),""),ROW()-ROW($U$5)))) -> 
T100: =IF(ROW()-ROW($V$5)>COUNTIF(dProduct[Status],"ปกติ"),"",INDEX(dProduct[NameTH],SMALL(IF(dProduct[Status]="ปกติ",ROW(dProduct[NameTH])-ROW(dProduct[[#Headers],[NameTH]]),""),ROW()-ROW($T$5)))) ->  | U100: =IF(ROW()-ROW($U$5)>COUNTIFS(dProduct[Status],"ปกติ",dProduct[Factory],"<>"&"00-FRK"),"",INDEX(dProduct[NameTH],SMALL(IF((dProduct[Status]="ปกติ")*(dProduct[Factory]<>"00-FRK")=1,ROW(dProduct[NameTH])-ROW(dProduct[[#Headers],[NameTH]]),""),ROW()-ROW($U$5)))) ->  | V100: =IF(ROW()-ROW($U$5)>COUNTIFS(dProduct[Status],"ปกติ",dProduct[Factory],"<>"&"00-FRY"),"",INDEX(dProduct[NameTH],SMALL(IF((dProduct[Status]="ปกติ")*(dProduct[Factory]<>"00-FRY")=1,ROW(dProduct[NameTH])-ROW(dProduct[[#Headers],[NameTH]]),""),ROW()-ROW($U$5)))) -> 
T101: =IF(ROW()-ROW($V$5)>COUNTIF(dProduct[Status],"ปกติ"),"",INDEX(dProduct[NameTH],SMALL(IF(dProduct[Status]="ปกติ",ROW(dProduct[NameTH])-ROW(dProduct[[#Headers],[NameTH]]),""),ROW()-ROW($T$5)))) ->  | U101: =IF(ROW()-ROW($U$5)>COUNTIFS(dProduct[Status],"ปกติ",dProduct[Factory],"<>"&"00-FRK"),"",INDEX(dProduct[NameTH],SMALL(IF((dProduct[Status]="ปกติ")*(dProduct[Factory]<>"00-FRK")=1,ROW(dProduct[NameTH])-ROW(dProduct[[#Headers],[NameTH]]),""),ROW()-ROW($U$5)))) ->  | V101: =IF(ROW()-ROW($U$5)>COUNTIFS(dProduct[Status],"ปกติ",dProduct[Factory],"<>"&"00-FRY"),"",INDEX(dProduct[NameTH],SMALL(IF((dProduct[Status]="ปกติ")*(dProduct[Factory]<>"00-FRY")=1,ROW(dProduct[NameTH])-ROW(dProduct[[#Headers],[NameTH]]),""),ROW()-ROW($U$5)))) -> 

Sheet Stocks Inventory (hidden)
B2: CHECK AVAILABILITY | E2: CHOOSE PRODUCT | J2: TODAY
E4: 03-ขนมปังไส้ถั่วแดง | J4: =UPPER(TEXT(K4,"MMM")) -> JUL | K4: =TODAY() -> 2022-07-14
D5: สต๊อคคงเหลือ (CURRENT INVENTORY) | E5: =INDEX(Stock[Stocks On Hand],MATCH($E$4,Stock[Products Name],0)) ->  | H5: =INDEX(Stock[Unit],MATCH($E$4,Stock[Products Name],0)) -> 
D6: สต๊อคขั้นต่ำ (RE-ORDER POINT) | E6: =INDEX(Stock[Re-Order Point],MATCH($E$4,Stock[Products Name],0)) ->  | H6: =INDEX(Stock[Unit],MATCH($E$4,Stock[Products Name],0)) -> 
D7: ยอดรับเข้า (RECEIVED QUANTITY) | E7: =INDEX(Stock[Received],MATCH($E$4,Stock[Products Name],0)) ->  | H7: =INDEX(Stock[Unit],MATCH($E$4,Stock[Products Name],0)) -> 
D8: ยอดเบิกออก (DELIVERY QUANTITY) | E8: =INDEX(Stock[Deliver],MATCH($E$4,Stock[Products Name],0)) ->  | H8: =INDEX(Stock[Unit],MATCH($E$4,Stock[Products Name],0)) -> 
I11: SETTING | J11: PRODUCTS | K11: TRANSACTION | L11: ORDER | M11: REPORT | N11: =UPPER("Deliver List") -> DELIVER LIST
C12: STOCKS INVENTORY SUMMARY
C13: รหัส | D13: รายการสินค้า | E13: สต๊อคเริ่มต้น | F13: หน่วยนับ | G13: รับเข้า | H13: เบิกออก | I13: สต๊อคขั้นต่ำ(Unit) | J13: สต๊อคในคลัง(Unit) | K13: ราคา/ชิ้น | L13: มูลค่า | M13: ต้องสั่งเพิ่ม | N13: หมายเหตุ
B14: Index | C14: Product Code | D14: Products Name | E14: Opening Stock | F14: Unit | G14: Received | H14: Deliver | I14: Re-Order Point | J14: Stocks On Hand | K14: Price | L14: Total | M14: To Oder | N14: Remarks
B15: =IFERROR(IF(Stock[[#This Row],[Product Code]]="","",MATCH(C15,dProduct[PD_Code],0)),"") -> 1 | C15: =IF(ROW()-ROW(Stock[[#Headers],[Product Code]])>ROWS(dProduct[PD_Code]),"",INDEX(dProduct[PD_Code],ROW()-ROW(Stock[[#Headers],[Product Code]]))) -> 9913 | D15: =IFERROR(INDEX(dProduct[NameTH],Stock[[#This Row],[Index]],0),"") -> 01-ขนมปังหมูหยองน้ำสลัด | E15: 1500 | F15: =IF(Stock[[#This Row],[Index]]="","",INDEX(dProduct[Unit],Stock[[#This Row],[Index]])) -> ชิ้น | G15: =SUMPRODUCT((Transaction[Type]="รับ")*(Transaction[Products]=Stock[[#This Row],[Products Name]])*Transaction[Qty In-Out]) -> 0 | H15: =SUMPRODUCT((Transaction[Type]="เบิก")*(Transaction[Products]=Stock[[#This Row],[Products Name]])*Transaction[Qty In-Out]) -> 0 | I15: 100 | J15: =Stock[[#This Row],[Opening Stock]]+Stock[[#This Row],[Received]]-Stock[[#This Row],[Deliver]] -> 1500 | K15: =IFERROR(INDEX(dProduct[PriceCase],Stock[[#This Row],[Index]])*(1-INDEX(dProduct[%Discount],Stock[[#This Row],[Index]])),"") -> 8.25 | L15: =IFERROR(Stock[[#This Row],[Stocks On Hand]]*Stock[[#This Row],[Price]],"") -> 12375 | M15: =IF(Stock[[#This Row],[Index]]="","",IF(Stock[[#This Row],[Stocks On Hand]]<Stock[[#This Row],[Re-Order Point]],"Yes","No")) -> No
B16: =IFERROR(IF(Stock[[#This Row],[Product Code]]="","",MATCH(C16,dProduct[PD_Code],0)),"") -> 2 | C16: =IF(ROW()-ROW(Stock[[#Headers],[Product Code]])>ROWS(dProduct[PD_Code]),"",INDEX(dProduct[PD_Code],ROW()-ROW(Stock[[#Headers],[Product Code]]))) -> 99141 | D16: =IFERROR(INDEX(dProduct[NameTH],Stock[[#This Row],[Index]],0),"") -> 02-ขนมปังหมูหยองน้ำพริกเผา | E16: 1500 | F16: =IF(Stock[[#This Row],[Index]]="","",INDEX(dProduct[Unit],Stock[[#This Row],[Index]])) -> ชิ้น | G16: =SUMPRODUCT((Transaction[Type]="รับ")*(Transaction[Products]=Stock[[#This Row],[Products Name]])*Transaction[Qty In-Out]) -> 0 | H16: =SUMPRODUCT((Transaction[Type]="เบิก")*(Transaction[Products]=Stock[[#This Row],[Products Name]])*Transaction[Qty In-Out]) -> 0 | I16: 100 | J16: =Stock[[#This Row],[Opening Stock]]+Stock[[#This Row],[Received]]-Stock[[#This Row],[Deliver]] -> 1500 | K16: =IFERROR(INDEX(dProduct[PriceCase],Stock[[#This Row],[Index]])*(1-INDEX(dProduct[%Discount],Stock[[#This Row],[Index]])),"") -> 8.25 | L16: =IFERROR(Stock[[#This Row],[Stocks On Hand]]*Stock[[#This Row],[Price]],"") -> 12375 | M16: =IF(Stock[[#This Row],[Index]]="","",IF(Stock[[#This Row],[Stocks On Hand]]<Stock[[#This Row],[Re-Order Point]],"Yes","No")) -> No
B17: =IFERROR(IF(Stock[[#This Row],[Product Code]]="","",MATCH(C17,dProduct[PD_Code],0)),"") -> 3 | C17: =IF(ROW()-ROW(Stock[[#Headers],[Product Code]])>ROWS(dProduct[PD_Code]),"",INDEX(dProduct[PD_Code],ROW()-ROW(Stock[[#Headers],[Product Code]]))) -> 99126 | D17: =IFERROR(INDEX(dProduct[NameTH],Stock[[#This Row],[Index]],0),"") -> 03-ขนมปังไก่หยองน้ำสลัด | E17: 1500 | F17: =IF(Stock[[#This Row],[Index]]="","",INDEX(dProduct[Unit],Stock[[#This Row],[Index]])) -> ชิ้น | G17: =SUMPRODUCT((Transaction[Type]="รับ")*(Transaction[Products]=Stock[[#This Row],[Products Name]])*Transaction[Qty In-Out]) -> 0 | H17: =SUMPRODUCT((Transaction[Type]="เบิก")*(Transaction[Products]=Stock[[#This Row],[Products Name]])*Transaction[Qty In-Out]) -> 0 | I17: 100 | J17: =Stock[[#This Row],[Opening Stock]]+Stock[[#This Row],[Received]]-Stock[[#This Row],[Deliver]] -> 1500 | K17: =IFERROR(INDEX(dProduct[PriceCase],Stock[[#This Row],[Index]])*(1-INDEX(dProduct[%Discount],Stock[[#This Row],[Index]])),"") -> 8.25 | L17: =IFERROR(Stock[[#This Row],[Stocks On Hand]]*Stock[[#This Row],[Price]],"") -> 12375 | M17: =IF(Stock[[#This Row],[Index]]="","",IF(Stock[[#This Row],[Stocks On Hand]]<Stock[[#This Row],[Re-Order Point]],"Yes","No")) -> No
B18: =IFERROR(IF(Stock[[#This Row],[Product Code]]="","",MATCH(C18,dProduct[PD_Code],0)),"") -> 4 | C18: =IF(ROW()-ROW(Stock[[#Headers],[Product Code]])>ROWS(dProduct[PD_Code]),"",INDEX(dProduct[PD_Code],ROW()-ROW(Stock[[#Headers],[Product Code]]))) -> 99124 | D18: =IFERROR(INDEX(dProduct[NameTH],Stock[[#This Row],[Index]],0),"") -> 04-ขนมปังไส้ครีมสลัด | E18: 1500 | F18: =IF(Stock[[#This Row],[Index]]="","",INDEX(dProduct[Unit],Stock[[#This Row],[Index]])) -> ชิ้น | G18: =SUMPRODUCT((Transaction[Type]="รับ")*(Transaction[Products]=Stock[[#This Row],[Products Name]])*Transaction[Qty In-Out]) -> 0 | H18: =SUMPRODUCT((Transaction[Type]="เบิก")*(Transaction[Products]=Stock[[#This Row],[Products Name]])*Transaction[Qty In-Out]) -> 0 | I18: 100 | J18: =Stock[[#This Row],[Opening Stock]]+Stock[[#This Row],[Received]]-Stock[[#This Row],[Deliver]] -> 1500 | K18: =IFERROR(INDEX(dProduct[PriceCase],Stock[[#This Row],[Index]])*(1-INDEX(dProduct[%Discount],Stock[[#This Row],[Index]])),"") -> 6.6 | L18: =IFERROR(Stock[[#This Row],[Stocks On Hand]]*Stock[[#This Row],[Price]],"") -> 9900 | M18: =IF(Stock[[#This Row],[Index]]="","",IF(Stock[[#This Row],[Stocks On Hand]]<Stock[[#This Row],[Re-Order Point]],"Yes","No")) -> No
B19: =IFERROR(IF(Stock[[#This Row],[Product Code]]="","",MATCH(C19,dProduct[PD_Code],0)),"") -> 5 | C19: =IF(ROW()-ROW(Stock[[#Headers],[Product Code]])>ROWS(dProduct[PD_Code]),"",INDEX(dProduct[PD_Code],ROW()-ROW(Stock[[#Headers],[Product Code]]))) -> 99142 | D19: =IFERROR(INDEX(dProduct[NameTH],Stock[[#This Row],[Index]],0),"") -> 05-ขนมปังเนยสด | E19: 1500 | F19: =IF(Stock[[#This Row],[Index]]="","",INDEX(dProduct[Unit],Stock[[#This Row],[Index]])) -> ชิ้น | G19: =SUMPRODUCT((Transaction[Type]="รับ")*(Transaction[Products]=Stock[[#This Row],[Products Name]])*Transaction[Qty In-Out]) -> 0 | H19: =SUMPRODUCT((Transaction[Type]="เบิก")*(Transaction[Products]=Stock[[#This Row],[Products Name]])*Transaction[Qty In-Out]) -> 0 | I19: 100 | J19: =Stock[[#This Row],[Opening Stock]]+Stock[[#This Row],[Received]]-Stock[[#This Row],[Deliver]] -> 1500 | K19: =IFERROR(INDEX(dProduct[PriceCase],Stock[[#This Row],[Index]])*(1-INDEX(dProduct[%Discount],Stock[[#This Row],[Index]])),"") -> 6.6 | L19: =IFERROR(Stock[[#This Row],[Stocks On Hand]]*Stock[[#This Row],[Price]],"") -> 9900 | M19: =IF(Stock[[#This Row],[Index]]="","",IF(Stock[[#This Row],[Stocks On Hand]]<Stock[[#This Row],[Re-Order Point]],"Yes","No")) -> No
B20: =IFERROR(IF(Stock[[#This Row],[Product Code]]="","",MATCH(C20,dProduct[PD_Code],0)),"") -> 6 | C20: =IF(ROW()-ROW(Stock[[#Headers],[Product Code]])>ROWS(dProduct[PD_Code]),"",INDEX(dProduct[PD_Code],ROW()-ROW(Stock[[#Headers],[Product Code]]))) -> 9903 | D20: =IFERROR(INDEX(dProduct[NameTH],Stock[[#This Row],[Index]],0),"") -> 06-ขนมปังไส้สังขยาเล็ก | E20: 1500 | F20: =IF(Stock[[#This Row],[Index]]="","",INDEX(dProduct[Unit],Stock[[#This Row],[Index]])) -> ชิ้น | G20: =SUMPRODUCT((Transaction[Type]="รับ")*(Transaction[Products]=Stock[[#This Row],[Products Name]])*Transaction[Qty In-Out]) -> 0 | H20: =SUMPRODUCT((Transaction[Type]="เบิก")*(Transaction[Products]=Stock[[#This Row],[Products Name]])*Transaction[Qty In-Out]) -> 0 | I20: 100 | J20: =Stock[[#This Row],[Opening Stock]]+Stock[[#This Row],[Received]]-Stock[[#This Row],[Deliver]] -> 1500 | K20: =IFERROR(INDEX(dProduct[PriceCase],Stock[[#This Row],[Index]])*(1-INDEX(dProduct[%Discount],Stock[[#This Row],[Index]])),"") -> 5.5 | L20: =IFERROR(Stock[[#This Row],[Stocks On Hand]]*Stock[[#This Row],[Price]],"") -> 8250 | M20: =IF(Stock[[#This Row],[Index]]="","",IF(Stock[[#This Row],[Stocks On Hand]]<Stock[[#This Row],[Re-Order Point]],"Yes","No")) -> No
B21: =IFERROR(IF(Stock[[#This Row],[Product Code]]="","",MATCH(C21,dProduct[PD_Code],0)),"") -> 7 | C21: =IF(ROW()-ROW(Stock[[#Headers],[Product Code]])>ROWS(dProduct[PD_Code]),"",INDEX(dProduct[PD_Code],ROW()-ROW(Stock[[#Headers],[Product Code]]))) -> 9902 | D21: =IFERROR(INDEX(dProduct[NameTH],Stock[[#This Row],[Index]],0),"") -> 07-ขนมปังไส้เผือก | E21: 1500 | F21: =IF(Stock[[#This Row],[Index]]="","",INDEX(dProduct[Unit],Stock[[#This Row],[Index]])) -> ชิ้น | G21: =SUMPRODUCT((Transaction[Type]="รับ")*(Transaction[Products]=Stock[[#This Row],[Products Name]])*Transaction[Qty In-Out]) -> 0 | H21: =SUMPRODUCT((Transaction[Type]="เบิก")*(Transaction[Products]=Stock[[#This Row],[Products Name]])*Transaction[Qty In-Out]) -> 0 | I21: 100 | J21: =Stock[[#This Row],[Opening Stock]]+Stock[[#This Row],[Received]]-Stock[[#This Row],[Deliver]] -> 1500 | K21: =IFERROR(INDEX(dProduct[PriceCase],Stock[[#This Row],[Index]])*(1-INDEX(dProduct[%Discount],Stock[[#This Row],[Index]])),"") -> 5.5 | L21: =IFERROR(Stock[[#This Row],[Stocks On Hand]]*Stock[[#This Row],[Price]],"") -> 8250 | M21: =IF(Stock[[#This Row],[Index]]="","",IF(Stock[[#This Row],[Stocks On Hand]]<Stock[[#This Row],[Re-Order Point]],"Yes","No")) -> No
B22: =IFERROR(IF(Stock[[#This Row],[Product Code]]="","",MATCH(C22,dProduct[PD_Code],0)),"") -> 8 | C22: =IF(ROW()-ROW(Stock[[#Headers],[Product Code]])>ROWS(dProduct[PD_Code]),"",INDEX(dProduct[PD_Code],ROW()-ROW(Stock[[#Headers],[Product Code]]))) -> 9906 | D22: =IFERROR(INDEX(dProduct[NameTH],Stock[[#This Row],[Index]],0),"") -> 08-ขนมปังไส้ถั่วแดง | E22: 1500 | F22: =IF(Stock[[#This Row],[Index]]="","",INDEX(dProduct[Unit],Stock[[#This Row],[Index]])) -> ชิ้น | G22: =SUMPRODUCT((Transaction[Type]="รับ")*(Transaction[Products]=Stock[[#This Row],[Products Name]])*Transaction[Qty In-Out]) -> 0 | H22: =SUMPRODUCT((Transaction[Type]="เบิก")*(Transaction[Products]=Stock[[#This Row],[Products Name]])*Transaction[Qty In-Out]) -> 0 | I22: 100 | J22: =Stock[[#This Row],[Opening Stock]]+Stock[[#This Row],[Received]]-Stock[[#This Row],[Deliver]] -> 1500 | K22: =IFERROR(INDEX(dProduct[PriceCase],Stock[[#This Row],[Index]])*(1-INDEX(dProduct[%Discount],Stock[[#This Row],[Index]])),"") -> 5.5 | L22: =IFERROR(Stock[[#This Row],[Stocks On Hand]]*Stock[[#This Row],[Price]],"") -> 8250 | M22: =IF(Stock[[#This Row],[Index]]="","",IF(Stock[[#This Row],[Stocks On Hand]]<Stock[[#This Row],[Re-Order Point]],"Yes","No")) -> No
B23: =IFERROR(IF(Stock[[#This Row],[Product Code]]="","",MATCH(C23,dProduct[PD_Code],0)),"") -> 9 | C23: =IF(ROW()-ROW(Stock[[#Headers],[Product Code]])>ROWS(dProduct[PD_Code]),"",INDEX(dProduct[PD_Code],ROW()-ROW(Stock[[#Headers],[Product Code]]))) -> 99171 | D23: =IFERROR(INDEX(dProduct[NameTH],Stock[[#This Row],[Index]],0),"") -> 09-ขนมปังไส้ถั่วดำ | E23: 1500 | F23: =IF(Stock[[#This Row],[Index]]="","",INDEX(dProduct[Unit],Stock[[#This Row],[Index]])) -> ชิ้น | G23: =SUMPRODUCT((Transaction[Type]="รับ")*(Transaction[Products]=Stock[[#This Row],[Products Name]])*Transaction[Qty In-Out]) -> 0 | H23: =SUMPRODUCT((Transaction[Type]="เบิก")*(Transaction[Products]=Stock[[#This Row],[Products Name]])*Transaction[Qty In-Out]) -> 0 | I23: 100 | J23: =Stock[[#This Row],[Opening Stock]]+Stock[[#This Row],[Received]]-Stock[[#This Row],[Deliver]] -> 1500 | K23: =IFERROR(INDEX(dProduct[PriceCase],Stock[[#This Row],[Index]])*(1-INDEX(dProduct[%Discount],Stock[[#This Row],[Index]])),"") -> 5.5 | L23: =IFERROR(Stock[[#This Row],[Stocks On Hand]]*Stock[[#This Row],[Price]],"") -> 8250 | M23: =IF(Stock[[#This Row],[Index]]="","",IF(Stock[[#This Row],[Stocks On Hand]]<Stock[[#This Row],[Re-Order Point]],"Yes","No")) -> No
B24: =IFERROR(IF(Stock[[#This Row],[Product Code]]="","",MATCH(C24,dProduct[PD_Code],0)),"") -> 10 | C24: =IF(ROW()-ROW(Stock[[#Headers],[Product Code]])>ROWS(dProduct[PD_Code]),"",INDEX(dProduct[PD_Code],ROW()-ROW(Stock[[#Headers],[Product Code]]))) -> 99161 | D24: =IFERROR(INDEX(dProduct[NameTH],Stock[[#This Row],[Index]],0),"") -> 10-ขนมปังไส้มันม่วง | E24: 1500 | F24: =IF(Stock[[#This Row],[Index]]="","",INDEX(dProduct[Unit],Stock[[#This Row],[Index]])) -> ชิ้น | G24: =SUMPRODUCT((Transaction[Type]="รับ")*(Transaction[Products]=Stock[[#This Row],[Products Name]])*Transaction[Qty In-Out]) -> 0 | H24: =SUMPRODUCT((Transaction[Type]="เบิก")*(Transaction[Products]=Stock[[#This Row],[Products Name]])*Transaction[Qty In-Out]) -> 0 | I24: 100 | J24: =Stock[[#This Row],[Opening Stock]]+Stock[[#This Row],[Received]]-Stock[[#This Row],[Deliver]] -> 1500 | K24: =IFERROR(INDEX(dProduct[PriceCase],Stock[[#This Row],[Index]])*(1-INDEX(dProduct[%Discount],Stock[[#This Row],[Index]])),"") -> 5.5 | L24: =IFERROR(Stock[[#This Row],[Stocks On Hand]]*Stock[[#This Row],[Price]],"") -> 8250 | M24: =IF(Stock[[#This Row],[Index]]="","",IF(Stock[[#This Row],[Stocks On Hand]]<Stock[[#This Row],[Re-Order Point]],"Yes","No")) -> No
B25: =IFERROR(IF(Stock[[#This Row],[Product Code]]="","",MATCH(C25,dProduct[PD_Code],0)),"") -> 11 | C25: =IF(ROW()-ROW(Stock[[#Headers],[Product Code]])>ROWS(dProduct[PD_Code]),"",INDEX(dProduct[PD_Code],ROW()-ROW(Stock[[#Headers],[Product Code]]))) -> 9908 | D25: =IFERROR(INDEX(dProduct[NameTH],Stock[[#This Row],[Index]],0),"") -> 11-เค้กกล้วยหอม | E25: 1500 | F25: =IF(Stock[[#This Row],[Index]]="","",INDEX(dProduct[Unit],Stock[[#This Row],[Index]])) -> ชิ้น | G25: =SUMPRODUCT((Transaction[Type]="รับ")*(Transaction[Products]=Stock[[#This Row],[Products Name]])*Transaction[Qty In-Out]) -> 0 | H25: =SUMPRODUCT((Transaction[Type]="เบิก")*(Transaction[Products]=Stock[[#This Row],[Products Name]])*Transaction[Qty In-Out]) -> 0 | I25: 100 | J25: =Stock[[#This Row],[Opening Stock]]+Stock[[#This Row],[Received]]-Stock[[#This Row],[Deliver]] -> 1500 | K25: =IFERROR(INDEX(dProduct[PriceCase],Stock[[#This Row],[Index]])*(1-INDEX(dProduct[%Discount],Stock[[#This Row],[Index]])),"") -> 6.6 | L25: =IFERROR(Stock[[#This Row],[Stocks On Hand]]*Stock[[#This Row],[Price]],"") -> 9900 | M25: =IF(Stock[[#This Row],[Index]]="","",IF(Stock[[#This Row],[Stocks On Hand]]<Stock[[#This Row],[Re-Order Point]],"Yes","No")) -> No
B26: =IFERROR(IF(Stock[[#This Row],[Product Code]]="","",MATCH(C26,dProduct[PD_Code],0)),"") -> 12 | C26: =IF(ROW()-ROW(Stock[[#Headers],[Product Code]])>ROWS(dProduct[PD_Code]),"",INDEX(dProduct[PD_Code],ROW()-ROW(Stock[[#Headers],[Product Code]]))) -> 9911 | D26: =IFERROR(INDEX(dProduct[NameTH],Stock[[#This Row],[Index]],0),"") -> 12-เค้กบัตเตอร์ | E26: 1500 | F26: =IF(Stock[[#This Row],[Index]]="","",INDEX(dProduct[Unit],Stock[[#This Row],[Index]])) -> ชิ้น | G26: =SUMPRODUCT((Transaction[Type]="รับ")*(Transaction[Products]=Stock[[#This Row],[Products Name]])*Transaction[Qty In-Out]) -> 0 | H26: =SUMPRODUCT((Transaction[Type]="เบิก")*(Transaction[Products]=Stock[[#This Row],[Products Name]])*Transaction[Qty In-Out]) -> 0 | I26: 100 | J26: =Stock[[#This Row],[Opening Stock]]+Stock[[#This Row],[Received]]-Stock[[#This Row],[Deliver]] -> 1500 | K26: =IFERROR(INDEX(dProduct[PriceCase],Stock[[#This Row],[Index]])*(1-INDEX(dProduct[%Discount],Stock[[#This Row],[Index]])),"") -> 6.6 | L26: =IFERROR(Stock[[#This Row],[Stocks On Hand]]*Stock[[#This Row],[Price]],"") -> 9900 | M26: =IF(Stock[[#This Row],[Index]]="","",IF(Stock[[#This Row],[Stocks On Hand]]<Stock[[#This Row],[Re-Order Point]],"Yes","No")) -> No
B27: =IFERROR(IF(Stock[[#This Row],[Product Code]]="","",MATCH(C27,dProduct[PD_Code],0)),"") -> 13 | C27: =IF(ROW()-ROW(Stock[[#Headers],[Product Code]])>ROWS(dProduct[PD_Code]),"",INDEX(dProduct[PD_Code],ROW()-ROW(Stock[[#Headers],[Product Code]]))) -> 9922 | D27: =IFERROR(INDEX(dProduct[NameTH],Stock[[#This Row],[Index]],0),"") -> 13-ขนมปังโรลถั่วแดง | E27: 1500 | F27: =IF(Stock[[#This Row],[Index]]="","",INDEX(dProduct[Unit],Stock[[#This Row],[Index]])) -> ชิ้น | G27: =SUMPRODUCT((Transaction[Type]="รับ")*(Transaction[Products]=Stock[[#This Row],[Products Name]])*Transaction[Qty In-Out]) -> 0 | H27: =SUMPRODUCT((Transaction[Type]="เบิก")*(Transaction[Products]=Stock[[#This Row],[Products Name]])*Transaction[Qty In-Out]) -> 0 | I27: 100 | J27: =Stock[[#This Row],[Opening Stock]]+Stock[[#This Row],[Received]]-Stock[[#This Row],[Deliver]] -> 1500 | K27: =IFERROR(INDEX(dProduct[PriceCase],Stock[[#This Row],[Index]])*(1-INDEX(dProduct[%Discount],Stock[[#This Row],[Index]])),"") -> 6.6 | L27: =IFERROR(Stock[[#This Row],[Stocks On Hand]]*Stock[[#This Row],[Price]],"") -> 9900 | M27: =IF(Stock[[#This Row],[Index]]="","",IF(Stock[[#This Row],[Stocks On Hand]]<Stock[[#This Row],[Re-Order Point]],"Yes","No")) -> No
B28: =IFERROR(IF(Stock[[#This Row],[Product Code]]="","",MATCH(C28,dProduct[PD_Code],0)),"") -> 14 | C28: =IF(ROW()-ROW(Stock[[#Headers],[Product Code]])>ROWS(dProduct[PD_Code]),"",INDEX(dProduct[PD_Code],ROW()-ROW(Stock[[#Headers],[Product Code]]))) -> 9901 | D28: =IFERROR(INDEX(dProduct[NameTH],Stock[[#This Row],[Index]],0),"") -> 14-ขนมปังไส้สังขยาใหญ่ | E28: 1500 | F28: =IF(Stock[[#This Row],[Index]]="","",INDEX(dProduct[Unit],Stock[[#This Row],[Index]])) -> ชิ้น | G28: =SUMPRODUCT((Transaction[Type]="รับ")*(Transaction[Products]=Stock[[#This Row],[Products Name]])*Transaction[Qty In-Out]) -> 0 | H28: =SUMPRODUCT((Transaction[Type]="เบิก")*(Transaction[Products]=Stock[[#This Row],[Products Name]])*Transaction[Qty In-Out]) -> 0 | I28: 100 | J28: =Stock[[#This Row],[Opening Stock]]+Stock[[#This Row],[Received]]-Stock[[#This Row],[Deliver]] -> 1500 | K28: =IFERROR(INDEX(dProduct[PriceCase],Stock[[#This Row],[Index]])*(1-INDEX(dProduct[%Discount],Stock[[#This Row],[Index]])),"") -> 6.6 | L28: =IFERROR(Stock[[#This Row],[Stocks On Hand]]*Stock[[#This Row],[Price]],"") -> 9900 | M28: =IF(Stock[[#This Row],[Index]]="","",IF(Stock[[#This Row],[Stocks On Hand]]<Stock[[#This Row],[Re-Order Point]],"Yes","No")) -> No
B29: =IFERROR(IF(Stock[[#This Row],[Product Code]]="","",MATCH(C29,dProduct[PD_Code],0)),"") -> 15 | C29: =IF(ROW()-ROW(Stock[[#Headers],[Product Code]])>ROWS(dProduct[PD_Code]),"",INDEX(dProduct[PD_Code],ROW()-ROW(Stock[[#Headers],[Product Code]]))) -> 99148 | D29: =IFERROR(INDEX(dProduct[NameTH],Stock[[#This Row],[Index]],0),"") -> 15-ขนมปังชนิดแผ่น(480กรัม) | E29: 1500 | F29: =IF(Stock[[#This Row],[Index]]="","",INDEX(dProduct[Unit],Stock[[#This Row],[Index]])) -> ชิ้น | G29: =SUMPRODUCT((Transaction[Type]="รับ")*(Transaction[Products]=Stock[[#This Row],[Products Name]])*Transaction[Qty In-Out]) -> 0 | H29: =SUMPRODUCT((Transaction[Type]="เบิก")*(Transaction[Products]=Stock[[#This Row],[Products Name]])*Transaction[Qty In-Out]) -> 0 | I29: 100 | J29: =Stock[[#This Row],[Opening Stock]]+Stock[[#This Row],[Received]]-Stock[[#This Row],[Deliver]] -> 1500 | K29: =IFERROR(INDEX(dProduct[PriceCase],Stock[[#This Row],[Index]])*(1-INDEX(dProduct[%Discount],Stock[[#This Row],[Index]])),"") -> 22 | L29: =IFERROR(Stock[[#This Row],[Stocks On Hand]]*Stock[[#This Row],[Price]],"") -> 33000 | M29: =IF(Stock[[#This Row],[Index]]="","",IF(Stock[[#This Row],[Stocks On Hand]]<Stock[[#This Row],[Re-Order Point]],"Yes","No")) -> No
B30: =IFERROR(IF(Stock[[#This Row],[Product Code]]="","",MATCH(C30,dProduct[PD_Code],0)),"") -> 16 | C30: =IF(ROW()-ROW(Stock[[#Headers],[Product Code]])>ROWS(dProduct[PD_Code]),"",INDEX(dProduct[PD_Code],ROW()-ROW(Stock[[#Headers],[Product Code]]))) -> 9957 | D30: =IFERROR(INDEX(dProduct[NameTH],Stock[[#This Row],[Index]],0),"") -> 16-โมจิไส้ถั่ว | E30: 1500 | F30: =IF(Stock[[#This Row],[Index]]="","",INDEX(dProduct[Unit],Stock[[#This Row],[Index]])) -> ชิ้น | G30: =SUMPRODUCT((Transaction[Type]="รับ")*(Transaction[Products]=Stock[[#This Row],[Products Name]])*Transaction[Qty In-Out]) -> 0 | H30: =SUMPRODUCT((Transaction[Type]="เบิก")*(Transaction[Products]=Stock[[#This Row],[Products Name]])*Transaction[Qty In-Out]) -> 0 | I30: 100 | J30: =Stock[[#This Row],[Opening Stock]]+Stock[[#This Row],[Received]]-Stock[[#This Row],[Deliver]] -> 1500 | K30: =IFERROR(INDEX(dProduct[PriceCase],Stock[[#This Row],[Index]])*(1-INDEX(dProduct[%Discount],Stock[[#This Row],[Index]])),"") -> 5.5 | L30: =IFERROR(Stock[[#This Row],[Stocks On Hand]]*Stock[[#This Row],[Price]],"") -> 8250 | M30: =IF(Stock[[#This Row],[Index]]="","",IF(Stock[[#This Row],[Stocks On Hand]]<Stock[[#This Row],[Re-Order Point]],"Yes","No")) -> No
B31: =IFERROR(IF(Stock[[#This Row],[Product Code]]="","",MATCH(C31,dProduct[PD_Code],0)),"") -> 17 | C31: =IF(ROW()-ROW(Stock[[#Headers],[Product Code]])>ROWS(dProduct[PD_Code]),"",INDEX(dProduct[PD_Code],ROW()-ROW(Stock[[#Headers],[Product Code]]))) -> 99167 | D31: =IFERROR(INDEX(dProduct[NameTH],Stock[[#This Row],[Index]],0),"") -> 17-โมจิไส้เผือก | E31: 1500 | F31: =IF(Stock[[#This Row],[Index]]="","",INDEX(dProduct[Unit],Stock[[#This Row],[Index]])) -> ชิ้น | G31: =SUMPRODUCT((Transaction[Type]="รับ")*(Transaction[Products]=Stock[[#This Row],[Products Name]])*Transaction[Qty In-Out]) -> 0 | H31: =SUMPRODUCT((Transaction[Type]="เบิก")*(Transaction[Products]=Stock[[#This Row],[Products Name]])*Transaction[Qty In-Out]) -> 0 | I31: 100 | J31: =Stock[[#This Row],[Opening Stock]]+Stock[[#This Row],[Received]]-Stock[[#This Row],[Deliver]] -> 1500 | K31: =IFERROR(INDEX(dProduct[PriceCase],Stock[[#This Row],[Index]])*(1-INDEX(dProduct[%Discount],Stock[[#This Row],[Index]])),"") -> 5.5 | L31: =IFERROR(Stock[[#This Row],[Stocks On Hand]]*Stock[[#This Row],[Price]],"") -> 8250 | M31: =IF(Stock[[#This Row],[Index]]="","",IF(Stock[[#This Row],[Stocks On Hand]]<Stock[[#This Row],[Re-Order Point]],"Yes","No")) -> No
B32: =IFERROR(IF(Stock[[#This Row],[Product Code]]="","",MATCH(C32,dProduct[PD_Code],0)),"") -> 18 | C32: =IF(ROW()-ROW(Stock[[#Headers],[Product Code]])>ROWS(dProduct[PD_Code]),"",INDEX(dProduct[PD_Code],ROW()-ROW(Stock[[#Headers],[Product Code]]))) -> 99166 | D32: =IFERROR(INDEX(dProduct[NameTH],Stock[[#This Row],[Index]],0),"") -> 18-โมจิไส้ถั่วไข่เค็ม | E32: 1500 | F32: =IF(Stock[[#This Row],[Index]]="","",INDEX(dProduct[Unit],Stock[[#This Row],[Index]])) -> ชิ้น | G32: =SUMPRODUCT((Transaction[Type]="รับ")*(Transaction[Products]=Stock[[#This Row],[Products Name]])*Transaction[Qty In-Out]) -> 0 | H32: =SUMPRODUCT((Transaction[Type]="เบิก")*(Transaction[Products]=Stock[[#This Row],[Products Name]])*Transaction[Qty In-Out]) -> 0 | I32: 100 | J32: =Stock[[#This Row],[Opening Stock]]+Stock[[#This Row],[Received]]-Stock[[#This Row],[Deliver]] -> 1500 | K32: =IFERROR(INDEX(dProduct[PriceCase],Stock[[#This Row],[Index]])*(1-INDEX(dProduct[%Discount],Stock[[#This Row],[Index]])),"") -> 8.25 | L32: =IFERROR(Stock[[#This Row],[Stocks On Hand]]*Stock[[#This Row],[Price]],"") -> 12375 | M32: =IF(Stock[[#This Row],[Index]]="","",IF(Stock[[#This Row],[Stocks On Hand]]<Stock[[#This Row],[Re-Order Point]],"Yes","No")) -> No
B33: =IFERROR(IF(Stock[[#This Row],[Product Code]]="","",MATCH(C33,dProduct[PD_Code],0)),"") -> 19 | C33: =IF(ROW()-ROW(Stock[[#Headers],[Product Code]])>ROWS(dProduct[PD_Code]),"",INDEX(dProduct[PD_Code],ROW()-ROW(Stock[[#Headers],[Product Code]]))) -> 9912 | D33: =IFERROR(INDEX(dProduct[NameTH],Stock[[#This Row],[Index]],0),"") -> 19-ขนมปังพิซซ่า | E33: 1500 | F33: =IF(Stock[[#This Row],[Index]]="","",INDEX(dProduct[Unit],Stock[[#This Row],[Index]])) -> ชิ้น | G33: =SUMPRODUCT((Transaction[Type]="รับ")*(Transaction[Products]=Stock[[#This Row],[Products Name]])*Transaction[Qty In-Out]) -> 0 | H33: =SUMPRODUCT((Transaction[Type]="เบิก")*(Transaction[Products]=Stock[[#This Row],[Products Name]])*Transaction[Qty In-Out]) -> 0 | I33: 100 | J33: =Stock[[#This Row],[Opening Stock]]+Stock[[#This Row],[Received]]-Stock[[#This Row],[Deliver]] -> 1500 | K33: =IFERROR(INDEX(dProduct[PriceCase],Stock[[#This Row],[Index]])*(1-INDEX(dProduct[%Discount],Stock[[#This Row],[Index]])),"") -> 8.25 | L33: =IFERROR(Stock[[#This Row],[Stocks On Hand]]*Stock[[#This Row],[Price]],"") -> 12375 | M33: =IF(Stock[[#This Row],[Index]]="","",IF(Stock[[#This Row],[Stocks On Hand]]<Stock[[#This Row],[Re-Order Point]],"Yes","No")) -> No
B34: =IFERROR(IF(Stock[[#This Row],[Product Code]]="","",MATCH(C34,dProduct[PD_Code],0)),"") -> 20 | C34: =IF(ROW()-ROW(Stock[[#Headers],[Product Code]])>ROWS(dProduct[PD_Code]),"",INDEX(dProduct[PD_Code],ROW()-ROW(Stock[[#Headers],[Product Code]]))) -> 99158 | D34: =IFERROR(INDEX(dProduct[NameTH],Stock[[#This Row],[Index]],0),"") -> 20-ขนมปังพิซซ่าปูอัดแฮม | E34: 1500 | F34: =IF(Stock[[#This Row],[Index]]="","",INDEX(dProduct[Unit],Stock[[#This Row],[Index]])) -> ชิ้น | G34: =SUMPRODUCT((Transaction[Type]="รับ")*(Transaction[Products]=Stock[[#This Row],[Products Name]])*Transaction[Qty In-Out]) -> 0 | H34: =SUMPRODUCT((Transaction[Type]="เบิก")*(Transaction[Products]=Stock[[#This Row],[Products Name]])*Transaction[Qty In-Out]) -> 0 | I34: 100 | J34: =Stock[[#This Row],[Opening Stock]]+Stock[[#This Row],[Received]]-Stock[[#This Row],[Deliver]] -> 1500 | K34: =IFERROR(INDEX(dProduct[PriceCase],Stock[[#This Row],[Index]])*(1-INDEX(dProduct[%Discount],Stock[[#This Row],[Index]])),"") -> 8.25 | L34: =IFERROR(Stock[[#This Row],[Stocks On Hand]]*Stock[[#This Row],[Price]],"") -> 12375 | M34: =IF(Stock[[#This Row],[Index]]="","",IF(Stock[[#This Row],[Stocks On Hand]]<Stock[[#This Row],[Re-Order Point]],"Yes","No")) -> No
B35: =IFERROR(IF(Stock[[#This Row],[Product Code]]="","",MATCH(C35,dProduct[PD_Code],0)),"") -> 21 | C35: =IF(ROW()-ROW(Stock[[#Headers],[Product Code]])>ROWS(dProduct[PD_Code]),"",INDEX(dProduct[PD_Code],ROW()-ROW(Stock[[#Headers],[Product Code]]))) -> 9953 | D35: =IFERROR(INDEX(dProduct[NameTH],Stock[[#This Row],[Index]],0),"") -> 21-ขนมปังไส้กรอก | E35: 1500 | F35: =IF(Stock[[#This Row],[Index]]="","",INDEX(dProduct[Unit],Stock[[#This Row],[Index]])) -> ชิ้น | G35: =SUMPRODUCT((Transaction[Type]="รับ")*(Transaction[Products]=Stock[[#This Row],[Products Name]])*Transaction[Qty In-Out]) -> 0 | H35: =SUMPRODUCT((Transaction[Type]="เบิก")*(Transaction[Products]=Stock[[#This Row],[Products Name]])*Transaction[Qty In-Out]) -> 0 | I35: 100 | J35: =Stock[[#This Row],[Opening Stock]]+Stock[[#This Row],[Received]]-Stock[[#This Row],[Deliver]] -> 1500 | K35: =IFERROR(INDEX(dProduct[PriceCase],Stock[[#This Row],[Index]])*(1-INDEX(dProduct[%Discount],Stock[[#This Row],[Index]])),"") -> 8.25 | L35: =IFERROR(Stock[[#This Row],[Stocks On Hand]]*Stock[[#This Row],[Price]],"") -> 12375 | M35: =IF(Stock[[#This Row],[Index]]="","",IF(Stock[[#This Row],[Stocks On Hand]]<Stock[[#This Row],[Re-Order Point]],"Yes","No")) -> No
B36: =IFERROR(IF(Stock[[#This Row],[Product Code]]="","",MATCH(C36,dProduct[PD_Code],0)),"") -> 22 | C36: =IF(ROW()-ROW(Stock[[#Headers],[Product Code]])>ROWS(dProduct[PD_Code]),"",INDEX(dProduct[PD_Code],ROW()-ROW(Stock[[#Headers],[Product Code]]))) -> 99173 | D36: =IFERROR(INDEX(dProduct[NameTH],Stock[[#This Row],[Index]],0),"") -> 22-ขนมปังไส้ครีมรสกาแฟ | E36: 1500 | F36: =IF(Stock[[#This Row],[Index]]="","",INDEX(dProduct[Unit],Stock[[#This Row],[Index]])) -> ชิ้น | G36: =SUMPRODUCT((Transaction[Type]="รับ")*(Transaction[Products]=Stock[[#This Row],[Products Name]])*Transaction[Qty In-Out]) -> 0 | H36: =SUMPRODUCT((Transaction[Type]="เบิก")*(Transaction[Products]=Stock[[#This Row],[Products Name]])*Transaction[Qty In-Out]) -> 0 | I36: 100 | J36: =Stock[[#This Row],[Opening Stock]]+Stock[[#This Row],[Received]]-Stock[[#This Row],[Deliver]] -> 1500 | K36: =IFERROR(INDEX(dProduct[PriceCase],Stock[[#This Row],[Index]])*(1-INDEX(dProduct[%Discount],Stock[[#This Row],[Index]])),"") -> 6.6 | L36: =IFERROR(Stock[[#This Row],[Stocks On Hand]]*Stock[[#This Row],[Price]],"") -> 9900 | M36: =IF(Stock[[#This Row],[Index]]="","",IF(Stock[[#This Row],[Stocks On Hand]]<Stock[[#This Row],[Re-Order Point]],"Yes","No")) -> No
B37: =IFERROR(IF(Stock[[#This Row],[Product Code]]="","",MATCH(C37,dProduct[PD_Code],0)),"") -> 23 | C37: =IF(ROW()-ROW(Stock[[#Headers],[Product Code]])>ROWS(dProduct[PD_Code]),"",INDEX(dProduct[PD_Code],ROW()-ROW(Stock[[#Headers],[Product Code]]))) -> 99175 | D37: =IFERROR(INDEX(dProduct[NameTH],Stock[[#This Row],[Index]],0),"") -> 23-ครัวซองต์เนยสด | E37: 1500 | F37: =IF(Stock[[#This Row],[Index]]="","",INDEX(dProduct[Unit],Stock[[#This Row],[Index]])) -> ชิ้น | G37: =SUMPRODUCT((Transaction[Type]="รับ")*(Transaction[Products]=Stock[[#This Row],[Products Name]])*Transaction[Qty In-Out]) -> 0 | H37: =SUMPRODUCT((Transaction[Type]="เบิก")*(Transaction[Products]=Stock[[#This Row],[Products Name]])*Transaction[Qty In-Out]) -> 0 | I37: 100 | J37: =Stock[[#This Row],[Opening Stock]]+Stock[[#This Row],[Received]]-Stock[[#This Row],[Deliver]] -> 1500 | K37: =IFERROR(INDEX(dProduct[PriceCase],Stock[[#This Row],[Index]])*(1-INDEX(dProduct[%Discount],Stock[[#This Row],[Index]])),"") -> 11 | L37: =IFERROR(Stock[[#This Row],[Stocks On Hand]]*Stock[[#This Row],[Price]],"") -> 16500 | M37: =IF(Stock[[#This Row],[Index]]="","",IF(Stock[[#This Row],[Stocks On Hand]]<Stock[[#This Row],[Re-Order Point]],"Yes","No")) -> No
B38: =IFERROR(IF(Stock[[#This Row],[Product Code]]="","",MATCH(C38,dProduct[PD_Code],0)),"") -> 24 | C38: =IF(ROW()-ROW(Stock[[#Headers],[Product Code]])>ROWS(dProduct[PD_Code]),"",INDEX(dProduct[PD_Code],ROW()-ROW(Stock[[#Headers],[Product Code]]))) -> 9909 | D38: =IFERROR(INDEX(dProduct[NameTH],Stock[[#This Row],[Index]],0),"") -> 24-ขนมก้านบัว | E38: 1500 | F38: =IF(Stock[[#This Row],[Index]]="","",INDEX(dProduct[Unit],Stock[[#This Row],[Index]])) -> ชิ้น | G38: =SUMPRODUCT((Transaction[Type]="รับ")*(Transaction[Products]=Stock[[#This Row],[Products Name]])*Transaction[Qty In-Out]) -> 0 | H38: =SUMPRODUCT((Transaction[Type]="เบิก")*(Transaction[Products]=Stock[[#This Row],[Products Name]])*Transaction[Qty In-Out]) -> 0 | I38: 100 | J38: =Stock[[#This Row],[Opening Stock]]+Stock[[#This Row],[Received]]-Stock[[#This Row],[Deliver]] -> 1500 | K38: =IFERROR(INDEX(dProduct[PriceCase],Stock[[#This Row],[Index]])*(1-INDEX(dProduct[%Discount],Stock[[#This Row],[Index]])),"") -> 8.25 | L38: =IFERROR(Stock[[#This Row],[Stocks On Hand]]*Stock[[#This Row],[Price]],"") -> 12375 | M38: =IF(Stock[[#This Row],[Index]]="","",IF(Stock[[#This Row],[Stocks On Hand]]<Stock[[#This Row],[Re-Order Point]],"Yes","No")) -> No
B39: =IFERROR(IF(Stock[[#This Row],[Product Code]]="","",MATCH(C39,dProduct[PD_Code],0)),"") -> 25 | C39: =IF(ROW()-ROW(Stock[[#Headers],[Product Code]])>ROWS(dProduct[PD_Code]),"",INDEX(dProduct[PD_Code],ROW()-ROW(Stock[[#Headers],[Product Code]]))) -> 99176 | D39: =IFERROR(INDEX(dProduct[NameTH],Stock[[#This Row],[Index]],0),"") -> 25-ขนมปังกรอบเนยน้ำตาล | E39: 1500 | F39: =IF(Stock[[#This Row],[Index]]="","",INDEX(dProduct[Unit],Stock[[#This Row],[Index]])) -> ชิ้น | G39: =SUMPRODUCT((Transaction[Type]="รับ")*(Transaction[Products]=Stock[[#This Row],[Products Name]])*Transaction[Qty In-Out]) -> 0 | H39: =SUMPRODUCT((Transaction[Type]="เบิก")*(Transaction[Products]=Stock[[#This Row],[Products Name]])*Transaction[Qty In-Out]) -> 0 | I39: 100 | J39: =Stock[[#This Row],[Opening Stock]]+Stock[[#This Row],[Received]]-Stock[[#This Row],[Deliver]] -> 1500 | K39: =IFERROR(INDEX(dProduct[PriceCase],Stock[[#This Row],[Index]])*(1-INDEX(dProduct[%Discount],Stock[[#This Row],[Index]])),"") -> 11 | L39: =IFERROR(Stock[[#This Row],[Stocks On Hand]]*Stock[[#This Row],[Price]],"") -> 16500 | M39: =IF(Stock[[#This Row],[Index]]="","",IF(Stock[[#This Row],[Stocks On Hand]]<Stock[[#This Row],[Re-Order Point]],"Yes","No")) -> No
B40: =IFERROR(IF(Stock[[#This Row],[Product Code]]="","",MATCH(C40,dProduct[PD_Code],0)),"") -> 26 | C40: =IF(ROW()-ROW(Stock[[#Headers],[Product Code]])>ROWS(dProduct[PD_Code]),"",INDEX(dProduct[PD_Code],ROW()-ROW(Stock[[#Headers],[Product Code]]))) -> 99177 | D40: =IFERROR(INDEX(dProduct[NameTH],Stock[[#This Row],[Index]],0),"") -> 26-พายสับปะรด | E40: 1500 | F40: =IF(Stock[[#This Row],[Index]]="","",INDEX(dProduct[Unit],Stock[[#This Row],[Index]])) -> ชิ้น | G40: =SUMPRODUCT((Transaction[Type]="รับ")*(Transaction[Products]=Stock[[#This Row],[Products Name]])*Transaction[Qty In-Out]) -> 0 | H40: =SUMPRODUCT((Transaction[Type]="เบิก")*(Transaction[Products]=Stock[[#This Row],[Products Name]])*Transaction[Qty In-Out]) -> 0 | I40: 100 | J40: =Stock[[#This Row],[Opening Stock]]+Stock[[#This Row],[Received]]-Stock[[#This Row],[Deliver]] -> 1500 | K40: =IFERROR(INDEX(dProduct[PriceCase],Stock[[#This Row],[Index]])*(1-INDEX(dProduct[%Discount],Stock[[#This Row],[Index]])),"") -> 11 | L40: =IFERROR(Stock[[#This Row],[Stocks On Hand]]*Stock[[#This Row],[Price]],"") -> 16500 | M40: =IF(Stock[[#This Row],[Index]]="","",IF(Stock[[#This Row],[Stocks On Hand]]<Stock[[#This Row],[Re-Order Point]],"Yes","No")) -> No
B41: =IFERROR(IF(Stock[[#This Row],[Product Code]]="","",MATCH(C41,dProduct[PD_Code],0)),"") -> 27 | C41: =IF(ROW()-ROW(Stock[[#Headers],[Product Code]])>ROWS(dProduct[PD_Code]),"",INDEX(dProduct[PD_Code],ROW()-ROW(Stock[[#Headers],[Product Code]]))) -> 99134 | D41: =IFERROR(INDEX(dProduct[NameTH],Stock[[#This Row],[Index]],0),"") -> 27-ปังกรอบเนยสด | E41: 1500 | F41: =IF(Stock[[#This Row],[Index]]="","",INDEX(dProduct[Unit],Stock[[#This Row],[Index]])) -> ชิ้น | G41: =SUMPRODUCT((Transaction[Type]="รับ")*(Transaction[Products]=Stock[[#This Row],[Products Name]])*Transaction[Qty In-Out]) -> 0 | H41: =SUMPRODUCT((Transaction[Type]="เบิก")*(Transaction[Products]=Stock[[#This Row],[Products Name]])*Transaction[Qty In-Out]) -> 0 | I41: 100 | J41: =Stock[[#This Row],[Opening Stock]]+Stock[[#This Row],[Received]]-Stock[[#This Row],[Deliver]] -> 1500 | K41: =IFERROR(INDEX(dProduct[PriceCase],Stock[[#This Row],[Index]])*(1-INDEX(dProduct[%Discount],Stock[[#This Row],[Index]])),"") -> 8.25 | L41: =IFERROR(Stock[[#This Row],[Stocks On Hand]]*Stock[[#This Row],[Price]],"") -> 12375 | M41: =IF(Stock[[#This Row],[Index]]="","",IF(Stock[[#This Row],[Stocks On Hand]]<Stock[[#This Row],[Re-Order Point]],"Yes","No")) -> No
B42: =IFERROR(IF(Stock[[#This Row],[Product Code]]="","",MATCH(C42,dProduct[PD_Code],0)),"") -> 28 | C42: =IF(ROW()-ROW(Stock[[#Headers],[Product Code]])>ROWS(dProduct[PD_Code]),"",INDEX(dProduct[PD_Code],ROW()-ROW(Stock[[#Headers],[Product Code]]))) -> 99135 | D42: =IFERROR(INDEX(dProduct[NameTH],Stock[[#This Row],[Index]],0),"") -> 28-ปังกรอบกระเทียม | E42: 1500 | F42: =IF(Stock[[#This Row],[Index]]="","",INDEX(dProduct[Unit],Stock[[#This Row],[Index]])) -> ชิ้น | G42: =SUMPRODUCT((Transaction[Type]="รับ")*(Transaction[Products]=Stock[[#This Row],[Products Name]])*Transaction[Qty In-Out]) -> 0 | H42: =SUMPRODUCT((Transaction[Type]="เบิก")*(Transaction[Products]=Stock[[#This Row],[Products Name]])*Transaction[Qty In-Out]) -> 0 | I42: 100 | J42: =Stock[[#This Row],[Opening Stock]]+Stock[[#This Row],[Received]]-Stock[[#This Row],[Deliver]] -> 1500 | K42: =IFERROR(INDEX(dProduct[PriceCase],Stock[[#This Row],[Index]])*(1-INDEX(dProduct[%Discount],Stock[[#This Row],[Index]])),"") -> 8.25 | L42: =IFERROR(Stock[[#This Row],[Stocks On Hand]]*Stock[[#This Row],[Price]],"") -> 12375 | M42: =IF(Stock[[#This Row],[Index]]="","",IF(Stock[[#This Row],[Stocks On Hand]]<Stock[[#This Row],[Re-Order Point]],"Yes","No")) -> No
B43: =IFERROR(IF(Stock[[#This Row],[Product Code]]="","",MATCH(C43,dProduct[PD_Code],0)),"") -> 29 | C43: =IF(ROW()-ROW(Stock[[#Headers],[Product Code]])>ROWS(dProduct[PD_Code]),"",INDEX(dProduct[PD_Code],ROW()-ROW(Stock[[#Headers],[Product Code]]))) -> 9921 | D43: =IFERROR(INDEX(dProduct[NameTH],Stock[[#This Row],[Index]],0),"") -> 29-ขนมปังโรลมันเทศ | E43: 1500 | F43: =IF(Stock[[#This Row],[Index]]="","",INDEX(dProduct[Unit],Stock[[#This Row],[Index]])) -> ชิ้น | G43: =SUMPRODUCT((Transaction[Type]="รับ")*(Transaction[Products]=Stock[[#This Row],[Products Name]])*Transaction[Qty In-Out]) -> 0 | H43: =SUMPRODUCT((Transaction[Type]="เบิก")*(Transaction[Products]=Stock[[#This Row],[Products Name]])*Transaction[Qty In-Out]) -> 0 | I43: 100 | J43: =Stock[[#This Row],[Opening Stock]]+Stock[[#This Row],[Received]]-Stock[[#This Row],[Deliver]] -> 1500 | K43: =IFERROR(INDEX(dProduct[PriceCase],Stock[[#This Row],[Index]])*(1-INDEX(dProduct[%Discount],Stock[[#This Row],[Index]])),"") -> 6.6 | L43: =IFERROR(Stock[[#This Row],[Stocks On Hand]]*Stock[[#This Row],[Price]],"") -> 9900 | M43: =IF(Stock[[#This Row],[Index]]="","",IF(Stock[[#This Row],[Stocks On Hand]]<Stock[[#This Row],[Re-Order Point]],"Yes","No")) -> No
B44: =IFERROR(IF(Stock[[#This Row],[Product Code]]="","",MATCH(C44,dProduct[PD_Code],0)),"") -> 30 | C44: =IF(ROW()-ROW(Stock[[#Headers],[Product Code]])>ROWS(dProduct[PD_Code]),"",INDEX(dProduct[PD_Code],ROW()-ROW(Stock[[#Headers],[Product Code]]))) -> 99164 | D44: =IFERROR(INDEX(dProduct[NameTH],Stock[[#This Row],[Index]],0),"") -> 30-บันเตยหอมไส้มันเทศ | E44: 1500 | F44: =IF(Stock[[#This Row],[Index]]="","",INDEX(dProduct[Unit],Stock[[#This Row],[Index]])) -> ชิ้น | G44: =SUMPRODUCT((Transaction[Type]="รับ")*(Transaction[Products]=Stock[[#This Row],[Products Name]])*Transaction[Qty In-Out]) -> 0 | H44: =SUMPRODUCT((Transaction[Type]="เบิก")*(Transaction[Products]=Stock[[#This Row],[Products Name]])*Transaction[Qty In-Out]) -> 0 | I44: 100 | J44: =Stock[[#This Row],[Opening Stock]]+Stock[[#This Row],[Received]]-Stock[[#This Row],[Deliver]] -> 1500 | K44: =IFERROR(INDEX(dProduct[PriceCase],Stock[[#This Row],[Index]])*(1-INDEX(dProduct[%Discount],Stock[[#This Row],[Index]])),"") -> 5.5 | L44: =IFERROR(Stock[[#This Row],[Stocks On Hand]]*Stock[[#This Row],[Price]],"") -> 8250 | M44: =IF(Stock[[#This Row],[Index]]="","",IF(Stock[[#This Row],[Stocks On Hand]]<Stock[[#This Row],[Re-Order Point]],"Yes","No")) -> No
B45: =IFERROR(IF(Stock[[#This Row],[Product Code]]="","",MATCH(C45,dProduct[PD_Code],0)),"") -> 31 | C45: =IF(ROW()-ROW(Stock[[#Headers],[Product Code]])>ROWS(dProduct[PD_Code]),"",INDEX(dProduct[PD_Code],ROW()-ROW(Stock[[#Headers],[Product Code]]))) -> 99168 | D45: =IFERROR(INDEX(dProduct[NameTH],Stock[[#This Row],[Index]],0),"") -> 31-โมจิชาเขียวมัทฉะไส้ถั่วแดง | E45: 1500 | F45: =IF(Stock[[#This Row],[Index]]="","",INDEX(dProduct[Unit],Stock[[#This Row],[Index]])) -> ชิ้น | G45: =SUMPRODUCT((Transaction[Type]="รับ")*(Transaction[Products]=Stock[[#This Row],[Products Name]])*Transaction[Qty In-Out]) -> 0 | H45: =SUMPRODUCT((Transaction[Type]="เบิก")*(Transaction[Products]=Stock[[#This Row],[Products Name]])*Transaction[Qty In-Out]) -> 0 | I45: 100 | J45: =Stock[[#This Row],[Opening Stock]]+Stock[[#This Row],[Received]]-Stock[[#This Row],[Deliver]] -> 1500 | K45: =IFERROR(INDEX(dProduct[PriceCase],Stock[[#This Row],[Index]])*(1-INDEX(dProduct[%Discount],Stock[[#This Row],[Index]])),"") -> 5.5 | L45: =IFERROR(Stock[[#This Row],[Stocks On Hand]]*Stock[[#This Row],[Price]],"") -> 8250 | M45: =IF(Stock[[#This Row],[Index]]="","",IF(Stock[[#This Row],[Stocks On Hand]]<Stock[[#This Row],[Re-Order Point]],"Yes","No")) -> No
B46: =IFERROR(IF(Stock[[#This Row],[Product Code]]="","",MATCH(C46,dProduct[PD_Code],0)),"") ->  | C46: =IF(ROW()-ROW(Stock[[#Headers],[Product Code]])>ROWS(dProduct[PD_Code]),"",INDEX(dProduct[PD_Code],ROW()-ROW(Stock[[#Headers],[Product Code]]))) ->  | D46: =IFERROR(INDEX(dProduct[NameTH],Stock[[#This Row],[Index]],0),"") ->  | E46: 1500 | F46: =IF(Stock[[#This Row],[Index]]="","",INDEX(dProduct[Unit],Stock[[#This Row],[Index]])) ->  | G46: =SUMPRODUCT((Transaction[Type]="รับ")*(Transaction[Products]=Stock[[#This Row],[Products Name]])*Transaction[Qty In-Out]) -> 0 | H46: =SUMPRODUCT((Transaction[Type]="เบิก")*(Transaction[Products]=Stock[[#This Row],[Products Name]])*Transaction[Qty In-Out]) -> 0 | I46: 100 | J46: =Stock[[#This Row],[Opening Stock]]+Stock[[#This Row],[Received]]-Stock[[#This Row],[Deliver]] -> 1500 | K46: =IFERROR(INDEX(dProduct[PriceCase],Stock[[#This Row],[Index]])*(1-INDEX(dProduct[%Discount],Stock[[#This Row],[Index]])),"") ->  | L46: =IFERROR(Stock[[#This Row],[Stocks On Hand]]*Stock[[#This Row],[Price]],"") ->  | M46: =IF(Stock[[#This Row],[Index]]="","",IF(Stock[[#This Row],[Stocks On Hand]]<Stock[[#This Row],[Re-Order Point]],"Yes","No")) -> 
B47: =IFERROR(IF(Stock[[#This Row],[Product Code]]="","",MATCH(C47,dProduct[PD_Code],0)),"") ->  | C47: =IF(ROW()-ROW(Stock[[#Headers],[Product Code]])>ROWS(dProduct[PD_Code]),"",INDEX(dProduct[PD_Code],ROW()-ROW(Stock[[#Headers],[Product Code]]))) ->  | D47: =IFERROR(INDEX(dProduct[NameTH],Stock[[#This Row],[Index]],0),"") ->  | E47: 1500 | F47: =IF(Stock[[#This Row],[Index]]="","",INDEX(dProduct[Unit],Stock[[#This Row],[Index]])) ->  | G47: =SUMPRODUCT((Transaction[Type]="รับ")*(Transaction[Products]=Stock[[#This Row],[Products Name]])*Transaction[Qty In-Out]) -> 0 | H47: =SUMPRODUCT((Transaction[Type]="เบิก")*(Transaction[Products]=Stock[[#This Row],[Products Name]])*Transaction[Qty In-Out]) -> 0 | I47: 100 | J47: =Stock[[#This Row],[Opening Stock]]+Stock[[#This Row],[Received]]-Stock[[#This Row],[Deliver]] -> 1500 | K47: =IFERROR(INDEX(dProduct[PriceCase],Stock[[#This Row],[Index]])*(1-INDEX(dProduct[%Discount],Stock[[#This Row],[Index]])),"") ->  | L47: =IFERROR(Stock[[#This Row],[Stocks On Hand]]*Stock[[#This Row],[Price]],"") ->  | M47: =IF(Stock[[#This Row],[Index]]="","",IF(Stock[[#This Row],[Stocks On Hand]]<Stock[[#This Row],[Re-Order Point]],"Yes","No")) -> 
B48: =IFERROR(IF(Stock[[#This Row],[Product Code]]="","",MATCH(C48,dProduct[PD_Code],0)),"") ->  | C48: =IF(ROW()-ROW(Stock[[#Headers],[Product Code]])>ROWS(dProduct[PD_Code]),"",INDEX(dProduct[PD_Code],ROW()-ROW(Stock[[#Headers],[Product Code]]))) ->  | D48: =IFERROR(INDEX(dProduct[NameTH],Stock[[#This Row],[Index]],0),"") ->  | F48: =IF(Stock[[#This Row],[Index]]="","",INDEX(dProduct[Unit],Stock[[#This Row],[Index]])) ->  | G48: =SUMPRODUCT((Transaction[Type]="รับ")*(Transaction[Products]=Stock[[#This Row],[Products Name]])*Transaction[Qty In-Out]) -> 0 | H48: =SUMPRODUCT((Transaction[Type]="เบิก")*(Transaction[Products]=Stock[[#This Row],[Products Name]])*Transaction[Qty In-Out]) -> 0 | J48: =Stock[[#This Row],[Opening Stock]]+Stock[[#This Row],[Received]]-Stock[[#This Row],[Deliver]] -> 0 | K48: =IFERROR(INDEX(dProduct[PriceCase],Stock[[#This Row],[Index]])*(1-INDEX(dProduct[%Discount],Stock[[#This Row],[Index]])),"") ->  | L48: =IFERROR(Stock[[#This Row],[Stocks On Hand]]*Stock[[#This Row],[Price]],"") ->  | M48: =IF(Stock[[#This Row],[Index]]="","",IF(Stock[[#This Row],[Stocks On Hand]]<Stock[[#This Row],[Re-Order Point]],"Yes","No")) -> 
B49: =IFERROR(IF(Stock[[#This Row],[Product Code]]="","",MATCH(C49,dProduct[PD_Code],0)),"") ->  | C49: =IF(ROW()-ROW(Stock[[#Headers],[Product Code]])>ROWS(dProduct[PD_Code]),"",INDEX(dProduct[PD_Code],ROW()-ROW(Stock[[#Headers],[Product Code]]))) ->  | D49: =IFERROR(INDEX(dProduct[NameTH],Stock[[#This Row],[Index]],0),"") ->  | F49: =IF(Stock[[#This Row],[Index]]="","",INDEX(dProduct[Unit],Stock[[#This Row],[Index]])) ->  | G49: =SUMPRODUCT((Transaction[Type]="รับ")*(Transaction[Products]=Stock[[#This Row],[Products Name]])*Transaction[Qty In-Out]) -> 0 | H49: =SUMPRODUCT((Transaction[Type]="เบิก")*(Transaction[Products]=Stock[[#This Row],[Products Name]])*Transaction[Qty In-Out]) -> 0 | J49: =Stock[[#This Row],[Opening Stock]]+Stock[[#This Row],[Received]]-Stock[[#This Row],[Deliver]] -> 0 | K49: =IFERROR(INDEX(dProduct[PriceCase],Stock[[#This Row],[Index]])*(1-INDEX(dProduct[%Discount],Stock[[#This Row],[Index]])),"") ->  | L49: =IFERROR(Stock[[#This Row],[Stocks On Hand]]*Stock[[#This Row],[Price]],"") ->  | M49: =IF(Stock[[#This Row],[Index]]="","",IF(Stock[[#This Row],[Stocks On Hand]]<Stock[[#This Row],[Re-Order Point]],"Yes","No")) -> 
B50: =IFERROR(IF(Stock[[#This Row],[Product Code]]="","",MATCH(C50,dProduct[PD_Code],0)),"") ->  | C50: =IF(ROW()-ROW(Stock[[#Headers],[Product Code]])>ROWS(dProduct[PD_Code]),"",INDEX(dProduct[PD_Code],ROW()-ROW(Stock[[#Headers],[Product Code]]))) ->  | D50: =IFERROR(INDEX(dProduct[NameTH],Stock[[#This Row],[Index]],0),"") ->  | F50: =IF(Stock[[#This Row],[Index]]="","",INDEX(dProduct[Unit],Stock[[#This Row],[Index]])) ->  | G50: =SUMPRODUCT((Transaction[Type]="รับ")*(Transaction[Products]=Stock[[#This Row],[Products Name]])*Transaction[Qty In-Out]) -> 0 | H50: =SUMPRODUCT((Transaction[Type]="เบิก")*(Transaction[Products]=Stock[[#This Row],[Products Name]])*Transaction[Qty In-Out]) -> 0 | J50: =Stock[[#This Row],[Opening Stock]]+Stock[[#This Row],[Received]]-Stock[[#This Row],[Deliver]] -> 0 | K50: =IFERROR(INDEX(dProduct[PriceCase],Stock[[#This Row],[Index]])*(1-INDEX(dProduct[%Discount],Stock[[#This Row],[Index]])),"") ->  | L50: =IFERROR(Stock[[#This Row],[Stocks On Hand]]*Stock[[#This Row],[Price]],"") ->  | M50: =IF(Stock[[#This Row],[Index]]="","",IF(Stock[[#This Row],[Stocks On Hand]]<Stock[[#This Row],[Re-Order Point]],"Yes","No")) -> 
B51: =IFERROR(IF(Stock[[#This Row],[Product Code]]="","",MATCH(C51,dProduct[PD_Code],0)),"") ->  | C51: =IF(ROW()-ROW(Stock[[#Headers],[Product Code]])>ROWS(dProduct[PD_Code]),"",INDEX(dProduct[PD_Code],ROW()-ROW(Stock[[#Headers],[Product Code]]))) ->  | D51: =IFERROR(INDEX(dProduct[NameTH],Stock[[#This Row],[Index]],0),"") ->  | F51: =IF(Stock[[#This Row],[Index]]="","",INDEX(dProduct[Unit],Stock[[#This Row],[Index]])) ->  | G51: =SUMPRODUCT((Transaction[Type]="รับ")*(Transaction[Products]=Stock[[#This Row],[Products Name]])*Transaction[Qty In-Out]) -> 0 | H51: =SUMPRODUCT((Transaction[Type]="เบิก")*(Transaction[Products]=Stock[[#This Row],[Products Name]])*Transaction[Qty In-Out]) -> 0 | J51: =Stock[[#This Row],[Opening Stock]]+Stock[[#This Row],[Received]]-Stock[[#This Row],[Deliver]] -> 0 | K51: =IFERROR(INDEX(dProduct[PriceCase],Stock[[#This Row],[Index]])*(1-INDEX(dProduct[%Discount],Stock[[#This Row],[Index]])),"") ->  | L51: =IFERROR(Stock[[#This Row],[Stocks On Hand]]*Stock[[#This Row],[Price]],"") ->  | M51: =IF(Stock[[#This Row],[Index]]="","",IF(Stock[[#This Row],[Stocks On Hand]]<Stock[[#This Row],[Re-Order Point]],"Yes","No")) -> 
B52: =IFERROR(IF(Stock[[#This Row],[Product Code]]="","",MATCH(C52,dProduct[PD_Code],0)),"") ->  | C52: =IF(ROW()-ROW(Stock[[#Headers],[Product Code]])>ROWS(dProduct[PD_Code]),"",INDEX(dProduct[PD_Code],ROW()-ROW(Stock[[#Headers],[Product Code]]))) ->  | D52: =IFERROR(INDEX(dProduct[NameTH],Stock[[#This Row],[Index]],0),"") ->  | F52: =IF(Stock[[#This Row],[Index]]="","",INDEX(dProduct[Unit],Stock[[#This Row],[Index]])) ->  | G52: =SUMPRODUCT((Transaction[Type]="รับ")*(Transaction[Products]=Stock[[#This Row],[Products Name]])*Transaction[Qty In-Out]) -> 0 | H52: =SUMPRODUCT((Transaction[Type]="เบิก")*(Transaction[Products]=Stock[[#This Row],[Products Name]])*Transaction[Qty In-Out]) -> 0 | J52: =Stock[[#This Row],[Opening Stock]]+Stock[[#This Row],[Received]]-Stock[[#This Row],[Deliver]] -> 0 | K52: =IFERROR(INDEX(dProduct[PriceCase],Stock[[#This Row],[Index]])*(1-INDEX(dProduct[%Discount],Stock[[#This Row],[Index]])),"") ->  | L52: =IFERROR(Stock[[#This Row],[Stocks On Hand]]*Stock[[#This Row],[Price]],"") ->  | M52: =IF(Stock[[#This Row],[Index]]="","",IF(Stock[[#This Row],[Stocks On Hand]]<Stock[[#This Row],[Re-Order Point]],"Yes","No")) -> 
B53: =IFERROR(IF(Stock[[#This Row],[Product Code]]="","",MATCH(C53,dProduct[PD_Code],0)),"") ->  | C53: =IF(ROW()-ROW(Stock[[#Headers],[Product Code]])>ROWS(dProduct[PD_Code]),"",INDEX(dProduct[PD_Code],ROW()-ROW(Stock[[#Headers],[Product Code]]))) ->  | D53: =IFERROR(INDEX(dProduct[NameTH],Stock[[#This Row],[Index]],0),"") ->  | F53: =IF(Stock[[#This Row],[Index]]="","",INDEX(dProduct[Unit],Stock[[#This Row],[Index]])) ->  | G53: =SUMPRODUCT((Transaction[Type]="รับ")*(Transaction[Products]=Stock[[#This Row],[Products Name]])*Transaction[Qty In-Out]) -> 0 | H53: =SUMPRODUCT((Transaction[Type]="เบิก")*(Transaction[Products]=Stock[[#This Row],[Products Name]])*Transaction[Qty In-Out]) -> 0 | J53: =Stock[[#This Row],[Opening Stock]]+Stock[[#This Row],[Received]]-Stock[[#This Row],[Deliver]] -> 0 | K53: =IFERROR(INDEX(dProduct[PriceCase],Stock[[#This Row],[Index]])*(1-INDEX(dProduct[%Discount],Stock[[#This Row],[Index]])),"") ->  | L53: =IFERROR(Stock[[#This Row],[Stocks On Hand]]*Stock[[#This Row],[Price]],"") ->  | M53: =IF(Stock[[#This Row],[Index]]="","",IF(Stock[[#This Row],[Stocks On Hand]]<Stock[[#This Row],[Re-Order Point]],"Yes","No")) -> 
B54: =IFERROR(IF(Stock[[#This Row],[Product Code]]="","",MATCH(C54,dProduct[PD_Code],0)),"") ->  | C54: =IF(ROW()-ROW(Stock[[#Headers],[Product Code]])>ROWS(dProduct[PD_Code]),"",INDEX(dProduct[PD_Code],ROW()-ROW(Stock[[#Headers],[Product Code]]))) ->  | D54: =IFERROR(INDEX(dProduct[NameTH],Stock[[#This Row],[Index]],0),"") ->  | F54: =IF(Stock[[#This Row],[Index]]="","",INDEX(dProduct[Unit],Stock[[#This Row],[Index]])) ->  | G54: =SUMPRODUCT((Transaction[Type]="รับ")*(Transaction[Products]=Stock[[#This Row],[Products Name]])*Transaction[Qty In-Out]) -> 0 | H54: =SUMPRODUCT((Transaction[Type]="เบิก")*(Transaction[Products]=Stock[[#This Row],[Products Name]])*Transaction[Qty In-Out]) -> 0 | J54: =Stock[[#This Row],[Opening Stock]]+Stock[[#This Row],[Received]]-Stock[[#This Row],[Deliver]] -> 0 | K54: =IFERROR(INDEX(dProduct[PriceCase],Stock[[#This Row],[Index]])*(1-INDEX(dProduct[%Discount],Stock[[#This Row],[Index]])),"") ->  | L54: =IFERROR(Stock[[#This Row],[Stocks On Hand]]*Stock[[#This Row],[Price]],"") ->  | M54: =IF(Stock[[#This Row],[Index]]="","",IF(Stock[[#This Row],[Stocks On Hand]]<Stock[[#This Row],[Re-Order Point]],"Yes","No")) -> 
B55: =IFERROR(IF(Stock[[#This Row],[Product Code]]="","",MATCH(C55,dProduct[PD_Code],0)),"") ->  | C55: =IF(ROW()-ROW(Stock[[#Headers],[Product Code]])>ROWS(dProduct[PD_Code]),"",INDEX(dProduct[PD_Code],ROW()-ROW(Stock[[#Headers],[Product Code]]))) ->  | D55: =IFERROR(INDEX(dProduct[NameTH],Stock[[#This Row],[Index]],0),"") ->  | F55: =IF(Stock[[#This Row],[Index]]="","",INDEX(dProduct[Unit],Stock[[#This Row],[Index]])) ->  | G55: =SUMPRODUCT((Transaction[Type]="รับ")*(Transaction[Products]=Stock[[#This Row],[Products Name]])*Transaction[Qty In-Out]) -> 0 | H55: =SUMPRODUCT((Transaction[Type]="เบิก")*(Transaction[Products]=Stock[[#This Row],[Products Name]])*Transaction[Qty In-Out]) -> 0 | J55: =Stock[[#This Row],[Opening Stock]]+Stock[[#This Row],[Received]]-Stock[[#This Row],[Deliver]] -> 0 | K55: =IFERROR(INDEX(dProduct[PriceCase],Stock[[#This Row],[Index]])*(1-INDEX(dProduct[%Discount],Stock[[#This Row],[Index]])),"") ->  | L55: =IFERROR(Stock[[#This Row],[Stocks On Hand]]*Stock[[#This Row],[Price]],"") ->  | M55: =IF(Stock[[#This Row],[Index]]="","",IF(Stock[[#This Row],[Stocks On Hand]]<Stock[[#This Row],[Re-Order Point]],"Yes","No")) -> 

Sheet Transaction (hidden)
J1: ="" -> 
F2: SETTING | G2: PRODUCTS | H2: STOCK | I2: REPORT
B3: ฟอร์มบันทึกรายการ รับ-เบิก สินค้ารายวัน (Received And Deliver Transaction Form)
C4: ประจำสาขา : | D4: =B_Name&" ("&BranchCode&")" -> โรงงานร่มเกล้า (00-FRK) | F4: ="ระหว่างวันที่ : "&IF(COUNT(Transaction[Date])=0,"",TEXT(MIN(Transaction[Date]),"[$-,107]d mmm yyyy")&" - "&TEXT(MAX(Transaction[Date]),"[$-,107]d mmm yyyy")) -> ระหว่างวันที่ : 27 มิ.ย. 2561 - 1 ส.ค. 2561 | I4: ="TR-Backup_"&BranchCode&"_" &TEXT(MIN(Transaction[Date]),"[$-,107]ddmmyy")&"-"&TEXT(MAX(Transaction[Date]),"[$-,107]ddmmyy") -> TR-Backup_00-FRK_270661-010861
B6: MODULE : DAILY RECORD DATA BY VAN SALES (บันทึกรายการเบิกออกของสายวิ่ง)
B7: วันที่ | C7: สายวิ่ง | D7: ประเภท | E7: รายการสินค้า | F7: จำนวนรับ-เบิก | G7: ="สต๊อคคงเหลือ("&_xlfn.IFNA(INDEX(dProduct[Unit],MATCH(Transaction!E8,dProduct[NameTH],0)),"หน่วย")&")" -> สต๊อคคงเหลือ(หน่วย)
B8: 2018-08-01 | C8: KK01 | D8: เบิก | G8: =IF(E8="",0,INDEX(Stock[Stocks On Hand],MATCH(E8,Stock[Products Name],0))-F8) -> 0
B10: ค้นรายการ | C10: 2018-06-28 | D10: PC02 | E10: =IFERROR(MATCH(C10&D10,Transaction[Date]&Transaction[Route],0),2)+20 -> 42 | F10: TRUE | G10: 5 | H10: รายการ
B13: MODULE : IMPORT ALL DELIVERY DATA BY SELECTED DATE (บันทึกรับเข้าจากโรงงาน)
M17: รายการทั้งหมด : | O17: =COUNT(P22:P76) -> 0
M18: จำนวนสินค้า : | O18: =SUM(P22:P76) -> 0
B19: วันที่ | C19: สายวิ่ง | D19: ประเภท | E19: รายการสินค้า | F19: จำนวนรับ-เบิก | G19: สต๊อคคงเหลือ | H19: ราคาส่วนลด | I19: มูลค่า(บาท) | L19: 1 | M19: 2 | N19: 3 | O19: 4 | P19: 5
B20: Date | C20: Route | D20: Type | E20: Products | F20: Qty In-Out | G20: Balance Stock | H20: Discount_Price | I20: Total | L20: Date | M20: Branch | N20: Type | O20: Products | P20: Qty In-Out | Q20: ="" -> 
G21: =IF(Transaction[[#This Row],[Products]]="","",BalanceStock) ->  | H21: =IF(Transaction[[#This Row],[Products]]="","",(1-INDEX(dProduct[%Discount],MATCH(Transaction[[#This Row],[Products]],dProduct[NameTH],0)))*INDEX(dProduct[PriceCase],MATCH(Transaction[[#This Row],[Products]],dProduct[NameTH],0))) ->  | I21: =IF(Transaction[[#This Row],[Products]]="",0,Transaction[[#This Row],[Qty In-Out]]*Transaction[[#This Row],[Discount_Price]]) -> 0
B22: 2018-08-01 | C22: PC08 | D22: เบิก | E22: 01-ขนมปังไส้สังขยาเล็ก | F22: 50 | G22: =IF(Transaction[[#This Row],[Products]]="","",BalanceStock) ->  | H22: =IF(Transaction[[#This Row],[Products]]="","",(1-INDEX(dProduct[%Discount],MATCH(Transaction[[#This Row],[Products]],dProduct[NameTH],0)))*INDEX(dProduct[PriceCase],MATCH(Transaction[[#This Row],[Products]],dProduct[NameTH],0))) ->  | I22: =IF(Transaction[[#This Row],[Products]]="",0,Transaction[[#This Row],[Qty In-Out]]*Transaction[[#This Row],[Discount_Price]]) ->  | K22: 1 | L22: =IFERROR(INDEX(Delivery_Conn,$K22,L$19),"") -> 
B23: 2018-08-01 | C23: PC08 | D23: เบิก | E23: 02-ขนมปังไส้เผือก | F23: 50 | G23: =IF(Transaction[[#This Row],[Products]]="","",BalanceStock) ->  | H23: =IF(Transaction[[#This Row],[Products]]="","",(1-INDEX(dProduct[%Discount],MATCH(Transaction[[#This Row],[Products]],dProduct[NameTH],0)))*INDEX(dProduct[PriceCase],MATCH(Transaction[[#This Row],[Products]],dProduct[NameTH],0))) ->  | I23: =IF(Transaction[[#This Row],[Products]]="",0,Transaction[[#This Row],[Qty In-Out]]*Transaction[[#This Row],[Discount_Price]]) ->  | K23: 2
B24: 2018-08-01 | C24: PC08 | D24: เบิก | E24: 03-ขนมปังไส้ถั่วแดง | F24: 50 | G24: =IF(Transaction[[#This Row],[Products]]="","",BalanceStock) ->  | H24: =IF(Transaction[[#This Row],[Products]]="","",(1-INDEX(dProduct[%Discount],MATCH(Transaction[[#This Row],[Products]],dProduct[NameTH],0)))*INDEX(dProduct[PriceCase],MATCH(Transaction[[#This Row],[Products]],dProduct[NameTH],0))) ->  | I24: =IF(Transaction[[#This Row],[Products]]="",0,Transaction[[#This Row],[Qty In-Out]]*Transaction[[#This Row],[Discount_Price]]) ->  | K24: 3
B25: 2018-08-01 | C25: PC08 | D25: เบิก | E25: 04-โมจิไส้ถั่ว | F25: 50 | G25: =IF(Transaction[[#This Row],[Products]]="","",BalanceStock) ->  | H25: =IF(Transaction[[#This Row],[Products]]="","",(1-INDEX(dProduct[%Discount],MATCH(Transaction[[#This Row],[Products]],dProduct[NameTH],0)))*INDEX(dProduct[PriceCase],MATCH(Transaction[[#This Row],[Products]],dProduct[NameTH],0))) ->  | I25: =IF(Transaction[[#This Row],[Products]]="",0,Transaction[[#This Row],[Qty In-Out]]*Transaction[[#This Row],[Discount_Price]]) ->  | K25: 4
B26: 2018-08-01 | C26: PC08 | D26: เบิก | E26: 05-ขนมปังไส้สังขยาใหญ่ | F26: 50 | G26: =IF(Transaction[[#This Row],[Products]]="","",BalanceStock) ->  | H26: =IF(Transaction[[#This Row],[Products]]="","",(1-INDEX(dProduct[%Discount],MATCH(Transaction[[#This Row],[Products]],dProduct[NameTH],0)))*INDEX(dProduct[PriceCase],MATCH(Transaction[[#This Row],[Products]],dProduct[NameTH],0))) ->  | I26: =IF(Transaction[[#This Row],[Products]]="",0,Transaction[[#This Row],[Qty In-Out]]*Transaction[[#This Row],[Discount_Price]]) ->  | K26: 5
B27: 2018-06-30 | C27: PC08 | D27: เบิก | E27: 01-ขนมปังไส้สังขยาเล็ก | F27: 5 | G27: =IF(Transaction[[#This Row],[Products]]="","",BalanceStock) ->  | H27: =IF(Transaction[[#This Row],[Products]]="","",(1-INDEX(dProduct[%Discount],MATCH(Transaction[[#This Row],[Products]],dProduct[NameTH],0)))*INDEX(dProduct[PriceCase],MATCH(Transaction[[#This Row],[Products]],dProduct[NameTH],0))) ->  | I27: =IF(Transaction[[#This Row],[Products]]="",0,Transaction[[#This Row],[Qty In-Out]]*Transaction[[#This Row],[Discount_Price]]) ->  | K27: 6
B28: 2018-06-30 | C28: PC08 | D28: เบิก | E28: 02-ขนมปังไส้เผือก | F28: 5 | G28: =IF(Transaction[[#This Row],[Products]]="","",BalanceStock) ->  | H28: =IF(Transaction[[#This Row],[Products]]="","",(1-INDEX(dProduct[%Discount],MATCH(Transaction[[#This Row],[Products]],dProduct[NameTH],0)))*INDEX(dProduct[PriceCase],MATCH(Transaction[[#This Row],[Products]],dProduct[NameTH],0))) ->  | I28: =IF(Transaction[[#This Row],[Products]]="",0,Transaction[[#This Row],[Qty In-Out]]*Transaction[[#This Row],[Discount_Price]]) ->  | K28: 7
B29: 2018-06-30 | C29: PC08 | D29: เบิก | E29: 03-ขนมปังไส้ถั่วแดง | F29: 5 | G29: =IF(Transaction[[#This Row],[Products]]="","",BalanceStock) ->  | H29: =IF(Transaction[[#This Row],[Products]]="","",(1-INDEX(dProduct[%Discount],MATCH(Transaction[[#This Row],[Products]],dProduct[NameTH],0)))*INDEX(dProduct[PriceCase],MATCH(Transaction[[#This Row],[Products]],dProduct[NameTH],0))) ->  | I29: =IF(Transaction[[#This Row],[Products]]="",0,Transaction[[#This Row],[Qty In-Out]]*Transaction[[#This Row],[Discount_Price]]) ->  | K29: 8
B30: 2018-06-30 | C30: PC08 | D30: เบิก | E30: 04-โมจิไส้ถั่ว | F30: 5 | G30: =IF(Transaction[[#This Row],[Products]]="","",BalanceStock) ->  | H30: =IF(Transaction[[#This Row],[Products]]="","",(1-INDEX(dProduct[%Discount],MATCH(Transaction[[#This Row],[Products]],dProduct[NameTH],0)))*INDEX(dProduct[PriceCase],MATCH(Transaction[[#This Row],[Products]],dProduct[NameTH],0))) ->  | I30: =IF(Transaction[[#This Row],[Products]]="",0,Transaction[[#This Row],[Qty In-Out]]*Transaction[[#This Row],[Discount_Price]]) ->  | K30: 9
B31: 2018-06-30 | C31: PC08 | D31: เบิก | E31: 05-ขนมปังไส้สังขยาใหญ่ | F31: 5 | G31: =IF(Transaction[[#This Row],[Products]]="","",BalanceStock) ->  | H31: =IF(Transaction[[#This Row],[Products]]="","",(1-INDEX(dProduct[%Discount],MATCH(Transaction[[#This Row],[Products]],dProduct[NameTH],0)))*INDEX(dProduct[PriceCase],MATCH(Transaction[[#This Row],[Products]],dProduct[NameTH],0))) ->  | I31: =IF(Transaction[[#This Row],[Products]]="",0,Transaction[[#This Row],[Qty In-Out]]*Transaction[[#This Row],[Discount_Price]]) ->  | K31: 10
B32: 2018-06-30 | C32: PC06 | D32: เบิก | E32: 01-ขนมปังไส้สังขยาเล็ก | F32: 20 | G32: =IF(Transaction[[#This Row],[Products]]="","",BalanceStock) ->  | H32: =IF(Transaction[[#This Row],[Products]]="","",(1-INDEX(dProduct[%Discount],MATCH(Transaction[[#This Row],[Products]],dProduct[NameTH],0)))*INDEX(dProduct[PriceCase],MATCH(Transaction[[#This Row],[Products]],dProduct[NameTH],0))) ->  | I32: =IF(Transaction[[#This Row],[Products]]="",0,Transaction[[#This Row],[Qty In-Out]]*Transaction[[#This Row],[Discount_Price]]) ->  | K32: 11 | L32: =IFERROR(INDEX(Delivery_Conn,$K32,L$19),"") -> 
B33: 2018-06-30 | C33: PC06 | D33: เบิก | E33: 02-ขนมปังไส้เผือก | F33: 20 | G33: =IF(Transaction[[#This Row],[Products]]="","",BalanceStock) ->  | H33: =IF(Transaction[[#This Row],[Products]]="","",(1-INDEX(dProduct[%Discount],MATCH(Transaction[[#This Row],[Products]],dProduct[NameTH],0)))*INDEX(dProduct[PriceCase],MATCH(Transaction[[#This Row],[Products]],dProduct[NameTH],0))) ->  | I33: =IF(Transaction[[#This Row],[Products]]="",0,Transaction[[#This Row],[Qty In-Out]]*Transaction[[#This Row],[Discount_Price]]) ->  | K33: 12
B34: 2018-06-30 | C34: PC06 | D34: เบิก | E34: 03-ขนมปังไส้ถั่วแดง | F34: 20 | G34: =IF(Transaction[[#This Row],[Products]]="","",BalanceStock) ->  | H34: =IF(Transaction[[#This Row],[Products]]="","",(1-INDEX(dProduct[%Discount],MATCH(Transaction[[#This Row],[Products]],dProduct[NameTH],0)))*INDEX(dProduct[PriceCase],MATCH(Transaction[[#This Row],[Products]],dProduct[NameTH],0))) ->  | I34: =IF(Transaction[[#This Row],[Products]]="",0,Transaction[[#This Row],[Qty In-Out]]*Transaction[[#This Row],[Discount_Price]]) ->  | K34: 13
B35: 2018-06-30 | C35: PC06 | D35: เบิก | E35: 04-โมจิไส้ถั่ว | F35: 20 | G35: =IF(Transaction[[#This Row],[Products]]="","",BalanceStock) ->  | H35: =IF(Transaction[[#This Row],[Products]]="","",(1-INDEX(dProduct[%Discount],MATCH(Transaction[[#This Row],[Products]],dProduct[NameTH],0)))*INDEX(dProduct[PriceCase],MATCH(Transaction[[#This Row],[Products]],dProduct[NameTH],0))) ->  | I35: =IF(Transaction[[#This Row],[Products]]="",0,Transaction[[#This Row],[Qty In-Out]]*Transaction[[#This Row],[Discount_Price]]) ->  | K35: 14
B36: 2018-06-30 | C36: PC06 | D36: เบิก | E36: 05-ขนมปังไส้สังขยาใหญ่ | F36: 20 | G36: =IF(Transaction[[#This Row],[Products]]="","",BalanceStock) ->  | H36: =IF(Transaction[[#This Row],[Products]]="","",(1-INDEX(dProduct[%Discount],MATCH(Transaction[[#This Row],[Products]],dProduct[NameTH],0)))*INDEX(dProduct[PriceCase],MATCH(Transaction[[#This Row],[Products]],dProduct[NameTH],0))) ->  | I36: =IF(Transaction[[#This Row],[Products]]="",0,Transaction[[#This Row],[Qty In-Out]]*Transaction[[#This Row],[Discount_Price]]) ->  | K36: 15
B37: 2018-06-28 | C37: PC04 | D37: เบิก | E37: 01-ขนมปังไส้สังขยาเล็ก | F37: 50 | G37: =IF(Transaction[[#This Row],[Products]]="","",BalanceStock) ->  | H37: =IF(Transaction[[#This Row],[Products]]="","",(1-INDEX(dProduct[%Discount],MATCH(Transaction[[#This Row],[Products]],dProduct[NameTH],0)))*INDEX(dProduct[PriceCase],MATCH(Transaction[[#This Row],[Products]],dProduct[NameTH],0))) ->  | I37: =IF(Transaction[[#This Row],[Products]]="",0,Transaction[[#This Row],[Qty In-Out]]*Transaction[[#This Row],[Discount_Price]]) ->  | K37: 16
B38: 2018-06-28 | C38: PC04 | D38: เบิก | E38: 02-ขนมปังไส้เผือก | F38: 60 | G38: =IF(Transaction[[#This Row],[Products]]="","",BalanceStock) ->  | H38: =IF(Transaction[[#This Row],[Products]]="","",(1-INDEX(dProduct[%Discount],MATCH(Transaction[[#This Row],[Products]],dProduct[NameTH],0)))*INDEX(dProduct[PriceCase],MATCH(Transaction[[#This Row],[Products]],dProduct[NameTH],0))) ->  | I38: =IF(Transaction[[#This Row],[Products]]="",0,Transaction[[#This Row],[Qty In-Out]]*Transaction[[#This Row],[Discount_Price]]) ->  | K38: 17
B39: 2018-06-28 | C39: PC04 | D39: เบิก | E39: 03-ขนมปังไส้ถั่วแดง | F39: 40 | G39: =IF(Transaction[[#This Row],[Products]]="","",BalanceStock) ->  | H39: =IF(Transaction[[#This Row],[Products]]="","",(1-INDEX(dProduct[%Discount],MATCH(Transaction[[#This Row],[Products]],dProduct[NameTH],0)))*INDEX(dProduct[PriceCase],MATCH(Transaction[[#This Row],[Products]],dProduct[NameTH],0))) ->  | I39: =IF(Transaction[[#This Row],[Products]]="",0,Transaction[[#This Row],[Qty In-Out]]*Transaction[[#This Row],[Discount_Price]]) ->  | K39: 18
B40: 2018-06-28 | C40: PC04 | D40: เบิก | E40: 04-โมจิไส้ถั่ว | F40: 30 | G40: =IF(Transaction[[#This Row],[Products]]="","",BalanceStock) ->  | H40: =IF(Transaction[[#This Row],[Products]]="","",(1-INDEX(dProduct[%Discount],MATCH(Transaction[[#This Row],[Products]],dProduct[NameTH],0)))*INDEX(dProduct[PriceCase],MATCH(Transaction[[#This Row],[Products]],dProduct[NameTH],0))) ->  | I40: =IF(Transaction[[#This Row],[Products]]="",0,Transaction[[#This Row],[Qty In-Out]]*Transaction[[#This Row],[Discount_Price]]) ->  | K40: 19
B41: 2018-06-28 | C41: PC04 | D41: เบิก | E41: 05-ขนมปังไส้สังขยาใหญ่ | F41: 15 | G41: =IF(Transaction[[#This Row],[Products]]="","",BalanceStock) ->  | H41: =IF(Transaction[[#This Row],[Products]]="","",(1-INDEX(dProduct[%Discount],MATCH(Transaction[[#This Row],[Products]],dProduct[NameTH],0)))*INDEX(dProduct[PriceCase],MATCH(Transaction[[#This Row],[Products]],dProduct[NameTH],0))) ->  | I41: =IF(Transaction[[#This Row],[Products]]="",0,Transaction[[#This Row],[Qty In-Out]]*Transaction[[#This Row],[Discount_Price]]) ->  | K41: 20
B42: 2018-06-28 | C42: PC02 | D42: เบิก | E42: 02-ขนมปังไส้เผือก | F42: 25 | G42: =IF(Transaction[[#This Row],[Products]]="","",BalanceStock) ->  | H42: =IF(Transaction[[#This Row],[Products]]="","",(1-INDEX(dProduct[%Discount],MATCH(Transaction[[#This Row],[Products]],dProduct[NameTH],0)))*INDEX(dProduct[PriceCase],MATCH(Transaction[[#This Row],[Products]],dProduct[NameTH],0))) ->  | I42: =IF(Transaction[[#This Row],[Products]]="",0,Transaction[[#This Row],[Qty In-Out]]*Transaction[[#This Row],[Discount_Price]]) ->  | K42: 21 | L42: =IFERROR(INDEX(Delivery_Conn,$K42,L$19),"") -> 
B43: 2018-06-27 | C43: PC02 | D43: เบิก | E43: 01-ขนมปังไส้สังขยาเล็ก | F43: 50 | G43: =IF(Transaction[[#This Row],[Products]]="","",BalanceStock) ->  | H43: =IF(Transaction[[#This Row],[Products]]="","",(1-INDEX(dProduct[%Discount],MATCH(Transaction[[#This Row],[Products]],dProduct[NameTH],0)))*INDEX(dProduct[PriceCase],MATCH(Transaction[[#This Row],[Products]],dProduct[NameTH],0))) ->  | I43: =IF(Transaction[[#This Row],[Products]]="",0,Transaction[[#This Row],[Qty In-Out]]*Transaction[[#This Row],[Discount_Price]]) ->  | K43: 22
B44: 2018-06-27 | C44: PC02 | D44: เบิก | E44: 02-ขนมปังไส้เผือก | F44: 50 | G44: =IF(Transaction[[#This Row],[Products]]="","",BalanceStock) ->  | H44: =IF(Transaction[[#This Row],[Products]]="","",(1-INDEX(dProduct[%Discount],MATCH(Transaction[[#This Row],[Products]],dProduct[NameTH],0)))*INDEX(dProduct[PriceCase],MATCH(Transaction[[#This Row],[Products]],dProduct[NameTH],0))) ->  | I44: =IF(Transaction[[#This Row],[Products]]="",0,Transaction[[#This Row],[Qty In-Out]]*Transaction[[#This Row],[Discount_Price]]) ->  | K44: 23
B45: 2018-06-27 | C45: PC02 | D45: เบิก | E45: 03-ขนมปังไส้ถั่วแดง | F45: 50 | G45: =IF(Transaction[[#This Row],[Products]]="","",BalanceStock) ->  | H45: =IF(Transaction[[#This Row],[Products]]="","",(1-INDEX(dProduct[%Discount],MATCH(Transaction[[#This Row],[Products]],dProduct[NameTH],0)))*INDEX(dProduct[PriceCase],MATCH(Transaction[[#This Row],[Products]],dProduct[NameTH],0))) ->  | I45: =IF(Transaction[[#This Row],[Products]]="",0,Transaction[[#This Row],[Qty In-Out]]*Transaction[[#This Row],[Discount_Price]]) ->  | K45: 24
B46: 2018-06-27 | C46: PC02 | D46: เบิก | E46: 04-โมจิไส้ถั่ว | F46: 50 | G46: =IF(Transaction[[#This Row],[Products]]="","",BalanceStock) ->  | H46: =IF(Transaction[[#This Row],[Products]]="","",(1-INDEX(dProduct[%Discount],MATCH(Transaction[[#This Row],[Products]],dProduct[NameTH],0)))*INDEX(dProduct[PriceCase],MATCH(Transaction[[#This Row],[Products]],dProduct[NameTH],0))) ->  | I46: =IF(Transaction[[#This Row],[Products]]="",0,Transaction[[#This Row],[Qty In-Out]]*Transaction[[#This Row],[Discount_Price]]) ->  | K46: 25
B47: 2018-07-30 | C47: PC01 | D47: เบิก | E47: 01-ขนมปังไส้สังขยาเล็ก | F47: 120 | G47: =IF(Transaction[[#This Row],[Products]]="","",BalanceStock) ->  | H47: =IF(Transaction[[#This Row],[Products]]="","",(1-INDEX(dProduct[%Discount],MATCH(Transaction[[#This Row],[Products]],dProduct[NameTH],0)))*INDEX(dProduct[PriceCase],MATCH(Transaction[[#This Row],[Products]],dProduct[NameTH],0))) ->  | I47: =IF(Transaction[[#This Row],[Products]]="",0,Transaction[[#This Row],[Qty In-Out]]*Transaction[[#This Row],[Discount_Price]]) ->  | K47: 26
B48: 2018-07-30 | C48: PC01 | D48: เบิก | E48: 02-ขนมปังไส้เผือก | F48: 120 | G48: =IF(Transaction[[#This Row],[Products]]="","",BalanceStock) ->  | H48: =IF(Transaction[[#This Row],[Products]]="","",(1-INDEX(dProduct[%Discount],MATCH(Transaction[[#This Row],[Products]],dProduct[NameTH],0)))*INDEX(dProduct[PriceCase],MATCH(Transaction[[#This Row],[Products]],dProduct[NameTH],0))) ->  | I48: =IF(Transaction[[#This Row],[Products]]="",0,Transaction[[#This Row],[Qty In-Out]]*Transaction[[#This Row],[Discount_Price]]) ->  | K48: 27
B49: 2018-07-30 | C49: PC01 | D49: เบิก | E49: 03-ขนมปังไส้ถั่วแดง | F49: 120 | G49: =IF(Transaction[[#This Row],[Products]]="","",BalanceStock) ->  | H49: =IF(Transaction[[#This Row],[Products]]="","",(1-INDEX(dProduct[%Discount],MATCH(Transaction[[#This Row],[Products]],dProduct[NameTH],0)))*INDEX(dProduct[PriceCase],MATCH(Transaction[[#This Row],[Products]],dProduct[NameTH],0))) ->  | I49: =IF(Transaction[[#This Row],[Products]]="",0,Transaction[[#This Row],[Qty In-Out]]*Transaction[[#This Row],[Discount_Price]]) ->  | K49: 28
B50: 2018-07-30 | C50: PC01 | D50: เบิก | E50: 04-โมจิไส้ถั่ว | F50: 80 | G50: =IF(Transaction[[#This Row],[Products]]="","",BalanceStock) ->  | H50: =IF(Transaction[[#This Row],[Products]]="","",(1-INDEX(dProduct[%Discount],MATCH(Transaction[[#This Row],[Products]],dProduct[NameTH],0)))*INDEX(dProduct[PriceCase],MATCH(Transaction[[#This Row],[Products]],dProduct[NameTH],0))) ->  | I50: =IF(Transaction[[#This Row],[Products]]="",0,Transaction[[#This Row],[Qty In-Out]]*Transaction[[#This Row],[Discount_Price]]) ->  | K50: 29
B51: 2018-07-30 | C51: PC01 | D51: เบิก | E51: 05-ขนมปังไส้สังขยาใหญ่ | F51: 50 | G51: =IF(Transaction[[#This Row],[Products]]="","",BalanceStock) ->  | H51: =IF(Transaction[[#This Row],[Products]]="","",(1-INDEX(dProduct[%Discount],MATCH(Transaction[[#This Row],[Products]],dProduct[NameTH],0)))*INDEX(dProduct[PriceCase],MATCH(Transaction[[#This Row],[Products]],dProduct[NameTH],0))) ->  | I51: =IF(Transaction[[#This Row],[Products]]="",0,Transaction[[#This Row],[Qty In-Out]]*Transaction[[#This Row],[Discount_Price]]) ->  | K51: 30
B52: 2018-07-30 | C52: PC01 | D52: เบิก | E52: 06-ขนมปังไส้หมูหยองเล็ก | F52: 30 | G52: =IF(Transaction[[#This Row],[Products]]="","",BalanceStock) ->  | H52: =IF(Transaction[[#This Row],[Products]]="","",(1-INDEX(dProduct[%Discount],MATCH(Transaction[[#This Row],[Products]],dProduct[NameTH],0)))*INDEX(dProduct[PriceCase],MATCH(Transaction[[#This Row],[Products]],dProduct[NameTH],0))) ->  | I52: =IF(Transaction[[#This Row],[Products]]="",0,Transaction[[#This Row],[Qty In-Out]]*Transaction[[#This Row],[Discount_Price]]) ->  | K52: 31 | L52: =IFERROR(INDEX(Delivery_Conn,$K52,L$19),"") -> 
B53: 2018-07-30 | C53: PC01 | D53: เบิก | E53: 07-เค้กกล้วยหอม | F53: 120 | G53: =IF(Transaction[[#This Row],[Products]]="","",BalanceStock) ->  | H53: =IF(Transaction[[#This Row],[Products]]="","",(1-INDEX(dProduct[%Discount],MATCH(Transaction[[#This Row],[Products]],dProduct[NameTH],0)))*INDEX(dProduct[PriceCase],MATCH(Transaction[[#This Row],[Products]],dProduct[NameTH],0))) ->  | I53: =IF(Transaction[[#This Row],[Products]]="",0,Transaction[[#This Row],[Qty In-Out]]*Transaction[[#This Row],[Discount_Price]]) ->  | K53: 32
B54: 2018-07-30 | C54: PC01 | D54: เบิก | E54: 08-เค้กบัตเตอร์ | F54: 20 | G54: =IF(Transaction[[#This Row],[Products]]="","",BalanceStock) ->  | H54: =IF(Transaction[[#This Row],[Products]]="","",(1-INDEX(dProduct[%Discount],MATCH(Transaction[[#This Row],[Products]],dProduct[NameTH],0)))*INDEX(dProduct[PriceCase],MATCH(Transaction[[#This Row],[Products]],dProduct[NameTH],0))) ->  | I54: =IF(Transaction[[#This Row],[Products]]="",0,Transaction[[#This Row],[Qty In-Out]]*Transaction[[#This Row],[Discount_Price]]) ->  | K54: 33
B55: 2018-07-30 | C55: PC01 | D55: เบิก | E55: 09-ขนมปังโรลมันเทศ | F55: 20 | G55: =IF(Transaction[[#This Row],[Products]]="","",BalanceStock) ->  | H55: =IF(Transaction[[#This Row],[Products]]="","",(1-INDEX(dProduct[%Discount],MATCH(Transaction[[#This Row],[Products]],dProduct[NameTH],0)))*INDEX(dProduct[PriceCase],MATCH(Transaction[[#This Row],[Products]],dProduct[NameTH],0))) ->  | I55: =IF(Transaction[[#This Row],[Products]]="",0,Transaction[[#This Row],[Qty In-Out]]*Transaction[[#This Row],[Discount_Price]]) ->  | K55: 34
B56: 2018-07-30 | C56: PC01 | D56: เบิก | E56: 10-ขนมปังโรลถั่วแดง | F56: 120 | G56: =IF(Transaction[[#This Row],[Products]]="","",BalanceStock) ->  | H56: =IF(Transaction[[#This Row],[Products]]="","",(1-INDEX(dProduct[%Discount],MATCH(Transaction[[#This Row],[Products]],dProduct[NameTH],0)))*INDEX(dProduct[PriceCase],MATCH(Transaction[[#This Row],[Products]],dProduct[NameTH],0))) ->  | I56: =IF(Transaction[[#This Row],[Products]]="",0,Transaction[[#This Row],[Qty In-Out]]*Transaction[[#This Row],[Discount_Price]]) ->  | K56: 35
B57: 2018-07-30 | C57: PC01 | D57: เบิก | E57: 12-ขนมปังพิซซ่า | F57: 70 | G57: =IF(Transaction[[#This Row],[Products]]="","",BalanceStock) ->  | H57: =IF(Transaction[[#This Row],[Products]]="","",(1-INDEX(dProduct[%Discount],MATCH(Transaction[[#This Row],[Products]],dProduct[NameTH],0)))*INDEX(dProduct[PriceCase],MATCH(Transaction[[#This Row],[Products]],dProduct[NameTH],0))) ->  | I57: =IF(Transaction[[#This Row],[Products]]="",0,Transaction[[#This Row],[Qty In-Out]]*Transaction[[#This Row],[Discount_Price]]) ->  | K57: 36
B58: 2018-07-30 | C58: PC01 | D58: เบิก | E58: 13-ขนมปังหมูหยองน้ำสลัด | F58: 320 | G58: =IF(Transaction[[#This Row],[Products]]="","",BalanceStock) ->  | H58: =IF(Transaction[[#This Row],[Products]]="","",(1-INDEX(dProduct[%Discount],MATCH(Transaction[[#This Row],[Products]],dProduct[NameTH],0)))*INDEX(dProduct[PriceCase],MATCH(Transaction[[#This Row],[Products]],dProduct[NameTH],0))) ->  | I58: =IF(Transaction[[#This Row],[Products]]="",0,Transaction[[#This Row],[Qty In-Out]]*Transaction[[#This Row],[Discount_Price]]) ->  | K58: 37
B59: 2018-07-30 | C59: PC01 | D59: เบิก | E59: 14-ขนมปังไส้กรอก | F59: 150 | G59: =IF(Transaction[[#This Row],[Products]]="","",BalanceStock) ->  | H59: =IF(Transaction[[#This Row],[Products]]="","",(1-INDEX(dProduct[%Discount],MATCH(Transaction[[#This Row],[Products]],dProduct[NameTH],0)))*INDEX(dProduct[PriceCase],MATCH(Transaction[[#This Row],[Products]],dProduct[NameTH],0))) ->  | I59: =IF(Transaction[[#This Row],[Products]]="",0,Transaction[[#This Row],[Qty In-Out]]*Transaction[[#This Row],[Discount_Price]]) ->  | K59: 38
B60: 2018-07-30 | C60: PC01 | D60: เบิก | E60: 15-ขนมก้านบัว | F60: 40 | G60: =IF(Transaction[[#This Row],[Products]]="","",BalanceStock) ->  | H60: =IF(Transaction[[#This Row],[Products]]="","",(1-INDEX(dProduct[%Discount],MATCH(Transaction[[#This Row],[Products]],dProduct[NameTH],0)))*INDEX(dProduct[PriceCase],MATCH(Transaction[[#This Row],[Products]],dProduct[NameTH],0))) ->  | I60: =IF(Transaction[[#This Row],[Products]]="",0,Transaction[[#This Row],[Qty In-Out]]*Transaction[[#This Row],[Discount_Price]]) ->  | K60: 39
B61: 2018-07-30 | C61: PC01 | D61: เบิก | E61: 16-ขนมปังไส้หมูหยองใหญ่ | F61: 60 | G61: =IF(Transaction[[#This Row],[Products]]="","",BalanceStock) ->  | H61: =IF(Transaction[[#This Row],[Products]]="","",(1-INDEX(dProduct[%Discount],MATCH(Transaction[[#This Row],[Products]],dProduct[NameTH],0)))*INDEX(dProduct[PriceCase],MATCH(Transaction[[#This Row],[Products]],dProduct[NameTH],0))) ->  | I61: =IF(Transaction[[#This Row],[Products]]="",0,Transaction[[#This Row],[Qty In-Out]]*Transaction[[#This Row],[Discount_Price]]) ->  | K61: 40
B62: 2018-07-30 | C62: PC01 | D62: เบิก | E62: 17-ขนมปังไส้ครีมสลัด | F62: 50 | G62: =IF(Transaction[[#This Row],[Products]]="","",BalanceStock) ->  | H62: =IF(Transaction[[#This Row],[Products]]="","",(1-INDEX(dProduct[%Discount],MATCH(Transaction[[#This Row],[Products]],dProduct[NameTH],0)))*INDEX(dProduct[PriceCase],MATCH(Transaction[[#This Row],[Products]],dProduct[NameTH],0))) ->  | I62: =IF(Transaction[[#This Row],[Products]]="",0,Transaction[[#This Row],[Qty In-Out]]*Transaction[[#This Row],[Discount_Price]]) ->  | K62: 41 | L62: =IFERROR(INDEX(Delivery_Conn,$K62,L$19),"") -> 
B63: 2018-07-30 | C63: PC01 | D63: เบิก | E63: 18-ขนมปังไก่หยองน้ำสลัด | F63: 60 | G63: =IF(Transaction[[#This Row],[Products]]="","",BalanceStock) ->  | H63: =IF(Transaction[[#This Row],[Products]]="","",(1-INDEX(dProduct[%Discount],MATCH(Transaction[[#This Row],[Products]],dProduct[NameTH],0)))*INDEX(dProduct[PriceCase],MATCH(Transaction[[#This Row],[Products]],dProduct[NameTH],0))) ->  | I63: =IF(Transaction[[#This Row],[Products]]="",0,Transaction[[#This Row],[Qty In-Out]]*Transaction[[#This Row],[Discount_Price]]) ->  | K63: 42
B64: 2018-07-30 | C64: PC01 | D64: เบิก | E64: 20-ปังกรอบเนยสด | F64: 5 | G64: =IF(Transaction[[#This Row],[Products]]="","",BalanceStock) ->  | H64: =IF(Transaction[[#This Row],[Products]]="","",(1-INDEX(dProduct[%Discount],MATCH(Transaction[[#This Row],[Products]],dProduct[NameTH],0)))*INDEX(dProduct[PriceCase],MATCH(Transaction[[#This Row],[Products]],dProduct[NameTH],0))) ->  | I64: =IF(Transaction[[#This Row],[Products]]="",0,Transaction[[#This Row],[Qty In-Out]]*Transaction[[#This Row],[Discount_Price]]) ->  | K64: 43
B65: 2018-07-30 | C65: PC01 | D65: เบิก | E65: 21-ปังกรอบกระเทียม | F65: 5 | G65: =IF(Transaction[[#This Row],[Products]]="","",BalanceStock) ->  | H65: =IF(Transaction[[#This Row],[Products]]="","",(1-INDEX(dProduct[%Discount],MATCH(Transaction[[#This Row],[Products]],dProduct[NameTH],0)))*INDEX(dProduct[PriceCase],MATCH(Transaction[[#This Row],[Products]],dProduct[NameTH],0))) ->  | I65: =IF(Transaction[[#This Row],[Products]]="",0,Transaction[[#This Row],[Qty In-Out]]*Transaction[[#This Row],[Discount_Price]]) ->  | K65: 44
B66: 2018-07-30 | C66: PC01 | D66: เบิก | E66: 23-ขนมปังหมูหยองน้ำพริกเผา | F66: 40 | G66: =IF(Transaction[[#This Row],[Products]]="","",BalanceStock) ->  | H66: =IF(Transaction[[#This Row],[Products]]="","",(1-INDEX(dProduct[%Discount],MATCH(Transaction[[#This Row],[Products]],dProduct[NameTH],0)))*INDEX(dProduct[PriceCase],MATCH(Transaction[[#This Row],[Products]],dProduct[NameTH],0))) ->  | I66: =IF(Transaction[[#This Row],[Products]]="",0,Transaction[[#This Row],[Qty In-Out]]*Transaction[[#This Row],[Discount_Price]]) ->  | K66: 45
B67: 2018-07-30 | C67: PC01 | D67: เบิก | E67: 31-ขนมปังแผ่นหน้าเนยสด | F67: 10 | G67: =IF(Transaction[[#This Row],[Products]]="","",BalanceStock) ->  | H67: =IF(Transaction[[#This Row],[Products]]="","",(1-INDEX(dProduct[%Discount],MATCH(Transaction[[#This Row],[Products]],dProduct[NameTH],0)))*INDEX(dProduct[PriceCase],MATCH(Transaction[[#This Row],[Products]],dProduct[NameTH],0))) ->  | I67: =IF(Transaction[[#This Row],[Products]]="",0,Transaction[[#This Row],[Qty In-Out]]*Transaction[[#This Row],[Discount_Price]]) ->  | K67: 46
B68: 2018-07-30 | C68: PC01 | D68: เบิก | E68: 38-ขนมปังพิซซ่าปูอัดแฮม | F68: 20 | G68: =IF(Transaction[[#This Row],[Products]]="","",BalanceStock) ->  | H68: =IF(Transaction[[#This Row],[Products]]="","",(1-INDEX(dProduct[%Discount],MATCH(Transaction[[#This Row],[Products]],dProduct[NameTH],0)))*INDEX(dProduct[PriceCase],MATCH(Transaction[[#This Row],[Products]],dProduct[NameTH],0))) ->  | I68: =IF(Transaction[[#This Row],[Products]]="",0,Transaction[[#This Row],[Qty In-Out]]*Transaction[[#This Row],[Discount_Price]]) ->  | K68: 47
B69: 2018-07-30 | C69: PC01 | D69: เบิก | E69: 39-ขนมปังไส้กรอกคอกเทลหมู | F69: 10 | G69: =IF(Transaction[[#This Row],[Products]]="","",BalanceStock) ->  | H69: =IF(Transaction[[#This Row],[Products]]="","",(1-INDEX(dProduct[%Discount],MATCH(Transaction[[#This Row],[Products]],dProduct[NameTH],0)))*INDEX(dProduct[PriceCase],MATCH(Transaction[[#This Row],[Products]],dProduct[NameTH],0))) ->  | I69: =IF(Transaction[[#This Row],[Products]]="",0,Transaction[[#This Row],[Qty In-Out]]*Transaction[[#This Row],[Discount_Price]]) ->  | K69: 48
G70: =IF(Transaction[[#This Row],[Products]]="","",BalanceStock) ->  | H70: =IF(Transaction[[#This Row],[Products]]="","",(1-INDEX(dProduct[%Discount],MATCH(Transaction[[#This Row],[Products]],dProduct[NameTH],0)))*INDEX(dProduct[PriceCase],MATCH(Transaction[[#This Row],[Products]],dProduct[NameTH],0))) ->  | I70: =IF(Transaction[[#This Row],[Products]]="",0,Transaction[[#This Row],[Qty In-Out]]*Transaction[[#This Row],[Discount_Price]]) -> 0 | K70: 49
K71: 50
K72: 51
K73: 52
K74: 53
K75: 54
K76: 55

Sheet Delivery_List (hidden)
F1: SETTING | G1: PRODUCTS | H1: TRANSACTION | I1: ORDER | J1: REPORT
AS2: ="" -> 
C3: ใบเบิกสินค้าประจำสายวิ่งรายวัน (DAILY VAN ROUTE'S DELIVERY DETAILS) | I3: PC01 | N3: ใบเบิกสินค้าประจำสายวิ่งรายวัน (DAILY VAN ROUTE'S DELIVERY DETAILS) | T3: =LEFT(Select_Route,FIND("0",Select_Route))&RIGHT(Select_Route)+1 -> PC02 | Y3: ใบเบิกสินค้าประจำสายวิ่งรายวัน (DAILY VAN ROUTE'S DELIVERY DETAILS) | AE3: =LEFT(Select_Route,FIND("0",Select_Route))&RIGHT(Select_Route)+2 -> PC03 | AJ3: ใบเบิกสินค้าประจำสายวิ่งรายวัน (DAILY VAN ROUTE'S DELIVERY DETAILS) | AP3: =LEFT(Select_Route,FIND("0",Select_Route))&RIGHT(Select_Route)+3 -> PC04
C5: วันที่ขอเบิก : | E5: 30 | F5: ก.ค. | G5: 2018 | I5: =TEXT(Delivery_List!Select_Date,"[$-,107]dddd") -> จันทร์ | N5: วันที่ขอเบิก : | P5: =$E$5 -> 30 | Q5: =$F$5 -> ก.ค. | R5: =$G$5 -> 2018 | T5: =$I$5 -> จันทร์ | Y5: วันที่ขอเบิก : | AA5: =$E$5 -> 30 | AB5: =$F$5 -> ก.ค. | AC5: =$G$5 -> 2018 | AE5: =$I$5 -> จันทร์ | AJ5: วันที่ขอเบิก : | AL5: =$E$5 -> 30 | AM5: =$F$5 -> ก.ค. | AN5: =$G$5 -> 2018 | AP5: =$I$5 -> จันทร์
C8: พข. | G8: ผชข. | N8: พข. | R8: ผชข. | Y8: พข. | AC8: ผชข. | AJ8: พข. | AN8: ผชข.
C10: ลำดับ | D10: รายการ | G10: ยกมา | H10: เบิก | I10: เหลือ | J10: เสีย | N10: ลำดับ | O10: รายการ | R10: ยกมา | S10: เบิก | T10: เหลือ | U10: เสีย | Y10: ลำดับ | Z10: รายการ | AC10: ยกมา | AD10: เบิก | AE10: เหลือ | AF10: เสีย | AJ10: ลำดับ | AK10: รายการ | AN10: ยกมา | AO10: เบิก | AP10: เหลือ | AQ10: เสีย
C11: No. | D11: Products Name | G11: (ชิ้น) | H11: (ชิ้น) | I11: (ชิ้น) | J11: (ชิ้น) | N11: No. | O11: Products Name | R11: (ชิ้น) | S11: (ชิ้น) | T11: (ชิ้น) | U11: (ชิ้น) | Y11: No. | Z11: Products Name | AC11: (ชิ้น) | AD11: (ชิ้น) | AE11: (ชิ้น) | AF11: (ชิ้น) | AJ11: No. | AK11: Products Name | AN11: (ชิ้น) | AO11: (ชิ้น) | AP11: (ชิ้น) | AQ11: (ชิ้น)
A12: =IFERROR(IF(COUNT($A$11:$A11)+1>COUNTIF(Transaction[Route],I$3),"",_xlfn.AGGREGATE(15,6,(ROW(Transaction[Date])-ROW(Transaction[[#Headers],[Date]]))/((Transaction[Route]=I$3)*(Transaction[Products]=Delivery_List!$D12)*(Transaction[Date]=Delivery_List!Select_Date)*(Transaction[Type]="เบิก")),1)),"") -> 27 | B12: =IF(D12="","",INDEX(dProduct[Pcs/Unit],MATCH(Delivery_List!D12,dProduct[NameTH],0))) ->  | C12: =IF(A12="","",COUNT(A$12:A12)) -> 1 | D12: 01-ขนมปังไส้สังขยาเล็ก | G12: =IF(D12="","",SUMPRODUCT((Transaction[Route]=I$3)*(Transaction[Products]=D12)*(Transaction[Type]="ยกมา")*(Transaction[Date]=Delivery_List!Select_Date)*Transaction[Qty In-Out])) -> 0 | H12: =IF(A12="","",INDEX(Transaction[Qty In-Out],A12)) -> 120 | K12: =IF(D12="","",INDEX(dProduct[Catagory],MATCH(Delivery_List!D12,dProduct[NameTH],0))) ->  | L12: =IFERROR(IF(COUNT($A$11:$A11)+1>COUNTIF(Transaction[Route],T$3),"",_xlfn.AGGREGATE(15,6,(ROW(Transaction[Date])-ROW(Transaction[[#Headers],[Date]]))/((Transaction[Route]=T$3)*(Transaction[Products]=Delivery_List!$D12)*(Transaction[Date]=Delivery_List!Select_Date)*(Transaction[Type]="เบิก")),1)),"") ->  | M12: =IF(O12="","",INDEX(dProduct[Pcs/Unit],MATCH(Delivery_List!O12,dProduct[NameTH],0))) ->  | N12: =IF(L12="","",COUNT(L$12:L12)) ->  | O12: =IF(D12="","",$D12) -> 01-ขนมปังไส้สังขยาเล็ก | R12: =IF(O12="","",SUMPRODUCT((Transaction[Route]=T$3)*(Transaction[Products]=O12)*(Transaction[Type]="ยกมา")*(Transaction[Date]=Delivery_List!Select_Date)*Transaction[Qty In-Out])) -> 0 | S12: =IF(L12="","",INDEX(Transaction[Qty In-Out],L12)) ->  | V12: =IF(O12="","",INDEX(dProduct[Catagory],MATCH(Delivery_List!O12,dProduct[NameTH],0))) ->  | W12: =IFERROR(IF(COUNT($A$11:$A11)+1>COUNTIF(Transaction[Route],AE$3),"",_xlfn.AGGREGATE(15,6,(ROW(Transaction[Date])-ROW(Transaction[[#Headers],[Date]]))/((Transaction[Route]=AE$3)*(Transaction[Products]=Delivery_List!$D12)*(Transaction[Date]=Delivery_List!Select_Date)*(Transaction[Type]="เบิก")),1)),"") ->  | X12: =IF(Z12="","",INDEX(dProduct[Pcs/Unit],MATCH(Delivery_List!Z12,dProduct[NameTH],0))) ->  | Y12: =IF(W12="","",COUNT(W$12:W12)) ->  | Z12: =IF(O12="","",$D12) -> 01-ขนมปังไส้สังขยาเล็ก | AC12: =IF(Z12="","",SUMPRODUCT((Transaction[Route]=AE$3)*(Transaction[Products]=Z12)*(Transaction[Type]="ยกมา")*(Transaction[Date]=Delivery_List!Select_Date)*Transaction[Qty In-Out])) -> 0 | AD12: =IF(W12="","",INDEX(Transaction[Qty In-Out],W12)) ->  | AG12: =IF(Z12="","",INDEX(dProduct[Catagory],MATCH(Delivery_List!Z12,dProduct[NameTH],0))) ->  | AH12: =IFERROR(IF(COUNT($A$11:$A11)+1>COUNTIF(Transaction[Route],AP$3),"",_xlfn.AGGREGATE(15,6,(ROW(Transaction[Date])-ROW(Transaction[[#Headers],[Date]]))/((Transaction[Route]=AP$3)*(Transaction[Products]=Delivery_List!$D12)*(Transaction[Date]=Delivery_List!Select_Date)*(Transaction[Type]="เบิก")),1)),"") ->  | AI12: =IF(AK12="","",INDEX(dProduct[Pcs/Unit],MATCH(Delivery_List!AK12,dProduct[NameTH],0))) ->  | AJ12: =IF(AH12="","",COUNT(AH$12:AH12)) ->  | AK12: =IF(Z12="","",$D12) -> 01-ขนมปังไส้สังขยาเล็ก | AN12: =IF(AK12="","",SUMPRODUCT((Transaction[Route]=AP$3)*(Transaction[Products]=AK12)*(Transaction[Type]="ยกมา")*(Transaction[Date]=Delivery_List!Select_Date)*Transaction[Qty In-Out])) -> 0 | AO12: =IF(AH12="","",INDEX(Transaction[Qty In-Out],AH12)) ->  | AR12: =IF(AK12="","",INDEX(dProduct[Catagory],MATCH(Delivery_List!AK12,dProduct[NameTH],0))) -> 
A13: =IFERROR(IF(COUNT($A$11:$A12)+1>COUNTIF(Transaction[Route],I$3),"",_xlfn.AGGREGATE(15,6,(ROW(Transaction[Date])-ROW(Transaction[[#Headers],[Date]]))/((Transaction[Route]=I$3)*(Transaction[Products]=Delivery_List!$D13)*(Transaction[Date]=Delivery_List!Select_Date)*(Transaction[Type]="เบิก")),1)),"") -> 28 | B13: =IF(D13="","",INDEX(dProduct[Pcs/Unit],MATCH(Delivery_List!D13,dProduct[NameTH],0))) ->  | C13: =IF(A13="","",COUNT(A$12:A13)) -> 2 | D13: 02-ขนมปังไส้เผือก | G13: =IF(D13="","",SUMPRODUCT((Transaction[Route]=I$3)*(Transaction[Products]=D13)*(Transaction[Type]="ยกมา")*(Transaction[Date]=Delivery_List!Select_Date)*Transaction[Qty In-Out])) -> 0 | H13: =IF(A13="","",INDEX(Transaction[Qty In-Out],A13)) -> 120 | K13: =IF(D13="","",INDEX(dProduct[Catagory],MATCH(Delivery_List!D13,dProduct[NameTH],0))) ->  | L13: =IFERROR(IF(COUNT($A$11:$A12)+1>COUNTIF(Transaction[Route],T$3),"",_xlfn.AGGREGATE(15,6,(ROW(Transaction[Date])-ROW(Transaction[[#Headers],[Date]]))/((Transaction[Route]=T$3)*(Transaction[Products]=Delivery_List!$D13)*(Transaction[Date]=Delivery_List!Select_Date)*(Transaction[Type]="เบิก")),1)),"") ->  | M13: =IF(O13="","",INDEX(dProduct[Pcs/Unit],MATCH(Delivery_List!O13,dProduct[NameTH],0))) ->  | N13: =IF(L13="","",COUNT(L$12:L13)) ->  | O13: =IF(D13="","",$D13) -> 02-ขนมปังไส้เผือก | R13: =IF(O13="","",SUMPRODUCT((Transaction[Route]=T$3)*(Transaction[Products]=O13)*(Transaction[Type]="ยกมา")*(Transaction[Date]=Delivery_List!Select_Date)*Transaction[Qty In-Out])) -> 0 | S13: =IF(L13="","",INDEX(Transaction[Qty In-Out],L13)) ->  | V13: =IF(O13="","",INDEX(dProduct[Catagory],MATCH(Delivery_List!O13,dProduct[NameTH],0))) ->  | W13: =IFERROR(IF(COUNT($A$11:$A12)+1>COUNTIF(Transaction[Route],AE$3),"",_xlfn.AGGREGATE(15,6,(ROW(Transaction[Date])-ROW(Transaction[[#Headers],[Date]]))/((Transaction[Route]=AE$3)*(Transaction[Products]=Delivery_List!$D13)*(Transaction[Date]=Delivery_List!Select_Date)*(Transaction[Type]="เบิก")),1)),"") ->  | X13: =IF(Z13="","",INDEX(dProduct[Pcs/Unit],MATCH(Delivery_List!Z13,dProduct[NameTH],0))) ->  | Y13: =IF(W13="","",COUNT(W$12:W13)) ->  | Z13: =IF(O13="","",$D13) -> 02-ขนมปังไส้เผือก | AC13: =IF(Z13="","",SUMPRODUCT((Transaction[Route]=AE$3)*(Transaction[Products]=Z13)*(Transaction[Type]="ยกมา")*(Transaction[Date]=Delivery_List!Select_Date)*Transaction[Qty In-Out])) -> 0 | AD13: =IF(W13="","",INDEX(Transaction[Qty In-Out],W13)) ->  | AG13: =IF(Z13="","",INDEX(dProduct[Catagory],MATCH(Delivery_List!Z13,dProduct[NameTH],0))) ->  | AH13: =IFERROR(IF(COUNT($A$11:$A12)+1>COUNTIF(Transaction[Route],AP$3),"",_xlfn.AGGREGATE(15,6,(ROW(Transaction[Date])-ROW(Transaction[[#Headers],[Date]]))/((Transaction[Route]=AP$3)*(Transaction[Products]=Delivery_List!$D13)*(Transaction[Date]=Delivery_List!Select_Date)*(Transaction[Type]="เบิก")),1)),"") ->  | AI13: =IF(AK13="","",INDEX(dProduct[Pcs/Unit],MATCH(Delivery_List!AK13,dProduct[NameTH],0))) ->  | AJ13: =IF(AH13="","",COUNT(AH$12:AH13)) ->  | AK13: =IF(Z13="","",$D13) -> 02-ขนมปังไส้เผือก | AN13: =IF(AK13="","",SUMPRODUCT((Transaction[Route]=AP$3)*(Transaction[Products]=AK13)*(Transaction[Type]="ยกมา")*(Transaction[Date]=Delivery_List!Select_Date)*Transaction[Qty In-Out])) -> 0 | AO13: =IF(AH13="","",INDEX(Transaction[Qty In-Out],AH13)) ->  | AR13: =IF(AK13="","",INDEX(dProduct[Catagory],MATCH(Delivery_List!AK13,dProduct[NameTH],0))) -> 
A14: =IFERROR(IF(COUNT($A$11:$A13)+1>COUNTIF(Transaction[Route],I$3),"",_xlfn.AGGREGATE(15,6,(ROW(Transaction[Date])-ROW(Transaction[[#Headers],[Date]]))/((Transaction[Route]=I$3)*(Transaction[Products]=Delivery_List!$D14)*(Transaction[Date]=Delivery_List!Select_Date)*(Transaction[Type]="เบิก")),1)),"") -> 29 | B14: =IF(D14="","",INDEX(dProduct[Pcs/Unit],MATCH(Delivery_List!D14,dProduct[NameTH],0))) ->  | C14: =IF(A14="","",COUNT(A$12:A14)) -> 3 | D14: 03-ขนมปังไส้ถั่วแดง | G14: =IF(D14="","",SUMPRODUCT((Transaction[Route]=I$3)*(Transaction[Products]=D14)*(Transaction[Type]="ยกมา")*(Transaction[Date]=Delivery_List!Select_Date)*Transaction[Qty In-Out])) -> 0 | H14: =IF(A14="","",INDEX(Transaction[Qty In-Out],A14)) -> 120 | K14: =IF(D14="","",INDEX(dProduct[Catagory],MATCH(Delivery_List!D14,dProduct[NameTH],0))) ->  | L14: =IFERROR(IF(COUNT($A$11:$A13)+1>COUNTIF(Transaction[Route],T$3),"",_xlfn.AGGREGATE(15,6,(ROW(Transaction[Date])-ROW(Transaction[[#Headers],[Date]]))/((Transaction[Route]=T$3)*(Transaction[Products]=Delivery_List!$D14)*(Transaction[Date]=Delivery_List!Select_Date)*(Transaction[Type]="เบิก")),1)),"") ->  | M14: =IF(O14="","",INDEX(dProduct[Pcs/Unit],MATCH(Delivery_List!O14,dProduct[NameTH],0))) ->  | N14: =IF(L14="","",COUNT(L$12:L14)) ->  | O14: 03-ขนมปังไส้ถั่วแดง | R14: =IF(O14="","",SUMPRODUCT((Transaction[Route]=T$3)*(Transaction[Products]=O14)*(Transaction[Type]="ยกมา")*(Transaction[Date]=Delivery_List!Select_Date)*Transaction[Qty In-Out])) -> 0 | S14: =IF(L14="","",INDEX(Transaction[Qty In-Out],L14)) ->  | V14: =IF(O14="","",INDEX(dProduct[Catagory],MATCH(Delivery_List!O14,dProduct[NameTH],0))) ->  | W14: =IFERROR(IF(COUNT($A$11:$A13)+1>COUNTIF(Transaction[Route],AE$3),"",_xlfn.AGGREGATE(15,6,(ROW(Transaction[Date])-ROW(Transaction[[#Headers],[Date]]))/((Transaction[Route]=AE$3)*(Transaction[Products]=Delivery_List!$D14)*(Transaction[Date]=Delivery_List!Select_Date)*(Transaction[Type]="เบิก")),1)),"") ->  | X14: =IF(Z14="","",INDEX(dProduct[Pcs/Unit],MATCH(Delivery_List!Z14,dProduct[NameTH],0))) ->  | Y14: =IF(W14="","",COUNT(W$12:W14)) ->  | Z14: 03-ขนมปังไส้ถั่วแดง | AC14: =IF(Z14="","",SUMPRODUCT((Transaction[Route]=AE$3)*(Transaction[Products]=Z14)*(Transaction[Type]="ยกมา")*(Transaction[Date]=Delivery_List!Select_Date)*Transaction[Qty In-Out])) -> 0 | AD14: =IF(W14="","",INDEX(Transaction[Qty In-Out],W14)) ->  | AG14: =IF(Z14="","",INDEX(dProduct[Catagory],MATCH(Delivery_List!Z14,dProduct[NameTH],0))) ->  | AH14: =IFERROR(IF(COUNT($A$11:$A13)+1>COUNTIF(Transaction[Route],AP$3),"",_xlfn.AGGREGATE(15,6,(ROW(Transaction[Date])-ROW(Transaction[[#Headers],[Date]]))/((Transaction[Route]=AP$3)*(Transaction[Products]=Delivery_List!$D14)*(Transaction[Date]=Delivery_List!Select_Date)*(Transaction[Type]="เบิก")),1)),"") ->  | AI14: =IF(AK14="","",INDEX(dProduct[Pcs/Unit],MATCH(Delivery_List!AK14,dProduct[NameTH],0))) ->  | AJ14: =IF(AH14="","",COUNT(AH$12:AH14)) ->  | AK14: 03-ขนมปังไส้ถั่วแดง | AN14: =IF(AK14="","",SUMPRODUCT((Transaction[Route]=AP$3)*(Transaction[Products]=AK14)*(Transaction[Type]="ยกมา")*(Transaction[Date]=Delivery_List!Select_Date)*Transaction[Qty In-Out])) -> 0 | AO14: =IF(AH14="","",INDEX(Transaction[Qty In-Out],AH14)) ->  | AR14: =IF(AK14="","",INDEX(dProduct[Catagory],MATCH(Delivery_List!AK14,dProduct[NameTH],0))) -> 
A15: =IFERROR(IF(COUNT($A$11:$A14)+1>COUNTIF(Transaction[Route],I$3),"",_xlfn.AGGREGATE(15,6,(ROW(Transaction[Date])-ROW(Transaction[[#Headers],[Date]]))/((Transaction[Route]=I$3)*(Transaction[Products]=Delivery_List!$D15)*(Transaction[Date]=Delivery_List!Select_Date)*(Transaction[Type]="เบิก")),1)),"") -> 30 | B15: =IF(D15="","",INDEX(dProduct[Pcs/Unit],MATCH(Delivery_List!D15,dProduct[NameTH],0))) ->  | C15: =IF(A15="","",COUNT(A$12:A15)) -> 4 | D15: 04-โมจิไส้ถั่ว | G15: =IF(D15="","",SUMPRODUCT((Transaction[Route]=I$3)*(Transaction[Products]=D15)*(Transaction[Type]="ยกมา")*(Transaction[Date]=Delivery_List!Select_Date)*Transaction[Qty In-Out])) -> 0 | H15: =IF(A15="","",INDEX(Transaction[Qty In-Out],A15)) -> 80 | K15: =IF(D15="","",INDEX(dProduct[Catagory],MATCH(Delivery_List!D15,dProduct[NameTH],0))) ->  | L15: =IFERROR(IF(COUNT($A$11:$A14)+1>COUNTIF(Transaction[Route],T$3),"",_xlfn.AGGREGATE(15,6,(ROW(Transaction[Date])-ROW(Transaction[[#Headers],[Date]]))/((Transaction[Route]=T$3)*(Transaction[Products]=Delivery_List!$D15)*(Transaction[Date]=Delivery_List!Select_Date)*(Transaction[Type]="เบิก")),1)),"") ->  | M15: =IF(O15="","",INDEX(dProduct[Pcs/Unit],MATCH(Delivery_List!O15,dProduct[NameTH],0))) ->  | N15: =IF(L15="","",COUNT(L$12:L15)) ->  | O15: 04-โมจิไส้ถั่ว | R15: =IF(O15="","",SUMPRODUCT((Transaction[Route]=T$3)*(Transaction[Products]=O15)*(Transaction[Type]="ยกมา")*(Transaction[Date]=Delivery_List!Select_Date)*Transaction[Qty In-Out])) -> 0 | S15: =IF(L15="","",INDEX(Transaction[Qty In-Out],L15)) ->  | V15: =IF(O15="","",INDEX(dProduct[Catagory],MATCH(Delivery_List!O15,dProduct[NameTH],0))) ->  | W15: =IFERROR(IF(COUNT($A$11:$A14)+1>COUNTIF(Transaction[Route],AE$3),"",_xlfn.AGGREGATE(15,6,(ROW(Transaction[Date])-ROW(Transaction[[#Headers],[Date]]))/((Transaction[Route]=AE$3)*(Transaction[Products]=Delivery_List!$D15)*(Transaction[Date]=Delivery_List!Select_Date)*(Transaction[Type]="เบิก")),1)),"") ->  | X15: =IF(Z15="","",INDEX(dProduct[Pcs/Unit],MATCH(Delivery_List!Z15,dProduct[NameTH],0))) ->  | Y15: =IF(W15="","",COUNT(W$12:W15)) ->  | Z15: 04-โมจิไส้ถั่ว | AC15: =IF(Z15="","",SUMPRODUCT((Transaction[Route]=AE$3)*(Transaction[Products]=Z15)*(Transaction[Type]="ยกมา")*(Transaction[Date]=Delivery_List!Select_Date)*Transaction[Qty In-Out])) -> 0 | AD15: =IF(W15="","",INDEX(Transaction[Qty In-Out],W15)) ->  | AG15: =IF(Z15="","",INDEX(dProduct[Catagory],MATCH(Delivery_List!Z15,dProduct[NameTH],0))) ->  | AH15: =IFERROR(IF(COUNT($A$11:$A14)+1>COUNTIF(Transaction[Route],AP$3),"",_xlfn.AGGREGATE(15,6,(ROW(Transaction[Date])-ROW(Transaction[[#Headers],[Date]]))/((Transaction[Route]=AP$3)*(Transaction[Products]=Delivery_List!$D15)*(Transaction[Date]=Delivery_List!Select_Date)*(Transaction[Type]="เบิก")),1)),"") ->  | AI15: =IF(AK15="","",INDEX(dProduct[Pcs/Unit],MATCH(Delivery_List!AK15,dProduct[NameTH],0))) ->  | AJ15: =IF(AH15="","",COUNT(AH$12:AH15)) ->  | AK15: 04-โมจิไส้ถั่ว | AN15: =IF(AK15="","",SUMPRODUCT((Transaction[Route]=AP$3)*(Transaction[Products]=AK15)*(Transaction[Type]="ยกมา")*(Transaction[Date]=Delivery_List!Select_Date)*Transaction[Qty In-Out])) -> 0 | AO15: =IF(AH15="","",INDEX(Transaction[Qty In-Out],AH15)) ->  | AR15: =IF(AK15="","",INDEX(dProduct[Catagory],MATCH(Delivery_List!AK15,dProduct[NameTH],0))) -> 
A16: =IFERROR(IF(COUNT($A$11:$A15)+1>COUNTIF(Transaction[Route],I$3),"",_xlfn.AGGREGATE(15,6,(ROW(Transaction[Date])-ROW(Transaction[[#Headers],[Date]]))/((Transaction[Route]=I$3)*(Transaction[Products]=Delivery_List!$D16)*(Transaction[Date]=Delivery_List!Select_Date)*(Transaction[Type]="เบิก")),1)),"") -> 31 | B16: =IF(D16="","",INDEX(dProduct[Pcs/Unit],MATCH(Delivery_List!D16,dProduct[NameTH],0))) ->  | C16: =IF(A16="","",COUNT(A$12:A16)) -> 5 | D16: 05-ขนมปังไส้สังขยาใหญ่ | G16: =IF(D16="","",SUMPRODUCT((Transaction[Route]=I$3)*(Transaction[Products]=D16)*(Transaction[Type]="ยกมา")*(Transaction[Date]=Delivery_List!Select_Date)*Transaction[Qty In-Out])) -> 0 | H16: =IF(A16="","",INDEX(Transaction[Qty In-Out],A16)) -> 50 | K16: =IF(D16="","",INDEX(dProduct[Catagory],MATCH(Delivery_List!D16,dProduct[NameTH],0))) ->  | L16: =IFERROR(IF(COUNT($A$11:$A15)+1>COUNTIF(Transaction[Route],T$3),"",_xlfn.AGGREGATE(15,6,(ROW(Transaction[Date])-ROW(Transaction[[#Headers],[Date]]))/((Transaction[Route]=T$3)*(Transaction[Products]=Delivery_List!$D16)*(Transaction[Date]=Delivery_List!Select_Date)*(Transaction[Type]="เบิก")),1)),"") ->  | M16: =IF(O16="","",INDEX(dProduct[Pcs/Unit],MATCH(Delivery_List!O16,dProduct[NameTH],0))) ->  | N16: =IF(L16="","",COUNT(L$12:L16)) ->  | O16: 05-ขนมปังไส้สังขยาใหญ่ | R16: =IF(O16="","",SUMPRODUCT((Transaction[Route]=T$3)*(Transaction[Products]=O16)*(Transaction[Type]="ยกมา")*(Transaction[Date]=Delivery_List!Select_Date)*Transaction[Qty In-Out])) -> 0 | S16: =IF(L16="","",INDEX(Transaction[Qty In-Out],L16)) ->  | V16: =IF(O16="","",INDEX(dProduct[Catagory],MATCH(Delivery_List!O16,dProduct[NameTH],0))) ->  | W16: =IFERROR(IF(COUNT($A$11:$A15)+1>COUNTIF(Transaction[Route],AE$3),"",_xlfn.AGGREGATE(15,6,(ROW(Transaction[Date])-ROW(Transaction[[#Headers],[Date]]))/((Transaction[Route]=AE$3)*(Transaction[Products]=Delivery_List!$D16)*(Transaction[Date]=Delivery_List!Select_Date)*(Transaction[Type]="เบิก")),1)),"") ->  | X16: =IF(Z16="","",INDEX(dProduct[Pcs/Unit],MATCH(Delivery_List!Z16,dProduct[NameTH],0))) ->  | Y16: =IF(W16="","",COUNT(W$12:W16)) ->  | Z16: 05-ขนมปังไส้สังขยาใหญ่ | AC16: =IF(Z16="","",SUMPRODUCT((Transaction[Route]=AE$3)*(Transaction[Products]=Z16)*(Transaction[Type]="ยกมา")*(Transaction[Date]=Delivery_List!Select_Date)*Transaction[Qty In-Out])) -> 0 | AD16: =IF(W16="","",INDEX(Transaction[Qty In-Out],W16)) ->  | AG16: =IF(Z16="","",INDEX(dProduct[Catagory],MATCH(Delivery_List!Z16,dProduct[NameTH],0))) ->  | AH16: =IFERROR(IF(COUNT($A$11:$A15)+1>COUNTIF(Transaction[Route],AP$3),"",_xlfn.AGGREGATE(15,6,(ROW(Transaction[Date])-ROW(Transaction[[#Headers],[Date]]))/((Transaction[Route]=AP$3)*(Transaction[Products]=Delivery_List!$D16)*(Transaction[Date]=Delivery_List!Select_Date)*(Transaction[Type]="เบิก")),1)),"") ->  | AI16: =IF(AK16="","",INDEX(dProduct[Pcs/Unit],MATCH(Delivery_List!AK16,dProduct[NameTH],0))) ->  | AJ16: =IF(AH16="","",COUNT(AH$12:AH16)) ->  | AK16: 05-ขนมปังไส้สังขยาใหญ่ | AN16: =IF(AK16="","",SUMPRODUCT((Transaction[Route]=AP$3)*(Transaction[Products]=AK16)*(Transaction[Type]="ยกมา")*(Transaction[Date]=Delivery_List!Select_Date)*Transaction[Qty In-Out])) -> 0 | AO16: =IF(AH16="","",INDEX(Transaction[Qty In-Out],AH16)) ->  | AR16: =IF(AK16="","",INDEX(dProduct[Catagory],MATCH(Delivery_List!AK16,dProduct[NameTH],0))) -> 
A17: =IFERROR(IF(COUNT($A$11:$A16)+1>COUNTIF(Transaction[Route],I$3),"",_xlfn.AGGREGATE(15,6,(ROW(Transaction[Date])-ROW(Transaction[[#Headers],[Date]]))/((Transaction[Route]=I$3)*(Transaction[Products]=Delivery_List!$D17)*(Transaction[Date]=Delivery_List!Select_Date)*(Transaction[Type]="เบิก")),1)),"") -> 32 | B17: =IF(D17="","",INDEX(dProduct[Pcs/Unit],MATCH(Delivery_List!D17,dProduct[NameTH],0))) ->  | C17: =IF(A17="","",COUNT(A$12:A17)) -> 6 | D17: 06-ขนมปังไส้หมูหยองเล็ก | G17: =IF(D17="","",SUMPRODUCT((Transaction[Route]=I$3)*(Transaction[Products]=D17)*(Transaction[Type]="ยกมา")*(Transaction[Date]=Delivery_List!Select_Date)*Transaction[Qty In-Out])) -> 0 | H17: =IF(A17="","",INDEX(Transaction[Qty In-Out],A17)) -> 30 | K17: =IF(D17="","",INDEX(dProduct[Catagory],MATCH(Delivery_List!D17,dProduct[NameTH],0))) ->  | L17: =IFERROR(IF(COUNT($A$11:$A16)+1>COUNTIF(Transaction[Route],T$3),"",_xlfn.AGGREGATE(15,6,(ROW(Transaction[Date])-ROW(Transaction[[#Headers],[Date]]))/((Transaction[Route]=T$3)*(Transaction[Products]=Delivery_List!$D17)*(Transaction[Date]=Delivery_List!Select_Date)*(Transaction[Type]="เบิก")),1)),"") ->  | M17: =IF(O17="","",INDEX(dProduct[Pcs/Unit],MATCH(Delivery_List!O17,dProduct[NameTH],0))) ->  | N17: =IF(L17="","",COUNT(L$12:L17)) ->  | O17: 06-ขนมปังไส้หมูหยองเล็ก | R17: =IF(O17="","",SUMPRODUCT((Transaction[Route]=T$3)*(Transaction[Products]=O17)*(Transaction[Type]="ยกมา")*(Transaction[Date]=Delivery_List!Select_Date)*Transaction[Qty In-Out])) -> 0 | S17: =IF(L17="","",INDEX(Transaction[Qty In-Out],L17)) ->  | V17: =IF(O17="","",INDEX(dProduct[Catagory],MATCH(Delivery_List!O17,dProduct[NameTH],0))) ->  | W17: =IFERROR(IF(COUNT($A$11:$A16)+1>COUNTIF(Transaction[Route],AE$3),"",_xlfn.AGGREGATE(15,6,(ROW(Transaction[Date])-ROW(Transaction[[#Headers],[Date]]))/((Transaction[Route]=AE$3)*(Transaction[Products]=Delivery_List!$D17)*(Transaction[Date]=Delivery_List!Select_Date)*(Transaction[Type]="เบิก")),1)),"") ->  | X17: =IF(Z17="","",INDEX(dProduct[Pcs/Unit],MATCH(Delivery_List!Z17,dProduct[NameTH],0))) ->  | Y17: =IF(W17="","",COUNT(W$12:W17)) ->  | Z17: 06-ขนมปังไส้หมูหยองเล็ก | AC17: =IF(Z17="","",SUMPRODUCT((Transaction[Route]=AE$3)*(Transaction[Products]=Z17)*(Transaction[Type]="ยกมา")*(Transaction[Date]=Delivery_List!Select_Date)*Transaction[Qty In-Out])) -> 0 | AD17: =IF(W17="","",INDEX(Transaction[Qty In-Out],W17)) ->  | AG17: =IF(Z17="","",INDEX(dProduct[Catagory],MATCH(Delivery_List!Z17,dProduct[NameTH],0))) ->  | AH17: =IFERROR(IF(COUNT($A$11:$A16)+1>COUNTIF(Transaction[Route],AP$3),"",_xlfn.AGGREGATE(15,6,(ROW(Transaction[Date])-ROW(Transaction[[#Headers],[Date]]))/((Transaction[Route]=AP$3)*(Transaction[Products]=Delivery_List!$D17)*(Transaction[Date]=Delivery_List!Select_Date)*(Transaction[Type]="เบิก")),1)),"") ->  | AI17: =IF(AK17="","",INDEX(dProduct[Pcs/Unit],MATCH(Delivery_List!AK17,dProduct[NameTH],0))) ->  | AJ17: =IF(AH17="","",COUNT(AH$12:AH17)) ->  | AK17: 06-ขนมปังไส้หมูหยองเล็ก | AN17: =IF(AK17="","",SUMPRODUCT((Transaction[Route]=AP$3)*(Transaction[Products]=AK17)*(Transaction[Type]="ยกมา")*(Transaction[Date]=Delivery_List!Select_Date)*Transaction[Qty In-Out])) -> 0 | AO17: =IF(AH17="","",INDEX(Transaction[Qty In-Out],AH17)) ->  | AR17: =IF(AK17="","",INDEX(dProduct[Catagory],MATCH(Delivery_List!AK17,dProduct[NameTH],0))) -> 
A18: =IFERROR(IF(COUNT($A$11:$A17)+1>COUNTIF(Transaction[Route],I$3),"",_xlfn.AGGREGATE(15,6,(ROW(Transaction[Date])-ROW(Transaction[[#Headers],[Date]]))/((Transaction[Route]=I$3)*(Transaction[Products]=Delivery_List!$D18)*(Transaction[Date]=Delivery_List!Select_Date)*(Transaction[Type]="เบิก")),1)),"") -> 33 | B18: =IF(D18="","",INDEX(dProduct[Pcs/Unit],MATCH(Delivery_List!D18,dProduct[NameTH],0))) ->  | C18: =IF(A18="","",COUNT(A$12:A18)) -> 7 | D18: 07-เค้กกล้วยหอม | G18: =IF(D18="","",SUMPRODUCT((Transaction[Route]=I$3)*(Transaction[Products]=D18)*(Transaction[Type]="ยกมา")*(Transaction[Date]=Delivery_List!Select_Date)*Transaction[Qty In-Out])) -> 0 | H18: =IF(A18="","",INDEX(Transaction[Qty In-Out],A18)) -> 120 | K18: =IF(D18="","",INDEX(dProduct[Catagory],MATCH(Delivery_List!D18,dProduct[NameTH],0))) ->  | L18: =IFERROR(IF(COUNT($A$11:$A17)+1>COUNTIF(Transaction[Route],T$3),"",_xlfn.AGGREGATE(15,6,(ROW(Transaction[Date])-ROW(Transaction[[#Headers],[Date]]))/((Transaction[Route]=T$3)*(Transaction[Products]=Delivery_List!$D18)*(Transaction[Date]=Delivery_List!Select_Date)*(Transaction[Type]="เบิก")),1)),"") ->  | M18: =IF(O18="","",INDEX(dProduct[Pcs/Unit],MATCH(Delivery_List!O18,dProduct[NameTH],0))) ->  | N18: =IF(L18="","",COUNT(L$12:L18)) ->  | O18: 07-เค้กกล้วยหอม | R18: =IF(O18="","",SUMPRODUCT((Transaction[Route]=T$3)*(Transaction[Products]=O18)*(Transaction[Type]="ยกมา")*(Transaction[Date]=Delivery_List!Select_Date)*Transaction[Qty In-Out])) -> 0 | S18: =IF(L18="","",INDEX(Transaction[Qty In-Out],L18)) ->  | V18: =IF(O18="","",INDEX(dProduct[Catagory],MATCH(Delivery_List!O18,dProduct[NameTH],0))) ->  | W18: =IFERROR(IF(COUNT($A$11:$A17)+1>COUNTIF(Transaction[Route],AE$3),"",_xlfn.AGGREGATE(15,6,(ROW(Transaction[Date])-ROW(Transaction[[#Headers],[Date]]))/((Transaction[Route]=AE$3)*(Transaction[Products]=Delivery_List!$D18)*(Transaction[Date]=Delivery_List!Select_Date)*(Transaction[Type]="เบิก")),1)),"") ->  | X18: =IF(Z18="","",INDEX(dProduct[Pcs/Unit],MATCH(Delivery_List!Z18,dProduct[NameTH],0))) ->  | Y18: =IF(W18="","",COUNT(W$12:W18)) ->  | Z18: 07-เค้กกล้วยหอม | AC18: =IF(Z18="","",SUMPRODUCT((Transaction[Route]=AE$3)*(Transaction[Products]=Z18)*(Transaction[Type]="ยกมา")*(Transaction[Date]=Delivery_List!Select_Date)*Transaction[Qty In-Out])) -> 0 | AD18: =IF(W18="","",INDEX(Transaction[Qty In-Out],W18)) ->  | AG18: =IF(Z18="","",INDEX(dProduct[Catagory],MATCH(Delivery_List!Z18,dProduct[NameTH],0))) ->  | AH18: =IFERROR(IF(COUNT($A$11:$A17)+1>COUNTIF(Transaction[Route],AP$3),"",_xlfn.AGGREGATE(15,6,(ROW(Transaction[Date])-ROW(Transaction[[#Headers],[Date]]))/((Transaction[Route]=AP$3)*(Transaction[Products]=Delivery_List!$D18)*(Transaction[Date]=Delivery_List!Select_Date)*(Transaction[Type]="เบิก")),1)),"") ->  | AI18: =IF(AK18="","",INDEX(dProduct[Pcs/Unit],MATCH(Delivery_List!AK18,dProduct[NameTH],0))) ->  | AJ18: =IF(AH18="","",COUNT(AH$12:AH18)) ->  | AK18: 07-เค้กกล้วยหอม | AN18: =IF(AK18="","",SUMPRODUCT((Transaction[Route]=AP$3)*(Transaction[Products]=AK18)*(Transaction[Type]="ยกมา")*(Transaction[Date]=Delivery_List!Select_Date)*Transaction[Qty In-Out])) -> 0 | AO18: =IF(AH18="","",INDEX(Transaction[Qty In-Out],AH18)) ->  | AR18: =IF(AK18="","",INDEX(dProduct[Catagory],MATCH(Delivery_List!AK18,dProduct[NameTH],0))) -> 
A19: =IFERROR(IF(COUNT($A$11:$A18)+1>COUNTIF(Transaction[Route],I$3),"",_xlfn.AGGREGATE(15,6,(ROW(Transaction[Date])-ROW(Transaction[[#Headers],[Date]]))/((Transaction[Route]=I$3)*(Transaction[Products]=Delivery_List!$D19)*(Transaction[Date]=Delivery_List!Select_Date)*(Transaction[Type]="เบิก")),1)),"") -> 34 | B19: =IF(D19="","",INDEX(dProduct[Pcs/Unit],MATCH(Delivery_List!D19,dProduct[NameTH],0))) ->  | C19: =IF(A19="","",COUNT(A$12:A19)) -> 8 | D19: 08-เค้กบัตเตอร์ | G19: =IF(D19="","",SUMPRODUCT((Transaction[Route]=I$3)*(Transaction[Products]=D19)*(Transaction[Type]="ยกมา")*(Transaction[Date]=Delivery_List!Select_Date)*Transaction[Qty In-Out])) -> 0 | H19: =IF(A19="","",INDEX(Transaction[Qty In-Out],A19)) -> 20 | K19: =IF(D19="","",INDEX(dProduct[Catagory],MATCH(Delivery_List!D19,dProduct[NameTH],0))) ->  | L19: =IFERROR(IF(COUNT($A$11:$A18)+1>COUNTIF(Transaction[Route],T$3),"",_xlfn.AGGREGATE(15,6,(ROW(Transaction[Date])-ROW(Transaction[[#Headers],[Date]]))/((Transaction[Route]=T$3)*(Transaction[Products]=Delivery_List!$D19)*(Transaction[Date]=Delivery_List!Select_Date)*(Transaction[Type]="เบิก")),1)),"") ->  | M19: =IF(O19="","",INDEX(dProduct[Pcs/Unit],MATCH(Delivery_List!O19,dProduct[NameTH],0))) ->  | N19: =IF(L19="","",COUNT(L$12:L19)) ->  | O19: 08-เค้กบัตเตอร์ | R19: =IF(O19="","",SUMPRODUCT((Transaction[Route]=T$3)*(Transaction[Products]=O19)*(Transaction[Type]="ยกมา")*(Transaction[Date]=Delivery_List!Select_Date)*Transaction[Qty In-Out])) -> 0 | S19: =IF(L19="","",INDEX(Transaction[Qty In-Out],L19)) ->  | V19: =IF(O19="","",INDEX(dProduct[Catagory],MATCH(Delivery_List!O19,dProduct[NameTH],0))) ->  | W19: =IFERROR(IF(COUNT($A$11:$A18)+1>COUNTIF(Transaction[Route],AE$3),"",_xlfn.AGGREGATE(15,6,(ROW(Transaction[Date])-ROW(Transaction[[#Headers],[Date]]))/((Transaction[Route]=AE$3)*(Transaction[Products]=Delivery_List!$D19)*(Transaction[Date]=Delivery_List!Select_Date)*(Transaction[Type]="เบิก")),1)),"") ->  | X19: =IF(Z19="","",INDEX(dProduct[Pcs/Unit],MATCH(Delivery_List!Z19,dProduct[NameTH],0))) ->  | Y19: =IF(W19="","",COUNT(W$12:W19)) ->  | Z19: 08-เค้กบัตเตอร์ | AC19: =IF(Z19="","",SUMPRODUCT((Transaction[Route]=AE$3)*(Transaction[Products]=Z19)*(Transaction[Type]="ยกมา")*(Transaction[Date]=Delivery_List!Select_Date)*Transaction[Qty In-Out])) -> 0 | AD19: =IF(W19="","",INDEX(Transaction[Qty In-Out],W19)) ->  | AG19: =IF(Z19="","",INDEX(dProduct[Catagory],MATCH(Delivery_List!Z19,dProduct[NameTH],0))) ->  | AH19: =IFERROR(IF(COUNT($A$11:$A18)+1>COUNTIF(Transaction[Route],AP$3),"",_xlfn.AGGREGATE(15,6,(ROW(Transaction[Date])-ROW(Transaction[[#Headers],[Date]]))/((Transaction[Route]=AP$3)*(Transaction[Products]=Delivery_List!$D19)*(Transaction[Date]=Delivery_List!Select_Date)*(Transaction[Type]="เบิก")),1)),"") ->  | AI19: =IF(AK19="","",INDEX(dProduct[Pcs/Unit],MATCH(Delivery_List!AK19,dProduct[NameTH],0))) ->  | AJ19: =IF(AH19="","",COUNT(AH$12:AH19)) ->  | AK19: 08-เค้กบัตเตอร์ | AN19: =IF(AK19="","",SUMPRODUCT((Transaction[Route]=AP$3)*(Transaction[Products]=AK19)*(Transaction[Type]="ยกมา")*(Transaction[Date]=Delivery_List!Select_Date)*Transaction[Qty In-Out])) -> 0 | AO19: =IF(AH19="","",INDEX(Transaction[Qty In-Out],AH19)) ->  | AR19: =IF(AK19="","",INDEX(dProduct[Catagory],MATCH(Delivery_List!AK19,dProduct[NameTH],0))) -> 
A20: =IFERROR(IF(COUNT($A$11:$A19)+1>COUNTIF(Transaction[Route],I$3),"",_xlfn.AGGREGATE(15,6,(ROW(Transaction[Date])-ROW(Transaction[[#Headers],[Date]]))/((Transaction[Route]=I$3)*(Transaction[Products]=Delivery_List!$D20)*(Transaction[Date]=Delivery_List!Select_Date)*(Transaction[Type]="เบิก")),1)),"") -> 35 | B20: =IF(D20="","",INDEX(dProduct[Pcs/Unit],MATCH(Delivery_List!D20,dProduct[NameTH],0))) ->  | C20: =IF(A20="","",COUNT(A$12:A20)) -> 9 | D20: 09-ขนมปังโรลมันเทศ | G20: =IF(D20="","",SUMPRODUCT((Transaction[Route]=I$3)*(Transaction[Products]=D20)*(Transaction[Type]="ยกมา")*(Transaction[Date]=Delivery_List!Select_Date)*Transaction[Qty In-Out])) -> 0 | H20: =IF(A20="","",INDEX(Transaction[Qty In-Out],A20)) -> 20 | K20: =IF(D20="","",INDEX(dProduct[Catagory],MATCH(Delivery_List!D20,dProduct[NameTH],0))) ->  | L20: =IFERROR(IF(COUNT($A$11:$A19)+1>COUNTIF(Transaction[Route],T$3),"",_xlfn.AGGREGATE(15,6,(ROW(Transaction[Date])-ROW(Transaction[[#Headers],[Date]]))/((Transaction[Route]=T$3)*(Transaction[Products]=Delivery_List!$D20)*(Transaction[Date]=Delivery_List!Select_Date)*(Transaction[Type]="เบิก")),1)),"") ->  | M20: =IF(O20="","",INDEX(dProduct[Pcs/Unit],MATCH(Delivery_List!O20,dProduct[NameTH],0))) ->  | N20: =IF(L20="","",COUNT(L$12:L20)) ->  | O20: 09-ขนมปังโรลมันเทศ | R20: =IF(O20="","",SUMPRODUCT((Transaction[Route]=T$3)*(Transaction[Products]=O20)*(Transaction[Type]="ยกมา")*(Transaction[Date]=Delivery_List!Select_Date)*Transaction[Qty In-Out])) -> 0 | S20: =IF(L20="","",INDEX(Transaction[Qty In-Out],L20)) ->  | V20: =IF(O20="","",INDEX(dProduct[Catagory],MATCH(Delivery_List!O20,dProduct[NameTH],0))) ->  | W20: =IFERROR(IF(COUNT($A$11:$A19)+1>COUNTIF(Transaction[Route],AE$3),"",_xlfn.AGGREGATE(15,6,(ROW(Transaction[Date])-ROW(Transaction[[#Headers],[Date]]))/((Transaction[Route]=AE$3)*(Transaction[Products]=Delivery_List!$D20)*(Transaction[Date]=Delivery_List!Select_Date)*(Transaction[Type]="เบิก")),1)),"") ->  | X20: =IF(Z20="","",INDEX(dProduct[Pcs/Unit],MATCH(Delivery_List!Z20,dProduct[NameTH],0))) ->  | Y20: =IF(W20="","",COUNT(W$12:W20)) ->  | Z20: 09-ขนมปังโรลมันเทศ | AC20: =IF(Z20="","",SUMPRODUCT((Transaction[Route]=AE$3)*(Transaction[Products]=Z20)*(Transaction[Type]="ยกมา")*(Transaction[Date]=Delivery_List!Select_Date)*Transaction[Qty In-Out])) -> 0 | AD20: =IF(W20="","",INDEX(Transaction[Qty In-Out],W20)) ->  | AG20: =IF(Z20="","",INDEX(dProduct[Catagory],MATCH(Delivery_List!Z20,dProduct[NameTH],0))) ->  | AH20: =IFERROR(IF(COUNT($A$11:$A19)+1>COUNTIF(Transaction[Route],AP$3),"",_xlfn.AGGREGATE(15,6,(ROW(Transaction[Date])-ROW(Transaction[[#Headers],[Date]]))/((Transaction[Route]=AP$3)*(Transaction[Products]=Delivery_List!$D20)*(Transaction[Date]=Delivery_List!Select_Date)*(Transaction[Type]="เบิก")),1)),"") ->  | AI20: =IF(AK20="","",INDEX(dProduct[Pcs/Unit],MATCH(Delivery_List!AK20,dProduct[NameTH],0))) ->  | AJ20: =IF(AH20="","",COUNT(AH$12:AH20)) ->  | AK20: 09-ขนมปังโรลมันเทศ | AN20: =IF(AK20="","",SUMPRODUCT((Transaction[Route]=AP$3)*(Transaction[Products]=AK20)*(Transaction[Type]="ยกมา")*(Transaction[Date]=Delivery_List!Select_Date)*Transaction[Qty In-Out])) -> 0 | AO20: =IF(AH20="","",INDEX(Transaction[Qty In-Out],AH20)) ->  | AR20: =IF(AK20="","",INDEX(dProduct[Catagory],MATCH(Delivery_List!AK20,dProduct[NameTH],0))) -> 
A21: =IFERROR(IF(COUNT($A$11:$A20)+1>COUNTIF(Transaction[Route],I$3),"",_xlfn.AGGREGATE(15,6,(ROW(Transaction[Date])-ROW(Transaction[[#Headers],[Date]]))/((Transaction[Route]=I$3)*(Transaction[Products]=Delivery_List!$D21)*(Transaction[Date]=Delivery_List!Select_Date)*(Transaction[Type]="เบิก")),1)),"") -> 36 | B21: =IF(D21="","",INDEX(dProduct[Pcs/Unit],MATCH(Delivery_List!D21,dProduct[NameTH],0))) ->  | C21: =IF(A21="","",COUNT(A$12:A21)) -> 10 | D21: 10-ขนมปังโรลถั่วแดง | G21: =IF(D21="","",SUMPRODUCT((Transaction[Route]=I$3)*(Transaction[Products]=D21)*(Transaction[Type]="ยกมา")*(Transaction[Date]=Delivery_List!Select_Date)*Transaction[Qty In-Out])) -> 0 | H21: =IF(A21="","",INDEX(Transaction[Qty In-Out],A21)) -> 120 | K21: =IF(D21="","",INDEX(dProduct[Catagory],MATCH(Delivery_List!D21,dProduct[NameTH],0))) ->  | L21: =IFERROR(IF(COUNT($A$11:$A20)+1>COUNTIF(Transaction[Route],T$3),"",_xlfn.AGGREGATE(15,6,(ROW(Transaction[Date])-ROW(Transaction[[#Headers],[Date]]))/((Transaction[Route]=T$3)*(Transaction[Products]=Delivery_List!$D21)*(Transaction[Date]=Delivery_List!Select_Date)*(Transaction[Type]="เบิก")),1)),"") ->  | M21: =IF(O21="","",INDEX(dProduct[Pcs/Unit],MATCH(Delivery_List!O21,dProduct[NameTH],0))) ->  | N21: =IF(L21="","",COUNT(L$12:L21)) ->  | O21: 10-ขนมปังโรลถั่วแดง | R21: =IF(O21="","",SUMPRODUCT((Transaction[Route]=T$3)*(Transaction[Products]=O21)*(Transaction[Type]="ยกมา")*(Transaction[Date]=Delivery_List!Select_Date)*Transaction[Qty In-Out])) -> 0 | S21: =IF(L21="","",INDEX(Transaction[Qty In-Out],L21)) ->  | V21: =IF(O21="","",INDEX(dProduct[Catagory],MATCH(Delivery_List!O21,dProduct[NameTH],0))) ->  | W21: =IFERROR(IF(COUNT($A$11:$A20)+1>COUNTIF(Transaction[Route],AE$3),"",_xlfn.AGGREGATE(15,6,(ROW(Transaction[Date])-ROW(Transaction[[#Headers],[Date]]))/((Transaction[Route]=AE$3)*(Transaction[Products]=Delivery_List!$D21)*(Transaction[Date]=Delivery_List!Select_Date)*(Transaction[Type]="เบิก")),1)),"") ->  | X21: =IF(Z21="","",INDEX(dProduct[Pcs/Unit],MATCH(Delivery_List!Z21,dProduct[NameTH],0))) ->  | Y21: =IF(W21="","",COUNT(W$12:W21)) ->  | Z21: 10-ขนมปังโรลถั่วแดง | AC21: =IF(Z21="","",SUMPRODUCT((Transaction[Route]=AE$3)*(Transaction[Products]=Z21)*(Transaction[Type]="ยกมา")*(Transaction[Date]=Delivery_List!Select_Date)*Transaction[Qty In-Out])) -> 0 | AD21: =IF(W21="","",INDEX(Transaction[Qty In-Out],W21)) ->  | AG21: =IF(Z21="","",INDEX(dProduct[Catagory],MATCH(Delivery_List!Z21,dProduct[NameTH],0))) ->  | AH21: =IFERROR(IF(COUNT($A$11:$A20)+1>COUNTIF(Transaction[Route],AP$3),"",_xlfn.AGGREGATE(15,6,(ROW(Transaction[Date])-ROW(Transaction[[#Headers],[Date]]))/((Transaction[Route]=AP$3)*(Transaction[Products]=Delivery_List!$D21)*(Transaction[Date]=Delivery_List!Select_Date)*(Transaction[Type]="เบิก")),1)),"") ->  | AI21: =IF(AK21="","",INDEX(dProduct[Pcs/Unit],MATCH(Delivery_List!AK21,dProduct[NameTH],0))) ->  | AJ21: =IF(AH21="","",COUNT(AH$12:AH21)) ->  | AK21: 10-ขนมปังโรลถั่วแดง | AN21: =IF(AK21="","",SUMPRODUCT((Transaction[Route]=AP$3)*(Transaction[Products]=AK21)*(Transaction[Type]="ยกมา")*(Transaction[Date]=Delivery_List!Select_Date)*Transaction[Qty In-Out])) -> 0 | AO21: =IF(AH21="","",INDEX(Transaction[Qty In-Out],AH21)) ->  | AR21: =IF(AK21="","",INDEX(dProduct[Catagory],MATCH(Delivery_List!AK21,dProduct[NameTH],0))) -> 
A22: =IFERROR(IF(COUNT($A$11:$A21)+1>COUNTIF(Transaction[Route],I$3),"",_xlfn.AGGREGATE(15,6,(ROW(Transaction[Date])-ROW(Transaction[[#Headers],[Date]]))/((Transaction[Route]=I$3)*(Transaction[Products]=Delivery_List!$D22)*(Transaction[Date]=Delivery_List!Select_Date)*(Transaction[Type]="เบิก")),1)),"") ->  | B22: =IF(D22="","",INDEX(dProduct[Pcs/Unit],MATCH(Delivery_List!D22,dProduct[NameTH],0))) ->  | C22: =IF(A22="","",COUNT(A$12:A22)) ->  | D22: 11-ขนมปังหมูหยองมายองเนส | G22: =IF(D22="","",SUMPRODUCT((Transaction[Route]=I$3)*(Transaction[Products]=D22)*(Transaction[Type]="ยกมา")*(Transaction[Date]=Delivery_List!Select_Date)*Transaction[Qty In-Out])) -> 0 | H22: =IF(A22="","",INDEX(Transaction[Qty In-Out],A22)) ->  | K22: =IF(D22="","",INDEX(dProduct[Catagory],MATCH(Delivery_List!D22,dProduct[NameTH],0))) ->  | L22: =IFERROR(IF(COUNT($A$11:$A21)+1>COUNTIF(Transaction[Route],T$3),"",_xlfn.AGGREGATE(15,6,(ROW(Transaction[Date])-ROW(Transaction[[#Headers],[Date]]))/((Transaction[Route]=T$3)*(Transaction[Products]=Delivery_List!$D22)*(Transaction[Date]=Delivery_List!Select_Date)*(Transaction[Type]="เบิก")),1)),"") ->  | M22: =IF(O22="","",INDEX(dProduct[Pcs/Unit],MATCH(Delivery_List!O22,dProduct[NameTH],0))) ->  | N22: =IF(L22="","",COUNT(L$12:L22)) ->  | O22: 11-ขนมปังหมูหยองมายองเนส | R22: =IF(O22="","",SUMPRODUCT((Transaction[Route]=T$3)*(Transaction[Products]=O22)*(Transaction[Type]="ยกมา")*(Transaction[Date]=Delivery_List!Select_Date)*Transaction[Qty In-Out])) -> 0 | S22: =IF(L22="","",INDEX(Transaction[Qty In-Out],L22)) ->  | V22: =IF(O22="","",INDEX(dProduct[Catagory],MATCH(Delivery_List!O22,dProduct[NameTH],0))) ->  | W22: =IFERROR(IF(COUNT($A$11:$A21)+1>COUNTIF(Transaction[Route],AE$3),"",_xlfn.AGGREGATE(15,6,(ROW(Transaction[Date])-ROW(Transaction[[#Headers],[Date]]))/((Transaction[Route]=AE$3)*(Transaction[Products]=Delivery_List!$D22)*(Transaction[Date]=Delivery_List!Select_Date)*(Transaction[Type]="เบิก")),1)),"") ->  | X22: =IF(Z22="","",INDEX(dProduct[Pcs/Unit],MATCH(Delivery_List!Z22,dProduct[NameTH],0))) ->  | Y22: =IF(W22="","",COUNT(W$12:W22)) ->  | Z22: 11-ขนมปังหมูหยองมายองเนส | AC22: =IF(Z22="","",SUMPRODUCT((Transaction[Route]=AE$3)*(Transaction[Products]=Z22)*(Transaction[Type]="ยกมา")*(Transaction[Date]=Delivery_List!Select_Date)*Transaction[Qty In-Out])) -> 0 | AD22: =IF(W22="","",INDEX(Transaction[Qty In-Out],W22)) ->  | AG22: =IF(Z22="","",INDEX(dProduct[Catagory],MATCH(Delivery_List!Z22,dProduct[NameTH],0))) ->  | AH22: =IFERROR(IF(COUNT($A$11:$A21)+1>COUNTIF(Transaction[Route],AP$3),"",_xlfn.AGGREGATE(15,6,(ROW(Transaction[Date])-ROW(Transaction[[#Headers],[Date]]))/((Transaction[Route]=AP$3)*(Transaction[Products]=Delivery_List!$D22)*(Transaction[Date]=Delivery_List!Select_Date)*(Transaction[Type]="เบิก")),1)),"") ->  | AI22: =IF(AK22="","",INDEX(dProduct[Pcs/Unit],MATCH(Delivery_List!AK22,dProduct[NameTH],0))) ->  | AJ22: =IF(AH22="","",COUNT(AH$12:AH22)) ->  | AK22: 11-ขนมปังหมูหยองมายองเนส | AN22: =IF(AK22="","",SUMPRODUCT((Transaction[Route]=AP$3)*(Transaction[Products]=AK22)*(Transaction[Type]="ยกมา")*(Transaction[Date]=Delivery_List!Select_Date)*Transaction[Qty In-Out])) -> 0 | AO22: =IF(AH22="","",INDEX(Transaction[Qty In-Out],AH22)) ->  | AR22: =IF(AK22="","",INDEX(dProduct[Catagory],MATCH(Delivery_List!AK22,dProduct[NameTH],0))) -> 
A23: =IFERROR(IF(COUNT($A$11:$A22)+1>COUNTIF(Transaction[Route],I$3),"",_xlfn.AGGREGATE(15,6,(ROW(Transaction[Date])-ROW(Transaction[[#Headers],[Date]]))/((Transaction[Route]=I$3)*(Transaction[Products]=Delivery_List!$D23)*(Transaction[Date]=Delivery_List!Select_Date)*(Transaction[Type]="เบิก")),1)),"") -> 37 | B23: =IF(D23="","",INDEX(dProduct[Pcs/Unit],MATCH(Delivery_List!D23,dProduct[NameTH],0))) ->  | C23: =IF(A23="","",COUNT(A$12:A23)) -> 11 | D23: 12-ขนมปังพิซซ่า | G23: =IF(D23="","",SUMPRODUCT((Transaction[Route]=I$3)*(Transaction[Products]=D23)*(Transaction[Type]="ยกมา")*(Transaction[Date]=Delivery_List!Select_Date)*Transaction[Qty In-Out])) -> 0 | H23: =IF(A23="","",INDEX(Transaction[Qty In-Out],A23)) -> 70 | K23: =IF(D23="","",INDEX(dProduct[Catagory],MATCH(Delivery_List!D23,dProduct[NameTH],0))) ->  | L23: =IFERROR(IF(COUNT($A$11:$A22)+1>COUNTIF(Transaction[Route],T$3),"",_xlfn.AGGREGATE(15,6,(ROW(Transaction[Date])-ROW(Transaction[[#Headers],[Date]]))/((Transaction[Route]=T$3)*(Transaction[Products]=Delivery_List!$D23)*(Transaction[Date]=Delivery_List!Select_Date)*(Transaction[Type]="เบิก")),1)),"") ->  | M23: =IF(O23="","",INDEX(dProduct[Pcs/Unit],MATCH(Delivery_List!O23,dProduct[NameTH],0))) ->  | N23: =IF(L23="","",COUNT(L$12:L23)) ->  | O23: 12-ขนมปังพิซซ่า | R23: =IF(O23="","",SUMPRODUCT((Transaction[Route]=T$3)*(Transaction[Products]=O23)*(Transaction[Type]="ยกมา")*(Transaction[Date]=Delivery_List!Select_Date)*Transaction[Qty In-Out])) -> 0 | S23: =IF(L23="","",INDEX(Transaction[Qty In-Out],L23)) ->  | V23: =IF(O23="","",INDEX(dProduct[Catagory],MATCH(Delivery_List!O23,dProduct[NameTH],0))) ->  | W23: =IFERROR(IF(COUNT($A$11:$A22)+1>COUNTIF(Transaction[Route],AE$3),"",_xlfn.AGGREGATE(15,6,(ROW(Transaction[Date])-ROW(Transaction[[#Headers],[Date]]))/((Transaction[Route]=AE$3)*(Transaction[Products]=Delivery_List!$D23)*(Transaction[Date]=Delivery_List!Select_Date)*(Transaction[Type]="เบิก")),1)),"") ->  | X23: =IF(Z23="","",INDEX(dProduct[Pcs/Unit],MATCH(Delivery_List!Z23,dProduct[NameTH],0))) ->  | Y23: =IF(W23="","",COUNT(W$12:W23)) ->  | Z23: 12-ขนมปังพิซซ่า | AC23: =IF(Z23="","",SUMPRODUCT((Transaction[Route]=AE$3)*(Transaction[Products]=Z23)*(Transaction[Type]="ยกมา")*(Transaction[Date]=Delivery_List!Select_Date)*Transaction[Qty In-Out])) -> 0 | AD23: =IF(W23="","",INDEX(Transaction[Qty In-Out],W23)) ->  | AG23: =IF(Z23="","",INDEX(dProduct[Catagory],MATCH(Delivery_List!Z23,dProduct[NameTH],0))) ->  | AH23: =IFERROR(IF(COUNT($A$11:$A22)+1>COUNTIF(Transaction[Route],AP$3),"",_xlfn.AGGREGATE(15,6,(ROW(Transaction[Date])-ROW(Transaction[[#Headers],[Date]]))/((Transaction[Route]=AP$3)*(Transaction[Products]=Delivery_List!$D23)*(Transaction[Date]=Delivery_List!Select_Date)*(Transaction[Type]="เบิก")),1)),"") ->  | AI23: =IF(AK23="","",INDEX(dProduct[Pcs/Unit],MATCH(Delivery_List!AK23,dProduct[NameTH],0))) ->  | AJ23: =IF(AH23="","",COUNT(AH$12:AH23)) ->  | AK23: 12-ขนมปังพิซซ่า | AN23: =IF(AK23="","",SUMPRODUCT((Transaction[Route]=AP$3)*(Transaction[Products]=AK23)*(Transaction[Type]="ยกมา")*(Transaction[Date]=Delivery_List!Select_Date)*Transaction[Qty In-Out])) -> 0 | AO23: =IF(AH23="","",INDEX(Transaction[Qty In-Out],AH23)) ->  | AR23: =IF(AK23="","",INDEX(dProduct[Catagory],MATCH(Delivery_List!AK23,dProduct[NameTH],0))) -> 
A24: =IFERROR(IF(COUNT($A$11:$A23)+1>COUNTIF(Transaction[Route],I$3),"",_xlfn.AGGREGATE(15,6,(ROW(Transaction[Date])-ROW(Transaction[[#Headers],[Date]]))/((Transaction[Route]=I$3)*(Transaction[Products]=Delivery_List!$D24)*(Transaction[Date]=Delivery_List!Select_Date)*(Transaction[Type]="เบิก")),1)),"") -> 38 | B24: =IF(D24="","",INDEX(dProduct[Pcs/Unit],MATCH(Delivery_List!D24,dProduct[NameTH],0))) ->  | C24: =IF(A24="","",COUNT(A$12:A24)) -> 12 | D24: 13-ขนมปังหมูหยองน้ำสลัด | G24: =IF(D24="","",SUMPRODUCT((Transaction[Route]=I$3)*(Transaction[Products]=D24)*(Transaction[Type]="ยกมา")*(Transaction[Date]=Delivery_List!Select_Date)*Transaction[Qty In-Out])) -> 0 | H24: =IF(A24="","",INDEX(Transaction[Qty In-Out],A24)) -> 320 | K24: =IF(D24="","",INDEX(dProduct[Catagory],MATCH(Delivery_List!D24,dProduct[NameTH],0))) ->  | L24: =IFERROR(IF(COUNT($A$11:$A23)+1>COUNTIF(Transaction[Route],T$3),"",_xlfn.AGGREGATE(15,6,(ROW(Transaction[Date])-ROW(Transaction[[#Headers],[Date]]))/((Transaction[Route]=T$3)*(Transaction[Products]=Delivery_List!$D24)*(Transaction[Date]=Delivery_List!Select_Date)*(Transaction[Type]="เบิก")),1)),"") ->  | M24: =IF(O24="","",INDEX(dProduct[Pcs/Unit],MATCH(Delivery_List!O24,dProduct[NameTH],0))) ->  | N24: =IF(L24="","",COUNT(L$12:L24)) ->  | O24: 13-ขนมปังหมูหยองน้ำสลัด | R24: =IF(O24="","",SUMPRODUCT((Transaction[Route]=T$3)*(Transaction[Products]=O24)*(Transaction[Type]="ยกมา")*(Transaction[Date]=Delivery_List!Select_Date)*Transaction[Qty In-Out])) -> 0 | S24: =IF(L24="","",INDEX(Transaction[Qty In-Out],L24)) ->  | V24: =IF(O24="","",INDEX(dProduct[Catagory],MATCH(Delivery_List!O24,dProduct[NameTH],0))) ->  | W24: =IFERROR(IF(COUNT($A$11:$A23)+1>COUNTIF(Transaction[Route],AE$3),"",_xlfn.AGGREGATE(15,6,(ROW(Transaction[Date])-ROW(Transaction[[#Headers],[Date]]))/((Transaction[Route]=AE$3)*(Transaction[Products]=Delivery_List!$D24)*(Transaction[Date]=Delivery_List!Select_Date)*(Transaction[Type]="เบิก")),1)),"") ->  | X24: =IF(Z24="","",INDEX(dProduct[Pcs/Unit],MATCH(Delivery_List!Z24,dProduct[NameTH],0))) ->  | Y24: =IF(W24="","",COUNT(W$12:W24)) ->  | Z24: 13-ขนมปังหมูหยองน้ำสลัด | AC24: =IF(Z24="","",SUMPRODUCT((Transaction[Route]=AE$3)*(Transaction[Products]=Z24)*(Transaction[Type]="ยกมา")*(Transaction[Date]=Delivery_List!Select_Date)*Transaction[Qty In-Out])) -> 0 | AD24: =IF(W24="","",INDEX(Transaction[Qty In-Out],W24)) ->  | AG24: =IF(Z24="","",INDEX(dProduct[Catagory],MATCH(Delivery_List!Z24,dProduct[NameTH],0))) ->  | AH24: =IFERROR(IF(COUNT($A$11:$A23)+1>COUNTIF(Transaction[Route],AP$3),"",_xlfn.AGGREGATE(15,6,(ROW(Transaction[Date])-ROW(Transaction[[#Headers],[Date]]))/((Transaction[Route]=AP$3)*(Transaction[Products]=Delivery_List!$D24)*(Transaction[Date]=Delivery_List!Select_Date)*(Transaction[Type]="เบิก")),1)),"") ->  | AI24: =IF(AK24="","",INDEX(dProduct[Pcs/Unit],MATCH(Delivery_List!AK24,dProduct[NameTH],0))) ->  | AJ24: =IF(AH24="","",COUNT(AH$12:AH24)) ->  | AK24: 13-ขนมปังหมูหยองน้ำสลัด | AN24: =IF(AK24="","",SUMPRODUCT((Transaction[Route]=AP$3)*(Transaction[Products]=AK24)*(Transaction[Type]="ยกมา")*(Transaction[Date]=Delivery_List!Select_Date)*Transaction[Qty In-Out])) -> 0 | AO24: =IF(AH24="","",INDEX(Transaction[Qty In-Out],AH24)) ->  | AR24: =IF(AK24="","",INDEX(dProduct[Catagory],MATCH(Delivery_List!AK24,dProduct[NameTH],0))) -> 
A25: =IFERROR(IF(COUNT($A$11:$A24)+1>COUNTIF(Transaction[Route],I$3),"",_xlfn.AGGREGATE(15,6,(ROW(Transaction[Date])-ROW(Transaction[[#Headers],[Date]]))/((Transaction[Route]=I$3)*(Transaction[Products]=Delivery_List!$D25)*(Transaction[Date]=Delivery_List!Select_Date)*(Transaction[Type]="เบิก")),1)),"") -> 39 | B25: =IF(D25="","",INDEX(dProduct[Pcs/Unit],MATCH(Delivery_List!D25,dProduct[NameTH],0))) ->  | C25: =IF(A25="","",COUNT(A$12:A25)) -> 13 | D25: 14-ขนมปังไส้กรอก | G25: =IF(D25="","",SUMPRODUCT((Transaction[Route]=I$3)*(Transaction[Products]=D25)*(Transaction[Type]="ยกมา")*(Transaction[Date]=Delivery_List!Select_Date)*Transaction[Qty In-Out])) -> 0 | H25: =IF(A25="","",INDEX(Transaction[Qty In-Out],A25)) -> 150 | K25: =IF(D25="","",INDEX(dProduct[Catagory],MATCH(Delivery_List!D25,dProduct[NameTH],0))) ->  | L25: =IFERROR(IF(COUNT($A$11:$A24)+1>COUNTIF(Transaction[Route],T$3),"",_xlfn.AGGREGATE(15,6,(ROW(Transaction[Date])-ROW(Transaction[[#Headers],[Date]]))/((Transaction[Route]=T$3)*(Transaction[Products]=Delivery_List!$D25)*(Transaction[Date]=Delivery_List!Select_Date)*(Transaction[Type]="เบิก")),1)),"") ->  | M25: =IF(O25="","",INDEX(dProduct[Pcs/Unit],MATCH(Delivery_List!O25,dProduct[NameTH],0))) ->  | N25: =IF(L25="","",COUNT(L$12:L25)) ->  | O25: 14-ขนมปังไส้กรอก | R25: =IF(O25="","",SUMPRODUCT((Transaction[Route]=T$3)*(Transaction[Products]=O25)*(Transaction[Type]="ยกมา")*(Transaction[Date]=Delivery_List!Select_Date)*Transaction[Qty In-Out])) -> 0 | S25: =IF(L25="","",INDEX(Transaction[Qty In-Out],L25)) ->  | V25: =IF(O25="","",INDEX(dProduct[Catagory],MATCH(Delivery_List!O25,dProduct[NameTH],0))) ->  | W25: =IFERROR(IF(COUNT($A$11:$A24)+1>COUNTIF(Transaction[Route],AE$3),"",_xlfn.AGGREGATE(15,6,(ROW(Transaction[Date])-ROW(Transaction[[#Headers],[Date]]))/((Transaction[Route]=AE$3)*(Transaction[Products]=Delivery_List!$D25)*(Transaction[Date]=Delivery_List!Select_Date)*(Transaction[Type]="เบิก")),1)),"") ->  | X25: =IF(Z25="","",INDEX(dProduct[Pcs/Unit],MATCH(Delivery_List!Z25,dProduct[NameTH],0))) ->  | Y25: =IF(W25="","",COUNT(W$12:W25)) ->  | Z25: 14-ขนมปังไส้กรอก | AC25: =IF(Z25="","",SUMPRODUCT((Transaction[Route]=AE$3)*(Transaction[Products]=Z25)*(Transaction[Type]="ยกมา")*(Transaction[Date]=Delivery_List!Select_Date)*Transaction[Qty In-Out])) -> 0 | AD25: =IF(W25="","",INDEX(Transaction[Qty In-Out],W25)) ->  | AG25: =IF(Z25="","",INDEX(dProduct[Catagory],MATCH(Delivery_List!Z25,dProduct[NameTH],0))) ->  | AH25: =IFERROR(IF(COUNT($A$11:$A24)+1>COUNTIF(Transaction[Route],AP$3),"",_xlfn.AGGREGATE(15,6,(ROW(Transaction[Date])-ROW(Transaction[[#Headers],[Date]]))/((Transaction[Route]=AP$3)*(Transaction[Products]=Delivery_List!$D25)*(Transaction[Date]=Delivery_List!Select_Date)*(Transaction[Type]="เบิก")),1)),"") ->  | AI25: =IF(AK25="","",INDEX(dProduct[Pcs/Unit],MATCH(Delivery_List!AK25,dProduct[NameTH],0))) ->  | AJ25: =IF(AH25="","",COUNT(AH$12:AH25)) ->  | AK25: 14-ขนมปังไส้กรอก | AN25: =IF(AK25="","",SUMPRODUCT((Transaction[Route]=AP$3)*(Transaction[Products]=AK25)*(Transaction[Type]="ยกมา")*(Transaction[Date]=Delivery_List!Select_Date)*Transaction[Qty In-Out])) -> 0 | AO25: =IF(AH25="","",INDEX(Transaction[Qty In-Out],AH25)) ->  | AR25: =IF(AK25="","",INDEX(dProduct[Catagory],MATCH(Delivery_List!AK25,dProduct[NameTH],0))) -> 
A26: =IFERROR(IF(COUNT($A$11:$A25)+1>COUNTIF(Transaction[Route],I$3),"",_xlfn.AGGREGATE(15,6,(ROW(Transaction[Date])-ROW(Transaction[[#Headers],[Date]]))/((Transaction[Route]=I$3)*(Transaction[Products]=Delivery_List!$D26)*(Transaction[Date]=Delivery_List!Select_Date)*(Transaction[Type]="เบิก")),1)),"") -> 40 | B26: =IF(D26="","",INDEX(dProduct[Pcs/Unit],MATCH(Delivery_List!D26,dProduct[NameTH],0))) ->  | C26: =IF(A26="","",COUNT(A$12:A26)) -> 14 | D26: 15-ขนมก้านบัว | G26: =IF(D26="","",SUMPRODUCT((Transaction[Route]=I$3)*(Transaction[Products]=D26)*(Transaction[Type]="ยกมา")*(Transaction[Date]=Delivery_List!Select_Date)*Transaction[Qty In-Out])) -> 0 | H26: =IF(A26="","",INDEX(Transaction[Qty In-Out],A26)) -> 40 | K26: =IF(D26="","",INDEX(dProduct[Catagory],MATCH(Delivery_List!D26,dProduct[NameTH],0))) ->  | L26: =IFERROR(IF(COUNT($A$11:$A25)+1>COUNTIF(Transaction[Route],T$3),"",_xlfn.AGGREGATE(15,6,(ROW(Transaction[Date])-ROW(Transaction[[#Headers],[Date]]))/((Transaction[Route]=T$3)*(Transaction[Products]=Delivery_List!$D26)*(Transaction[Date]=Delivery_List!Select_Date)*(Transaction[Type]="เบิก")),1)),"") ->  | M26: =IF(O26="","",INDEX(dProduct[Pcs/Unit],MATCH(Delivery_List!O26,dProduct[NameTH],0))) ->  | N26: =IF(L26="","",COUNT(L$12:L26)) ->  | O26: 15-ขนมก้านบัว | R26: =IF(O26="","",SUMPRODUCT((Transaction[Route]=T$3)*(Transaction[Products]=O26)*(Transaction[Type]="ยกมา")*(Transaction[Date]=Delivery_List!Select_Date)*Transaction[Qty In-Out])) -> 0 | S26: =IF(L26="","",INDEX(Transaction[Qty In-Out],L26)) ->  | V26: =IF(O26="","",INDEX(dProduct[Catagory],MATCH(Delivery_List!O26,dProduct[NameTH],0))) ->  | W26: =IFERROR(IF(COUNT($A$11:$A25)+1>COUNTIF(Transaction[Route],AE$3),"",_xlfn.AGGREGATE(15,6,(ROW(Transaction[Date])-ROW(Transaction[[#Headers],[Date]]))/((Transaction[Route]=AE$3)*(Transaction[Products]=Delivery_List!$D26)*(Transaction[Date]=Delivery_List!Select_Date)*(Transaction[Type]="เบิก")),1)),"") ->  | X26: =IF(Z26="","",INDEX(dProduct[Pcs/Unit],MATCH(Delivery_List!Z26,dProduct[NameTH],0))) ->  | Y26: =IF(W26="","",COUNT(W$12:W26)) ->  | Z26: 15-ขนมก้านบัว | AC26: =IF(Z26="","",SUMPRODUCT((Transaction[Route]=AE$3)*(Transaction[Products]=Z26)*(Transaction[Type]="ยกมา")*(Transaction[Date]=Delivery_List!Select_Date)*Transaction[Qty In-Out])) -> 0 | AD26: =IF(W26="","",INDEX(Transaction[Qty In-Out],W26)) ->  | AG26: =IF(Z26="","",INDEX(dProduct[Catagory],MATCH(Delivery_List!Z26,dProduct[NameTH],0))) ->  | AH26: =IFERROR(IF(COUNT($A$11:$A25)+1>COUNTIF(Transaction[Route],AP$3),"",_xlfn.AGGREGATE(15,6,(ROW(Transaction[Date])-ROW(Transaction[[#Headers],[Date]]))/((Transaction[Route]=AP$3)*(Transaction[Products]=Delivery_List!$D26)*(Transaction[Date]=Delivery_List!Select_Date)*(Transaction[Type]="เบิก")),1)),"") ->  | AI26: =IF(AK26="","",INDEX(dProduct[Pcs/Unit],MATCH(Delivery_List!AK26,dProduct[NameTH],0))) ->  | AJ26: =IF(AH26="","",COUNT(AH$12:AH26)) ->  | AK26: 15-ขนมก้านบัว | AN26: =IF(AK26="","",SUMPRODUCT((Transaction[Route]=AP$3)*(Transaction[Products]=AK26)*(Transaction[Type]="ยกมา")*(Transaction[Date]=Delivery_List!Select_Date)*Transaction[Qty In-Out])) -> 0 | AO26: =IF(AH26="","",INDEX(Transaction[Qty In-Out],AH26)) ->  | AR26: =IF(AK26="","",INDEX(dProduct[Catagory],MATCH(Delivery_List!AK26,dProduct[NameTH],0))) -> 
A27: =IFERROR(IF(COUNT($A$11:$A26)+1>COUNTIF(Transaction[Route],I$3),"",_xlfn.AGGREGATE(15,6,(ROW(Transaction[Date])-ROW(Transaction[[#Headers],[Date]]))/((Transaction[Route]=I$3)*(Transaction[Products]=Delivery_List!$D27)*(Transaction[Date]=Delivery_List!Select_Date)*(Transaction[Type]="เบิก")),1)),"") -> 41 | B27: =IF(D27="","",INDEX(dProduct[Pcs/Unit],MATCH(Delivery_List!D27,dProduct[NameTH],0))) ->  | C27: =IF(A27="","",COUNT(A$12:A27)) -> 15 | D27: 16-ขนมปังไส้หมูหยองใหญ่ | G27: =IF(D27="","",SUMPRODUCT((Transaction[Route]=I$3)*(Transaction[Products]=D27)*(Transaction[Type]="ยกมา")*(Transaction[Date]=Delivery_List!Select_Date)*Transaction[Qty In-Out])) -> 0 | H27: =IF(A27="","",INDEX(Transaction[Qty In-Out],A27)) -> 60 | K27: =IF(D27="","",INDEX(dProduct[Catagory],MATCH(Delivery_List!D27,dProduct[NameTH],0))) ->  | L27: =IFERROR(IF(COUNT($A$11:$A26)+1>COUNTIF(Transaction[Route],T$3),"",_xlfn.AGGREGATE(15,6,(ROW(Transaction[Date])-ROW(Transaction[[#Headers],[Date]]))/((Transaction[Route]=T$3)*(Transaction[Products]=Delivery_List!$D27)*(Transaction[Date]=Delivery_List!Select_Date)*(Transaction[Type]="เบิก")),1)),"") ->  | M27: =IF(O27="","",INDEX(dProduct[Pcs/Unit],MATCH(Delivery_List!O27,dProduct[NameTH],0))) ->  | N27: =IF(L27="","",COUNT(L$12:L27)) ->  | O27: 16-ขนมปังไส้หมูหยองใหญ่ | R27: =IF(O27="","",SUMPRODUCT((Transaction[Route]=T$3)*(Transaction[Products]=O27)*(Transaction[Type]="ยกมา")*(Transaction[Date]=Delivery_List!Select_Date)*Transaction[Qty In-Out])) -> 0 | S27: =IF(L27="","",INDEX(Transaction[Qty In-Out],L27)) ->  | V27: =IF(O27="","",INDEX(dProduct[Catagory],MATCH(Delivery_List!O27,dProduct[NameTH],0))) ->  | W27: =IFERROR(IF(COUNT($A$11:$A26)+1>COUNTIF(Transaction[Route],AE$3),"",_xlfn.AGGREGATE(15,6,(ROW(Transaction[Date])-ROW(Transaction[[#Headers],[Date]]))/((Transaction[Route]=AE$3)*(Transaction[Products]=Delivery_List!$D27)*(Transaction[Date]=Delivery_List!Select_Date)*(Transaction[Type]="เบิก")),1)),"") ->  | X27: =IF(Z27="","",INDEX(dProduct[Pcs/Unit],MATCH(Delivery_List!Z27,dProduct[NameTH],0))) ->  | Y27: =IF(W27="","",COUNT(W$12:W27)) ->  | Z27: 16-ขนมปังไส้หมูหยองใหญ่ | AC27: =IF(Z27="","",SUMPRODUCT((Transaction[Route]=AE$3)*(Transaction[Products]=Z27)*(Transaction[Type]="ยกมา")*(Transaction[Date]=Delivery_List!Select_Date)*Transaction[Qty In-Out])) -> 0 | AD27: =IF(W27="","",INDEX(Transaction[Qty In-Out],W27)) ->  | AG27: =IF(Z27="","",INDEX(dProduct[Catagory],MATCH(Delivery_List!Z27,dProduct[NameTH],0))) ->  | AH27: =IFERROR(IF(COUNT($A$11:$A26)+1>COUNTIF(Transaction[Route],AP$3),"",_xlfn.AGGREGATE(15,6,(ROW(Transaction[Date])-ROW(Transaction[[#Headers],[Date]]))/((Transaction[Route]=AP$3)*(Transaction[Products]=Delivery_List!$D27)*(Transaction[Date]=Delivery_List!Select_Date)*(Transaction[Type]="เบิก")),1)),"") ->  | AI27: =IF(AK27="","",INDEX(dProduct[Pcs/Unit],MATCH(Delivery_List!AK27,dProduct[NameTH],0))) ->  | AJ27: =IF(AH27="","",COUNT(AH$12:AH27)) ->  | AK27: 16-ขนมปังไส้หมูหยองใหญ่ | AN27: =IF(AK27="","",SUMPRODUCT((Transaction[Route]=AP$3)*(Transaction[Products]=AK27)*(Transaction[Type]="ยกมา")*(Transaction[Date]=Delivery_List!Select_Date)*Transaction[Qty In-Out])) -> 0 | AO27: =IF(AH27="","",INDEX(Transaction[Qty In-Out],AH27)) ->  | AR27: =IF(AK27="","",INDEX(dProduct[Catagory],MATCH(Delivery_List!AK27,dProduct[NameTH],0))) -> 
A28: =IFERROR(IF(COUNT($A$11:$A27)+1>COUNTIF(Transaction[Route],I$3),"",_xlfn.AGGREGATE(15,6,(ROW(Transaction[Date])-ROW(Transaction[[#Headers],[Date]]))/((Transaction[Route]=I$3)*(Transaction[Products]=Delivery_List!$D28)*(Transaction[Date]=Delivery_List!Select_Date)*(Transaction[Type]="เบิก")),1)),"") -> 42 | B28: =IF(D28="","",INDEX(dProduct[Pcs/Unit],MATCH(Delivery_List!D28,dProduct[NameTH],0))) ->  | C28: =IF(A28="","",COUNT(A$12:A28)) -> 16 | D28: 17-ขนมปังไส้ครีมสลัด | G28: =IF(D28="","",SUMPRODUCT((Transaction[Route]=I$3)*(Transaction[Products]=D28)*(Transaction[Type]="ยกมา")*(Transaction[Date]=Delivery_List!Select_Date)*Transaction[Qty In-Out])) -> 0 | H28: =IF(A28="","",INDEX(Transaction[Qty In-Out],A28)) -> 50 | K28: =IF(D28="","",INDEX(dProduct[Catagory],MATCH(Delivery_List!D28,dProduct[NameTH],0))) ->  | L28: =IFERROR(IF(COUNT($A$11:$A27)+1>COUNTIF(Transaction[Route],T$3),"",_xlfn.AGGREGATE(15,6,(ROW(Transaction[Date])-ROW(Transaction[[#Headers],[Date]]))/((Transaction[Route]=T$3)*(Transaction[Products]=Delivery_List!$D28)*(Transaction[Date]=Delivery_List!Select_Date)*(Transaction[Type]="เบิก")),1)),"") ->  | M28: =IF(O28="","",INDEX(dProduct[Pcs/Unit],MATCH(Delivery_List!O28,dProduct[NameTH],0))) ->  | N28: =IF(L28="","",COUNT(L$12:L28)) ->  | O28: 17-ขนมปังไส้ครีมสลัด | R28: =IF(O28="","",SUMPRODUCT((Transaction[Route]=T$3)*(Transaction[Products]=O28)*(Transaction[Type]="ยกมา")*(Transaction[Date]=Delivery_List!Select_Date)*Transaction[Qty In-Out])) -> 0 | S28: =IF(L28="","",INDEX(Transaction[Qty In-Out],L28)) ->  | V28: =IF(O28="","",INDEX(dProduct[Catagory],MATCH(Delivery_List!O28,dProduct[NameTH],0))) ->  | W28: =IFERROR(IF(COUNT($A$11:$A27)+1>COUNTIF(Transaction[Route],AE$3),"",_xlfn.AGGREGATE(15,6,(ROW(Transaction[Date])-ROW(Transaction[[#Headers],[Date]]))/((Transaction[Route]=AE$3)*(Transaction[Products]=Delivery_List!$D28)*(Transaction[Date]=Delivery_List!Select_Date)*(Transaction[Type]="เบิก")),1)),"") ->  | X28: =IF(Z28="","",INDEX(dProduct[Pcs/Unit],MATCH(Delivery_List!Z28,dProduct[NameTH],0))) ->  | Y28: =IF(W28="","",COUNT(W$12:W28)) ->  | Z28: 17-ขนมปังไส้ครีมสลัด | AC28: =IF(Z28="","",SUMPRODUCT((Transaction[Route]=AE$3)*(Transaction[Products]=Z28)*(Transaction[Type]="ยกมา")*(Transaction[Date]=Delivery_List!Select_Date)*Transaction[Qty In-Out])) -> 0 | AD28: =IF(W28="","",INDEX(Transaction[Qty In-Out],W28)) ->  | AG28: =IF(Z28="","",INDEX(dProduct[Catagory],MATCH(Delivery_List!Z28,dProduct[NameTH],0))) ->  | AH28: =IFERROR(IF(COUNT($A$11:$A27)+1>COUNTIF(Transaction[Route],AP$3),"",_xlfn.AGGREGATE(15,6,(ROW(Transaction[Date])-ROW(Transaction[[#Headers],[Date]]))/((Transaction[Route]=AP$3)*(Transaction[Products]=Delivery_List!$D28)*(Transaction[Date]=Delivery_List!Select_Date)*(Transaction[Type]="เบิก")),1)),"") ->  | AI28: =IF(AK28="","",INDEX(dProduct[Pcs/Unit],MATCH(Delivery_List!AK28,dProduct[NameTH],0))) ->  | AJ28: =IF(AH28="","",COUNT(AH$12:AH28)) ->  | AK28: 17-ขนมปังไส้ครีมสลัด | AN28: =IF(AK28="","",SUMPRODUCT((Transaction[Route]=AP$3)*(Transaction[Products]=AK28)*(Transaction[Type]="ยกมา")*(Transaction[Date]=Delivery_List!Select_Date)*Transaction[Qty In-Out])) -> 0 | AO28: =IF(AH28="","",INDEX(Transaction[Qty In-Out],AH28)) ->  | AR28: =IF(AK28="","",INDEX(dProduct[Catagory],MATCH(Delivery_List!AK28,dProduct[NameTH],0))) -> 
A29: =IFERROR(IF(COUNT($A$11:$A28)+1>COUNTIF(Transaction[Route],I$3),"",_xlfn.AGGREGATE(15,6,(ROW(Transaction[Date])-ROW(Transaction[[#Headers],[Date]]))/((Transaction[Route]=I$3)*(Transaction[Products]=Delivery_List!$D29)*(Transaction[Date]=Delivery_List!Select_Date)*(Transaction[Type]="เบิก")),1)),"") -> 43 | B29: =IF(D29="","",INDEX(dProduct[Pcs/Unit],MATCH(Delivery_List!D29,dProduct[NameTH],0))) ->  | C29: =IF(A29="","",COUNT(A$12:A29)) -> 17 | D29: 18-ขนมปังไก่หยองน้ำสลัด | G29: =IF(D29="","",SUMPRODUCT((Transaction[Route]=I$3)*(Transaction[Products]=D29)*(Transaction[Type]="ยกมา")*(Transaction[Date]=Delivery_List!Select_Date)*Transaction[Qty In-Out])) -> 0 | H29: =IF(A29="","",INDEX(Transaction[Qty In-Out],A29)) -> 60 | K29: =IF(D29="","",INDEX(dProduct[Catagory],MATCH(Delivery_List!D29,dProduct[NameTH],0))) ->  | L29: =IFERROR(IF(COUNT($A$11:$A28)+1>COUNTIF(Transaction[Route],T$3),"",_xlfn.AGGREGATE(15,6,(ROW(Transaction[Date])-ROW(Transaction[[#Headers],[Date]]))/((Transaction[Route]=T$3)*(Transaction[Products]=Delivery_List!$D29)*(Transaction[Date]=Delivery_List!Select_Date)*(Transaction[Type]="เบิก")),1)),"") ->  | M29: =IF(O29="","",INDEX(dProduct[Pcs/Unit],MATCH(Delivery_List!O29,dProduct[NameTH],0))) ->  | N29: =IF(L29="","",COUNT(L$12:L29)) ->  | O29: 18-ขนมปังไก่หยองน้ำสลัด | R29: =IF(O29="","",SUMPRODUCT((Transaction[Route]=T$3)*(Transaction[Products]=O29)*(Transaction[Type]="ยกมา")*(Transaction[Date]=Delivery_List!Select_Date)*Transaction[Qty In-Out])) -> 0 | S29: =IF(L29="","",INDEX(Transaction[Qty In-Out],L29)) ->  | V29: =IF(O29="","",INDEX(dProduct[Catagory],MATCH(Delivery_List!O29,dProduct[NameTH],0))) ->  | W29: =IFERROR(IF(COUNT($A$11:$A28)+1>COUNTIF(Transaction[Route],AE$3),"",_xlfn.AGGREGATE(15,6,(ROW(Transaction[Date])-ROW(Transaction[[#Headers],[Date]]))/((Transaction[Route]=AE$3)*(Transaction[Products]=Delivery_List!$D29)*(Transaction[Date]=Delivery_List!Select_Date)*(Transaction[Type]="เบิก")),1)),"") ->  | X29: =IF(Z29="","",INDEX(dProduct[Pcs/Unit],MATCH(Delivery_List!Z29,dProduct[NameTH],0))) ->  | Y29: =IF(W29="","",COUNT(W$12:W29)) ->  | Z29: 18-ขนมปังไก่หยองน้ำสลัด | AC29: =IF(Z29="","",SUMPRODUCT((Transaction[Route]=AE$3)*(Transaction[Products]=Z29)*(Transaction[Type]="ยกมา")*(Transaction[Date]=Delivery_List!Select_Date)*Transaction[Qty In-Out])) -> 0 | AD29: =IF(W29="","",INDEX(Transaction[Qty In-Out],W29)) ->  | AG29: =IF(Z29="","",INDEX(dProduct[Catagory],MATCH(Delivery_List!Z29,dProduct[NameTH],0))) ->  | AH29: =IFERROR(IF(COUNT($A$11:$A28)+1>COUNTIF(Transaction[Route],AP$3),"",_xlfn.AGGREGATE(15,6,(ROW(Transaction[Date])-ROW(Transaction[[#Headers],[Date]]))/((Transaction[Route]=AP$3)*(Transaction[Products]=Delivery_List!$D29)*(Transaction[Date]=Delivery_List!Select_Date)*(Transaction[Type]="เบิก")),1)),"") ->  | AI29: =IF(AK29="","",INDEX(dProduct[Pcs/Unit],MATCH(Delivery_List!AK29,dProduct[NameTH],0))) ->  | AJ29: =IF(AH29="","",COUNT(AH$12:AH29)) ->  | AK29: 18-ขนมปังไก่หยองน้ำสลัด | AN29: =IF(AK29="","",SUMPRODUCT((Transaction[Route]=AP$3)*(Transaction[Products]=AK29)*(Transaction[Type]="ยกมา")*(Transaction[Date]=Delivery_List!Select_Date)*Transaction[Qty In-Out])) -> 0 | AO29: =IF(AH29="","",INDEX(Transaction[Qty In-Out],AH29)) ->  | AR29: =IF(AK29="","",INDEX(dProduct[Catagory],MATCH(Delivery_List!AK29,dProduct[NameTH],0))) -> 
A30: =IFERROR(IF(COUNT($A$11:$A29)+1>COUNTIF(Transaction[Route],I$3),"",_xlfn.AGGREGATE(15,6,(ROW(Transaction[Date])-ROW(Transaction[[#Headers],[Date]]))/((Transaction[Route]=I$3)*(Transaction[Products]=Delivery_List!$D30)*(Transaction[Date]=Delivery_List!Select_Date)*(Transaction[Type]="เบิก")),1)),"") -> 44 | B30: =IF(D30="","",INDEX(dProduct[Pcs/Unit],MATCH(Delivery_List!D30,dProduct[NameTH],0))) ->  | C30: =IF(A30="","",COUNT(A$12:A30)) -> 18 | D30: 20-ปังกรอบเนยสด | G30: =IF(D30="","",SUMPRODUCT((Transaction[Route]=I$3)*(Transaction[Products]=D30)*(Transaction[Type]="ยกมา")*(Transaction[Date]=Delivery_List!Select_Date)*Transaction[Qty In-Out])) -> 0 | H30: =IF(A30="","",INDEX(Transaction[Qty In-Out],A30)) -> 5 | K30: =IF(D30="","",INDEX(dProduct[Catagory],MATCH(Delivery_List!D30,dProduct[NameTH],0))) ->  | L30: =IFERROR(IF(COUNT($A$11:$A29)+1>COUNTIF(Transaction[Route],T$3),"",_xlfn.AGGREGATE(15,6,(ROW(Transaction[Date])-ROW(Transaction[[#Headers],[Date]]))/((Transaction[Route]=T$3)*(Transaction[Products]=Delivery_List!$D30)*(Transaction[Date]=Delivery_List!Select_Date)*(Transaction[Type]="เบิก")),1)),"") ->  | M30: =IF(O30="","",INDEX(dProduct[Pcs/Unit],MATCH(Delivery_List!O30,dProduct[NameTH],0))) ->  | N30: =IF(L30="","",COUNT(L$12:L30)) ->  | O30: 20-ปังกรอบเนยสด | R30: =IF(O30="","",SUMPRODUCT((Transaction[Route]=T$3)*(Transaction[Products]=O30)*(Transaction[Type]="ยกมา")*(Transaction[Date]=Delivery_List!Select_Date)*Transaction[Qty In-Out])) -> 0 | S30: =IF(L30="","",INDEX(Transaction[Qty In-Out],L30)) ->  | V30: =IF(O30="","",INDEX(dProduct[Catagory],MATCH(Delivery_List!O30,dProduct[NameTH],0))) ->  | W30: =IFERROR(IF(COUNT($A$11:$A29)+1>COUNTIF(Transaction[Route],AE$3),"",_xlfn.AGGREGATE(15,6,(ROW(Transaction[Date])-ROW(Transaction[[#Headers],[Date]]))/((Transaction[Route]=AE$3)*(Transaction[Products]=Delivery_List!$D30)*(Transaction[Date]=Delivery_List!Select_Date)*(Transaction[Type]="เบิก")),1)),"") ->  | X30: =IF(Z30="","",INDEX(dProduct[Pcs/Unit],MATCH(Delivery_List!Z30,dProduct[NameTH],0))) ->  | Y30: =IF(W30="","",COUNT(W$12:W30)) ->  | Z30: 20-ปังกรอบเนยสด | AC30: =IF(Z30="","",SUMPRODUCT((Transaction[Route]=AE$3)*(Transaction[Products]=Z30)*(Transaction[Type]="ยกมา")*(Transaction[Date]=Delivery_List!Select_Date)*Transaction[Qty In-Out])) -> 0 | AD30: =IF(W30="","",INDEX(Transaction[Qty In-Out],W30)) ->  | AG30: =IF(Z30="","",INDEX(dProduct[Catagory],MATCH(Delivery_List!Z30,dProduct[NameTH],0))) ->  | AH30: =IFERROR(IF(COUNT($A$11:$A29)+1>COUNTIF(Transaction[Route],AP$3),"",_xlfn.AGGREGATE(15,6,(ROW(Transaction[Date])-ROW(Transaction[[#Headers],[Date]]))/((Transaction[Route]=AP$3)*(Transaction[Products]=Delivery_List!$D30)*(Transaction[Date]=Delivery_List!Select_Date)*(Transaction[Type]="เบิก")),1)),"") ->  | AI30: =IF(AK30="","",INDEX(dProduct[Pcs/Unit],MATCH(Delivery_List!AK30,dProduct[NameTH],0))) ->  | AJ30: =IF(AH30="","",COUNT(AH$12:AH30)) ->  | AK30: 20-ปังกรอบเนยสด | AN30: =IF(AK30="","",SUMPRODUCT((Transaction[Route]=AP$3)*(Transaction[Products]=AK30)*(Transaction[Type]="ยกมา")*(Transaction[Date]=Delivery_List!Select_Date)*Transaction[Qty In-Out])) -> 0 | AO30: =IF(AH30="","",INDEX(Transaction[Qty In-Out],AH30)) ->  | AR30: =IF(AK30="","",INDEX(dProduct[Catagory],MATCH(Delivery_List!AK30,dProduct[NameTH],0))) -> 
A31: =IFERROR(IF(COUNT($A$11:$A30)+1>COUNTIF(Transaction[Route],I$3),"",_xlfn.AGGREGATE(15,6,(ROW(Transaction[Date])-ROW(Transaction[[#Headers],[Date]]))/((Transaction[Route]=I$3)*(Transaction[Products]=Delivery_List!$D31)*(Transaction[Date]=Delivery_List!Select_Date)*(Transaction[Type]="เบิก")),1)),"") -> 45 | B31: =IF(D31="","",INDEX(dProduct[Pcs/Unit],MATCH(Delivery_List!D31,dProduct[NameTH],0))) ->  | C31: =IF(A31="","",COUNT(A$12:A31)) -> 19 | D31: 21-ปังกรอบกระเทียม | G31: =IF(D31="","",SUMPRODUCT((Transaction[Route]=I$3)*(Transaction[Products]=D31)*(Transaction[Type]="ยกมา")*(Transaction[Date]=Delivery_List!Select_Date)*Transaction[Qty In-Out])) -> 0 | H31: =IF(A31="","",INDEX(Transaction[Qty In-Out],A31)) -> 5 | K31: =IF(D31="","",INDEX(dProduct[Catagory],MATCH(Delivery_List!D31,dProduct[NameTH],0))) ->  | L31: =IFERROR(IF(COUNT($A$11:$A30)+1>COUNTIF(Transaction[Route],T$3),"",_xlfn.AGGREGATE(15,6,(ROW(Transaction[Date])-ROW(Transaction[[#Headers],[Date]]))/((Transaction[Route]=T$3)*(Transaction[Products]=Delivery_List!$D31)*(Transaction[Date]=Delivery_List!Select_Date)*(Transaction[Type]="เบิก")),1)),"") ->  | M31: =IF(O31="","",INDEX(dProduct[Pcs/Unit],MATCH(Delivery_List!O31,dProduct[NameTH],0))) ->  | N31: =IF(L31="","",COUNT(L$12:L31)) ->  | O31: 21-ปังกรอบกระเทียม | R31: =IF(O31="","",SUMPRODUCT((Transaction[Route]=T$3)*(Transaction[Products]=O31)*(Transaction[Type]="ยกมา")*(Transaction[Date]=Delivery_List!Select_Date)*Transaction[Qty In-Out])) -> 0 | S31: =IF(L31="","",INDEX(Transaction[Qty In-Out],L31)) ->  | V31: =IF(O31="","",INDEX(dProduct[Catagory],MATCH(Delivery_List!O31,dProduct[NameTH],0))) ->  | W31: =IFERROR(IF(COUNT($A$11:$A30)+1>COUNTIF(Transaction[Route],AE$3),"",_xlfn.AGGREGATE(15,6,(ROW(Transaction[Date])-ROW(Transaction[[#Headers],[Date]]))/((Transaction[Route]=AE$3)*(Transaction[Products]=Delivery_List!$D31)*(Transaction[Date]=Delivery_List!Select_Date)*(Transaction[Type]="เบิก")),1)),"") ->  | X31: =IF(Z31="","",INDEX(dProduct[Pcs/Unit],MATCH(Delivery_List!Z31,dProduct[NameTH],0))) ->  | Y31: =IF(W31="","",COUNT(W$12:W31)) ->  | Z31: 21-ปังกรอบกระเทียม | AC31: =IF(Z31="","",SUMPRODUCT((Transaction[Route]=AE$3)*(Transaction[Products]=Z31)*(Transaction[Type]="ยกมา")*(Transaction[Date]=Delivery_List!Select_Date)*Transaction[Qty In-Out])) -> 0 | AD31: =IF(W31="","",INDEX(Transaction[Qty In-Out],W31)) ->  | AG31: =IF(Z31="","",INDEX(dProduct[Catagory],MATCH(Delivery_List!Z31,dProduct[NameTH],0))) ->  | AH31: =IFERROR(IF(COUNT($A$11:$A30)+1>COUNTIF(Transaction[Route],AP$3),"",_xlfn.AGGREGATE(15,6,(ROW(Transaction[Date])-ROW(Transaction[[#Headers],[Date]]))/((Transaction[Route]=AP$3)*(Transaction[Products]=Delivery_List!$D31)*(Transaction[Date]=Delivery_List!Select_Date)*(Transaction[Type]="เบิก")),1)),"") ->  | AI31: =IF(AK31="","",INDEX(dProduct[Pcs/Unit],MATCH(Delivery_List!AK31,dProduct[NameTH],0))) ->  | AJ31: =IF(AH31="","",COUNT(AH$12:AH31)) ->  | AK31: 21-ปังกรอบกระเทียม | AN31: =IF(AK31="","",SUMPRODUCT((Transaction[Route]=AP$3)*(Transaction[Products]=AK31)*(Transaction[Type]="ยกมา")*(Transaction[Date]=Delivery_List!Select_Date)*Transaction[Qty In-Out])) -> 0 | AO31: =IF(AH31="","",INDEX(Transaction[Qty In-Out],AH31)) ->  | AR31: =IF(AK31="","",INDEX(dProduct[Catagory],MATCH(Delivery_List!AK31,dProduct[NameTH],0))) -> 
A32: =IFERROR(IF(COUNT($A$11:$A31)+1>COUNTIF(Transaction[Route],I$3),"",_xlfn.AGGREGATE(15,6,(ROW(Transaction[Date])-ROW(Transaction[[#Headers],[Date]]))/((Transaction[Route]=I$3)*(Transaction[Products]=Delivery_List!$D32)*(Transaction[Date]=Delivery_List!Select_Date)*(Transaction[Type]="เบิก")),1)),"") -> 46 | B32: =IF(D32="","",INDEX(dProduct[Pcs/Unit],MATCH(Delivery_List!D32,dProduct[NameTH],0))) ->  | C32: =IF(A32="","",COUNT(A$12:A32)) -> 20 | D32: 23-ขนมปังหมูหยองน้ำพริกเผา | G32: =IF(D32="","",SUMPRODUCT((Transaction[Route]=I$3)*(Transaction[Products]=D32)*(Transaction[Type]="ยกมา")*(Transaction[Date]=Delivery_List!Select_Date)*Transaction[Qty In-Out])) -> 0 | H32: =IF(A32="","",INDEX(Transaction[Qty In-Out],A32)) -> 40 | K32: =IF(D32="","",INDEX(dProduct[Catagory],MATCH(Delivery_List!D32,dProduct[NameTH],0))) ->  | L32: =IFERROR(IF(COUNT($A$11:$A31)+1>COUNTIF(Transaction[Route],T$3),"",_xlfn.AGGREGATE(15,6,(ROW(Transaction[Date])-ROW(Transaction[[#Headers],[Date]]))/((Transaction[Route]=T$3)*(Transaction[Products]=Delivery_List!$D32)*(Transaction[Date]=Delivery_List!Select_Date)*(Transaction[Type]="เบิก")),1)),"") ->  | M32: =IF(O32="","",INDEX(dProduct[Pcs/Unit],MATCH(Delivery_List!O32,dProduct[NameTH],0))) ->  | N32: =IF(L32="","",COUNT(L$12:L32)) ->  | O32: 23-ขนมปังหมูหยองน้ำพริกเผา | R32: =IF(O32="","",SUMPRODUCT((Transaction[Route]=T$3)*(Transaction[Products]=O32)*(Transaction[Type]="ยกมา")*(Transaction[Date]=Delivery_List!Select_Date)*Transaction[Qty In-Out])) -> 0 | S32: =IF(L32="","",INDEX(Transaction[Qty In-Out],L32)) ->  | V32: =IF(O32="","",INDEX(dProduct[Catagory],MATCH(Delivery_List!O32,dProduct[NameTH],0))) ->  | W32: =IFERROR(IF(COUNT($A$11:$A31)+1>COUNTIF(Transaction[Route],AE$3),"",_xlfn.AGGREGATE(15,6,(ROW(Transaction[Date])-ROW(Transaction[[#Headers],[Date]]))/((Transaction[Route]=AE$3)*(Transaction[Products]=Delivery_List!$D32)*(Transaction[Date]=Delivery_List!Select_Date)*(Transaction[Type]="เบิก")),1)),"") ->  | X32: =IF(Z32="","",INDEX(dProduct[Pcs/Unit],MATCH(Delivery_List!Z32,dProduct[NameTH],0))) ->  | Y32: =IF(W32="","",COUNT(W$12:W32)) ->  | Z32: 23-ขนมปังหมูหยองน้ำพริกเผา | AC32: =IF(Z32="","",SUMPRODUCT((Transaction[Route]=AE$3)*(Transaction[Products]=Z32)*(Transaction[Type]="ยกมา")*(Transaction[Date]=Delivery_List!Select_Date)*Transaction[Qty In-Out])) -> 0 | AD32: =IF(W32="","",INDEX(Transaction[Qty In-Out],W32)) ->  | AG32: =IF(Z32="","",INDEX(dProduct[Catagory],MATCH(Delivery_List!Z32,dProduct[NameTH],0))) ->  | AH32: =IFERROR(IF(COUNT($A$11:$A31)+1>COUNTIF(Transaction[Route],AP$3),"",_xlfn.AGGREGATE(15,6,(ROW(Transaction[Date])-ROW(Transaction[[#Headers],[Date]]))/((Transaction[Route]=AP$3)*(Transaction[Products]=Delivery_List!$D32)*(Transaction[Date]=Delivery_List!Select_Date)*(Transaction[Type]="เบิก")),1)),"") ->  | AI32: =IF(AK32="","",INDEX(dProduct[Pcs/Unit],MATCH(Delivery_List!AK32,dProduct[NameTH],0))) ->  | AJ32: =IF(AH32="","",COUNT(AH$12:AH32)) ->  | AK32: 23-ขนมปังหมูหยองน้ำพริกเผา | AN32: =IF(AK32="","",SUMPRODUCT((Transaction[Route]=AP$3)*(Transaction[Products]=AK32)*(Transaction[Type]="ยกมา")*(Transaction[Date]=Delivery_List!Select_Date)*Transaction[Qty In-Out])) -> 0 | AO32: =IF(AH32="","",INDEX(Transaction[Qty In-Out],AH32)) ->  | AR32: =IF(AK32="","",INDEX(dProduct[Catagory],MATCH(Delivery_List!AK32,dProduct[NameTH],0))) -> 
A33: =IFERROR(IF(COUNT($A$11:$A32)+1>COUNTIF(Transaction[Route],I$3),"",_xlfn.AGGREGATE(15,6,(ROW(Transaction[Date])-ROW(Transaction[[#Headers],[Date]]))/((Transaction[Route]=I$3)*(Transaction[Products]=Delivery_List!$D33)*(Transaction[Date]=Delivery_List!Select_Date)*(Transaction[Type]="เบิก")),1)),"") ->  | B33: =IF(D33="","",INDEX(dProduct[Pcs/Unit],MATCH(Delivery_List!D33,dProduct[NameTH],0))) ->  | C33: =IF(A33="","",COUNT(A$12:A33)) ->  | D33: 28-ขนมปังชนิดแผ่น (460 กรัม) | G33: =IF(D33="","",SUMPRODUCT((Transaction[Route]=I$3)*(Transaction[Products]=D33)*(Transaction[Type]="ยกมา")*(Transaction[Date]=Delivery_List!Select_Date)*Transaction[Qty In-Out])) -> 0 | H33: =IF(A33="","",INDEX(Transaction[Qty In-Out],A33)) ->  | K33: =IF(D33="","",INDEX(dProduct[Catagory],MATCH(Delivery_List!D33,dProduct[NameTH],0))) ->  | L33: =IFERROR(IF(COUNT($A$11:$A32)+1>COUNTIF(Transaction[Route],T$3),"",_xlfn.AGGREGATE(15,6,(ROW(Transaction[Date])-ROW(Transaction[[#Headers],[Date]]))/((Transaction[Route]=T$3)*(Transaction[Products]=Delivery_List!$D33)*(Transaction[Date]=Delivery_List!Select_Date)*(Transaction[Type]="เบิก")),1)),"") ->  | M33: =IF(O33="","",INDEX(dProduct[Pcs/Unit],MATCH(Delivery_List!O33,dProduct[NameTH],0))) ->  | N33: =IF(L33="","",COUNT(L$12:L33)) ->  | O33: 28-ขนมปังชนิดแผ่น (460 กรัม) | R33: =IF(O33="","",SUMPRODUCT((Transaction[Route]=T$3)*(Transaction[Products]=O33)*(Transaction[Type]="ยกมา")*(Transaction[Date]=Delivery_List!Select_Date)*Transaction[Qty In-Out])) -> 0 | S33: =IF(L33="","",INDEX(Transaction[Qty In-Out],L33)) ->  | V33: =IF(O33="","",INDEX(dProduct[Catagory],MATCH(Delivery_List!O33,dProduct[NameTH],0))) ->  | W33: =IFERROR(IF(COUNT($A$11:$A32)+1>COUNTIF(Transaction[Route],AE$3),"",_xlfn.AGGREGATE(15,6,(ROW(Transaction[Date])-ROW(Transaction[[#Headers],[Date]]))/((Transaction[Route]=AE$3)*(Transaction[Products]=Delivery_List!$D33)*(Transaction[Date]=Delivery_List!Select_Date)*(Transaction[Type]="เบิก")),1)),"") ->  | X33: =IF(Z33="","",INDEX(dProduct[Pcs/Unit],MATCH(Delivery_List!Z33,dProduct[NameTH],0))) ->  | Y33: =IF(W33="","",COUNT(W$12:W33)) ->  | Z33: 28-ขนมปังชนิดแผ่น (460 กรัม) | AC33: =IF(Z33="","",SUMPRODUCT((Transaction[Route]=AE$3)*(Transaction[Products]=Z33)*(Transaction[Type]="ยกมา")*(Transaction[Date]=Delivery_List!Select_Date)*Transaction[Qty In-Out])) -> 0 | AD33: =IF(W33="","",INDEX(Transaction[Qty In-Out],W33)) ->  | AG33: =IF(Z33="","",INDEX(dProduct[Catagory],MATCH(Delivery_List!Z33,dProduct[NameTH],0))) ->  | AH33: =IFERROR(IF(COUNT($A$11:$A32)+1>COUNTIF(Transaction[Route],AP$3),"",_xlfn.AGGREGATE(15,6,(ROW(Transaction[Date])-ROW(Transaction[[#Headers],[Date]]))/((Transaction[Route]=AP$3)*(Transaction[Products]=Delivery_List!$D33)*(Transaction[Date]=Delivery_List!Select_Date)*(Transaction[Type]="เบิก")),1)),"") ->  | AI33: =IF(AK33="","",INDEX(dProduct[Pcs/Unit],MATCH(Delivery_List!AK33,dProduct[NameTH],0))) ->  | AJ33: =IF(AH33="","",COUNT(AH$12:AH33)) ->  | AK33: 28-ขนมปังชนิดแผ่น (460 กรัม) | AN33: =IF(AK33="","",SUMPRODUCT((Transaction[Route]=AP$3)*(Transaction[Products]=AK33)*(Transaction[Type]="ยกมา")*(Transaction[Date]=Delivery_List!Select_Date)*Transaction[Qty In-Out])) -> 0 | AO33: =IF(AH33="","",INDEX(Transaction[Qty In-Out],AH33)) ->  | AR33: =IF(AK33="","",INDEX(dProduct[Catagory],MATCH(Delivery_List!AK33,dProduct[NameTH],0))) -> 
A34: =IFERROR(IF(COUNT($A$11:$A33)+1>COUNTIF(Transaction[Route],I$3),"",_xlfn.AGGREGATE(15,6,(ROW(Transaction[Date])-ROW(Transaction[[#Headers],[Date]]))/((Transaction[Route]=I$3)*(Transaction[Products]=Delivery_List!$D34)*(Transaction[Date]=Delivery_List!Select_Date)*(Transaction[Type]="เบิก")),1)),"") -> 47 | B34: =IF(D34="","",INDEX(dProduct[Pcs/Unit],MATCH(Delivery_List!D34,dProduct[NameTH],0))) ->  | C34: =IF(A34="","",COUNT(A$12:A34)) -> 21 | D34: 31-ขนมปังแผ่นหน้าเนยสด | G34: =IF(D34="","",SUMPRODUCT((Transaction[Route]=I$3)*(Transaction[Products]=D34)*(Transaction[Type]="ยกมา")*(Transaction[Date]=Delivery_List!Select_Date)*Transaction[Qty In-Out])) -> 0 | H34: =IF(A34="","",INDEX(Transaction[Qty In-Out],A34)) -> 10 | K34: =IF(D34="","",INDEX(dProduct[Catagory],MATCH(Delivery_List!D34,dProduct[NameTH],0))) ->  | L34: =IFERROR(IF(COUNT($A$11:$A33)+1>COUNTIF(Transaction[Route],T$3),"",_xlfn.AGGREGATE(15,6,(ROW(Transaction[Date])-ROW(Transaction[[#Headers],[Date]]))/((Transaction[Route]=T$3)*(Transaction[Products]=Delivery_List!$D34)*(Transaction[Date]=Delivery_List!Select_Date)*(Transaction[Type]="เบิก")),1)),"") ->  | M34: =IF(O34="","",INDEX(dProduct[Pcs/Unit],MATCH(Delivery_List!O34,dProduct[NameTH],0))) ->  | N34: =IF(L34="","",COUNT(L$12:L34)) ->  | O34: 31-ขนมปังแผ่นหน้าเนยสด | R34: =IF(O34="","",SUMPRODUCT((Transaction[Route]=T$3)*(Transaction[Products]=O34)*(Transaction[Type]="ยกมา")*(Transaction[Date]=Delivery_List!Select_Date)*Transaction[Qty In-Out])) -> 0 | S34: =IF(L34="","",INDEX(Transaction[Qty In-Out],L34)) ->  | V34: =IF(O34="","",INDEX(dProduct[Catagory],MATCH(Delivery_List!O34,dProduct[NameTH],0))) ->  | W34: =IFERROR(IF(COUNT($A$11:$A33)+1>COUNTIF(Transaction[Route],AE$3),"",_xlfn.AGGREGATE(15,6,(ROW(Transaction[Date])-ROW(Transaction[[#Headers],[Date]]))/((Transaction[Route]=AE$3)*(Transaction[Products]=Delivery_List!$D34)*(Transaction[Date]=Delivery_List!Select_Date)*(Transaction[Type]="เบิก")),1)),"") ->  | X34: =IF(Z34="","",INDEX(dProduct[Pcs/Unit],MATCH(Delivery_List!Z34,dProduct[NameTH],0))) ->  | Y34: =IF(W34="","",COUNT(W$12:W34)) ->  | Z34: 31-ขนมปังแผ่นหน้าเนยสด | AC34: =IF(Z34="","",SUMPRODUCT((Transaction[Route]=AE$3)*(Transaction[Products]=Z34)*(Transaction[Type]="ยกมา")*(Transaction[Date]=Delivery_List!Select_Date)*Transaction[Qty In-Out])) -> 0 | AD34: =IF(W34="","",INDEX(Transaction[Qty In-Out],W34)) ->  | AG34: =IF(Z34="","",INDEX(dProduct[Catagory],MATCH(Delivery_List!Z34,dProduct[NameTH],0))) ->  | AH34: =IFERROR(IF(COUNT($A$11:$A33)+1>COUNTIF(Transaction[Route],AP$3),"",_xlfn.AGGREGATE(15,6,(ROW(Transaction[Date])-ROW(Transaction[[#Headers],[Date]]))/((Transaction[Route]=AP$3)*(Transaction[Products]=Delivery_List!$D34)*(Transaction[Date]=Delivery_List!Select_Date)*(Transaction[Type]="เบิก")),1)),"") ->  | AI34: =IF(AK34="","",INDEX(dProduct[Pcs/Unit],MATCH(Delivery_List!AK34,dProduct[NameTH],0))) ->  | AJ34: =IF(AH34="","",COUNT(AH$12:AH34)) ->  | AK34: 31-ขนมปังแผ่นหน้าเนยสด | AN34: =IF(AK34="","",SUMPRODUCT((Transaction[Route]=AP$3)*(Transaction[Products]=AK34)*(Transaction[Type]="ยกมา")*(Transaction[Date]=Delivery_List!Select_Date)*Transaction[Qty In-Out])) -> 0 | AO34: =IF(AH34="","",INDEX(Transaction[Qty In-Out],AH34)) ->  | AR34: =IF(AK34="","",INDEX(dProduct[Catagory],MATCH(Delivery_List!AK34,dProduct[NameTH],0))) -> 
A35: =IFERROR(IF(COUNT($A$11:$A34)+1>COUNTIF(Transaction[Route],I$3),"",_xlfn.AGGREGATE(15,6,(ROW(Transaction[Date])-ROW(Transaction[[#Headers],[Date]]))/((Transaction[Route]=I$3)*(Transaction[Products]=Delivery_List!$D35)*(Transaction[Date]=Delivery_List!Select_Date)*(Transaction[Type]="เบิก")),1)),"") -> 48 | B35: =IF(D35="","",INDEX(dProduct[Pcs/Unit],MATCH(Delivery_List!D35,dProduct[NameTH],0))) ->  | C35: =IF(A35="","",COUNT(A$12:A35)) -> 22 | D35: 38-ขนมปังพิซซ่าปูอัดแฮม | G35: =IF(D35="","",SUMPRODUCT((Transaction[Route]=I$3)*(Transaction[Products]=D35)*(Transaction[Type]="ยกมา")*(Transaction[Date]=Delivery_List!Select_Date)*Transaction[Qty In-Out])) -> 0 | H35: =IF(A35="","",INDEX(Transaction[Qty In-Out],A35)) -> 20 | K35: =IF(D35="","",INDEX(dProduct[Catagory],MATCH(Delivery_List!D35,dProduct[NameTH],0))) ->  | L35: =IFERROR(IF(COUNT($A$11:$A34)+1>COUNTIF(Transaction[Route],T$3),"",_xlfn.AGGREGATE(15,6,(ROW(Transaction[Date])-ROW(Transaction[[#Headers],[Date]]))/((Transaction[Route]=T$3)*(Transaction[Products]=Delivery_List!$D35)*(Transaction[Date]=Delivery_List!Select_Date)*(Transaction[Type]="เบิก")),1)),"") ->  | M35: =IF(O35="","",INDEX(dProduct[Pcs/Unit],MATCH(Delivery_List!O35,dProduct[NameTH],0))) ->  | N35: =IF(L35="","",COUNT(L$12:L35)) ->  | O35: 38-ขนมปังพิซซ่าปูอัดแฮม | R35: =IF(O35="","",SUMPRODUCT((Transaction[Route]=T$3)*(Transaction[Products]=O35)*(Transaction[Type]="ยกมา")*(Transaction[Date]=Delivery_List!Select_Date)*Transaction[Qty In-Out])) -> 0 | S35: =IF(L35="","",INDEX(Transaction[Qty In-Out],L35)) ->  | V35: =IF(O35="","",INDEX(dProduct[Catagory],MATCH(Delivery_List!O35,dProduct[NameTH],0))) ->  | W35: =IFERROR(IF(COUNT($A$11:$A34)+1>COUNTIF(Transaction[Route],AE$3),"",_xlfn.AGGREGATE(15,6,(ROW(Transaction[Date])-ROW(Transaction[[#Headers],[Date]]))/((Transaction[Route]=AE$3)*(Transaction[Products]=Delivery_List!$D35)*(Transaction[Date]=Delivery_List!Select_Date)*(Transaction[Type]="เบิก")),1)),"") ->  | X35: =IF(Z35="","",INDEX(dProduct[Pcs/Unit],MATCH(Delivery_List!Z35,dProduct[NameTH],0))) ->  | Y35: =IF(W35="","",COUNT(W$12:W35)) ->  | Z35: 38-ขนมปังพิซซ่าปูอัดแฮม | AC35: =IF(Z35="","",SUMPRODUCT((Transaction[Route]=AE$3)*(Transaction[Products]=Z35)*(Transaction[Type]="ยกมา")*(Transaction[Date]=Delivery_List!Select_Date)*Transaction[Qty In-Out])) -> 0 | AD35: =IF(W35="","",INDEX(Transaction[Qty In-Out],W35)) ->  | AG35: =IF(Z35="","",INDEX(dProduct[Catagory],MATCH(Delivery_List!Z35,dProduct[NameTH],0))) ->  | AH35: =IFERROR(IF(COUNT($A$11:$A34)+1>COUNTIF(Transaction[Route],AP$3),"",_xlfn.AGGREGATE(15,6,(ROW(Transaction[Date])-ROW(Transaction[[#Headers],[Date]]))/((Transaction[Route]=AP$3)*(Transaction[Products]=Delivery_List!$D35)*(Transaction[Date]=Delivery_List!Select_Date)*(Transaction[Type]="เบิก")),1)),"") ->  | AI35: =IF(AK35="","",INDEX(dProduct[Pcs/Unit],MATCH(Delivery_List!AK35,dProduct[NameTH],0))) ->  | AJ35: =IF(AH35="","",COUNT(AH$12:AH35)) ->  | AK35: 38-ขนมปังพิซซ่าปูอัดแฮม | AN35: =IF(AK35="","",SUMPRODUCT((Transaction[Route]=AP$3)*(Transaction[Products]=AK35)*(Transaction[Type]="ยกมา")*(Transaction[Date]=Delivery_List!Select_Date)*Transaction[Qty In-Out])) -> 0 | AO35: =IF(AH35="","",INDEX(Transaction[Qty In-Out],AH35)) ->  | AR35: =IF(AK35="","",INDEX(dProduct[Catagory],MATCH(Delivery_List!AK35,dProduct[NameTH],0))) -> 
A36: =IFERROR(IF(COUNT($A$11:$A35)+1>COUNTIF(Transaction[Route],I$3),"",_xlfn.AGGREGATE(15,6,(ROW(Transaction[Date])-ROW(Transaction[[#Headers],[Date]]))/((Transaction[Route]=I$3)*(Transaction[Products]=Delivery_List!$D36)*(Transaction[Date]=Delivery_List!Select_Date)*(Transaction[Type]="เบิก")),1)),"") -> 49 | B36: =IF(D36="","",INDEX(dProduct[Pcs/Unit],MATCH(Delivery_List!D36,dProduct[NameTH],0))) ->  | C36: =IF(A36="","",COUNT(A$12:A36)) -> 23 | D36: 39-ขนมปังไส้กรอกคอกเทลหมู | G36: =IF(D36="","",SUMPRODUCT((Transaction[Route]=I$3)*(Transaction[Products]=D36)*(Transaction[Type]="ยกมา")*(Transaction[Date]=Delivery_List!Select_Date)*Transaction[Qty In-Out])) -> 0 | H36: =IF(A36="","",INDEX(Transaction[Qty In-Out],A36)) -> 10 | K36: =IF(D36="","",INDEX(dProduct[Catagory],MATCH(Delivery_List!D36,dProduct[NameTH],0))) ->  | L36: =IFERROR(IF(COUNT($A$11:$A35)+1>COUNTIF(Transaction[Route],T$3),"",_xlfn.AGGREGATE(15,6,(ROW(Transaction[Date])-ROW(Transaction[[#Headers],[Date]]))/((Transaction[Route]=T$3)*(Transaction[Products]=Delivery_List!$D36)*(Transaction[Date]=Delivery_List!Select_Date)*(Transaction[Type]="เบิก")),1)),"") ->  | M36: =IF(O36="","",INDEX(dProduct[Pcs/Unit],MATCH(Delivery_List!O36,dProduct[NameTH],0))) ->  | N36: =IF(L36="","",COUNT(L$12:L36)) ->  | O36: 39-ขนมปังไส้กรอกคอกเทลหมู | R36: =IF(O36="","",SUMPRODUCT((Transaction[Route]=T$3)*(Transaction[Products]=O36)*(Transaction[Type]="ยกมา")*(Transaction[Date]=Delivery_List!Select_Date)*Transaction[Qty In-Out])) -> 0 | S36: =IF(L36="","",INDEX(Transaction[Qty In-Out],L36)) ->  | V36: =IF(O36="","",INDEX(dProduct[Catagory],MATCH(Delivery_List!O36,dProduct[NameTH],0))) ->  | W36: =IFERROR(IF(COUNT($A$11:$A35)+1>COUNTIF(Transaction[Route],AE$3),"",_xlfn.AGGREGATE(15,6,(ROW(Transaction[Date])-ROW(Transaction[[#Headers],[Date]]))/((Transaction[Route]=AE$3)*(Transaction[Products]=Delivery_List!$D36)*(Transaction[Date]=Delivery_List!Select_Date)*(Transaction[Type]="เบิก")),1)),"") ->  | X36: =IF(Z36="","",INDEX(dProduct[Pcs/Unit],MATCH(Delivery_List!Z36,dProduct[NameTH],0))) ->  | Y36: =IF(W36="","",COUNT(W$12:W36)) ->  | Z36: 39-ขนมปังไส้กรอกคอกเทลหมู | AC36: =IF(Z36="","",SUMPRODUCT((Transaction[Route]=AE$3)*(Transaction[Products]=Z36)*(Transaction[Type]="ยกมา")*(Transaction[Date]=Delivery_List!Select_Date)*Transaction[Qty In-Out])) -> 0 | AD36: =IF(W36="","",INDEX(Transaction[Qty In-Out],W36)) ->  | AG36: =IF(Z36="","",INDEX(dProduct[Catagory],MATCH(Delivery_List!Z36,dProduct[NameTH],0))) ->  | AH36: =IFERROR(IF(COUNT($A$11:$A35)+1>COUNTIF(Transaction[Route],AP$3),"",_xlfn.AGGREGATE(15,6,(ROW(Transaction[Date])-ROW(Transaction[[#Headers],[Date]]))/((Transaction[Route]=AP$3)*(Transaction[Products]=Delivery_List!$D36)*(Transaction[Date]=Delivery_List!Select_Date)*(Transaction[Type]="เบิก")),1)),"") ->  | AI36: =IF(AK36="","",INDEX(dProduct[Pcs/Unit],MATCH(Delivery_List!AK36,dProduct[NameTH],0))) ->  | AJ36: =IF(AH36="","",COUNT(AH$12:AH36)) ->  | AK36: 39-ขนมปังไส้กรอกคอกเทลหมู | AN36: =IF(AK36="","",SUMPRODUCT((Transaction[Route]=AP$3)*(Transaction[Products]=AK36)*(Transaction[Type]="ยกมา")*(Transaction[Date]=Delivery_List!Select_Date)*Transaction[Qty In-Out])) -> 0 | AO36: =IF(AH36="","",INDEX(Transaction[Qty In-Out],AH36)) ->  | AR36: =IF(AK36="","",INDEX(dProduct[Catagory],MATCH(Delivery_List!AK36,dProduct[NameTH],0))) -> 
A37: =IFERROR(IF(COUNT($A$11:$A36)+1>COUNTIF(Transaction[Route],I$3),"",_xlfn.AGGREGATE(15,6,(ROW(Transaction[Date])-ROW(Transaction[[#Headers],[Date]]))/((Transaction[Route]=I$3)*(Transaction[Products]=Delivery_List!$D37)*(Transaction[Date]=Delivery_List!Select_Date)*(Transaction[Type]="เบิก")),1)),"") ->  | B37: =IF(D37="","",INDEX(dProduct[Pcs/Unit],MATCH(Delivery_List!D37,dProduct[NameTH],0))) ->  | C37: =IF(A37="","",COUNT(A$12:A37)) ->  | G37: =IF(D37="","",SUMPRODUCT((Transaction[Route]=I$3)*(Transaction[Products]=D37)*(Transaction[Type]="ยกมา")*(Transaction[Date]=Delivery_List!Select_Date)*Transaction[Qty In-Out])) ->  | H37: =IF(A37="","",INDEX(Transaction[Qty In-Out],A37)) ->  | K37: =IF(D37="","",INDEX(dProduct[Catagory],MATCH(Delivery_List!D37,dProduct[NameTH],0))) ->  | L37: =IFERROR(IF(COUNT($A$11:$A36)+1>COUNTIF(Transaction[Route],T$3),"",_xlfn.AGGREGATE(15,6,(ROW(Transaction[Date])-ROW(Transaction[[#Headers],[Date]]))/((Transaction[Route]=T$3)*(Transaction[Products]=Delivery_List!$D37)*(Transaction[Date]=Delivery_List!Select_Date)*(Transaction[Type]="เบิก")),1)),"") ->  | M37: =IF(O37="","",INDEX(dProduct[Pcs/Unit],MATCH(Delivery_List!O37,dProduct[NameTH],0))) ->  | N37: =IF(L37="","",COUNT(L$12:L37)) ->  | R37: =IF(O37="","",SUMPRODUCT((Transaction[Route]=T$3)*(Transaction[Products]=O37)*(Transaction[Type]="ยกมา")*(Transaction[Date]=Delivery_List!Select_Date)*Transaction[Qty In-Out])) ->  | S37: =IF(L37="","",INDEX(Transaction[Qty In-Out],L37)) ->  | V37: =IF(O37="","",INDEX(dProduct[Catagory],MATCH(Delivery_List!O37,dProduct[NameTH],0))) ->  | W37: =IFERROR(IF(COUNT($A$11:$A36)+1>COUNTIF(Transaction[Route],AE$3),"",_xlfn.AGGREGATE(15,6,(ROW(Transaction[Date])-ROW(Transaction[[#Headers],[Date]]))/((Transaction[Route]=AE$3)*(Transaction[Products]=Delivery_List!$D37)*(Transaction[Date]=Delivery_List!Select_Date)*(Transaction[Type]="เบิก")),1)),"") ->  | X37: =IF(Z37="","",INDEX(dProduct[Pcs/Unit],MATCH(Delivery_List!Z37,dProduct[NameTH],0))) ->  | Y37: =IF(W37="","",COUNT(W$12:W37)) ->  | AC37: =IF(Z37="","",SUMPRODUCT((Transaction[Route]=AE$3)*(Transaction[Products]=Z37)*(Transaction[Type]="ยกมา")*(Transaction[Date]=Delivery_List!Select_Date)*Transaction[Qty In-Out])) ->  | AD37: =IF(W37="","",INDEX(Transaction[Qty In-Out],W37)) ->  | AG37: =IF(Z37="","",INDEX(dProduct[Catagory],MATCH(Delivery_List!Z37,dProduct[NameTH],0))) ->  | AH37: =IFERROR(IF(COUNT($A$11:$A36)+1>COUNTIF(Transaction[Route],AP$3),"",_xlfn.AGGREGATE(15,6,(ROW(Transaction[Date])-ROW(Transaction[[#Headers],[Date]]))/((Transaction[Route]=AP$3)*(Transaction[Products]=Delivery_List!$D37)*(Transaction[Date]=Delivery_List!Select_Date)*(Transaction[Type]="เบิก")),1)),"") ->  | AI37: =IF(AK37="","",INDEX(dProduct[Pcs/Unit],MATCH(Delivery_List!AK37,dProduct[NameTH],0))) ->  | AJ37: =IF(AH37="","",COUNT(AH$12:AH37)) ->  | AN37: =IF(AK37="","",SUMPRODUCT((Transaction[Route]=AP$3)*(Transaction[Products]=AK37)*(Transaction[Type]="ยกมา")*(Transaction[Date]=Delivery_List!Select_Date)*Transaction[Qty In-Out])) ->  | AO37: =IF(AH37="","",INDEX(Transaction[Qty In-Out],AH37)) ->  | AR37: =IF(AK37="","",INDEX(dProduct[Catagory],MATCH(Delivery_List!AK37,dProduct[NameTH],0))) -> 
A38: =IFERROR(IF(COUNT($A$11:$A37)+1>COUNTIF(Transaction[Route],I$3),"",_xlfn.AGGREGATE(15,6,(ROW(Transaction[Date])-ROW(Transaction[[#Headers],[Date]]))/((Transaction[Route]=I$3)*(Transaction[Products]=Delivery_List!$D38)*(Transaction[Date]=Delivery_List!Select_Date)*(Transaction[Type]="เบิก")),1)),"") ->  | B38: =IF(D38="","",INDEX(dProduct[Pcs/Unit],MATCH(Delivery_List!D38,dProduct[NameTH],0))) ->  | C38: =IF(A38="","",COUNT(A$12:A38)) ->  | G38: =IF(D38="","",SUMPRODUCT((Transaction[Route]=I$3)*(Transaction[Products]=D38)*(Transaction[Type]="ยกมา")*(Transaction[Date]=Delivery_List!Select_Date)*Transaction[Qty In-Out])) ->  | H38: =IF(A38="","",INDEX(Transaction[Qty In-Out],A38)) ->  | K38: =IF(D38="","",INDEX(dProduct[Catagory],MATCH(Delivery_List!D38,dProduct[NameTH],0))) ->  | L38: =IFERROR(IF(COUNT($A$11:$A37)+1>COUNTIF(Transaction[Route],T$3),"",_xlfn.AGGREGATE(15,6,(ROW(Transaction[Date])-ROW(Transaction[[#Headers],[Date]]))/((Transaction[Route]=T$3)*(Transaction[Products]=Delivery_List!$D38)*(Transaction[Date]=Delivery_List!Select_Date)*(Transaction[Type]="เบิก")),1)),"") ->  | M38: =IF(O38="","",INDEX(dProduct[Pcs/Unit],MATCH(Delivery_List!O38,dProduct[NameTH],0))) ->  | N38: =IF(L38="","",COUNT(L$12:L38)) ->  | R38: =IF(O38="","",SUMPRODUCT((Transaction[Route]=T$3)*(Transaction[Products]=O38)*(Transaction[Type]="ยกมา")*(Transaction[Date]=Delivery_List!Select_Date)*Transaction[Qty In-Out])) ->  | S38: =IF(L38="","",INDEX(Transaction[Qty In-Out],L38)) ->  | V38: =IF(O38="","",INDEX(dProduct[Catagory],MATCH(Delivery_List!O38,dProduct[NameTH],0))) ->  | W38: =IFERROR(IF(COUNT($A$11:$A37)+1>COUNTIF(Transaction[Route],AE$3),"",_xlfn.AGGREGATE(15,6,(ROW(Transaction[Date])-ROW(Transaction[[#Headers],[Date]]))/((Transaction[Route]=AE$3)*(Transaction[Products]=Delivery_List!$D38)*(Transaction[Date]=Delivery_List!Select_Date)*(Transaction[Type]="เบิก")),1)),"") ->  | X38: =IF(Z38="","",INDEX(dProduct[Pcs/Unit],MATCH(Delivery_List!Z38,dProduct[NameTH],0))) ->  | Y38: =IF(W38="","",COUNT(W$12:W38)) ->  | AC38: =IF(Z38="","",SUMPRODUCT((Transaction[Route]=AE$3)*(Transaction[Products]=Z38)*(Transaction[Type]="ยกมา")*(Transaction[Date]=Delivery_List!Select_Date)*Transaction[Qty In-Out])) ->  | AD38: =IF(W38="","",INDEX(Transaction[Qty In-Out],W38)) ->  | AG38: =IF(Z38="","",INDEX(dProduct[Catagory],MATCH(Delivery_List!Z38,dProduct[NameTH],0))) ->  | AH38: =IFERROR(IF(COUNT($A$11:$A37)+1>COUNTIF(Transaction[Route],AP$3),"",_xlfn.AGGREGATE(15,6,(ROW(Transaction[Date])-ROW(Transaction[[#Headers],[Date]]))/((Transaction[Route]=AP$3)*(Transaction[Products]=Delivery_List!$D38)*(Transaction[Date]=Delivery_List!Select_Date)*(Transaction[Type]="เบิก")),1)),"") ->  | AI38: =IF(AK38="","",INDEX(dProduct[Pcs/Unit],MATCH(Delivery_List!AK38,dProduct[NameTH],0))) ->  | AJ38: =IF(AH38="","",COUNT(AH$12:AH38)) ->  | AN38: =IF(AK38="","",SUMPRODUCT((Transaction[Route]=AP$3)*(Transaction[Products]=AK38)*(Transaction[Type]="ยกมา")*(Transaction[Date]=Delivery_List!Select_Date)*Transaction[Qty In-Out])) ->  | AO38: =IF(AH38="","",INDEX(Transaction[Qty In-Out],AH38)) ->  | AR38: =IF(AK38="","",INDEX(dProduct[Catagory],MATCH(Delivery_List!AK38,dProduct[NameTH],0))) -> 
A39: =IFERROR(IF(COUNT($A$11:$A38)+1>COUNTIF(Transaction[Route],I$3),"",_xlfn.AGGREGATE(15,6,(ROW(Transaction[Date])-ROW(Transaction[[#Headers],[Date]]))/((Transaction[Route]=I$3)*(Transaction[Products]=Delivery_List!$D39)*(Transaction[Date]=Delivery_List!Select_Date)*(Transaction[Type]="เบิก")),1)),"") ->  | B39: =IF(D39="","",INDEX(dProduct[Pcs/Unit],MATCH(Delivery_List!D39,dProduct[NameTH],0))) ->  | C39: =IF(A39="","",COUNT(A$12:A39)) ->  | G39: =IF(D39="","",SUMPRODUCT((Transaction[Route]=I$3)*(Transaction[Products]=D39)*(Transaction[Type]="ยกมา")*(Transaction[Date]=Delivery_List!Select_Date)*Transaction[Qty In-Out])) ->  | H39: =IF(A39="","",INDEX(Transaction[Qty In-Out],A39)) ->  | K39: =IF(D39="","",INDEX(dProduct[Catagory],MATCH(Delivery_List!D39,dProduct[NameTH],0))) ->  | L39: =IFERROR(IF(COUNT($A$11:$A38)+1>COUNTIF(Transaction[Route],T$3),"",_xlfn.AGGREGATE(15,6,(ROW(Transaction[Date])-ROW(Transaction[[#Headers],[Date]]))/((Transaction[Route]=T$3)*(Transaction[Products]=Delivery_List!$D39)*(Transaction[Date]=Delivery_List!Select_Date)*(Transaction[Type]="เบิก")),1)),"") ->  | M39: =IF(O39="","",INDEX(dProduct[Pcs/Unit],MATCH(Delivery_List!O39,dProduct[NameTH],0))) ->  | N39: =IF(L39="","",COUNT(L$12:L39)) ->  | R39: =IF(O39="","",SUMPRODUCT((Transaction[Route]=T$3)*(Transaction[Products]=O39)*(Transaction[Type]="ยกมา")*(Transaction[Date]=Delivery_List!Select_Date)*Transaction[Qty In-Out])) ->  | S39: =IF(L39="","",INDEX(Transaction[Qty In-Out],L39)) ->  | V39: =IF(O39="","",INDEX(dProduct[Catagory],MATCH(Delivery_List!O39,dProduct[NameTH],0))) ->  | W39: =IFERROR(IF(COUNT($A$11:$A38)+1>COUNTIF(Transaction[Route],AE$3),"",_xlfn.AGGREGATE(15,6,(ROW(Transaction[Date])-ROW(Transaction[[#Headers],[Date]]))/((Transaction[Route]=AE$3)*(Transaction[Products]=Delivery_List!$D39)*(Transaction[Date]=Delivery_List!Select_Date)*(Transaction[Type]="เบิก")),1)),"") ->  | X39: =IF(Z39="","",INDEX(dProduct[Pcs/Unit],MATCH(Delivery_List!Z39,dProduct[NameTH],0))) ->  | Y39: =IF(W39="","",COUNT(W$12:W39)) ->  | AC39: =IF(Z39="","",SUMPRODUCT((Transaction[Route]=AE$3)*(Transaction[Products]=Z39)*(Transaction[Type]="ยกมา")*(Transaction[Date]=Delivery_List!Select_Date)*Transaction[Qty In-Out])) ->  | AD39: =IF(W39="","",INDEX(Transaction[Qty In-Out],W39)) ->  | AG39: =IF(Z39="","",INDEX(dProduct[Catagory],MATCH(Delivery_List!Z39,dProduct[NameTH],0))) ->  | AH39: =IFERROR(IF(COUNT($A$11:$A38)+1>COUNTIF(Transaction[Route],AP$3),"",_xlfn.AGGREGATE(15,6,(ROW(Transaction[Date])-ROW(Transaction[[#Headers],[Date]]))/((Transaction[Route]=AP$3)*(Transaction[Products]=Delivery_List!$D39)*(Transaction[Date]=Delivery_List!Select_Date)*(Transaction[Type]="เบิก")),1)),"") ->  | AI39: =IF(AK39="","",INDEX(dProduct[Pcs/Unit],MATCH(Delivery_List!AK39,dProduct[NameTH],0))) ->  | AJ39: =IF(AH39="","",COUNT(AH$12:AH39)) ->  | AN39: =IF(AK39="","",SUMPRODUCT((Transaction[Route]=AP$3)*(Transaction[Products]=AK39)*(Transaction[Type]="ยกมา")*(Transaction[Date]=Delivery_List!Select_Date)*Transaction[Qty In-Out])) ->  | AO39: =IF(AH39="","",INDEX(Transaction[Qty In-Out],AH39)) ->  | AR39: =IF(AK39="","",INDEX(dProduct[Catagory],MATCH(Delivery_List!AK39,dProduct[NameTH],0))) -> 
A40: =IFERROR(IF(COUNT($A$11:$A39)+1>COUNTIF(Transaction[Route],I$3),"",_xlfn.AGGREGATE(15,6,(ROW(Transaction[Date])-ROW(Transaction[[#Headers],[Date]]))/((Transaction[Route]=I$3)*(Transaction[Products]=Delivery_List!$D40)*(Transaction[Date]=Delivery_List!Select_Date)*(Transaction[Type]="เบิก")),1)),"") ->  | B40: =IF(D40="","",INDEX(dProduct[Pcs/Unit],MATCH(Delivery_List!D40,dProduct[NameTH],0))) ->  | C40: =IF(A40="","",COUNT(A$12:A40)) ->  | G40: =IF(D40="","",SUMPRODUCT((Transaction[Route]=I$3)*(Transaction[Products]=D40)*(Transaction[Type]="ยกมา")*(Transaction[Date]=Delivery_List!Select_Date)*Transaction[Qty In-Out])) ->  | H40: =IF(A40="","",INDEX(Transaction[Qty In-Out],A40)) ->  | K40: =IF(D40="","",INDEX(dProduct[Catagory],MATCH(Delivery_List!D40,dProduct[NameTH],0))) ->  | L40: =IFERROR(IF(COUNT($A$11:$A39)+1>COUNTIF(Transaction[Route],T$3),"",_xlfn.AGGREGATE(15,6,(ROW(Transaction[Date])-ROW(Transaction[[#Headers],[Date]]))/((Transaction[Route]=T$3)*(Transaction[Products]=Delivery_List!$D40)*(Transaction[Date]=Delivery_List!Select_Date)*(Transaction[Type]="เบิก")),1)),"") ->  | M40: =IF(O40="","",INDEX(dProduct[Pcs/Unit],MATCH(Delivery_List!O40,dProduct[NameTH],0))) ->  | N40: =IF(L40="","",COUNT(L$12:L40)) ->  | R40: =IF(O40="","",SUMPRODUCT((Transaction[Route]=T$3)*(Transaction[Products]=O40)*(Transaction[Type]="ยกมา")*(Transaction[Date]=Delivery_List!Select_Date)*Transaction[Qty In-Out])) ->  | S40: =IF(L40="","",INDEX(Transaction[Qty In-Out],L40)) ->  | V40: =IF(O40="","",INDEX(dProduct[Catagory],MATCH(Delivery_List!O40,dProduct[NameTH],0))) ->  | W40: =IFERROR(IF(COUNT($A$11:$A39)+1>COUNTIF(Transaction[Route],AE$3),"",_xlfn.AGGREGATE(15,6,(ROW(Transaction[Date])-ROW(Transaction[[#Headers],[Date]]))/((Transaction[Route]=AE$3)*(Transaction[Products]=Delivery_List!$D40)*(Transaction[Date]=Delivery_List!Select_Date)*(Transaction[Type]="เบิก")),1)),"") ->  | X40: =IF(Z40="","",INDEX(dProduct[Pcs/Unit],MATCH(Delivery_List!Z40,dProduct[NameTH],0))) ->  | Y40: =IF(W40="","",COUNT(W$12:W40)) ->  | AC40: =IF(Z40="","",SUMPRODUCT((Transaction[Route]=AE$3)*(Transaction[Products]=Z40)*(Transaction[Type]="ยกมา")*(Transaction[Date]=Delivery_List!Select_Date)*Transaction[Qty In-Out])) ->  | AD40: =IF(W40="","",INDEX(Transaction[Qty In-Out],W40)) ->  | AG40: =IF(Z40="","",INDEX(dProduct[Catagory],MATCH(Delivery_List!Z40,dProduct[NameTH],0))) ->  | AH40: =IFERROR(IF(COUNT($A$11:$A39)+1>COUNTIF(Transaction[Route],AP$3),"",_xlfn.AGGREGATE(15,6,(ROW(Transaction[Date])-ROW(Transaction[[#Headers],[Date]]))/((Transaction[Route]=AP$3)*(Transaction[Products]=Delivery_List!$D40)*(Transaction[Date]=Delivery_List!Select_Date)*(Transaction[Type]="เบิก")),1)),"") ->  | AI40: =IF(AK40="","",INDEX(dProduct[Pcs/Unit],MATCH(Delivery_List!AK40,dProduct[NameTH],0))) ->  | AJ40: =IF(AH40="","",COUNT(AH$12:AH40)) ->  | AN40: =IF(AK40="","",SUMPRODUCT((Transaction[Route]=AP$3)*(Transaction[Products]=AK40)*(Transaction[Type]="ยกมา")*(Transaction[Date]=Delivery_List!Select_Date)*Transaction[Qty In-Out])) ->  | AO40: =IF(AH40="","",INDEX(Transaction[Qty In-Out],AH40)) ->  | AR40: =IF(AK40="","",INDEX(dProduct[Catagory],MATCH(Delivery_List!AK40,dProduct[NameTH],0))) -> 
A41: =IFERROR(IF(COUNT($A$11:$A40)+1>COUNTIF(Transaction[Route],I$3),"",_xlfn.AGGREGATE(15,6,(ROW(Transaction[Date])-ROW(Transaction[[#Headers],[Date]]))/((Transaction[Route]=I$3)*(Transaction[Products]=Delivery_List!$D41)*(Transaction[Date]=Delivery_List!Select_Date)*(Transaction[Type]="เบิก")),1)),"") ->  | B41: =IF(D41="","",INDEX(dProduct[Pcs/Unit],MATCH(Delivery_List!D41,dProduct[NameTH],0))) ->  | C41: =IF(A41="","",COUNT(A$12:A41)) ->  | G41: =IF(D41="","",SUMPRODUCT((Transaction[Route]=I$3)*(Transaction[Products]=D41)*(Transaction[Type]="ยกมา")*(Transaction[Date]=Delivery_List!Select_Date)*Transaction[Qty In-Out])) ->  | H41: =IF(A41="","",INDEX(Transaction[Qty In-Out],A41)) ->  | K41: =IF(D41="","",INDEX(dProduct[Catagory],MATCH(Delivery_List!D41,dProduct[NameTH],0))) ->  | L41: =IFERROR(IF(COUNT($A$11:$A40)+1>COUNTIF(Transaction[Route],T$3),"",_xlfn.AGGREGATE(15,6,(ROW(Transaction[Date])-ROW(Transaction[[#Headers],[Date]]))/((Transaction[Route]=T$3)*(Transaction[Products]=Delivery_List!$D41)*(Transaction[Date]=Delivery_List!Select_Date)*(Transaction[Type]="เบิก")),1)),"") ->  | M41: =IF(O41="","",INDEX(dProduct[Pcs/Unit],MATCH(Delivery_List!O41,dProduct[NameTH],0))) ->  | N41: =IF(L41="","",COUNT(L$12:L41)) ->  | R41: =IF(O41="","",SUMPRODUCT((Transaction[Route]=T$3)*(Transaction[Products]=O41)*(Transaction[Type]="ยกมา")*(Transaction[Date]=Delivery_List!Select_Date)*Transaction[Qty In-Out])) ->  | S41: =IF(L41="","",INDEX(Transaction[Qty In-Out],L41)) ->  | V41: =IF(O41="","",INDEX(dProduct[Catagory],MATCH(Delivery_List!O41,dProduct[NameTH],0))) ->  | W41: =IFERROR(IF(COUNT($A$11:$A40)+1>COUNTIF(Transaction[Route],AE$3),"",_xlfn.AGGREGATE(15,6,(ROW(Transaction[Date])-ROW(Transaction[[#Headers],[Date]]))/((Transaction[Route]=AE$3)*(Transaction[Products]=Delivery_List!$D41)*(Transaction[Date]=Delivery_List!Select_Date)*(Transaction[Type]="เบิก")),1)),"") ->  | X41: =IF(Z41="","",INDEX(dProduct[Pcs/Unit],MATCH(Delivery_List!Z41,dProduct[NameTH],0))) ->  | Y41: =IF(W41="","",COUNT(W$12:W41)) ->  | AC41: =IF(Z41="","",SUMPRODUCT((Transaction[Route]=AE$3)*(Transaction[Products]=Z41)*(Transaction[Type]="ยกมา")*(Transaction[Date]=Delivery_List!Select_Date)*Transaction[Qty In-Out])) ->  | AD41: =IF(W41="","",INDEX(Transaction[Qty In-Out],W41)) ->  | AG41: =IF(Z41="","",INDEX(dProduct[Catagory],MATCH(Delivery_List!Z41,dProduct[NameTH],0))) ->  | AH41: =IFERROR(IF(COUNT($A$11:$A40)+1>COUNTIF(Transaction[Route],AP$3),"",_xlfn.AGGREGATE(15,6,(ROW(Transaction[Date])-ROW(Transaction[[#Headers],[Date]]))/((Transaction[Route]=AP$3)*(Transaction[Products]=Delivery_List!$D41)*(Transaction[Date]=Delivery_List!Select_Date)*(Transaction[Type]="เบิก")),1)),"") ->  | AI41: =IF(AK41="","",INDEX(dProduct[Pcs/Unit],MATCH(Delivery_List!AK41,dProduct[NameTH],0))) ->  | AJ41: =IF(AH41="","",COUNT(AH$12:AH41)) ->  | AN41: =IF(AK41="","",SUMPRODUCT((Transaction[Route]=AP$3)*(Transaction[Products]=AK41)*(Transaction[Type]="ยกมา")*(Transaction[Date]=Delivery_List!Select_Date)*Transaction[Qty In-Out])) ->  | AO41: =IF(AH41="","",INDEX(Transaction[Qty In-Out],AH41)) ->  | AR41: =IF(AK41="","",INDEX(dProduct[Catagory],MATCH(Delivery_List!AK41,dProduct[NameTH],0))) -> 
A42: =IFERROR(IF(COUNT($A$11:$A41)+1>COUNTIF(Transaction[Route],I$3),"",_xlfn.AGGREGATE(15,6,(ROW(Transaction[Date])-ROW(Transaction[[#Headers],[Date]]))/((Transaction[Route]=I$3)*(Transaction[Products]=Delivery_List!$D42)*(Transaction[Date]=Delivery_List!Select_Date)*(Transaction[Type]="เบิก")),1)),"") ->  | B42: =IF(D42="","",INDEX(dProduct[Pcs/Unit],MATCH(Delivery_List!D42,dProduct[NameTH],0))) ->  | C42: =IF(A42="","",COUNT(A$12:A42)) ->  | G42: =IF(D42="","",SUMPRODUCT((Transaction[Route]=I$3)*(Transaction[Products]=D42)*(Transaction[Type]="ยกมา")*(Transaction[Date]=Delivery_List!Select_Date)*Transaction[Qty In-Out])) ->  | H42: =IF(A42="","",INDEX(Transaction[Qty In-Out],A42)) ->  | K42: =IF(D42="","",INDEX(dProduct[Catagory],MATCH(Delivery_List!D42,dProduct[NameTH],0))) ->  | L42: =IFERROR(IF(COUNT($A$11:$A41)+1>COUNTIF(Transaction[Route],T$3),"",_xlfn.AGGREGATE(15,6,(ROW(Transaction[Date])-ROW(Transaction[[#Headers],[Date]]))/((Transaction[Route]=T$3)*(Transaction[Products]=Delivery_List!$D42)*(Transaction[Date]=Delivery_List!Select_Date)*(Transaction[Type]="เบิก")),1)),"") ->  | M42: =IF(O42="","",INDEX(dProduct[Pcs/Unit],MATCH(Delivery_List!O42,dProduct[NameTH],0))) ->  | N42: =IF(L42="","",COUNT(L$12:L42)) ->  | R42: =IF(O42="","",SUMPRODUCT((Transaction[Route]=T$3)*(Transaction[Products]=O42)*(Transaction[Type]="ยกมา")*(Transaction[Date]=Delivery_List!Select_Date)*Transaction[Qty In-Out])) ->  | S42: =IF(L42="","",INDEX(Transaction[Qty In-Out],L42)) ->  | V42: =IF(O42="","",INDEX(dProduct[Catagory],MATCH(Delivery_List!O42,dProduct[NameTH],0))) ->  | W42: =IFERROR(IF(COUNT($A$11:$A41)+1>COUNTIF(Transaction[Route],AE$3),"",_xlfn.AGGREGATE(15,6,(ROW(Transaction[Date])-ROW(Transaction[[#Headers],[Date]]))/((Transaction[Route]=AE$3)*(Transaction[Products]=Delivery_List!$D42)*(Transaction[Date]=Delivery_List!Select_Date)*(Transaction[Type]="เบิก")),1)),"") ->  | X42: =IF(Z42="","",INDEX(dProduct[Pcs/Unit],MATCH(Delivery_List!Z42,dProduct[NameTH],0))) ->  | Y42: =IF(W42="","",COUNT(W$12:W42)) ->  | AC42: =IF(Z42="","",SUMPRODUCT((Transaction[Route]=AE$3)*(Transaction[Products]=Z42)*(Transaction[Type]="ยกมา")*(Transaction[Date]=Delivery_List!Select_Date)*Transaction[Qty In-Out])) ->  | AD42: =IF(W42="","",INDEX(Transaction[Qty In-Out],W42)) ->  | AG42: =IF(Z42="","",INDEX(dProduct[Catagory],MATCH(Delivery_List!Z42,dProduct[NameTH],0))) ->  | AH42: =IFERROR(IF(COUNT($A$11:$A41)+1>COUNTIF(Transaction[Route],AP$3),"",_xlfn.AGGREGATE(15,6,(ROW(Transaction[Date])-ROW(Transaction[[#Headers],[Date]]))/((Transaction[Route]=AP$3)*(Transaction[Products]=Delivery_List!$D42)*(Transaction[Date]=Delivery_List!Select_Date)*(Transaction[Type]="เบิก")),1)),"") ->  | AI42: =IF(AK42="","",INDEX(dProduct[Pcs/Unit],MATCH(Delivery_List!AK42,dProduct[NameTH],0))) ->  | AJ42: =IF(AH42="","",COUNT(AH$12:AH42)) ->  | AN42: =IF(AK42="","",SUMPRODUCT((Transaction[Route]=AP$3)*(Transaction[Products]=AK42)*(Transaction[Type]="ยกมา")*(Transaction[Date]=Delivery_List!Select_Date)*Transaction[Qty In-Out])) ->  | AO42: =IF(AH42="","",INDEX(Transaction[Qty In-Out],AH42)) ->  | AR42: =IF(AK42="","",INDEX(dProduct[Catagory],MATCH(Delivery_List!AK42,dProduct[NameTH],0))) -> 
A43: =IFERROR(IF(COUNT($A$11:$A42)+1>COUNTIF(Transaction[Route],I$3),"",_xlfn.AGGREGATE(15,6,(ROW(Transaction[Date])-ROW(Transaction[[#Headers],[Date]]))/((Transaction[Route]=I$3)*(Transaction[Products]=Delivery_List!$D43)*(Transaction[Date]=Delivery_List!Select_Date)*(Transaction[Type]="เบิก")),1)),"") ->  | B43: =IF(D43="","",INDEX(dProduct[Pcs/Unit],MATCH(Delivery_List!D43,dProduct[NameTH],0))) ->  | C43: =IF(A43="","",COUNT(A$12:A43)) ->  | G43: =IF(D43="","",SUMPRODUCT((Transaction[Route]=I$3)*(Transaction[Products]=D43)*(Transaction[Type]="ยกมา")*(Transaction[Date]=Delivery_List!Select_Date)*Transaction[Qty In-Out])) ->  | H43: =IF(A43="","",INDEX(Transaction[Qty In-Out],A43)) ->  | K43: =IF(D43="","",INDEX(dProduct[Catagory],MATCH(Delivery_List!D43,dProduct[NameTH],0))) ->  | L43: =IFERROR(IF(COUNT($A$11:$A42)+1>COUNTIF(Transaction[Route],T$3),"",_xlfn.AGGREGATE(15,6,(ROW(Transaction[Date])-ROW(Transaction[[#Headers],[Date]]))/((Transaction[Route]=T$3)*(Transaction[Products]=Delivery_List!$D43)*(Transaction[Date]=Delivery_List!Select_Date)*(Transaction[Type]="เบิก")),1)),"") ->  | M43: =IF(O43="","",INDEX(dProduct[Pcs/Unit],MATCH(Delivery_List!O43,dProduct[NameTH],0))) ->  | N43: =IF(L43="","",COUNT(L$12:L43)) ->  | R43: =IF(O43="","",SUMPRODUCT((Transaction[Route]=T$3)*(Transaction[Products]=O43)*(Transaction[Type]="ยกมา")*(Transaction[Date]=Delivery_List!Select_Date)*Transaction[Qty In-Out])) ->  | S43: =IF(L43="","",INDEX(Transaction[Qty In-Out],L43)) ->  | V43: =IF(O43="","",INDEX(dProduct[Catagory],MATCH(Delivery_List!O43,dProduct[NameTH],0))) ->  | W43: =IFERROR(IF(COUNT($A$11:$A42)+1>COUNTIF(Transaction[Route],AE$3),"",_xlfn.AGGREGATE(15,6,(ROW(Transaction[Date])-ROW(Transaction[[#Headers],[Date]]))/((Transaction[Route]=AE$3)*(Transaction[Products]=Delivery_List!$D43)*(Transaction[Date]=Delivery_List!Select_Date)*(Transaction[Type]="เบิก")),1)),"") ->  | X43: =IF(Z43="","",INDEX(dProduct[Pcs/Unit],MATCH(Delivery_List!Z43,dProduct[NameTH],0))) ->  | Y43: =IF(W43="","",COUNT(W$12:W43)) ->  | AC43: =IF(Z43="","",SUMPRODUCT((Transaction[Route]=AE$3)*(Transaction[Products]=Z43)*(Transaction[Type]="ยกมา")*(Transaction[Date]=Delivery_List!Select_Date)*Transaction[Qty In-Out])) ->  | AD43: =IF(W43="","",INDEX(Transaction[Qty In-Out],W43)) ->  | AG43: =IF(Z43="","",INDEX(dProduct[Catagory],MATCH(Delivery_List!Z43,dProduct[NameTH],0))) ->  | AH43: =IFERROR(IF(COUNT($A$11:$A42)+1>COUNTIF(Transaction[Route],AP$3),"",_xlfn.AGGREGATE(15,6,(ROW(Transaction[Date])-ROW(Transaction[[#Headers],[Date]]))/((Transaction[Route]=AP$3)*(Transaction[Products]=Delivery_List!$D43)*(Transaction[Date]=Delivery_List!Select_Date)*(Transaction[Type]="เบิก")),1)),"") ->  | AI43: =IF(AK43="","",INDEX(dProduct[Pcs/Unit],MATCH(Delivery_List!AK43,dProduct[NameTH],0))) ->  | AJ43: =IF(AH43="","",COUNT(AH$12:AH43)) ->  | AN43: =IF(AK43="","",SUMPRODUCT((Transaction[Route]=AP$3)*(Transaction[Products]=AK43)*(Transaction[Type]="ยกมา")*(Transaction[Date]=Delivery_List!Select_Date)*Transaction[Qty In-Out])) ->  | AO43: =IF(AH43="","",INDEX(Transaction[Qty In-Out],AH43)) ->  | AR43: =IF(AK43="","",INDEX(dProduct[Catagory],MATCH(Delivery_List!AK43,dProduct[NameTH],0))) -> 
A44: =IFERROR(IF(COUNT($A$11:$A43)+1>COUNTIF(Transaction[Route],I$3),"",_xlfn.AGGREGATE(15,6,(ROW(Transaction[Date])-ROW(Transaction[[#Headers],[Date]]))/((Transaction[Route]=I$3)*(Transaction[Products]=Delivery_List!$D44)*(Transaction[Date]=Delivery_List!Select_Date)*(Transaction[Type]="เบิก")),1)),"") ->  | B44: =IF(D44="","",INDEX(dProduct[Pcs/Unit],MATCH(Delivery_List!D44,dProduct[NameTH],0))) ->  | C44: =IF(A44="","",COUNT(A$12:A44)) ->  | G44: =IF(D44="","",SUMPRODUCT((Transaction[Route]=I$3)*(Transaction[Products]=D44)*(Transaction[Type]="ยกมา")*(Transaction[Date]=Delivery_List!Select_Date)*Transaction[Qty In-Out])) ->  | H44: =IF(A44="","",INDEX(Transaction[Qty In-Out],A44)) ->  | K44: =IF(D44="","",INDEX(dProduct[Catagory],MATCH(Delivery_List!D44,dProduct[NameTH],0))) ->  | L44: =IFERROR(IF(COUNT($A$11:$A43)+1>COUNTIF(Transaction[Route],T$3),"",_xlfn.AGGREGATE(15,6,(ROW(Transaction[Date])-ROW(Transaction[[#Headers],[Date]]))/((Transaction[Route]=T$3)*(Transaction[Products]=Delivery_List!$D44)*(Transaction[Date]=Delivery_List!Select_Date)*(Transaction[Type]="เบิก")),1)),"") ->  | M44: =IF(O44="","",INDEX(dProduct[Pcs/Unit],MATCH(Delivery_List!O44,dProduct[NameTH],0))) ->  | N44: =IF(L44="","",COUNT(L$12:L44)) ->  | R44: =IF(O44="","",SUMPRODUCT((Transaction[Route]=T$3)*(Transaction[Products]=O44)*(Transaction[Type]="ยกมา")*(Transaction[Date]=Delivery_List!Select_Date)*Transaction[Qty In-Out])) ->  | S44: =IF(L44="","",INDEX(Transaction[Qty In-Out],L44)) ->  | V44: =IF(O44="","",INDEX(dProduct[Catagory],MATCH(Delivery_List!O44,dProduct[NameTH],0))) ->  | W44: =IFERROR(IF(COUNT($A$11:$A43)+1>COUNTIF(Transaction[Route],AE$3),"",_xlfn.AGGREGATE(15,6,(ROW(Transaction[Date])-ROW(Transaction[[#Headers],[Date]]))/((Transaction[Route]=AE$3)*(Transaction[Products]=Delivery_List!$D44)*(Transaction[Date]=Delivery_List!Select_Date)*(Transaction[Type]="เบิก")),1)),"") ->  | X44: =IF(Z44="","",INDEX(dProduct[Pcs/Unit],MATCH(Delivery_List!Z44,dProduct[NameTH],0))) ->  | Y44: =IF(W44="","",COUNT(W$12:W44)) ->  | AC44: =IF(Z44="","",SUMPRODUCT((Transaction[Route]=AE$3)*(Transaction[Products]=Z44)*(Transaction[Type]="ยกมา")*(Transaction[Date]=Delivery_List!Select_Date)*Transaction[Qty In-Out])) ->  | AD44: =IF(W44="","",INDEX(Transaction[Qty In-Out],W44)) ->  | AG44: =IF(Z44="","",INDEX(dProduct[Catagory],MATCH(Delivery_List!Z44,dProduct[NameTH],0))) ->  | AH44: =IFERROR(IF(COUNT($A$11:$A43)+1>COUNTIF(Transaction[Route],AP$3),"",_xlfn.AGGREGATE(15,6,(ROW(Transaction[Date])-ROW(Transaction[[#Headers],[Date]]))/((Transaction[Route]=AP$3)*(Transaction[Products]=Delivery_List!$D44)*(Transaction[Date]=Delivery_List!Select_Date)*(Transaction[Type]="เบิก")),1)),"") ->  | AI44: =IF(AK44="","",INDEX(dProduct[Pcs/Unit],MATCH(Delivery_List!AK44,dProduct[NameTH],0))) ->  | AJ44: =IF(AH44="","",COUNT(AH$12:AH44)) ->  | AN44: =IF(AK44="","",SUMPRODUCT((Transaction[Route]=AP$3)*(Transaction[Products]=AK44)*(Transaction[Type]="ยกมา")*(Transaction[Date]=Delivery_List!Select_Date)*Transaction[Qty In-Out])) ->  | AO44: =IF(AH44="","",INDEX(Transaction[Qty In-Out],AH44)) ->  | AR44: =IF(AK44="","",INDEX(dProduct[Catagory],MATCH(Delivery_List!AK44,dProduct[NameTH],0))) -> 
A45: =IFERROR(IF(COUNT($A$11:$A44)+1>COUNTIF(Transaction[Route],I$3),"",_xlfn.AGGREGATE(15,6,(ROW(Transaction[Date])-ROW(Transaction[[#Headers],[Date]]))/((Transaction[Route]=I$3)*(Transaction[Products]=Delivery_List!$D45)*(Transaction[Date]=Delivery_List!Select_Date)*(Transaction[Type]="เบิก")),1)),"") ->  | B45: =IF(D45="","",INDEX(dProduct[Pcs/Unit],MATCH(Delivery_List!D45,dProduct[NameTH],0))) ->  | C45: =IF(A45="","",COUNT(A$12:A45)) ->  | G45: =IF(D45="","",SUMPRODUCT((Transaction[Route]=I$3)*(Transaction[Products]=D45)*(Transaction[Type]="ยกมา")*(Transaction[Date]=Delivery_List!Select_Date)*Transaction[Qty In-Out])) ->  | H45: =IF(A45="","",INDEX(Transaction[Qty In-Out],A45)) ->  | K45: =IF(D45="","",INDEX(dProduct[Catagory],MATCH(Delivery_List!D45,dProduct[NameTH],0))) ->  | L45: =IFERROR(IF(COUNT($A$11:$A44)+1>COUNTIF(Transaction[Route],T$3),"",_xlfn.AGGREGATE(15,6,(ROW(Transaction[Date])-ROW(Transaction[[#Headers],[Date]]))/((Transaction[Route]=T$3)*(Transaction[Products]=Delivery_List!$D45)*(Transaction[Date]=Delivery_List!Select_Date)*(Transaction[Type]="เบิก")),1)),"") ->  | M45: =IF(O45="","",INDEX(dProduct[Pcs/Unit],MATCH(Delivery_List!O45,dProduct[NameTH],0))) ->  | N45: =IF(L45="","",COUNT(L$12:L45)) ->  | R45: =IF(O45="","",SUMPRODUCT((Transaction[Route]=T$3)*(Transaction[Products]=O45)*(Transaction[Type]="ยกมา")*(Transaction[Date]=Delivery_List!Select_Date)*Transaction[Qty In-Out])) ->  | S45: =IF(L45="","",INDEX(Transaction[Qty In-Out],L45)) ->  | V45: =IF(O45="","",INDEX(dProduct[Catagory],MATCH(Delivery_List!O45,dProduct[NameTH],0))) ->  | W45: =IFERROR(IF(COUNT($A$11:$A44)+1>COUNTIF(Transaction[Route],AE$3),"",_xlfn.AGGREGATE(15,6,(ROW(Transaction[Date])-ROW(Transaction[[#Headers],[Date]]))/((Transaction[Route]=AE$3)*(Transaction[Products]=Delivery_List!$D45)*(Transaction[Date]=Delivery_List!Select_Date)*(Transaction[Type]="เบิก")),1)),"") ->  | X45: =IF(Z45="","",INDEX(dProduct[Pcs/Unit],MATCH(Delivery_List!Z45,dProduct[NameTH],0))) ->  | Y45: =IF(W45="","",COUNT(W$12:W45)) ->  | AC45: =IF(Z45="","",SUMPRODUCT((Transaction[Route]=AE$3)*(Transaction[Products]=Z45)*(Transaction[Type]="ยกมา")*(Transaction[Date]=Delivery_List!Select_Date)*Transaction[Qty In-Out])) ->  | AD45: =IF(W45="","",INDEX(Transaction[Qty In-Out],W45)) ->  | AG45: =IF(Z45="","",INDEX(dProduct[Catagory],MATCH(Delivery_List!Z45,dProduct[NameTH],0))) ->  | AH45: =IFERROR(IF(COUNT($A$11:$A44)+1>COUNTIF(Transaction[Route],AP$3),"",_xlfn.AGGREGATE(15,6,(ROW(Transaction[Date])-ROW(Transaction[[#Headers],[Date]]))/((Transaction[Route]=AP$3)*(Transaction[Products]=Delivery_List!$D45)*(Transaction[Date]=Delivery_List!Select_Date)*(Transaction[Type]="เบิก")),1)),"") ->  | AI45: =IF(AK45="","",INDEX(dProduct[Pcs/Unit],MATCH(Delivery_List!AK45,dProduct[NameTH],0))) ->  | AJ45: =IF(AH45="","",COUNT(AH$12:AH45)) ->  | AN45: =IF(AK45="","",SUMPRODUCT((Transaction[Route]=AP$3)*(Transaction[Products]=AK45)*(Transaction[Type]="ยกมา")*(Transaction[Date]=Delivery_List!Select_Date)*Transaction[Qty In-Out])) ->  | AO45: =IF(AH45="","",INDEX(Transaction[Qty In-Out],AH45)) ->  | AR45: =IF(AK45="","",INDEX(dProduct[Catagory],MATCH(Delivery_List!AK45,dProduct[NameTH],0))) -> 
C46: รวมของแห้ง | G46: =SUM(G$12:G$45) -> 0 | H46: =SUM(H$12:H$45) -> 1640 | I46: =SUM(I$12:I$45) -> 0 | J46: 0 | N46: รวมของแห้ง | R46: =SUM(R$12:R$45) -> 0 | S46: =SUM(S$12:S$45) -> 0 | T46: =SUM(T$12:T$45) -> 0 | U46: 0 | Y46: รวมของแห้ง | AC46: =SUM(AC$12:AC$45) -> 0 | AD46: =SUM(AD$12:AD$45) -> 0 | AE46: =SUM(AE$12:AE$45) -> 0 | AF46: 0 | AJ46: รวมของแห้ง | AN46: =SUM(AN$12:AN$45) -> 0 | AO46: =SUM(AO$12:AO$45) -> 0 | AP46: =SUM(AP$12:AP$45) -> 0 | AQ46: 0
C47: ไม่รวมของแห้ง | G47: =SUMIF(K$12:K$45,"ของสด",G$12:G$45) -> 0 | H47: =SUMIF(K$12:K$45,"ของสด",H$12:H$45) -> 0 | I47: =SUMIF(K$12:K$45,"ของสด",I$12:I$45) -> 0 | J47: =SUMIF(K$12:K$45,"ของสด",J$12:J$45) -> 0 | N47: ไม่รวมของแห้ง | R47: =SUMIF(V$12:V$45,"ของสด",R$12:R$45) -> 0 | S47: =SUMIF(V$12:V$45,"ของสด",S$12:S$45) -> 0 | T47: =SUMIF(V$12:V$45,"ของสด",T$12:T$45) -> 0 | U47: =SUMIF(V$12:V$45,"ของสด",U$12:U$45) -> 0 | Y47: ไม่รวมของแห้ง | AC47: =SUMIF(AG$12:AG$45,"ของสด",AC$12:AC$45) -> 0 | AD47: =SUMIF(AG$12:AG$45,"ของสด",AD$12:AD$45) -> 0 | AE47: =SUMIF(AG$12:AG$45,"ของสด",AE$12:AE$45) -> 0 | AF47: =SUMIF(AG$12:AG$45,"ของสด",AF$12:AF$45) -> 0 | AJ47: ไม่รวมของแห้ง | AN47: =SUMIF(AR$12:AR$45,"ของสด",AN$12:AN$45) -> 0 | AO47: =SUMIF(AR$12:AR$45,"ของสด",AO$12:AO$45) -> 0 | AP47: =SUMIF(AR$12:AR$45,"ของสด",AP$12:AP$45) -> 0 | AQ47: =SUMIF(AR$12:AR$45,"ของสด",AQ$12:AQ$45) -> 0
C48: ถาดขึ้น | G48: ผู้เบิก | N48: ถาดขึ้น | R48: ผู้เบิก | Y48: ถาดขึ้น | AC48: ผู้เบิก | AJ48: ถาดขึ้น | AN48: ผู้เบิก
C49: ถาดกลับ | H49: เวลากลับ | N49: ถาดกลับ | S49: เวลากลับ | Y49: ถาดกลับ | AD49: เวลากลับ | AJ49: ถาดกลับ | AO49: เวลากลับ
C50: ขนมเสีย | G50: กก. | H50: ไมล์เข้า | N50: ขนมเสีย | R50: กก. | S50: ไมล์เข้า | Y50: ขนมเสีย | AC50: กก. | AD50: ไมล์เข้า | AJ50: ขนมเสีย | AN50: กก. | AO50: ไมล์เข้า
G51: ผู้ตรวจนับ | R51: ผู้ตรวจนับ | AC51: ผู้ตรวจนับ | AN51: ผู้ตรวจนับ

Sheet Factory_Order Frm (hidden)
F2: SETTING | G2: PRODUCTS | H2: STOCK | I2: REPORT
C3: แบบฟอร์มใบสั่งซื้อสินค้าประจำสาขา (Product Order Form) | J3: =B_Name -> โรงงานร่มเกล้า
B5: เลขที่ | C5: ="PO_"&RIGHT(BranchCode,2)&"-"&TEXT(OrderDate,"[$-,107]yymmdd;@") -> PO_RK-610806 | H5: ="สาขา "&B_Name -> สาขา โรงงานร่มเกล้า
H6: ="เลขที่ "&IFERROR(LEFT(B_Address,FIND("จ.",B_Address)-1),LEFT(B_Address,FIND("แขวง",B_Address)-1)) -> เลขที่ 205/5 ถ.ร่มเกล้า
H8: =IFERROR(RIGHT(B_Address,LEN(B_Address)-FIND("จ.",B_Address)+1),MID(B_Address,FIND("แขวง",B_Address),FIND("กรุง",B_Address)-FIND("แขวง",B_Address))) -> แขวงคลองสามประเวศ เขตลาดกระบัง
H9: =IF(ISERROR(FIND("จ.",B_Address)),RIGHT(B_Address,LEN(B_Address)-FIND("กรุงเทพ",B_Address)+1),"") -> กรุงเทพมหานคร 10520
E10: 1 | F10: กรกฎาคม | G10: =TODAY() -> 2022-07-14
B11: เรื่อง | C11: ="ขอสั่งซื้อสินค้า เพื่อจัดจำหน่าย สาขา"&B_Name &"("&BranchCode&")" -> ขอสั่งซื้อสินค้า เพื่อจัดจำหน่าย สาขาโรงงานร่มเกล้า(00-FRK)
B12: เรียน | C12: ="ผู้จัดการโรงงานระยอง (คุณ"&INDEX(dBranches[Manager],MATCH("00-FRY",dBranches[Code],0))&" )" -> ผู้จัดการโรงงานระยอง (คุณนรรฆวุฒิ จันทฤทธิ์ )
C14: ="เนื่องด้วย สาขา"&B_Name&" มีความประสงค์ขอสั่งซื้อสินค้า เพื่อจัดจำหน่าย ระหว่างวันที่ "& TEXT($D$18,"[$-,107]d mmm yyy") -> เนื่องด้วย สาขาโรงงานร่มเกล้า มีความประสงค์ขอสั่งซื้อสินค้า เพื่อจัดจำหน่าย ระหว่างวันที่ 6 ส.ค. 2561
B15: =" ถึงวันที่ "&TEXT($D$18+5,"[$-,107]d mmm yyy")&" จำนวนทั้งสิ้น "&SUM(L20:L59)&" รายการ "&TEXT(SUM(D60:I60),"#,##0")&" ถาด โดยมีรายละเอียดดังนี้" -> ถึงวันที่ 11 ส.ค. 2561 จำนวนทั้งสิ้น 0 รายการ 0 ถาด โดยมีรายละเอียดดังนี้ | O15: Alphabet# | P15: =LEN(BranchCode)-FIND("-",BranchCode) -> 3
D17: จำนวนสั่งซื้อ (ถาด) | O17: ** สูตรนี้กำหนดไว้ที่ประมาณ 280 รายการ
B18: ลำดับ | C18: รายการสินค้า | D18: 2018-08-06 | E18: =D18+1 -> 2018-08-07 | F18: =E18+1 -> 2018-08-08 | G18: 2018-08-09 | H18: 2018-08-10 | I18: 2018-08-11 | J18: รวมทั้งสิ้น | O18: วันที่ | P18: สาขา | Q18: ประเภท | R18: รายการสินค้า | S18: จำนวนถาด | T18: เกิน (ชิ้น)
B19: No. | C19: Items | D19: 2 | E19: 3 | F19: 4 | G19: 5 | H19: 6 | I19: 7 | J19: ถาด | K19: Pcs/Tray | N19: Index | O19: Date | P19: Branch | Q19: Type | R19: Products | S19: Qty-Tray | T19: Excess-Pcs
B20: =IF($C20="","",ROWS($C$20:$C20)) -> 1 | C20: =IF(ROWS($C$20:$C20)>COUNTA(FRY_Product_List),"",INDEX(FRY_Product_List,ROWS($C$20:$C20))) -> 01-ขนมปังหมูหยองน้ำสลัด | D20: =IF($C20="","",ROUND(SUMPRODUCT((LEFT(Transaction[Route],Branch_Digit)=RIGHT(BranchCode,Branch_Digit))*(Transaction[Type]="เบิก")*(Transaction[Products]='Factory_Order Frm'!$C20)*(Transaction[Date]=D$18)*(Transaction[Qty In-Out]))/'Factory_Order Frm'!$K20,0)) -> 0 | E20: =IF($C20="","",ROUND(SUMPRODUCT((LEFT(Transaction[Route],Branch_Digit)=RIGHT(BranchCode,Branch_Digit))*(Transaction[Type]="เบิก")*(Transaction[Products]='Factory_Order Frm'!$C20)*(Transaction[Date]=E$18)*(Transaction[Qty In-Out]))/'Factory_Order Frm'!$K20,0)) -> 0 | F20: =IF($C20="","",ROUND(SUMPRODUCT((LEFT(Transaction[Route],Branch_Digit)=RIGHT(BranchCode,Branch_Digit))*(Transaction[Type]="เบิก")*(Transaction[Products]='Factory_Order Frm'!$C20)*(Transaction[Date]=F$18)*(Transaction[Qty In-Out]))/'Factory_Order Frm'!$K20,0)) -> 0 | G20: =IF($C20="","",ROUND(SUMPRODUCT((LEFT(Transaction[Route],Branch_Digit)=RIGHT(BranchCode,Branch_Digit))*(Transaction[Type]="เบิก")*(Transaction[Products]='Factory_Order Frm'!$C20)*(Transaction[Date]=G$18)*(Transaction[Qty In-Out]))/'Factory_Order Frm'!$K20,0)) -> 0 | H20: =IF($C20="","",ROUND(SUMPRODUCT((LEFT(Transaction[Route],Branch_Digit)=RIGHT(BranchCode,Branch_Digit))*(Transaction[Type]="เบิก")*(Transaction[Products]='Factory_Order Frm'!$C20)*(Transaction[Date]=H$18)*(Transaction[Qty In-Out]))/'Factory_Order Frm'!$K20,0)) -> 0 | I20: =IF($C20="","",ROUND(SUMPRODUCT((LEFT(Transaction[Route],Branch_Digit)=RIGHT(BranchCode,Branch_Digit))*(Transaction[Type]="เบิก")*(Transaction[Products]='Factory_Order Frm'!$C20)*(Transaction[Date]=I$18)*(Transaction[Qty In-Out]))/'Factory_Order Frm'!$K20,0)) -> 0 | J20: =IF($C20="","",SUM(D20:I20)) -> 0 | K20: =IF('Factory_Order Frm'!$C20="","",INDEX(dProduct[Pcs/Unit],MATCH('Factory_Order Frm'!$C20,dProduct[NameTH],))) -> 40 | L20: =IF(OR(J20=0,J20=""),0,1) -> 0 | N20: =IF(Cumulative>(ROW()-ROW($O$20)),_xlfn.AGGREGATE(15,6,(ROW(OrderRange_Ref)-ROW($L$19))/(OFFSET(OrderRange_Ref,,0)>0),ROWS($L$20:$L20)),IF(OFFSET(Cumulative,,1)>(ROW()-ROW($O$20)),_xlfn.AGGREGATE(15,6,(ROW(OrderRange_Ref)-ROW($L$19))/(OFFSET(OrderRange_Ref,,1)>0),ROWS($L$20:$L20)-OFFSET(Cumulative,,0)),IF(OFFSET(Cumulative,,2)>(ROW()-ROW($O$20)),_xlfn.AGGREGATE(15,6,(ROW(OrderRange_Ref)-ROW($L$19))/(OFFSET(OrderRange_Ref,,2)>0),ROWS($L$20:$L20)-OFFSET(Cumulative,,1)),IF(OFFSET(Cumulative,,3)>(ROW()-ROW($O$20)),_xlfn.AGGREGATE(15,6,(ROW(OrderRange_Ref)-ROW($L$19))/(OFFSET(OrderRange_Ref,,3)>0),ROWS($L$20:$L20)-OFFSET(Cumulative,,2)),IF(OFFSET(Cumulative,,4)>(ROW()-ROW($O$20)),_xlfn.AGGREGATE(15,6,(ROW(OrderRange_Ref)-ROW($L$19))/(OFFSET(OrderRange_Ref,,4)>0),ROWS($L$20:$L20)-OFFSET(Cumulative,,3)),IF(OFFSET(Cumulative,,5)>(ROW()-ROW($O$20)),_xlfn.AGGREGATE(15,6,(ROW(OrderRange_Ref)-ROW($L$19))/(OFFSET(OrderRange_Ref,,5)>0),ROWS($L$20:$L20)-OFFSET(Cumulative,,4)),"")))))) ->  | O20: =IF(Cumulative>(ROW()-ROW($O$20)),OrderDate,IF(OFFSET(Cumulative,,1)>(ROW()-ROW($O$20)),OrderDate+1,IF(OFFSET(Cumulative,,2)>(ROW()-ROW($O$20)),OrderDate+2,IF(OFFSET(Cumulative,,3)>(ROW()-ROW($O$20)),OrderDate+3,IF(OFFSET(Cumulative,,4)>(ROW()-ROW($O$20)),OrderDate+4,IF(OFFSET(Cumulative,,5)>(ROW()-ROW($O$20)),OrderDate+5,"")))))) ->  | P20: =IF($O20<>"",BranchCode,"") ->  | Q20: =IF($O20<>"","จ่าย","") ->  | R20: =IFERROR(INDEX($C$20:$C$54,$N20),"") ->  | S20: =IF($N20="","",ROUND(SUMPRODUCT((LEFT(Transaction[Route],Branch_Digit)=RIGHT(BranchCode,Branch_Digit))*(Transaction[Type]="เบิก")*(Transaction[Products]='Factory_Order Frm'!$R20)*(Transaction[Date]=$O20)*(Transaction[Qty In-Out]))/PcsPerTray,0)) ->  | T20: =IF($N20="","",MOD(SUMPRODUCT((LEFT(Transaction[Route],Branch_Digit)=RIGHT(BranchCode,Branch_Digit))*(Transaction[Type]="เบิก")*(Transaction[Products]='Factory_Order Frm'!$R20)*(Transaction[Date]=$O20)*(Transaction[Qty In-Out])),PcsPerTray)) -> 
